Workbook

Sheet Instructions
A1: Instructions
A3: Purpose
A4: This rating model is prepared to determine the rates sought by each rating category/TA to cover funding requirements for the forthcoming year.
A6: Conventions
A7: All yellow cells are input cells.
A8: The majority of tabs in this spreadhseet have been protected to ensure that values aren't inadvertantly changed.
A9: Should a user need to amend the content of a tab the password required is "gwrcrates".
A11: Process
A12: To run the rates model the following actions should be completed
B13: 1) | C13: On each of the tabs shaded green in the structure diagram below delete all values in the shaded yellow cell
B14: 2) | C14: In the control tab;
C15: a) | D15: In cell B5 enter the current rating year in the YYYY/YY date format
C16: b) | D16: Adjust the WRS rating basis if required by the rates funding policy
C17: c) | D17: Obtain "Flood protection" and "Pest rate" information from the Landcare & Wairarapa Accountant and enter in the relevant cells
C18: d) | D18: Obtian Water levy split from the water supply accountant and enter in the relevant cells
B19: 3) | C19: Obtain Capital Values (CVs) & corresponding assessments from each Territorial Authority (TA) and Equalised Capital Values (ECVs) & corresponding assessments from Quotable Value and enter into the relevant yellow cells on the "UHCC Adjustments" and "Capital values" tab
B20: 4) | C20: Select the cells to be updated in the ESSBase tab and retrieve the information from the ESSbase system
B21: 5) | C21: Email the ESSBase extract to the respective management accountants and obtain confirmation that these rates values are correct before proceeding further.
B22: 6) | C22: Populate the "Class rates" tab with data provided by the Landcare & Wairarapa Accountant
B23: 7) | C23: Use the rating model from the previous year to populate the yellow cells using the PASTE SPECIAL>>VALUES comand in the "Comparison - TA" and "Comparison - Category" tabs.
B24: 8) | C24: On the "Check" tab if cell B7 says "Error" then a rounding/check total error occurs within the model and the error should be investigated and reconciled where possible. Explanations of the difference can be entered in the "Check" tab for future reference. If cell B7 reads "OK" then no rounding/check total errors have been found in the data that has been entered.
B25: 9) | C25: Once all checks have been completed the individual that has completed steps 1 through 9 above should forward the model to their manager for reivew and approval.
B26: 10) | C26: Once approval of the results is obtained the values can be used for distribution as required.
A28: Strucutre diagram
A29: The flow diagram below sets out the structure of this excel spreadsheet.

Sheet >>Input tabs

Sheet Control
A1: Control
A2: =check_total -> 0
A4: Years
A5: Current rating year | B5: 2019/20
A6: Previous rating year | B6: =VALUE(LEFT(year_current,4))-1&"/"&VALUE(RIGHT(year_current,2))-1 -> 2018/19
A9: GST
A10: GST % | B10: 0.15
A12: Error tolerance
A13: $ error tolerance | B13: 2
A15: TA's
A16: TA full name | B16: TA short name
A17: Wellington city | B17: Wellington
A18: Hutt city | B18: Hutt
A19: Upper Hutt city | B19: Upper Hutt
A20: Porirua city | B20: Porirua
A21: Kāpiti Coast district | B21: Kapiti
A22: Masterton district | B22: Masterton
A23: Carterton district | B23: Carterton
A24: South Wairarapa district | B24: South Wairarapa
A25: Tararua district | B25: Tararua
A28: TA's for rates check tab
A29: Excludes KCDC and UHC as they have their own rates check tab
A30: TA full name
A31: Wellington city
A32: Hutt city
A33: Porirua city
A34: Masterton district
A35: Carterton district
A36: South Wairarapa district
A37: Tararua district
A40: TA's
A41: TA full name | B41: Category group | C41: Concatenated row
A42: Wellington city | B42: District wide | C42: =A42&B42 -> Wellington cityDistrict wide
A43: Hutt city | B43: District wide | C43: =A43&B43 -> Hutt cityDistrict wide
A44: Upper Hutt city | B44: District wide | C44: Upper Hutt cityDistrict wide
A45: Porirua city | B45: District wide | C45: Porirua cityDistrict wide
A46: Kāpiti Coast district | B46: District wide | C46: Kāpiti Coast districtDistrict wide
A47: Masterton district | B47: District wide | C47: Masterton districtDistrict wide
A48: Carterton district | B48: District wide | C48: Carterton districtDistrict wide
A49: South Wairarapa district | B49: District wide | C49: South Wairarapa districtDistrict wide
A50: Tararua district | B50: District wide | C50: Tararua districtDistrict wide
A51: Region wide | C51: Region wide
A54: PT target differentials
A55: Category group | B55: Differential
A56: Regional CBD | B56: 7
A57: Business - excl Wairarapa | B57: 1.4
A58: Business - Wairarapa | B58: 1
A59: Residential - excl Wairarapa & Otaki | B59: 1
A60: Residential - Wairarapa & Otaki | B60: 0.5
A61: Rural | B61: 0.25
A62: Tararua | B62: 0
A65: TA & Category | H65: PT differentials to use for rating model transition | P65: Calculation of differentials using the 2017/18 Transport rate
A66: TA full name | B66: Rating area | C66: Category group | D66: Concatenated name | E66: PT differential category | F66: PT differential | H66: 2017/18 | I66: 2018/19 | J66: 2019/20 | K66: 2020/21 | L66: 2021/22 | M66: 2022/23 | N66: 2023/24 onwards | P66: Rate levied | Q66: ECV | R66: Cents/ECV$
A67: Wellington city | B67: Wellington city | C67: Regional CBD | D67: =B67&C67 -> Wellington cityRegional CBD | E67: Regional CBD | F67: =IF(VALUE(LEFT(year_current,4))>2022,N67,INDEX($H67:$M67,,MATCH(year_current,$H$66:$M$66,0))) -> 6.82880342 | H67: =R67/R$96 -> 6.743205131 | I67: =($N67-$H67)/6+H67 -> 6.786004276 | J67: 6.82880342 | K67: 6.871602565 | L67: 6.91440171 | M67: =($N67-$H67)/6+L67 -> 6.957200855 | N67: =INDEX($B$56:$B$62,MATCH(E67,$A$56:$A$62,0),) -> 7 | P67: 25019166.08 | Q67: 9699270191 | R67: =(P67*100)/Q67 -> 0.2579489548
A68: Wellington city | B68: Wellington city | C68: Business | D68: =B68&C68 -> Wellington cityBusiness | E68: Business - excl Wairarapa | F68: 0.9073481479 | H68: 0.6610222218 | I68: 0.7841851849 | J68: 0.9073481479 | K68: 1.030511111 | L68: 1.153674074 | M68: 1.276837037 | N68: =INDEX($B$56:$B$62,MATCH(E68,$A$56:$A$62,0),) -> 1.4 | P68: 1192769.666 | Q68: 4717078733 | R68: =(P68*100)/Q68 -> 0.02528619372
A69: Wellington city | B69: Wellington city | C69: Residential | D69: Wellington cityResidential | E69: Residential - excl Wairarapa & Otaki | F69: 0.7740148146 | H69: 0.6610222218 | I69: 0.7175185182 | J69: 0.7740148146 | K69: 0.8305111109 | L69: 0.8870074073 | M69: 0.9435037036 | N69: 1 | P69: 12199002 | Q69: 4.824372595e+10 | R69: =(P69*100)/Q69 -> 0.02528619372
A70: Wellington city | B70: Wellington city | C70: Rural | D70: Wellington cityRural | E70: Rural | F70: 0.1965188139 | H70: 0.1697782208 | I70: 0.1831485174 | J70: 0.1965188139 | K70: 0.2098891104 | L70: 0.2232594069 | M70: 0.2366297035 | N70: 0.25 | P70: 46420.2668 | Q70: 714756729.4 | R70: 0.006494554705
A71: Hutt city | B71: Hutt city | C71: Business | D71: Hutt cityBusiness | E71: Business - excl Wairarapa | F71: 1.413555489 | H71: 1.420333234 | I71: 1.416944362 | J71: 1.413555489 | K71: 1.410166617 | L71: 1.406777745 | M71: 1.403388872 | N71: 1.4 | P71: 2092334.59 | Q71: 3850999697 | R71: 0.05433224499
A72: Hutt city | B72: Hutt city | C72: Residential | D72: Hutt cityResidential | E72: Residential - excl Wairarapa & Otaki | F72: 1.280222156 | H72: 1.420333234 | I72: 1.350277695 | J72: 1.280222156 | K72: 1.210166617 | L72: 1.140111078 | M72: 1.070055539 | N72: 1 | P72: 9399014.05 | Q72: 1.729914538e+10 | R72: 0.05433224499
A73: Hutt city | B73: Hutt city | C73: Rural | D73: Hutt cityRural | E73: Rural | F73: 0.3246422102 | H73: 0.3619633154 | I73: 0.3433027628 | J73: 0.3246422102 | K73: 0.3059816577 | L73: 0.2873211051 | M73: 0.2686605526 | N73: 0.25 | P73: 44664.56015 | Q73: 322575294.9 | R73: 0.0138462433
A74: Upper Hutt city | B74: Upper Hutt city | C74: Business | D74: Upper Hutt cityBusiness | E74: Business - excl Wairarapa | F74: 1.531191092 | H74: 1.596786638 | I74: 1.563988865 | J74: 1.531191092 | K74: 1.498393319 | L74: 1.465595546 | M74: 1.432797773 | N74: 1.4 | P74: 725473.2635 | Q74: 1187700996 | R74: 0.0610821466
A75: Upper Hutt city | B75: Upper Hutt city | C75: Residential | D75: Upper Hutt cityResidential | E75: Residential - excl Wairarapa & Otaki | F75: 1.397857759 | H75: 1.596786638 | I75: 1.497322199 | J75: 1.397857759 | K75: 1.298393319 | L75: 1.198928879 | M75: 1.09946444 | N75: 1 | P75: 3744588.865 | Q75: 6130414651 | R75: 0.0610821466
A76: Upper Hutt city | B76: Upper Hutt city | C76: Rural | D76: Upper Hutt cityRural | E76: Rural | F76: 0.35464047 | H76: 0.406960705 | I76: 0.3808005875 | J76: 0.35464047 | K76: 0.3284803525 | L76: 0.302320235 | M76: 0.2761601175 | N76: 0.25 | P76: 126321.4349 | Q76: 811441419.6 | R76: 0.01556753598
A77: Porirua city | B77: Porirua city | C77: Business | D77: Porirua cityBusiness | E77: Business - excl Wairarapa | F77: 1.565205544 | H77: 1.647808317 | I77: =($N77-$H77)/6+H77 -> 1.606506931 | J77: 1.565205544 | K77: 1.523904158 | L77: 1.482602772 | M77: 1.441301386 | N77: 1.4 | P77: 691972.2213 | Q77: 1097778116 | R77: 0.0630338874
A78: Porirua city | B78: Porirua city | C78: Residential | D78: Porirua cityResidential | E78: Residential - excl Wairarapa & Otaki | F78: 1.431872211 | H78: 1.647808317 | I78: 1.539840264 | J78: 1.431872211 | K78: 1.323904158 | L78: 1.215936106 | M78: 1.107968053 | N78: 1 | P78: 5277337.683 | Q78: 8372223102 | R78: 0.0630338874
A79: Porirua city | B79: Porirua city | C79: Rural | D79: Porirua cityRural | E79: Rural | F79: 0.3632344603 | H79: 0.4198516904 | I79: 0.3915430753 | J79: 0.3632344603 | K79: 0.3349258452 | L79: 0.3066172301 | M79: 0.2783086151 | N79: 0.25 | P79: 96761.34374 | Q79: 602474380.3 | R79: 0.016060657
A80: Kāpiti Coast district | B80: Kāpiti Coast district | C80: Business | D80: Kāpiti Coast districtBusiness | E80: Business - excl Wairarapa | F80: 0.9359843804 | H80: 0.7039765706 | I80: 0.8199804755 | J80: 0.9359843804 | K80: 1.051988285 | L80: 1.16799219 | M80: 1.283996095 | N80: 1.4 | P80: 403085.5329 | Q80: 1496826987 | R80: 0.02692933361
A81: Kāpiti Coast district | B81: Kāpiti Coast district excl Ōtaki | C81: Residential | D81: Kāpiti Coast district excl Ōtaki Residential | E81: Residential - excl Wairarapa & Otaki | F81: 0.802651047 | H81: 0.7039765706 | I81: 0.7533138088 | J81: 0.802651047 | K81: 0.8519882853 | L81: 0.9013255235 | M81: 0.9506627618 | N81: 1 | P81: 2549190.973 | Q81: 9466223746 | R81: =(P81*100)/Q81 -> 0.02692933361 | T81: Green cells not consistent with formulas above and below due to Otaki carveout
A82: Kāpiti Coast district | B82: Ōtaki rating area | C82: Residential | D82: Ōtaki rating areaResidential | E82: Residential - Wairarapa & Otaki | F82: 0.6359843804 | H82: =H81 -> 0.7039765706 | I82: 0.6699804755 | J82: 0.6359843804 | K82: 0.6019882853 | L82: 0.5679921902 | M82: 0.5339960951 | N82: 0.5
A83: Kāpiti Coast district | B83: Kāpiti Coast district | C83: Rural | D83: Kāpiti Coast districtRural | E83: Rural | F83: 0.2047493834 | H83: =R83/R$96 -> 0.1821240752 | I83: 0.1934367293 | J83: 0.2047493834 | K83: 0.2160620376 | L83: 0.2273746917 | M83: 0.2386873459 | N83: =INDEX($B$56:$B$62,MATCH(E83,$A$56:$A$62,0),) -> 0.25 | P83: 138343.5821 | Q83: 1985748559 | R83: =(P83*100)/Q83 -> 0.006966822737
A84: Masterton district | B84: Masterton district | C84: Business | D84: Masterton districtBusiness | E84: Business - Wairarapa | F84: 0.4993249485 | H84: =R84/R$96 -> 0.2489874227 | I84: 0.3741561856 | J84: 0.4993249485 | K84: 0.6244937114 | L84: 0.7496624742 | M84: 0.8748312371 | N84: 1 | P84: 38506.17602 | Q84: 404283094.1 | R84: 0.009524557565
A85: Masterton district | B85: Masterton district | C85: Residential | D85: Masterton districtResidential | E85: Residential - Wairarapa & Otaki | F85: 0.3326582818 | H85: =R85/R$96 -> 0.2489874227 | I85: 0.2908228523 | J85: 0.3326582818 | K85: 0.3744937114 | L85: 0.4163291409 | M85: 0.4581645705 | N85: 0.5 | P85: 199517.2283 | Q85: 2094766366 | R85: 0.009524557565
A86: Masterton district | B86: Masterton district | C86: Rural | D86: Masterton districtRural | E86: Rural | F86: 0.131019333 | H86: 0.07152899945 | I86: 0.1012741662 | J86: 0.131019333 | K86: 0.1607644997 | L86: 0.1905096665 | M86: 0.2202548332 | N86: 0.25 | P86: 68725.16171 | Q86: 2511691056 | R86: 0.002736210791
A87: Carterton district | B87: Carterton district | C87: Business | D87: Carterton districtBusiness | E87: Business - Wairarapa | F87: 0.6311347496 | H87: 0.4467021244 | I87: =($N87-$H87)/6+H87 -> 0.538918437 | J87: 0.6311347496 | K87: 0.7233510622 | L87: 0.8155673748 | M87: 0.9077836874 | N87: 1 | P87: 16823.53518 | Q87: 98453654.54 | R87: 0.01708777115
A88: Carterton district | B88: Carterton district | C88: Residential | D88: Carterton districtResidential | E88: Residential - Wairarapa & Otaki | F88: 0.4644680829 | H88: 0.4467021244 | I88: 0.4555851037 | J88: 0.4644680829 | K88: 0.4733510622 | L88: 0.4822340415 | M88: 0.4911170207 | N88: 0.5 | P88: 109887.4071 | Q88: 643076303.8 | R88: 0.01708777115
A89: Carterton district | B89: Carterton district | C89: Rural | D89: Carterton districtRural | E89: Rural | F89: 0.1631445304 | H89: 0.1197167956 | I89: 0.141430663 | J89: 0.1631445304 | K89: 0.1848583978 | L89: 0.2065722652 | M89: 0.2282861326 | N89: 0.25 | P89: 72077.97135 | Q89: 1573910635 | R89: 0.004579546625
A90: South Wairarapa district | B90: South Wairarapa district | C90: Business | D90: South Wairarapa districtBusiness | E90: Business - Wairarapa | F90: 0.7268331513 | H90: 0.5902497269 | I90: 0.6585414391 | J90: 0.7268331513 | K90: 0.7951248635 | L90: 0.8634165756 | M90: 0.9317082878 | N90: 1 | P90: 44332.49903 | Q90: 196344625.2 | R90: 0.02257892162
A91: South Wairarapa district | B91: South Wairarapa district | C91: Residential | D91: South Wairarapa districtResidential | E91: Residential - Wairarapa & Otaki | F91: 0.5601664846 | H91: 0.5902497269 | I91: 0.5752081058 | J91: 0.5601664846 | K91: 0.5451248635 | L91: 0.5300832423 | M91: 0.5150416212 | N91: 0.5 | P91: 206694.8687 | Q91: 915432863.5 | R91: 0.02257892162
A92: South Wairarapa district | B92: South Wairarapa district | C92: Rural | D92: South Wairarapa districtRural | E92: Rural | F92: 0.1856285043 | H92: 0.1534427564 | I92: 0.1695356303 | J92: 0.1856285043 | K92: 0.2017213782 | L92: 0.2178142521 | M92: 0.2339071261 | N92: 0.25 | P92: 153385.1807 | Q92: 2613181710 | R92: 0.005869671448
A93: Tararua district | B93: Tararua district | C93: Rural | D93: Tararua districtRural | E93: Tararua | F93: 0 | H93: 0 | I93: 0 | J93: 0 | K93: 0 | L93: 0 | M93: 0 | N93: 0 | P93: 0 | Q93: 7041800 | R93: 0
A94: Region wide | D94: =A94&C94 -> Region wide | P94: =SUM(P67:P93) -> 64656396.14 | Q94: =SUM(Q67:Q93) -> 1.27056566e+11
P96: =SUMIF($C$67:$C$79,"Residential",P$67:P$79) -> 30619942.6 | Q96: =SUMIF($C$67:$C$79,"Residential",Q$67:Q$79) -> 8.004550909e+10 | R96: =(P96*100)/Q96 -> 0.03825316741
A99: WRS rates
A100: Category group | B100: Rating basis
A101: Regional CBD | B101: Remainder
A102: Business | B102: Remainder
A103: Residential | B103: 14
A104: Rural | B104: 28
A107: Flood protection
A108: From Essbase / Landcare & Wairarapa Accountant
A109: TA full name | B109: [not used] | C109: River management | D109: [not used] | E109: Total
A110: Wellington city | C110: 63804.11426 | E110: =SUM(B110:D110) -> 63804.11426
A111: Hutt city | C111: 4675266.736 | E111: =SUM(B111:D111) -> 4675266.736
A112: Upper Hutt city | C112: 806234.4441 | E112: 806234.4441
A113: Porirua city | C113: 48238.74476 | E113: 48238.74476
A114: Kāpiti Coast district | C114: 1423425.103 | E114: 1423425.103
A115: Masterton district | E115: 0
A116: Carterton district | C116: 24179.1 | E116: 24179.1
A117: South Wairarapa district | E117: 0
A118: Tararua district | E118: 0
A119: Non district Wide | E119: 0
A120: Special Rates | E120: 0
A121: External Revenue | E121: 0
A122: Total | C122: =SUM(C110:C121) -> 7041148.242 | E122: =SUM(B122:D122) -> 7041148.242
A124: Non district-wide breakdown
A125: Greytown River Management Rate | D125: 94400
A126: Donalds Creek Stopbank River Management Rate | D126: 2667
A127: South Wairarapa district River Management Rates | D127: =SUM(D125:D126) -> 97067
A130: Stadium Rate (ex-GST)
A131: Stadium rate allocations
A132: =B66 -> Rating area | B132: =C66 -> Category group | C132: Concatenated name | D132: CV | E132: Stadium allocation
A133: =B67 -> Wellington city | B133: Regional CBD | C133: Wellington cityRegional CBD | D133: =INDEX(capital_values,MATCH($C133,capital_values_rows,0),MATCH(D$132&" "&year_current,capital_values_header,0)) -> 9921148650 | E133: =0.2055*D133/SUM($D$133:$D$134) -> 0.1400304297
A134: =B68 -> Wellington city | B134: Business | C134: Wellington cityBusiness | D134: 4638515650 | E134: =0.2055*D134/SUM($D$133:$D$134) -> 0.06546957034
A135: =B69 -> Wellington city | B135: Residential | C135: Wellington cityResidential | D135: 57499964050 | E135: 0.3856
A136: =B70 -> Wellington city | B136: Rural | C136: Wellington cityRural | D136: 794922100 | E136: 0.0029
A137: =B71 -> Hutt city | B137: Business | C137: Hutt cityBusiness | D137: 3813013500 | E137: 0.0509
A138: =B72 -> Hutt city | B138: Residential | C138: Hutt cityResidential | D138: 17395848500 | E138: 0.142
A139: =B73 -> Hutt city | B139: Rural | C139: Hutt cityRural | D139: 316542000 | E139: 0.0023
A140: =B74 -> Upper Hutt city | B140: Business | C140: Upper Hutt cityBusiness | D140: 1182339500 | E140: 0.0079
A141: =B75 -> Upper Hutt city | B141: Residential | C141: Upper Hutt cityResidential | D141: 6233760420 | E141: 0.0427
A142: =B76 -> Upper Hutt city | B142: Rural | C142: Upper Hutt cityRural | D142: 861586340 | E142: 0.002
A143: =B77 -> Porirua city | B143: Business | C143: Porirua cityBusiness | D143: 1101735500 | E143: 0.0124
A144: =B78 -> Porirua city | B144: Residential | C144: Porirua cityResidential | D144: 8642049050 | E144: 0.058
A145: =B79 -> Porirua city | B145: Rural | C145: Porirua cityRural | D145: 623527750 | E145: 0.0014
A146: =B80 -> Kāpiti Coast district | B146: Business | C146: Kāpiti Coast districtBusiness | D146: 1476489000 | E146: =0.0441*D146/SUM($D$146:$D$148) -> 0.005043994563
A147: =B81 -> Kāpiti Coast district excl Ōtaki | B147: Residential | C147: Kāpiti Coast district excl Ōtaki Residential | D147: 10311045500 | E147: =0.0441*D147/SUM($D$146:$D$148) -> 0.03522468331
A148: =B82 -> Ōtaki rating area | B148: Residential | C148: Ōtaki rating areaResidential | D148: 1121512900 | E148: =0.0441*D148/SUM($D$146:$D$148) -> 0.003831322123
A149: =B83 -> Kāpiti Coast district | B149: Rural | C149: Kāpiti Coast districtRural | D149: 1985010700 | E149: 0.0043
A150: =B84 -> Masterton district | B150: Business | C150: Masterton districtBusiness | D150: 433209100 | E150: =0.0147*D150/SUM($D$150:$D$151) -> 0.002046325439
A151: =B85 -> Masterton district | B151: Residential | C151: Masterton districtResidential | D151: 2678795300 | E151: =0.0147*D151/SUM($D$150:$D$151) -> 0.01265367456
A152: =B86 -> Masterton district | B152: Rural | C152: Masterton districtRural | D152: 2808505600 | E152: 0.0053
A153: =B87 -> Carterton district | B153: Business | C153: Carterton districtBusiness | D153: 97126500 | E153: =0.0039*D153/SUM($D$153:$D$154) -> 0.0003962182356
A154: =B88 -> Carterton district | B154: Residential | C154: Carterton districtResidential | D154: 858895500 | E154: =0.0039*D154/SUM($D$153:$D$154) -> 0.003503781764
A155: =B89 -> Carterton district | B155: Rural | C155: Carterton districtRural | D155: 1749109700 | E155: 0.0031
A156: =B90 -> South Wairarapa district | B156: Business | C156: South Wairarapa districtBusiness | D156: 211288600 | E156: =0.0072*D156/SUM($D$156:$D$157) -> 0.0009600301701
A157: =B91 -> South Wairarapa district | B157: Residential | C157: South Wairarapa districtResidential | D157: 1373326100 | E157: =0.0072*D157/SUM($D$156:$D$157) -> 0.00623996983
A158: =B92 -> South Wairarapa district | B158: Rural | C158: South Wairarapa districtRural | D158: 2970196100 | E158: 0.0038
A159: =B93 -> Tararua district | B159: Rural | C159: Tararua districtRural | D159: 10673500 | E159: 0
A162: Pest Rate property areas
A163: TA full name | B163: TA code | C163: Range | D163: Area ha
A164: Wellington city | B164: WCC | C164: 16690 | D164: 16197.0445
A165: Hutt city | B165: HCC | C165: 15780 to 15890, 16031 to 16600 | D165: 15091.2191
A166: Upper Hutt city | B166: UHCC | C166: 15170 to 15230, 1590 to 16016 | D166: 54346.1582
A167: Porirua city | B167: PCC | D167: 12639
A168: Kāpiti Coast district | B168: KCDC | C168: 14860 to 15150, 15251 to 15410 | D168: 29020.7598
A169: Masterton district | B169: MDC | C169: 17870 to 18130 | D169: 206574.3888
A170: Carterton district | B170: CDC | C170: 18140 to 18190 | D170: 85878.6034
A171: South Wairarapa district | B171: SWDC | C171: 18230 to 18480 | D171: 177467.1272
A172: Tararua district | B172: TDC | C172: 11130 to 17750 | D172: 5306.2972
A173: Region wide | D173: =SUM(D164:D172) -> 602520.5982
A176: Water levy
A177: Need numbers for each city - March 31 comes from Wellington Water
A178: TA full name | B178: Share of levy | C178: =year_current -> 2019/20
A179: Wellington city | B179: =C179/$C$188 -> 0.5203310026 | C179: 18253886.4
A180: Hutt city | B180: =C180/$C$188 -> 0.264235653 | C180: 9269729.4
A181: Upper Hutt city | B181: 0.09772016604 | C181: 3428150.16
A182: Porirua city | B182: 0.1177131783 | C182: 4129530.96
A183: Kāpiti Coast district
A184: Masterton district
A185: Carterton district
A186: South Wairarapa district
A187: Tararua district
A188: Region wide | B188: =SUM(B179:B187) -> 1 | C188: =SUM(C179:C187) -> 35081296.92
A190: Water levy evidence

Sheet UHCC Adjustments
A1: Wellington Regional Council
A2: ="UHCC Adjustments "&year_current -> UHCC Adjustments 2019/20
A3: Printed: | B3: =NOW() -> 2019-05-10T11:15:31.730
A4: =check_total -> 0
A6: TA full name | B6: Category group | C6: Sub category group | D6: CV | E6: Rateable Land Value
A8: Trentham Military Camp
A9: Upper Hutt city | B9: Business | C9: Trentham Military Camp | D9: 56325000 | E9: 19235000
A10: Upper Hutt city | B10: Residential | C10: Trentham Military Camp | D10: 26720000 | E10: 9495000
A11: Upper Hutt city | B11: Rural | C11: Trentham Military Camp | D11: 4676000 | E11: 2720500
A12: Upper Hutt city | B12: Business & Residential | C12: Trentham Military Camp | D12: =D10+D9 -> 83045000 | E12: =E10+E9 -> 28730000
A13: Upper Hutt | B13: Total | C13: Trentham Military Camp | D13: =+D9+D10+D11 -> 87721000 | E13: =+E9+E10+E11 -> 31450500
A15: Rest of Upper Hutt
A16: Upper Hutt city | B16: Business | C16: Rest of Upper Hutt city | D16: =+D23-D9 -> 1126014500 | E16: 274056200
A17: Upper Hutt city | B17: Residential | C17: Rest of Upper Hutt city | D17: 6207040420 | E17: 2983178120
A18: Upper Hutt city | B18: Rural | C18: Rest of Upper Hutt city | D18: 856910340 | E18: 424930740
A19: Upper Hutt city | B19: Business & Residential | C19: Rest of Upper Hutt city | D19: 7333054920 | E19: 3257234320
A20: Upper Hutt | B20: Total | C20: Rest of Upper Hutt city | D20: =+D27-D13 -> 8189965260 | E20: 3682165060
A22: All Upper Hutt
A23: Upper Hutt city | B23: Business | C23: Total | D23: =INDEX(capital_values,MATCH($A16&B16,capital_values_rows,0),MATCH(D$6&" "&year_current,capital_values_header,0)) -> 1182339500 | E23: 293291200
A24: Upper Hutt city | B24: Residential | C24: Total | D24: =INDEX(capital_values,MATCH($A17&B17,capital_values_rows,0),MATCH(D$6&" "&year_current,capital_values_header,0)) -> 6233760420 | E24: 2992673120
A25: Upper Hutt city | B25: Rural | C25: Total | D25: =INDEX(capital_values,MATCH($A18&B18,capital_values_rows,0),MATCH(D$6&" "&year_current,capital_values_header,0)) -> 861586340 | E25: 427651240
A26: Upper Hutt city | B26: Business & Residential | C26: Total | D26: =D24+D23 -> 7416099920 | E26: =E24+E23 -> 3285964320
A27: Upper Hutt | B27: All | C27: Total | D27: =+'Capital values'!F10 -> 8277686260 | E27: =+E23+E24+E25 -> 3713615560
A29: Trentham Military Camp share of rates
A30: Upper Hutt city | B30: Business | C30: Trentham % of Share | D30: =+D9/D23 -> 0.04763860126 | E30: =+E9/E23 -> 0.06558328378
A31: Upper Hutt city | B31: Residential | C31: Trentham % of Share | D31: =+D10/D24 -> 0.004286337331 | E31: 0.003172748783
A32: Upper Hutt city | B32: Rural | C32: Trentham % of Share | D32: =+D11/D25 -> 0.005427198393 | E32: 0.006361492136
A33: Upper Hutt city | B33: Business & Residential | C33: % of Share | D33: =+D12/D26 -> 0.01119793434 | E33: 0.008743247705
A34: Upper Hutt | B34: All | C34: % of Share | D34: =+D13/D27 -> 0.01059728495 | E34: =+E13/E27 -> 0.008468970331

Sheet Capital values
A1: Wellington Regional Council
A2: Rateable values
A3: =check_total -> 0
A5: Capital values
A6: =Control!A41 -> TA full name | B6: Rating area | C6: =Control!B41 -> Category group | D6: =Control!C41 -> Concatenated row | E6: ="CV "&year_previous -> CV 2018/19 | F6: ="CV "&year_current -> CV 2019/20 | G6: ="ECV "&year_previous -> ECV 2018/19 | H6: ="ECV "&year_current -> ECV 2019/20 | J6: Check CV | K6: Check ECV | L6: ECV 2018/19 | M6: ECV 2019/20 | N6: change
A7: =Control!A52 -> 0 | C7: =Control!B52 -> 0 | D7: =Control!C52 -> 0
A8: =Control!A42 -> Wellington city | C8: =Control!B42 -> District wide | D8: =Control!C42 -> Wellington cityDistrict wide | E8: =SUMIF($A$19:$A$45,$A8,E$19:E$45) -> 51992837451 | F8: 72854550450 | G8: 68975077410 | H8: 75455676789 | K8: =ISBLANK(G8)+ISBLANK(H8) -> 0 | L8: =G8/G$17 -> 0.4874466376 | M8: =H8/H$17 -> 0.4899684442 | N8: =M8-L8 -> 0.002521806617
A9: =Control!A43 -> Hutt city | C9: =Control!B43 -> District wide | D9: =Control!C43 -> Hutt cityDistrict wide | E9: 21402530500 | F9: 21525404000 | G9: 24118117072 | H9: 25948841908 | K9: =ISBLANK(G9)+ISBLANK(H9) -> 0 | L9: =G9/G$17 -> 0.1704426514 | M9: =H9/H$17 -> 0.1684977756 | N9: =M9-L9 -> -0.00194487572
A10: =Control!A44 -> Upper Hutt city | C10: =Control!B44 -> District wide | D10: =Control!C44 -> Upper Hutt cityDistrict wide | E10: 8186377260 | F10: 8277686260 | G10: 9172479133 | H10: 10227471419 | K10: 0 | L10: 0.06482187885 | M10: 0.06641167997 | N10: 0.001589801124
A11: =Control!A45 -> Porirua city | C11: =Control!B45 -> District wide | D11: =Control!C45 -> Porirua cityDistrict wide | E11: 10277129250 | F11: 10367312300 | G11: 11429809803 | H11: 1.23944135e+10 | K11: 0 | L11: 0.08077442702 | M11: 0.08048263244 | N11: -0.0002917945831
A12: =Control!A46 -> Kāpiti Coast district | C12: =Control!B46 -> District wide | D12: =Control!C46 -> Kāpiti Coast districtDistrict wide | E12: 14770315600 | F12: 14894058100 | G12: 14678791680 | H12: 15832984916 | K12: 0 | L12: 0.1037349709 | M12: 0.1028108595 | N12: -0.0009241113836
A13: =Control!A47 -> Masterton district | C13: =Control!B47 -> District wide | D13: =Control!C47 -> Masterton districtDistrict wide | E13: 5846514500 | F13: 5920510000 | G13: 5891731979 | H13: 6364119819 | K13: 0 | L13: 0.04163684986 | M13: 0.0413251596 | N13: -0.0003116902622
A14: =Control!A48 -> Carterton district | C14: =Control!B48 -> District wide | D14: =Control!C48 -> Carterton districtDistrict wide | E14: 2684833200 | F14: 2705131700 | G14: 2715649450 | H14: 2918440673 | K14: 0 | L14: 0.01919148543 | M14: 0.01895077875 | N14: -0.0002407066819
A15: =Control!A49 -> South Wairarapa district | C15: =Control!B49 -> District wide | D15: =Control!C49 -> South Wairarapa districtDistrict wide | E15: 4507670300 | F15: 4554810800 | G15: 4514129051 | H15: 4847300360 | K15: 0 | L15: 0.03190133466 | M15: 0.03147575261 | N15: -0.0004255820437
A16: =Control!A50 -> Tararua district | C16: =Control!B50 -> District wide | D16: =Control!C50 -> Tararua districtDistrict wide | E16: 10760500 | F16: 10673500 | G16: 7041800 | H16: 11845350 | K16: 0 | L16: 4.976437666e-05 | M16: 7.691731036e-05 | N16: 2.71529337e-05
A17: =Control!A51 -> Region wide | C17: =Control!B51 -> 0 | D17: =Control!C51 -> Region wide | E17: =SUM(E8:E16) -> 119678968561 | F17: =SUM(F8:F16) -> 141110137110 | G17: =SUM(G8:G16) -> 141502827378 | H17: =SUM(H8:H16) -> 1.540010947e+11 | L17: =SUM(L8:L16) -> 1 | M17: =SUM(M8:M16) -> 1 | N17: =M17-L17 -> 0
L18: ECV change | M18: 2018/19 ECV/CV | N18: 2019/20 ECV/CV | O18: change
A19: =Control!A67 -> Wellington city | B19: =Control!B67 -> Wellington city | C19: =Control!C67 -> Regional CBD | D19: =Control!D67 -> Wellington cityRegional CBD | E19: 7963363000 | F19: 9921148650 | G19: =E19 * (INDEX(G$8:G$16,MATCH($A19&"District wide",$D$8:$D$16,0))/INDEX(E$8:E$16,MATCH($A19&"District wide",$D$8:$D$16,0))) -> 1.056440861e+10 | H19: =F19 * (INDEX(H$8:H$16,MATCH($A19&"District wide",$D$8:$D$16,0))/INDEX(F$8:F$16,MATCH($A19&"District wide",$D$8:$D$16,0))) -> 1.027536346e+10 | J19: =ISBLANK(E19)+ISBLANK(F19) -> 0 | L19: =H19-G19 -> -289045140.7 | M19: =G19/$G$8 -> 0.153162693 | N19: =H19/$H$8 -> 0.136177474 | O19: =N19-M19 -> -0.01698521898
A20: =Control!A68 -> Wellington city | B20: =Control!B68 -> Wellington city | C20: =Control!C68 -> Business | D20: =Control!D68 -> Wellington cityBusiness | E20: 3896130400 | F20: 4638515650 | G20: 5168709944 | H20: =F20 * (INDEX(H$8:H$16,MATCH($A20&"District wide",$D$8:$D$16,0))/INDEX(F$8:F$16,MATCH($A20&"District wide",$D$8:$D$16,0))) -> 4804124595 | J20: =ISBLANK(E20)+ISBLANK(F20) -> 0 | L20: -364585348.9 | M20: =G20/$G$8 -> 0.07493590639 | N20: =H20/$H$8 -> 0.06366816652 | O20: =N20-M20 -> -0.01126773986
A21: =Control!A69 -> Wellington city | B21: =Control!B69 -> Wellington city | C21: =Control!C69 -> Residential | D21: =Control!D69 -> Wellington cityResidential | E21: 39537398501 | F21: 57499964050 | G21: 5.245136169e+10 | H21: 5.955288552e+10 | J21: =ISBLANK(E21)+ISBLANK(F21) -> 0 | L21: 7101523837 | M21: =G21/$G$8 -> 0.7604393305 | N21: =H21/$H$8 -> 0.7892432757 | O21: =N21-M21 -> 0.02880394526
A22: =Control!A70 -> Wellington city | B22: =Control!B70 -> Wellington city | C22: =Control!C70 -> Rural | D22: =Control!D70 -> Wellington cityRural | E22: 595945550 | F22: 794922100 | G22: 790597175.7 | H22: 823303207.3 | J22: =ISBLANK(E22)+ISBLANK(F22) -> 0 | L22: 32706031.61 | M22: =G22/$G$8 -> 0.01146207015 | N22: =H22/$H$8 -> 0.01091108373 | O22: -0.0005509864179
A23: =Control!A71 -> Hutt city | B23: =Control!B71 -> Hutt city | C23: =Control!C71 -> Business | D23: =Control!D71 -> Hutt cityBusiness | E23: 3789029500 | F23: 3813013500 | G23: 4269787494 | H23: 4596581997 | J23: =ISBLANK(E23)+ISBLANK(F23) -> 0 | L23: 326794502.9 | M23: =G23/$G$9 -> 0.1770365191 | N23: =H23/$H$9 -> 0.1771401596 | O23: 0.000103640483
A24: =Control!A72 -> Hutt city | B24: =Control!B72 -> Hutt city | C24: =Control!C72 -> Residential | D24: =Control!D72 -> Hutt cityResidential | E24: 17301952000 | F24: 17395848500 | G24: 1.949725075e+10 | H24: 2.097066901e+10 | J24: =ISBLANK(E24)+ISBLANK(F24) -> 0 | L24: 1473418256 | M24: =G24/$G$9 -> 0.8084068377 | N24: =H24/$H$9 -> 0.8081543324 | O24: -0.0002525052524
A25: =Control!A73 -> Hutt city | B25: =Control!B73 -> Hutt city | C25: =Control!C73 -> Rural | D25: =Control!D73 -> Hutt cityRural | E25: 311549000 | F25: 316542000 | G25: 351078824.8 | H25: 381590901.4 | J25: 0 | L25: 30512076.6 | M25: =G25/$G$9 -> 0.0145566432 | N25: =H25/$H$9 -> 0.01470550797 | O25: 0.0001488647694
A26: =Control!A74 -> Upper Hutt city | B26: =Control!B74 -> Upper Hutt city | C26: =Control!C74 -> Business | D26: =Control!D74 -> Upper Hutt cityBusiness | E26: 1174676500 | F26: 1182339500 | G26: 1316173851 | H26: 1460836164 | J26: =ISBLANK(E26)+ISBLANK(F26) -> 0 | L26: 144662313.1 | M26: =G26/G$10 -> 0.1434916157 | N26: 0.1428345389 | O26: -0.0006570768412
A27: =Control!A75 -> Upper Hutt city | B27: =Control!B75 -> Upper Hutt city | C27: =Control!C75 -> Residential | D27: =Control!D75 -> Upper Hutt cityResidential | E27: 6156988420 | F27: 6233760420 | G27: 6898637335 | H27: 7702104734 | J27: =ISBLANK(E27)+ISBLANK(F27) -> 0 | L27: 803467398.8 | M27: 0.7521017203 | N27: 0.7530800545 | O27: 0.0009783342555
A28: =Control!A76 -> Upper Hutt city | B28: =Control!B76 -> Upper Hutt city | C28: =Control!C76 -> Rural | D28: =Control!D76 -> Upper Hutt cityRural | E28: 854712340 | F28: 861586340 | G28: 957667946.9 | H28: 1064530521 | J28: 0 | L28: 106862574.1 | M28: 0.104406664 | N28: 0.1040854066 | O28: -0.0003212574142
A29: =Control!A77 -> Porirua city | B29: =Control!B77 -> Porirua city | C29: =Control!C77 -> Business | D29: =Control!D77 -> Porirua cityBusiness | E29: 1099995500 | F29: 1101735500 | G29: 1223370753 | H29: 1317155784 | J29: =ISBLANK(E29)+ISBLANK(F29) -> 0 | L29: 93785030.7 | M29: =G29/G$11 -> 0.107033343 | N29: 0.1062701179 | O29: -0.0007632251343
A30: =Control!A78 -> Porirua city | B30: =Control!B78 -> Porirua city | C30: =Control!C78 -> Residential | D30: =Control!D78 -> Porirua cityResidential | E30: 8551317050 | F30: 8642049050 | G30: 9510430887 | H30: 1.033181275e+10 | J30: =ISBLANK(E30)+ISBLANK(F30) -> 0 | L30: 821381866 | M30: 0.8320725411 | N30: 0.8335862565 | O30: 0.001513715413
A31: =Control!A79 -> Porirua city | B31: =Control!B79 -> Porirua city | C31: =Control!C79 -> Rural | D31: =Control!D79 -> Porirua cityRural | E31: 625816700 | F31: 623527750 | G31: 696008163.2 | H31: 745444965.9 | J31: 0 | L31: 49436802.65 | M31: 0.06089411593 | N31: 0.06014362565 | O31: -0.0007504902791
A32: =Control!A80 -> Kāpiti Coast district | B32: =Control!B80 -> Kāpiti Coast district | C32: =Control!C80 -> Business | D32: =Control!D80 -> Kāpiti Coast districtBusiness | E32: 1479149500 | F32: 1476489000 | G32: 1469983984 | H32: 1569567401 | J32: =ISBLANK(E32)+ISBLANK(F32) -> 0 | L32: 99583416.99 | M32: =G32/G$12 -> 0.1001433917 | N32: 0.09913275416 | O32: -0.0010106375
A33: =Control!A81 -> Kāpiti Coast district | B33: =Control!B81 -> Kāpiti Coast district excl Ōtaki | C33: =Control!C81 -> Residential | D33: =Control!D81 -> Kāpiti Coast district excl Ōtaki Residential | E33: 10219999500 | F33: 10311045500 | G33: 1.015667151e+10 | H33: 1.096105754e+10 | J33: =ISBLANK(E33)+ISBLANK(F33) -> 0 | L33: 804386033.3 | M33: 0.6919283092 | N33: 0.6922925526 | O33: 0.0003642433216
A34: =Control!A82 -> Kāpiti Coast district | B34: =Control!B82 -> Ōtaki rating area | C34: =Control!C82 -> Residential | D34: =Control!D82 -> Ōtaki rating areaResidential | E34: 1104760900 | F34: 1121512900 | G34: 1097915275 | H34: 1192213479 | J34: 0 | L34: 94298204.77 | M34: 0.07479602535 | N34: 0.07529935042 | O34: 0.0005033250698
A35: =Control!A83 -> Kāpiti Coast district | B35: =Control!B83 -> Kāpiti Coast district | C35: =Control!C83 -> Rural | D35: =Control!D83 -> Kāpiti Coast districtRural | E35: 1966405700 | F35: 1985010700 | G35: 1954220912 | H35: 2110146493 | J35: 0 | L35: 155925580.9 | M35: 0.1331322738 | N35: 0.1332753429 | O35: 0.0001430691085
A36: =Control!A84 -> Masterton district | B36: =Control!B84 -> Masterton district | C36: =Control!C84 -> Business | D36: =Control!D84 -> Masterton districtBusiness | E36: 433363100 | F36: 433209100 | G36: 436714769.9 | H36: 465668433.8 | J36: =ISBLANK(E36)+ISBLANK(F36) -> 0 | L36: 28953663.88 | M36: =G36/G$13 -> 0.07412332596 | N36: 0.07317090926 | O36: -0.0009524166948
A37: =Control!A85 -> Masterton district | B37: =Control!B85 -> Masterton district | C37: =Control!C85 -> Residential | D37: =Control!D85 -> Masterton districtResidential | E37: 2604255800 | F37: =143675000+2535120300 -> 2678795300 | G37: 2624397353 | H37: 2879511100 | J37: =ISBLANK(E37)+ISBLANK(F37) -> 0 | L37: 255113746.5 | M37: 0.4454373285 | N37: 0.4524602272 | O37: 0.00702289873
A38: =Control!A86 -> Masterton district | B38: =Control!B86 -> Masterton district | C38: =Control!C86 -> Rural | D38: =Control!D86 -> Masterton districtRural | E38: 2808895600 | F38: 2808505600 | G38: 2830619856 | H38: 3018940286 | J38: 0 | L38: 188320429.7 | M38: 0.4804393455 | N38: 0.4743688635 | O38: -0.006070482035
A39: =Control!A87 -> Carterton district | B39: =Control!B87 -> Carterton district | C39: =Control!C87 -> Business | D39: =Control!D87 -> Carterton districtBusiness | E39: 96652500 | F39: 97126500 | G39: 97761867.84 | H39: 104785259.8 | J39: =ISBLANK(E39)+ISBLANK(F39) -> 0 | L39: 7023391.994 | M39: =G39/G$14 -> 0.03599944309 | N39: 0.03590453655 | O39: -9.490654213e-05
A40: =Control!A88 -> Carterton district | B40: =Control!B88 -> Carterton district | C40: =Control!C88 -> Residential | D40: =Control!D88 -> Carterton districtResidential | E40: 843913500 | F40: 858895500 | G40: 853599855.7 | H40: 926622375.3 | J40: =ISBLANK(E40)+ISBLANK(F40) -> 0 | L40: 73022519.61 | M40: 0.3143262308 | N40: 0.3175059832 | O40: 0.003179752396
A41: =Control!A89 -> Carterton district | B41: =Control!B89 -> Carterton district | C41: =Control!C89 -> Rural | D41: =Control!D89 -> Carterton districtRural | E41: 1744267200 | F41: 1749109700 | G41: 1764287726 | H41: 1887033038 | J41: 0 | L41: 122745311.8 | M41: 0.6496743261 | N41: 0.6465894803 | O41: -0.003084845854
A42: =Control!A90 -> South Wairarapa district | B42: =Control!B90 -> South Wairarapa district | C42: =Control!C90 -> Business | D42: =Control!D90 -> South Wairarapa districtBusiness | E42: 206493600 | F42: 211288600 | G42: 206789471.4 | H42: 224856608.1 | J42: =ISBLANK(E42)+ISBLANK(F42) -> 0 | L42: 18067136.66 | M42: =G42/G$15 -> 0.04580938406 | N42: 0.04638800804 | O42: 0.000578623975
A43: =Control!A91 -> South Wairarapa district | B43: =Control!B91 -> South Wairarapa district | C43: =Control!C91 -> Residential | D43: =Control!D91 -> South Wairarapa districtResidential | E43: 1318886100 | F43: 1373326100 | G43: 1320775847 | H43: 1461514954 | J43: =ISBLANK(E43)+ISBLANK(F43) -> 0 | L43: 140739107.3 | M43: 0.2925870821 | N43: 0.3015111187 | O43: 0.008924036682
A44: =Control!A92 -> South Wairarapa district | B44: =Control!B92 -> South Wairarapa district | C44: =Control!C92 -> Rural | D44: =Control!D92 -> South Wairarapa districtRural | E44: 2982290600 | F44: 2970196100 | G44: 2986563732 | H44: 3160928797 | J44: 0 | L44: 174365065 | M44: 0.6616035339 | N44: 0.6521008732 | O44: -0.009502660657
A45: =Control!A93 -> Tararua district | B45: =Control!B93 -> Tararua district | C45: =Control!C93 -> Rural | D45: =Control!D93 -> Tararua districtRural | E45: 10760500 | F45: 10673500 | G45: 7041800 | H45: 11845350 | J45: =ISBLANK(E45)+ISBLANK(F45) -> 0 | L45: 4803550 | M45: =G45/G16 -> 1 | N45: =H45/H16 -> 1 | O45: 0
A46: =Control!A94 -> Region wide | C46: =Control!C94 -> 0 | D46: =Control!D94 -> Region wide | E46: =SUM(E19:E45) -> 119678968561 | F46: =SUM(F19:F45) -> 141110137110 | G46: =SUM(G19:G45) -> 1.415028274e+11 | H46: =SUM(H19:H45) -> 1.540010947e+11 | L46: =SUM(L19:L45) -> 1.249826736e+10 | M46: Total ECV change
L47: =SUMIF($C$19:$C$45,$C$21,L19:L45) -> 1.156735097e+10 | M47: Resi ECV change
A48: Greytown Urban -CV | E48: 739130000 | F48: 770802000 | J48: =ISBLANK(E48)+ISBLANK(F48) -> 0 | L48: =SUMIF($C$19:$C$45,$C$20,L19:L45) -> 354284107.3 | M48: Busi ECV change
A49: Featherston Urban - LV | E49: 162213500 | F49: 163379500 | J49: =ISBLANK(E49)+ISBLANK(F49) -> 0 | L49: =SUMIF($C$19:$C$45,$C$22,$L$19:$L$45) -> 865677422.3 | M49: Rural ECV change
L50: =L19 -> -289045140.7 | M50: CBD ECV change
A51: Check totals | E51: =Total_CV-E17 -> 0 | F51: =F17-F46 -> 0 | L51: =SUM(L47:L50) -> 1.249826736e+10 | M51: Total
A54: No. of Assessments (#)
A55: =Control!A41 -> TA full name | B55: Rating area | C55: =Control!B41 -> Category group | D55: =Control!C41 -> Concatenated row | E55: ="CV assessments "&year_previous -> CV assessments 2018/19 | F55: ="CV assessments "&year_current -> CV assessments 2019/20 | G55: ="ECV assessments "&year_previous -> ECV assessments 2018/19 | H55: ="ECV assessments "&year_current -> ECV assessments 2019/20
A56: =Control!A52 -> 0 | C56: =Control!B52 -> 0 | D56: =Control!C52 -> 0
A57: =Control!A42 -> Wellington city | C57: =Control!B42 -> District wide | D57: =Control!C42 -> Wellington cityDistrict wide | E57: =SUMIF($A$68:$A$94,$A57,E$68:E$94) -> 77369 | F57: 77853 | G57: 77786 | H57: 78459 | K57: =ISBLANK(G57)+ISBLANK(H57) -> 0
A58: =Control!A43 -> Hutt city | C58: =Control!B43 -> District wide | D58: =Control!C43 -> Hutt cityDistrict wide | E58: 39287 | F58: 39398 | G58: 39853 | H58: 40095 | K58: 0
A59: =Control!A44 -> Upper Hutt city | C59: =Control!B44 -> District wide | D59: =Control!C44 -> Upper Hutt cityDistrict wide | E59: 16792 | F59: 16914 | G59: 16793 | H59: 16957 | K59: 0
A60: =Control!A45 -> Porirua city | C60: =Control!B45 -> District wide | D60: =Control!C45 -> Porirua cityDistrict wide | E60: 18675 | F60: 18808 | G60: 18614 | H60: 18885 | K60: 0
A61: =Control!A46 -> Kāpiti Coast district | C61: =Control!B46 -> District wide | D61: =Control!C46 -> Kāpiti Coast districtDistrict wide | E61: 25013 | F61: 25104 | G61: 24776 | H61: 24996 | K61: 0
A62: =Control!A47 -> Masterton district | C62: =Control!B47 -> District wide | D62: =Control!C47 -> Masterton districtDistrict wide | E62: 12342 | F62: 12530 | G62: 12285 | H62: 12460 | K62: 0
A63: =Control!A48 -> Carterton district | C63: =Control!B48 -> District wide | D63: =Control!C48 -> Carterton districtDistrict wide | E63: 4662 | F63: 4671 | G63: 4662 | H63: 4740 | K63: 0
A64: =Control!A49 -> South Wairarapa district | C64: =Control!B49 -> District wide | D64: =Control!C49 -> South Wairarapa districtDistrict wide | E64: 6657 | F64: 6746 | G64: 6596 | H64: 6715 | K64: 0
A65: =Control!A50 -> Tararua district | C65: =Control!B50 -> District wide | D65: =Control!C50 -> Tararua districtDistrict wide | E65: 10 | F65: 10 | G65: 10 | H65: 11 | K65: 0
A66: =Control!A51 -> Region wide | C66: =Control!B51 -> 0 | D66: =Control!C51 -> Region wide | E66: =SUM(E57:E65) -> 200807 | F66: =SUM(F57:F65) -> 202034 | G66: 201375 | H66: 203318
A68: =Control!A67 -> Wellington city | B68: =Control!B67 -> Wellington city | C68: =Control!C67 -> Regional CBD | D68: =Control!D67 -> Wellington cityRegional CBD | E68: 3381 | F68: 3340 | J68: =ISBLANK(E68)+ISBLANK(F68) -> 0
A69: =Control!A68 -> Wellington city | B69: =Control!B68 -> Wellington city | C69: =Control!C68 -> Business | D69: =Control!D68 -> Wellington cityBusiness | E69: 1899 | F69: 1897 | J69: =ISBLANK(E69)+ISBLANK(F69) -> 0
A70: =Control!A69 -> Wellington city | B70: =Control!B69 -> Wellington city | C70: =Control!C69 -> Residential | D70: =Control!D69 -> Wellington cityResidential | E70: 71308 | F70: 71826 | J70: 0
A71: =Control!A70 -> Wellington city | B71: =Control!B70 -> Wellington city | C71: =Control!C70 -> Rural | D71: =Control!D70 -> Wellington cityRural | E71: 781 | F71: 790 | J71: 0
A72: =Control!A71 -> Hutt city | B72: =Control!B71 -> Hutt city | C72: =Control!C71 -> Business | D72: =Control!D71 -> Hutt cityBusiness | E72: 2371 | F72: 2359 | J72: =ISBLANK(E72)+ISBLANK(F72) -> 0
A73: =Control!A72 -> Hutt city | B73: =Control!B72 -> Hutt city | C73: =Control!C72 -> Residential | D73: =Control!D72 -> Hutt cityResidential | E73: 36436 | F73: 36551 | J73: =ISBLANK(E73)+ISBLANK(F73) -> 0
A74: =Control!A73 -> Hutt city | B74: =Control!B73 -> Hutt city | C74: =Control!C73 -> Rural | D74: =Control!D73 -> Hutt cityRural | E74: 480 | F74: 488 | J74: 0
A75: =Control!A74 -> Upper Hutt city | B75: =Control!B74 -> Upper Hutt city | C75: =Control!C74 -> Business | D75: =Control!D74 -> Upper Hutt cityBusiness | E75: 716 | F75: 746 | J75: =ISBLANK(E75)+ISBLANK(F75) -> 0
A76: =Control!A75 -> Upper Hutt city | B76: =Control!B75 -> Upper Hutt city | C76: =Control!C75 -> Residential | D76: =Control!D75 -> Upper Hutt cityResidential | E76: 14823 | F76: 14902 | J76: =ISBLANK(E76)+ISBLANK(F76) -> 0
A77: =Control!A76 -> Upper Hutt city | B77: =Control!B76 -> Upper Hutt city | C77: =Control!C76 -> Rural | D77: =Control!D76 -> Upper Hutt cityRural | E77: 1253 | F77: 1266 | J77: 0
A78: =Control!A77 -> Porirua city | B78: =Control!B77 -> Porirua city | C78: =Control!C77 -> Business | D78: =Control!D77 -> Porirua cityBusiness | E78: 797 | F78: 798 | J78: =ISBLANK(E78)+ISBLANK(F78) -> 0
A79: =Control!A78 -> Porirua city | B79: =Control!B78 -> Porirua city | C79: =Control!C78 -> Residential | D79: =Control!D78 -> Porirua cityResidential | E79: 17255 | F79: 17394 | J79: =ISBLANK(E79)+ISBLANK(F79) -> 0
A80: =Control!A79 -> Porirua city | B80: =Control!B79 -> Porirua city | C80: =Control!C79 -> Rural | D80: =Control!D79 -> Porirua cityRural | E80: 623 | F80: 616 | J80: 0
A81: =Control!A80 -> Kāpiti Coast district | B81: =Control!B80 -> Kāpiti Coast district | C81: =Control!C80 -> Business | D81: =Control!D80 -> Kāpiti Coast districtBusiness | E81: 1334 | F81: 1333 | J81: 0
A82: =Control!A81 -> Kāpiti Coast district | B82: =Control!B81 -> Kāpiti Coast district excl Ōtaki | C82: =Control!C81 -> Residential | D82: =Control!D81 -> Kāpiti Coast district excl Ōtaki Residential | E82: 17885 | F82: 17951 | J82: 0
A83: =Control!A82 -> Kāpiti Coast district | B83: =Control!B82 -> Ōtaki rating area | C83: =Control!C82 -> Residential | D83: =Control!D82 -> Ōtaki rating areaResidential | E83: 3151 | F83: 3173 | J83: 0
A84: =Control!A83 -> Kāpiti Coast district | B84: =Control!B83 -> Kāpiti Coast district | C84: =Control!C83 -> Rural | D84: =Control!D83 -> Kāpiti Coast districtRural | E84: 2643 | F84: 2647 | J84: 0
A85: =Control!A84 -> Masterton district | B85: =Control!B84 -> Masterton district | C85: =Control!C84 -> Business | D85: =Control!D84 -> Masterton districtBusiness | E85: 550 | F85: 549 | J85: =ISBLANK(E85)+ISBLANK(F85) -> 0
A86: =Control!A85 -> Masterton district | B86: =Control!B85 -> Masterton district | C86: =Control!C85 -> Residential | D86: =Control!D85 -> Masterton districtResidential | E86: 7912 | F86: =20+8066 -> 8086 | J86: =ISBLANK(E86)+ISBLANK(F86) -> 0
A87: =Control!A86 -> Masterton district | B87: =Control!B86 -> Masterton district | C87: =Control!C86 -> Rural | D87: =Control!D86 -> Masterton districtRural | E87: 3880 | F87: 3895 | J87: 0
A88: =Control!A87 -> Carterton district | B88: =Control!B87 -> Carterton district | C88: =Control!C87 -> Business | D88: =Control!D87 -> Carterton districtBusiness | E88: 227 | F88: 226 | J88: =ISBLANK(E88)+ISBLANK(F88) -> 0
A89: =Control!A88 -> Carterton district | B89: =Control!B88 -> Carterton district | C89: =Control!C88 -> Residential | D89: =Control!D88 -> Carterton districtResidential | E89: 2392 | F89: 2397 | J89: =ISBLANK(E89)+ISBLANK(F89) -> 0
A90: =Control!A89 -> Carterton district | B90: =Control!B89 -> Carterton district | C90: =Control!C89 -> Rural | D90: =Control!D89 -> Carterton districtRural | E90: 2043 | F90: 2048 | J90: 0
A91: =Control!A90 -> South Wairarapa district | B91: =Control!B90 -> South Wairarapa district | C91: =Control!C90 -> Business | D91: =Control!D90 -> South Wairarapa districtBusiness | E91: 304 | F91: 312 | J91: =ISBLANK(E91)+ISBLANK(F91) -> 0
A92: =Control!A91 -> South Wairarapa district | B92: =Control!B91 -> South Wairarapa district | C92: =Control!C91 -> Residential | D92: =Control!D91 -> South Wairarapa districtResidential | E92: 3229 | F92: 3307 | J92: =ISBLANK(E92)+ISBLANK(F92) -> 0
A93: =Control!A92 -> South Wairarapa district | B93: =Control!B92 -> South Wairarapa district | C93: =Control!C92 -> Rural | D93: =Control!D92 -> South Wairarapa districtRural | E93: 3124 | F93: 3127 | J93: 0
A94: =Control!A93 -> Tararua district | B94: =Control!B93 -> Tararua district | C94: =Control!C93 -> Rural | D94: =Control!D93 -> Tararua districtRural | E94: 10 | F94: 10 | J94: =ISBLANK(E94)+ISBLANK(F94) -> 0
A95: =Control!A94 -> Region wide | C95: =Control!C94 -> 0 | D95: =Control!D94 -> Region wide | E95: =SUM(E68:E94) -> 200807 | F95: =SUM(F68:F94) -> 202034
A97: Check totals | E97: =Total_assessments-E66 -> 0 | F97: =F66-F95 -> 0
A100: Number of Assessments Contiguous for WRS
A101: =Control!A41 -> TA full name | C101: =Control!B41 -> Category group | D101: =Control!C41 -> Concatenated row | E101: ="Contiguous assements "&year_previous -> Contiguous assements 2018/19 | F101: ="Contiguous assements "&year_current -> Contiguous assements 2019/20
A102: =Control!A52 -> 0 | C102: =Control!B52 -> 0 | D102: =Control!C52 -> 0
A103: =Control!A42 -> Wellington city | C103: =Control!B42 -> District wide | D103: =Control!C42 -> Wellington cityDistrict wide | E103: =SUMIF($A$114:$A$140,$A103,E$114:E$140) -> 0 | F103: =SUMIF($A$114:$A$140,$A103,F$114:F$140) -> 0
A104: =Control!A43 -> Hutt city | C104: =Control!B43 -> District wide | D104: =Control!C43 -> Hutt cityDistrict wide | E104: =SUMIF($A$114:$A$140,$A104,E$114:E$140) -> 125 | F104: 125
A105: =Control!A44 -> Upper Hutt city | C105: =Control!B44 -> District wide | D105: =Control!C44 -> Upper Hutt cityDistrict wide | E105: 124 | F105: 96
A106: =Control!A45 -> Porirua city | C106: =Control!B45 -> District wide | D106: =Control!C45 -> Porirua cityDistrict wide | E106: 0 | F106: 0
A107: =Control!A46 -> Kāpiti Coast district | C107: =Control!B46 -> District wide | D107: =Control!C46 -> Kāpiti Coast districtDistrict wide | E107: 369 | F107: 362
A108: =Control!A47 -> Masterton district | C108: =Control!B47 -> District wide | D108: =Control!C47 -> Masterton districtDistrict wide | E108: 453 | F108: 464
A109: =Control!A48 -> Carterton district | C109: =Control!B48 -> District wide | D109: =Control!C48 -> Carterton districtDistrict wide | E109: 331 | F109: 373
A110: =Control!A49 -> South Wairarapa district | C110: =Control!B49 -> District wide | D110: =Control!C49 -> South Wairarapa districtDistrict wide | E110: 406 | F110: 402
A111: =Control!A50 -> Tararua district | C111: =Control!B50 -> District wide | D111: =Control!C50 -> Tararua districtDistrict wide | E111: 1 | F111: 1
A112: =Control!A51 -> Region wide | C112: =Control!B51 -> 0 | D112: =Control!C51 -> Region wide | E112: =SUM(E103:E111) -> 1809 | F112: =SUM(F103:F111) -> 1823
A114: =Control!A67 -> Wellington city | B114: =Control!B67 -> Wellington city | C114: =Control!C67 -> Regional CBD | D114: =Control!D67 -> Wellington cityRegional CBD
A115: =Control!A68 -> Wellington city | B115: =Control!B68 -> Wellington city | C115: =Control!C68 -> Business | D115: =Control!D68 -> Wellington cityBusiness
A116: =Control!A69 -> Wellington city | B116: =Control!B69 -> Wellington city | C116: =Control!C69 -> Residential | D116: =Control!D69 -> Wellington cityResidential
A117: =Control!A70 -> Wellington city | B117: =Control!B70 -> Wellington city | C117: =Control!C70 -> Rural | D117: =Control!D70 -> Wellington cityRural
A118: =Control!A71 -> Hutt city | B118: =Control!B71 -> Hutt city | C118: =Control!C71 -> Business | D118: =Control!D71 -> Hutt cityBusiness
A119: =Control!A72 -> Hutt city | B119: =Control!B72 -> Hutt city | C119: =Control!C72 -> Residential | D119: =Control!D72 -> Hutt cityResidential | E119: 125 | F119: 125
A120: =Control!A73 -> Hutt city | B120: =Control!B73 -> Hutt city | C120: =Control!C73 -> Rural | D120: =Control!D73 -> Hutt cityRural
A121: =Control!A74 -> Upper Hutt city | B121: =Control!B74 -> Upper Hutt city | C121: =Control!C74 -> Business | D121: =Control!D74 -> Upper Hutt cityBusiness
A122: =Control!A75 -> Upper Hutt city | B122: =Control!B75 -> Upper Hutt city | C122: =Control!C75 -> Residential | D122: =Control!D75 -> Upper Hutt cityResidential | E122: 43 | F122: 29
A123: =Control!A76 -> Upper Hutt city | B123: =Control!B76 -> Upper Hutt city | C123: =Control!C76 -> Rural | D123: =Control!D76 -> Upper Hutt cityRural | E123: 81 | F123: 67
A124: =Control!A77 -> Porirua city | B124: =Control!B77 -> Porirua city | C124: =Control!C77 -> Business | D124: =Control!D77 -> Porirua cityBusiness
A125: =Control!A78 -> Porirua city | B125: =Control!B78 -> Porirua city | C125: =Control!C78 -> Residential | D125: =Control!D78 -> Porirua cityResidential
A126: =Control!A79 -> Porirua city | B126: =Control!B79 -> Porirua city | C126: =Control!C79 -> Rural | D126: =Control!D79 -> Porirua cityRural
A127: =Control!A80 -> Kāpiti Coast district | B127: =Control!B80 -> Kāpiti Coast district | C127: =Control!C80 -> Business | D127: =Control!D80 -> Kāpiti Coast districtBusiness
A128: =Control!A81 -> Kāpiti Coast district | B128: =Control!B81 -> Kāpiti Coast district excl Ōtaki | C128: =Control!C81 -> Residential | D128: =Control!D81 -> Kāpiti Coast district excl Ōtaki Residential | E128: 166 | F128: 163
A129: =Control!A82 -> Kāpiti Coast district | B129: =Control!B82 -> Ōtaki rating area | C129: =Control!C82 -> Residential | D129: =Control!D82 -> Ōtaki rating areaResidential | E129: 46 | F129: 44
A130: =Control!A83 -> Kāpiti Coast district | B130: =Control!B83 -> Kāpiti Coast district | C130: =Control!C83 -> Rural | D130: =Control!D83 -> Kāpiti Coast districtRural | E130: 157 | F130: 155
A131: =Control!A84 -> Masterton district | B131: =Control!B84 -> Masterton district | C131: =Control!C84 -> Business | D131: =Control!D84 -> Masterton districtBusiness
A132: =Control!A85 -> Masterton district | B132: =Control!B85 -> Masterton district | C132: =Control!C85 -> Residential | D132: =Control!D85 -> Masterton districtResidential | E132: 15 | F132: 19
A133: =Control!A86 -> Masterton district | B133: =Control!B86 -> Masterton district | C133: =Control!C86 -> Rural | D133: =Control!D86 -> Masterton districtRural | E133: 438 | F133: 445
A134: =Control!A87 -> Carterton district | B134: =Control!B87 -> Carterton district | C134: =Control!C87 -> Business | D134: =Control!D87 -> Carterton districtBusiness
A135: =Control!A88 -> Carterton district | B135: =Control!B88 -> Carterton district | C135: =Control!C88 -> Residential | D135: =Control!D88 -> Carterton districtResidential | E135: 37 | F135: 70
A136: =Control!A89 -> Carterton district | B136: =Control!B89 -> Carterton district | C136: =Control!C89 -> Rural | D136: =Control!D89 -> Carterton districtRural | E136: 294 | F136: 303
A137: =Control!A90 -> South Wairarapa district | B137: =Control!B90 -> South Wairarapa district | C137: =Control!C90 -> Business | D137: =Control!D90 -> South Wairarapa districtBusiness
A138: =Control!A91 -> South Wairarapa district | B138: =Control!B91 -> South Wairarapa district | C138: =Control!C91 -> Residential | D138: =Control!D91 -> South Wairarapa districtResidential | E138: 69 | F138: 102
A139: =Control!A92 -> South Wairarapa district | B139: =Control!B92 -> South Wairarapa district | C139: =Control!C92 -> Rural | D139: =Control!D92 -> South Wairarapa districtRural | E139: 337 | F139: 300
A140: =Control!A93 -> Tararua district | B140: =Control!B93 -> Tararua district | C140: =Control!C93 -> Rural | D140: =Control!D93 -> Tararua districtRural | E140: 1 | F140: 1
A141: =Control!A94 -> Region wide | C141: =Control!C94 -> 0 | D141: =Control!D94 -> Region wide | E141: =SUM(E114:E140) -> 1809 | F141: =SUM(F114:F140) -> 1823
A143: Check totals | E143: =E112-E141 -> 0 | F143: =F112-F141 -> 0

Sheet CV Analysis
A1: Greater Wellington Regional Council
A2: Analysis of Capital Value and Assessments
C5: Capital Values 2018/19 | D5: Capital Values 2019/20 | F5: ="CV assessments "&year_previous -> CV assessments 2018/19 | G5: ="CV assessments "&year_current -> CV assessments 2019/20 | I5: ="Contiguous assements "&year_previous -> Contiguous assements 2018/19 | J5: ="Contiguous assements "&year_current -> Contiguous assements 2019/20 | L5: CV Average 2018/19 | M5: CV Average 2019/20 | O5: CV Average movement | P5: change in CV | Q5: change in assessment | S5: Comments
A7: =[5]Control!A67 -> Wellington city | B7: =[5]Control!C67 -> Regional CBD | C7: 7963363000 | D7: 9921148650 | F7: 3381 | G7: 3340 | L7: =C7/F7 -> 2355327.714 | M7: =D7/G7 -> 2970403.787 | O7: =M7-L7 -> 615076.0737 | P7: =D7-C7 -> 1957785650 | Q7: =G7-F7 -> -41 | S7: Peter of WCC: I can confirm that the figures in the yellow highlighted cells are correct as at the date provided. There was a general three yearly revaluation of the city carried out last year as at 1 September 2018. This has resulted in the changes in the values you have highlighted. The change in residential values is due to a pressurised market in Wellington with a limited supply and high demand resulting in properties selling significantly above the rateable value as at 1 September 2015. This has resulted in a significant movement upwards in rateable capital value which is mostly an increase in the Land Value component of the Capital Value. In the CBD a number of demolitions and earthquake prone buildings has resulted in a drop in the overall value despite some new builds completed in the last year. For the suburban business sector a number of mixed use commercial/residential properties have reverted to fully residential use resulting in the slight reduction in value. The demand for rural properties is not as high as there is for residential properties so the increase in rateable capital value is not as marked.
A8: =[5]Control!A68 -> Wellington city | B8: =[5]Control!C68 -> Business | C8: 3896130400 | D8: 4638515650 | F8: 1899 | G8: 1897 | L8: =C8/F8 -> 2051674.776 | M8: =D8/G8 -> 2445184.844 | O8: =M8-L8 -> 393510.0683 | P8: =D8-C8 -> 742385250 | Q8: =G8-F8 -> -2
A9: =[5]Control!A69 -> Wellington city | B9: =[5]Control!C69 -> Residential | C9: 39537398501 | D9: 57499964050 | F9: 71308 | G9: 71826 | L9: =C9/F9 -> 554459.5067 | M9: 800545.2629 | O9: 246085.7562 | P9: 17962565549 | Q9: 518
A10: =[5]Control!A70 -> Wellington city | B10: =[5]Control!C70 -> Rural | C10: 595945550 | D10: 794922100 | F10: 781 | G10: 790 | L10: =C10/F10 -> 763054.4814 | M10: =D10/G10 -> 1006230.506 | O10: =M10-L10 -> 243176.0249 | P10: 198976550 | Q10: 9
A11: =[5]Control!A71 -> Hutt city | B11: =[5]Control!C71 -> Business | C11: 3789029500 | D11: 3813013500 | F11: 2371 | G11: 2359 | L11: 1598072.332 | M11: 1616368.588 | O11: 18296.25604 | P11: 23984000 | Q11: -12 | S11: HCC Confirmed OK.
A12: =[5]Control!A72 -> Hutt city | B12: =[5]Control!C72 -> Residential | C12: 17301952000 | D12: 17395848500 | F12: 36436 | G12: 36551 | I12: 125 | J12: 125 | L12: 474858.7112 | M12: 475933.5859 | O12: =M12-L12 -> 1074.874784 | P12: 93896500 | Q12: 115
A13: =[5]Control!A73 -> Hutt city | B13: =[5]Control!C73 -> Rural | C13: 311549000 | D13: 316542000 | F13: 480 | G13: 488 | L13: 649060.4167 | M13: 648651.6393 | O13: -408.7773224 | P13: 4993000 | Q13: 8
A14: =[5]Control!A74 -> Upper Hutt city | B14: =[5]Control!C74 -> Business | C14: 1174676500 | D14: 1182339500 | F14: 716 | G14: 746 | L14: 1640609.637 | M14: 1584905.496 | O14: =M14-L14 -> -55704.14089 | P14: 7663000 | Q14: 30 | S14: UHCC Kristen Scoble confirmed the numbers are OK, but she is not privy to the movements in values. Rae Dalton, Rates TL, emailed 12 March that, "the first 6 months has us heading in the right direction, we are expecting a 2% growth".
A15: =[5]Control!A75 -> Upper Hutt city | B15: =[5]Control!C75 -> Residential | C15: 6156988420 | D15: 6233760420 | F15: 14823 | G15: 14902 | I15: 43 | J15: 29 | L15: 415367.228 | M15: 418317.0326 | O15: 2949.804657 | P15: 76772000 | Q15: 79
A16: =[5]Control!A76 -> Upper Hutt city | B16: =[5]Control!C76 -> Rural | C16: 854712340 | D16: 861586340 | F16: 1253 | G16: 1266 | I16: 81 | J16: 67 | L16: 682132.7534 | M16: 680557.9305 | O16: =M16-L16 -> -1574.822902 | P16: 6874000 | Q16: 13
A17: =[5]Control!A77 -> Porirua city | B17: =[5]Control!C77 -> Business | C17: 1099995500 | D17: 1101735500 | F17: 797 | G17: 798 | L17: 1380170.013 | M17: 1380620.927 | O17: =M17-L17 -> 450.9147712 | P17: 1740000 | Q17: 1 | S17: PCC changed their numbers. Numbers provided previously were wrong. They picked up the rates strike for January 2019 and the process did not pick up new properties, only new valuation changes. They rerun the data for 2019/20 and provided us with the new numbers.
A18: =[5]Control!A78 -> Porirua city | B18: =[5]Control!C78 -> Residential | C18: 8551317050 | D18: 8642049050 | F18: 17255 | G18: 17394 | L18: 495584.8768 | M18: 496840.81 | O18: 1255.933202 | P18: 90732000 | Q18: 139
A19: =[5]Control!A79 -> Porirua city | B19: =[5]Control!C79 -> Rural | C19: 625816700 | D19: 623527750 | F19: 623 | G19: 616 | L19: 1004521.188 | M19: 1012220.373 | O19: 7699.185576 | P19: -2288950 | Q19: -7
A20: =[5]Control!A80 -> Kāpiti Coast district | B20: =[5]Control!C80 -> Business | C20: 1479149500 | D20: 1476489000 | F20: 1334 | G20: 1333 | L20: 1108807.721 | M20: 1107643.661 | O20: -1164.060224 | P20: -2660500 | Q20: -1 | S20: KCDC Confirmed OK.
A21: =[5]Control!A81 -> Kāpiti Coast district | B21: =[5]Control!C81 -> Residential | C21: 10219999500 | D21: 10311045500 | F21: 17885 | G21: 17951 | I21: 166 | J21: 163 | L21: 571428.5435 | M21: 574399.5042 | O21: 2970.960734 | P21: 91046000 | Q21: 66
A22: =[5]Control!A82 -> Kāpiti Coast district | B22: =[5]Control!C82 -> Residential | C22: 1104760900 | D22: 1121512900 | F22: 3151 | G22: 3173 | I22: 46 | J22: 44 | L22: 350606.4424 | M22: 353455.0583 | O22: 2848.615905 | P22: 16752000 | Q22: 22
A23: =[5]Control!A83 -> Kāpiti Coast district | B23: =[5]Control!C83 -> Rural | C23: 1966405700 | D23: 1985010700 | F23: 2643 | G23: 2647 | I23: 157 | J23: 155 | L23: 744005.1835 | M23: 749909.5958 | O23: 5904.412265 | P23: 18605000 | Q23: 4
A24: =[5]Control!A84 -> Masterton district | B24: =[5]Control!C84 -> Business | C24: 433363100 | D24: 433209100 | F24: 550 | G24: 549 | L24: =C24/F24 -> 787932.9091 | M24: 789087.6138 | O24: 1154.704752 | P24: -154000 | Q24: -1 | S24: MDC Confirmed OK. MDC have had a large number of residential sections and new home builds which has bumped the residential CV up
A25: =[5]Control!A85 -> Masterton district | B25: =[5]Control!C85 -> Residential | C25: 2604255800 | D25: 2678795300 | F25: 7912 | G25: 8086 | I25: 15 | J25: 19 | L25: 329152.6542 | M25: 331288.0658 | O25: 2135.411597 | P25: 74539500 | Q25: 174
A26: =[5]Control!A86 -> Masterton district | B26: =[5]Control!C86 -> Rural | C26: 2808895600 | D26: 2808505600 | F26: 3880 | G26: 3895 | I26: 438 | J26: 445 | L26: 723942.1649 | M26: 721054.0693 | O26: -2888.095629 | P26: -390000 | Q26: 15
A27: =[5]Control!A87 -> Carterton district | B27: =[5]Control!C87 -> Business | C27: 96652500 | D27: 97126500 | F27: 227 | G27: 226 | L27: 425781.9383 | M27: 429763.2743 | O27: 3981.33601 | P27: 474000 | Q27: -1 | S27: CDC Confirmed OK.
A28: =[5]Control!A88 -> Carterton district | B28: =[5]Control!C88 -> Residential | C28: 843913500 | D28: 858895500 | F28: 2392 | G28: 2397 | I28: 37 | J28: 70 | L28: 352806.6472 | M28: 358321.0263 | O28: 5514.379126 | P28: 14982000 | Q28: 5
A29: =[5]Control!A89 -> Carterton district | B29: =[5]Control!C89 -> Rural | C29: 1744267200 | D29: 1749109700 | F29: 2043 | G29: 2048 | I29: 294 | J29: 303 | L29: 853777.3862 | M29: 854057.4707 | O29: 280.0845064 | P29: 4842500 | Q29: 5
A30: =[5]Control!A90 -> South Wairarapa district | B30: =[5]Control!C90 -> Business | C30: 206493600 | D30: 211288600 | F30: 304 | G30: 312 | L30: 679255.2632 | M30: 677207.0513 | O30: -2048.211876 | P30: 4795000 | Q30: 8 | S30: SWDC Confirmed OK.
A31: =[5]Control!A91 -> South Wairarapa district | B31: =[5]Control!C91 -> Residential | C31: 1318886100 | D31: 1373326100 | F31: 3229 | G31: 3307 | I31: 69 | J31: 102 | L31: 408450.3252 | M31: 415278.5304 | O31: 6828.205212 | P31: 54440000 | Q31: 78
A32: =[5]Control!A92 -> South Wairarapa district | B32: =[5]Control!C92 -> Rural | C32: 2982290600 | D32: 2970196100 | F32: 3124 | G32: 3127 | I32: 337 | J32: 300 | L32: 954638.4763 | M32: 949854.8449 | O32: -4783.631413 | P32: -12094500 | Q32: 3
A33: =[5]Control!A93 -> Tararua district | B33: =[5]Control!C93 -> Rural | C33: 10760500 | D33: 10673500 | F33: 10 | G33: 10 | I33: 1 | J33: 1 | L33: =C33/F33 -> 1076050 | M33: =D33/G33 -> 1067350 | O33: =M33-L33 -> -8700 | P33: -87000 | Q33: 0 | S33: Tararua Confirmed OK.
A34: =[5]Control!A94 -> Region wide | B34: =[5]Control!C94 -> 0 | C34: 119678968561 | D34: 141268124110 | F34: 200807 | G34: 201935 | I34: 1809 | J34: 1823 | L34: =C34/F34 -> 595990.0231 | M34: 699572.2589 | O34: =M34-L34 -> 103582.2359 | P34: =SUM(P7:P33) -> 21431168549 | Q34: =SUM(Q7:Q33) -> 1227
A36: Greytown Urban -CV | C36: 739130000 | D36: 770802000
A37: Featherston Urban - LV | C37: 162213500 | D37: 163379500
A39: Regional CBD | C39: =SUMIF($B$7:$B$33,$A39,C$7:C$33) -> 7963363000 | D39: =SUMIF($B$7:$B$33,$A39,D$7:D$33) -> 9921148650 | F39: =SUMIF($B$7:$B$33,$A39,F$7:F$33) -> 3381 | G39: 3340 | I39: 0 | J39: 0 | L39: 2355327.714 | M39: 2970403.787 | O39: =SUMIF($B$7:$B$33,$A39,O$7:O$33) -> 615076.0737 | P39: =SUMIF($B$7:$B$33,$A39,P$7:P$33) -> 1957785650 | Q39: =SUMIF($B$7:$B$33,$A39,Q$7:Q$33) -> -41
A40: Business | C40: =SUMIF($B$7:$B$33,$A40,C$7:C$33) -> 12175490600 | D40: =SUMIF($B$7:$B$33,$A40,D$7:D$33) -> 12953717350 | F40: 8198 | G40: 8220 | I40: 0 | J40: 0 | L40: 9672304.59 | M40: 10030781.46 | O40: 358476.8669 | P40: 778226750 | Q40: 22
A41: Residential | C41: 87639471771 | D41: 106115197320 | F41: 174391 | G41: 175587 | I41: 501 | J41: 552 | L41: 3952714.935 | M41: 4224378.876 | O41: 271663.9414 | P41: 18475725549 | Q41: 1196
A42: Rural | C42: 11900643190 | D42: 12120073790 | F42: 14837 | G42: 14887 | I42: 1308 | J42: 1271 | L42: 7451182.05 | M42: 7689886.43 | O42: 238704.38 | P42: 219430600 | Q42: 50
A43: Total | C43: =SUM(C39:C42) -> 119678968561 | D43: =SUM(D39:D42) -> 141110137110 | F43: =SUM(F39:F42) -> 200807 | G43: =SUM(G39:G42) -> 202034 | I43: 1809 | J43: =SUM(J39:J42) -> 1823 | L43: =C43/F43 -> 595990.0231 | M43: =D43/G43 -> 698447.4747 | O43: =M43-L43 -> 102457.4517 | P43: =SUM(P39:P42) -> 21431168549 | Q43: =SUM(Q39:Q42) -> 1227

Sheet ESSbase
A1: Wellington Regional Council
A2: ESSBase values
A3: =check_total -> 0
B5: Model naming convention | C5: Essbase name | D5: Essbase name | F5: Last Year Base | G5: Current Year Base | H5: total | J5: Proposed Budget Base
F6: 2018/19 | G6: 2019/20 | H6: 2019/20 | J6: 2019/20
B8: General rate | C8: WRC - Mgmt | D8: General Rates | F8: 47283313.91 | G8: 51060208.17 | H8: 0.07987795157 | J8: 51860208.17 | K8: -800000
B9: Remission of rates | D9: Remission of Regional Rates | F9: 0 | G9: 0 | H9: 0 | J9: 0 | K9: 0
B10: Public transport rate | D10: Transport Rate | F10: 68109677.79 | G10: 71524907.76 | H10: 0.05014309389 | J10: 71524907.76 | K10: 0
B11: River management rate | D11: River Rate | F11: 6458970.807 | G11: 7041148.242 | H11: 0.09013470609 | J11: 7041148.242 | K11: 0
B12: Stadium purposes rate | D12: Stadium Rate | F12: 0 | G12: 0 | J12: 0 | K12: 0
B13: Wellington regional strategy rate | D13: WRS Rate | F13: 4907860.821 | G13: 4705805.159 | H13: -0.04116980272 | J13: 4705805.159 | K13: 0
B14: District-Wide Rates | D14: District-Wide Rates | F14: 126759823.3 | G14: 134332069.3 | H14: 0.05973695609 | J14: 135132069.3 | K14: -800000
B15: Rates penalties | D15: Rates Penalties | F15: 0 | G15: 0 | H15: 0 | J15: 0 | K15: 0
B16: Remission of rates penalties | D16: Remission of Rates Penalties | F16: 0 | G16: 0 | H16: 0 | J16: 0 | K16: 0
B17: Pest management rate | D17: Pest Rate | F17: 532000 | G17: 577200 | H17: 0.08496240602 | J17: 577200 | K17: 0
B18: River management rate - Non district wide | D18: River Mgmt Rates - Non District Wide | F18: 95164 | G18: 97066.98 | H18: 0.01999684755 | J18: 97066.98 | K18: 0
B19: Special Rates | D19: Special Rates | F19: 1487363 | G19: 1465214.08 | H19: -0.01489140176 | J19: 1465214.08 | K19: 0
B20: Total Other Rates | D20: Total Other Rates | F20: 2114527 | G20: 2139481.06 | H20: 0.01180124917 | J20: 2139481.06 | K20: 0
B21: Total Regnl Rates | D21: Total Regnl Rates | F21: 128874350.3 | G21: 136471550.4 | H21: 0.05895044313 | J21: 137271550.4 | K21: -800000
B22: Bulk water levies | D22: Bulk Water Levies | F22: 33068898.04 | G22: 35081297.03 | H22: 0.06085473388 | J22: 35081297.03 | K22: 0
B23: Total Regnl Rates & levies | D23: Total Regnl Rates & levies | F23: 161943248.4 | G23: 171552847.4 | H23: 0.05933930032 | K23: 171552847.4
B24: Warm Greater Wellington rate | D24: Warm Greater Wellington rate | F24: 3237058 | G24: 3209151.166 | H24: -0.008621048383 | J24: 3209151.166 | K24: 0
B25: Total Rates & Levies | D25: Total Rates & Levies | F25: 165180306.4 | G25: 174761998.6 | H25: 0.05800747333 | J25: 175561998.6 | K25: -800000
B30: Total River, Drainage etc | D30: Total River, Drainage etc
B32: General Rates | C32: Te Hunga Whiriwhiri Department | D32: General Rates | F32: 1322264.75 | G32: 1481062.005 | H32: 0.1200949015 | J32: 1481062.005 | K32: 0
B33: General Rates | C33: Managing Emergencies | D33: General Rates | F33: 1473476.593 | G33: 1538859.255 | H33: 0.04437305746 | J33: 1538859.255 | K33: 0
B34: General Rates | C34: Rates Collection.. | D34: General Rates | F34: 0 | G34: 0 | H34: 0 | J34: 0 | K34: 0
B35: General Rates | C35: Old 30000 | D35: General Rates | F35: 18396134.63 | G35: 19629448.57 | H35: 0.06704201532 | J35: 19629448.57 | K35: 0
B36: General Rates | C36: Parks & Forests Group | D36: General Rates | F36: 5783725.697 | G36: 6332449.77 | H36: 0.09487380644 | J36: 6332449.77 | K36: 0
B37: General Rates | C37: Wairarapa Water Use (was Env Edu) activity | D37: General Rates | F37: 423791.4757 | G37: 173936.5712 | H37: -0.5895703873 | J37: 173936.5712 | K37: 0
B38: General Rates | C38: Catchment Management (excluding forests) | D38: General Rates | F38: 22664845.33 | G38: 24013098.23 | H38: 0.05948652522 | J38: 24013098.23 | K38: 0
B39: General Rates | C39: Strategy Group | D39: General Rates | F39: 6358568.064 | G39: 6929809.608 | H39: 0.08983807963 | J39: 6929809.608 | K39: 0
K40: 0
B41: General Rates | C41: Investment Management. | D41: General Rates | F41: -9139492.638 | G41: -9038455.841 | H41: -0.0110549678 | J41: -8238455.841 | K41: -800000
B43: General Rates | C43: WRC - Mgmt | D43: General Rates | F43: 47283313.91 | G43: 51060208.17 | H43: 0.07987795157 | J43: 51860208.17 | K43: -800000
K45: 0
B51: Warm Greater Wellington rate | C51: Warm Greater Wellington management | D51: Warm Greater Wellington rate | F51: 3237058 | G51: 3209151.166 | H51: -0.008621048383 | J51: 3209151.166
B52: External Income | C52: Warm Greater Wellington management | D52: External Income | F52: 0 | G52: 0 | H52: 0 | J52: 0

Sheet Class Rates
A1: Wellington Regional Council
A2: ="Class rates "&year_current -> Class rates 2019/20
A3: Printed : | B3: =NOW() -> 2019-05-10T11:15:31.730
A4: =check_total -> 0
A6: 2016-12-01 | B6: Revenue Required | D6: Class | E6: $ per Hectare | F6: Class Total | G6: Class Areas | H6: Scheme Total | I6: Var
A7: Draft | B7: ex gst | E7: ex gst | F7: ex gst | G7: Hectares | H7: ex gst | I7: $ | K7: Lookup index
A8: River Management | K8: Scheme | L8: Class | M8: Concat
A9: Waingawa | B9: 41448 | D9: A | E9: 149.7460702 | F9: =E9*G9 -> 5079.551421 | G9: 33.9211 | H9: =SUM(F9:F16) -> 41447.7 | I9: =B9-H9 -> 0.3 | K9: =A9 -> Waingawa | L9: =D9 -> A | M9: =K9&L9 -> WaingawaA
D10: B | E10: 97.33494562 | F10: =E10*G10 -> 12672.27017 | G10: 130.1924 | K10: =K9 -> Waingawa | L10: B | M10: =K10&L10 -> WaingawaB
D11: C | E11: 74.87303509 | F11: =SUM(E11*G11) -> 8548.621295 | G11: 114.1749 | K11: Waingawa | L11: C | M11: WaingawaC
D12: D | E12: 67.38573158 | F12: =E12*G12 -> 157.0357089 | G12: 2.3304 | K12: Waingawa | L12: D | M12: WaingawaD
D13: E | E13: 59.89842807 | F13: =E13*G13 -> 10051.34557 | G13: 167.8065 | K13: Waingawa | L13: E | M13: WaingawaE
D14: F | E14: 52.41112457 | F14: =E14*G14 -> 1360.425078 | G14: 25.9568 | K14: Waingawa | L14: F | M14: WaingawaF
D15: G | E15: 22.46191053 | F15: =E15*G15 -> 1050.737087 | G15: 46.778616 | K15: Waingawa | L15: G | M15: WaingawaG
D16: H | E16: 14.97460702 | F16: =E16*G16 -> 2527.713665 | G16: 168.8 | K16: Waingawa | L16: H | M16: WaingawaH
A17: Lower Wairarapa Valley Development Scheme | B17: 784849 | D17: A | E17: 0.2388710229 | F17: =E17*G17+J17 -> 690054.5899 | G17: 2888816.657 | H17: =SUM(F17:F19) -> 784848.7953 | I17: =B17-H17 -> 0.204687934 | K17: =A17 -> Lower Wairarapa Valley Development Scheme | L17: A | M17: Lower Wairarapa Valley Development SchemeA
D18: Sa | E18: 19.1785224 | F18: =E18*G18 -> 7997.44384 | G18: 417 | K18: Lower Wairarapa Valley Development Scheme | L18: Sa | M18: Lower Wairarapa Valley Development SchemeSa
D19: Sb | E19: 38.37168947 | F19: 86796.76158 | G19: 2262 | K19: Lower Wairarapa Valley Development Scheme | L19: Sb | M19: Lower Wairarapa Valley Development SchemeSb
A20: Upper Ruamahanga | B20: 42847 | D20: A | E20: 135.4312393 | F20: =E20*G20+J20 -> 12055.96808 | G20: 89.01910773 | H20: =SUM(F20:F26) -> 42847.14 | I20: =B20-H20 -> -0.14 | K20: =A20 -> Upper Ruamahanga | L20: A | M20: Upper RuamahangaA
A21: (Mt Bruce - Te Ore Ore) | D21: B | E21: 112.8593661 | F21: 744.0968451 | G21: 6.593133305 | K21: =K20 -> Upper Ruamahanga | L21: B | M21: Upper RuamahangaB
D22: C | E22: 90.28749284 | F22: 11264.65675 | G22: 124.7643101 | K22: Upper Ruamahanga | L22: C | M22: Upper RuamahangaC
D23: D | E23: 67.71561963 | F23: 1192.824183 | G23: 17.6152 | K23: Upper Ruamahanga | L23: D | M23: Upper RuamahangaD
D24: E | E24: 45.14374642 | F24: 13393.29476 | G24: 296.6810649 | K24: Upper Ruamahanga | L24: E | M24: Upper RuamahangaE
D25: F | E25: 22.57187321 | F25: 889.8524566 | G25: 39.42306641 | K25: Upper Ruamahanga | L25: F | M25: Upper RuamahangaF
D26: S | E26: 1271.710355 | F26: 3306.446922 | G26: 2.6 | K26: Upper Ruamahanga | L26: S | M26: Upper RuamahangaS
A27: Middle Ruamahanga | B27: 30235 | D27: A | E27: 133.5814474 | F27: =E27*G27+J27 -> 5388.830083 | G27: 40.34115657 | H27: =SUM(F27:F33) -> 30234.84 | I27: =B27-H27 -> 0.16 | K27: =A27 -> Middle Ruamahanga | L27: A | M27: Middle RuamahangaA
A28: (Te Ore Ore - Gladstone) | D28: B | E28: 111.3178728 | F28: 6075.683786 | G28: 54.57958936 | K28: =K27 -> Middle Ruamahanga | L28: B | M28: Middle RuamahangaB
D29: C | E29: 89.05429824 | F29: 455.3613432 | G29: 5.1133 | K29: Middle Ruamahanga | L29: C | M29: Middle RuamahangaC
D30: D | E30: 66.79072368 | F30: 7561.249673 | G30: 113.2080812 | K30: Middle Ruamahanga | L30: D | M30: Middle RuamahangaD
D31: E | E31: 44.52714912 | F31: 1342.68056 | G31: 30.1542 | K31: Middle Ruamahanga | L31: E | M31: Middle RuamahangaE
D32: F | E32: 22.26357456 | F32: 6582.032959 | G32: 295.6413374 | K32: Middle Ruamahanga | L32: F | M32: Middle RuamahangaF
D33: S | E33: 1347.143616 | F33: 2829.001594 | G33: 2.1 | K33: Middle Ruamahanga | L33: S | M33: Middle RuamahangaS
A34: Lower Ruamahanga | B34: 69963 | D34: A | E34: 64.27079416 | F34: =E34*G34+J34 -> 8064.289911 | G34: 125.473631 | H34: =SUM(F34:F41) -> 69962.82 | I34: =B34-H34 -> 0.18 | K34: =A34 -> Lower Ruamahanga | L34: A | M34: Lower RuamahangaA
A35: (Gladstone - Waiohine) | D35: B | E35: 55.08925214 | F35: 2965.515041 | G35: 53.8311 | K35: =K34 -> Lower Ruamahanga | L35: B | M35: Lower RuamahangaB
D36: C | E36: 45.90771012 | F36: 10282.26201 | G36: 223.9768 | K36: Lower Ruamahanga | L36: C | M36: Lower RuamahangaC
D37: D | E37: 36.72616809 | F37: 11697.72158 | G37: 318.5119 | K37: Lower Ruamahanga | L37: D | M37: Lower RuamahangaD
D38: E | E38: 27.54462607 | F38: 8911.346145 | G38: 323.523947 | K38: Lower Ruamahanga | L38: E | M38: Lower RuamahangaE
D39: F | E39: 18.36308405 | F39: 22481.76588 | G39: 1224.2914 | K39: Lower Ruamahanga | L39: F | M39: Lower RuamahangaF
D40: SA | E40: 1611.570797 | F40: 4190.084073 | G40: 2.6 | K40: Lower Ruamahanga | L40: SA | M40: Lower RuamahangaSA
D41: SB | E41: 805.7855102 | F41: 1369.835367 | G41: 1.7 | K41: Lower Ruamahanga | L41: =D41 -> SB | M41: Lower RuamahangaSB
A42: Waiohine Rural | B42: 94400 | D42: A | E42: 46.754 | F42: =E42*G42 -> 5259.100313 | G42: 112.4845 | H42: =SUM(F42:F47) -> 94399.91779 | I42: =B42-H42 -> 0.08221269998 | K42: =A42 -> Waiohine Rural | L42: A | M42: Waiohine RuralA
D43: B | E43: 38.944 | F43: =E43*G43 -> 14916.45161 | G43: 383.0231 | K43: =K42 -> Waiohine Rural | L43: B | M43: Waiohine RuralB
D44: C | E44: 31.163 | F44: 39828.21183 | G44: 1278.0609 | K44: Waiohine Rural | L44: C | M44: Waiohine RuralC
D45: D | E45: 23.404 | F45: 8695.105569 | G45: 371.5222 | K45: Waiohine Rural | L45: D | M45: Waiohine RuralD
D46: E | E46: 15.614 | F46: 12468.35047 | G46: 798.5366 | K46: Waiohine Rural | L46: E | M46: Waiohine RuralE
D47: S | E47: 778.394 | F47: 13232.698 | G47: 17 | K47: Waiohine Rural | L47: S | M47: Waiohine RuralS
A48: Mangatarere | B48: 10105 | D48: A | E48: 35.30635873 | F48: 757.5685392 | G48: 21.457 | H48: =SUM(F48:F51) -> 10105.13951 | I48: =B48-H48 -> -0.1395077943 | K48: =A48 -> Mangatarere | L48: A | M48: MangatarereA
D49: B | E49: 33.77129965 | F49: 7076.735316 | G49: 209.5488 | K49: =K48 -> Mangatarere | L49: B | M49: MangatarereB
D50: C | E50: 28.61788704 | F50: 451.25829 | G50: 15.7684 | K50: Mangatarere | L50: C | M50: MangatarereC
D51: D | E51: 25.32847474 | F51: 1819.577362 | G51: 71.8392 | K51: Mangatarere | L51: D | M51: MangatarereD
A52: Waipoua | B52: 52934 | D52: A | E52: 113.7079631 | F52: 9949.26484 | G52: 87.4984 | H52: =SUM(F52:F57) -> 52933.92 | I52: =B52-H52 -> 0.08000000002 | K52: =A52 -> Waipoua | L52: A | M52: WaipouaA
D53: B | E53: 90.9663705 | F53: 27319.87547 | G53: 300.3294 | K53: =K52 -> Waipoua | L53: B | M53: WaipouaB
D54: C | E54: 68.22477787 | F54: 1531.762245 | G54: 22.4517 | K54: =K53 -> Waipoua | L54: C | M54: WaipouaC
D55: D | E55: 45.48318525 | F55: 13518.99444 | G55: 297.2306 | K55: Waipoua | L55: D | M55: WaipouaD
D56: SA | E56: 3843.329154 | F56: 384.3329154 | G56: 0.1 | K56: Waipoua | L56: SA | M56: WaipouaSA
D57: SC | E57: 2296.900855 | F57: 229.6900855 | G57: 0.1 | K57: Waipoua | L57: SC | M57: WaipouaSC
A58: Kopuaranga | B58: 21919 | D58: A2 | E58: 122.7145 | F58: 3197.203583 | G58: 26.054 | H58: =SUM(F58:F69) -> 21918.58165 | I58: =B58-H58 -> 0.41835343 | K58: =A58 -> Kopuaranga | L58: A2 | M58: KopuarangaA2
D59: A3 | E59: 110.5441 | F59: 7616.875394 | G59: 68.9035 | K59: =K58 -> Kopuaranga | L59: A3 | M59: KopuarangaA3
D60: A4 | E60: 61.4583 | F60: 693.538478 | G60: 11.2847 | K60: Kopuaranga | L60: A4 | M60: KopuarangaA4
D61: A5 | E61: 42.9509 | F61: 2479.297752 | G61: 57.724 | K61: Kopuaranga | L61: A5 | M61: KopuarangaA5
D62: A6 | E62: 24.5439 | F62: =E62*G62 -> 1991.271151 | G62: 81.131 | K62: Kopuaranga | L62: A6 | M62: KopuarangaA6
D63: B2 | E63: 24.5439 | F63: 1503.979015 | G63: 61.2771 | K63: Kopuaranga | L63: B2 | M63: KopuarangaB2
D64: B3 | E64: 22.0896 | F64: 1622.28894 | G64: 73.4413 | K64: Kopuaranga | L64: B3 | M64: KopuarangaB3
D65: B4 | E65: 12.2725 | F65: 113.878982 | G65: 9.2792 | K65: Kopuaranga | L65: B4 | M65: KopuarangaB4
D66: B5 | E66: 8.591 | F66: 266.913779 | G66: 31.069 | K66: Kopuaranga | L66: B5 | M66: KopuarangaB5
D67: B6 | E67: 4.9094 | F67: 590.4245725 | G67: 120.2641 | K67: Kopuaranga | L67: B6 | M67: KopuarangaB6
D68: SA | E68: 153.57 | F68: 767.85 | G68: 5 | K68: Kopuaranga | L68: SA | M68: KopuarangaSA
D69: SB | E69: 76.79 | F69: 1075.06 | G69: 14 | K69: Kopuaranga | L69: SB | M69: KopuarangaSB
A70: Lower Taueru | B70: 2308 | D70: A | E70: 4.139943879 | F70: =E70*G70+J70 -> 1686.752114 | G70: 407.43357 | H70: =SUM(F70:F73) -> 2308.26 | I70: =B70-H70 -> -0.26 | K70: =A70 -> Lower Taueru | L70: =D70 -> A | M70: Lower TaueruA
D71: B | E71: 0.8279887758 | F71: 233.5284499 | G71: 282.043014 | K71: =K70 -> Lower Taueru | L71: B | M71: =K71&L71 -> Lower TaueruB
D72: C | E72: 0.4139943879 | F72: =E72*G72 -> 73.75769554 | G72: 178.1611 | K72: Lower Taueru | L72: C | M72: Lower TaueruC
D73: S | E73: 206.9971939 | F73: 314.2217404 | G73: 1.518 | K73: Lower Taueru | L73: S | M73: Lower TaueruS
A74: Lower Whangaehu | B74: 4196 | D74: A | E74: 22.05553082 | F74: =E74*G74+J74 -> 736.4363795 | G74: 33.3901 | H74: =SUM(F74:F79) -> 4196.28 | I74: =B74-H74 -> -0.28 | K74: =A74 -> Lower Whangaehu | L74: A | M74: Lower WhangaehuA
D75: B | E75: 17.64442465 | F75: =E75*G75 -> 1148.35209 | G75: 65.083 | K75: =K74 -> Lower Whangaehu | L75: B | M75: Lower WhangaehuB
D76: C | E76: 13.23331849 | F76: =E76*G76 -> 719.9533991 | G76: 54.4046 | K76: Lower Whangaehu | L76: C | M76: Lower WhangaehuC
D77: D | E77: 8.822212327 | F77: =E77*G77 -> 675.5062112 | G77: 76.5688 | K77: Lower Whangaehu | L77: D | M77: Lower WhangaehuD
D78: E | E78: 4.411106163 | F78: =E78*G78 -> 768.6017246 | G78: 174.2424 | K78: Lower Whangaehu | L78: E | M78: Lower WhangaehuE
D79: S | E79: 110.2776541 | F79: =E79*G79 -> 147.4301957 | G79: 1.3369 | K79: Lower Whangaehu | L79: S | M79: Lower WhangaehuS
A80: Catchment Schemes | K80: Lower Whangaehu | L80: 0 | M80: Lower Whangaehu0
A81: Awhea-Opouawe | B81: 22344 | D81: A | F81: =E81*G81 -> 0 | G81: 2224.6093 | H81: =H149 -> 22343.7 | I81: =B81-H81 -> 0.3 | K81: =A81 -> Awhea-Opouawe | L81: A | M81: Awhea-OpouaweA
D82: B | F82: =E82*G82 -> 0 | G82: 1956.3707 | H82: see bottom of sheet | K82: =K81 -> Awhea-Opouawe | L82: B | M82: Awhea-OpouaweB
A83: see bottom of sheet | D83: C | F83: 0 | G83: 1789.5901 | K83: Awhea-Opouawe | L83: C | M83: Awhea-OpouaweC
D84: D | F84: 0 | G84: 685.6269 | K84: Awhea-Opouawe | L84: D | M84: Awhea-OpouaweD
D85: E | F85: 0 | G85: 31708.3607 | K85: Awhea-Opouawe | L85: E | M85: Awhea-OpouaweE
D86: F | F86: 0 | G86: 3356.5217 | K86: Awhea-Opouawe | L86: F | M86: Awhea-OpouaweF
D87: SA | F87: 0 | G87: 0.65 | K87: Awhea-Opouawe | L87: SA | M87: Awhea-OpouaweSA
D88: SB | F88: 0 | G88: 0.21 | K88: Awhea-Opouawe | L88: SB | M88: Awhea-OpouaweSB
A89: Whareama | B89: 19016 | D89: A | E89: 4.459205 | F89: =E89*G89+J89 -> 3190.052994 | G89: 715.3860372 | H89: =SUM(F89:F94) -> 19016.37885 | I89: =B89-H89 -> -0.3788514064 | K89: =A89 -> Whareama | L89: A | M89: WhareamaA
D90: B | E90: 1.718925 | F90: 1637.38769 | G90: 952.5649402 | K90: =K89 -> Whareama | L90: B | M90: WhareamaB
D91: C | E91: 0.3008538 | F91: 13711.44805 | G91: 45575.12003 | K91: Whareama | L91: C | M91: WhareamaC
D92: D | E92: 0.2578108 | F92: 0 | G92: 0 | K92: Whareama | L92: D | M92: WhareamaD
D93: E | E93: 0.2148796 | F93: 3.309683039 | G93: 15.4025 | K93: Whareama | L93: E | M93: WhareamaE
D94: F | E94: 0.1718366 | F94: 474.1804381 | G94: 2759.484523 | K94: Whareama | L94: F | M94: WhareamaF
A95: Homewood | B95: 11566 | D95: A | E95: 1.97 | F95: 4520.625139 | G95: 2294.733573 | H95: =SUM(F95:F98) -> 11566.23262 | I95: =B95-H95 -> -0.2326157993 | K95: =A95 -> Homewood | L95: A | M95: HomewoodA
D96: B | E96: 1.71061 | F96: 944.9959516 | G96: 552.432145 | K96: =K95 -> Homewood | L96: B | M96: HomewoodB
D97: C | E97: 1.5598 | F97: 5712.726761 | G97: 3662.473882 | K97: Homewood | L97: C | M97: HomewoodC
D98: D | E98: 0.223 | F98: 387.8847643 | G98: 1739.393562 | K98: Homewood | L98: D | M98: HomewoodD
A99: Mataikona-Whakataki | B99: 6553 | D99: A | F99: 0 | G99: 4067.5168 | H99: =H153 -> 6553.14 | I99: =B99-H99 -> -0.14 | K99: =A99 -> Mataikona-Whakataki | L99: A | M99: Mataikona-WhakatakiA
D100: B | F100: 0 | G100: 7767.279 | H100: see bottom of sheet | K100: =K99 -> Mataikona-Whakataki | L100: B | M100: Mataikona-WhakatakiB
A101: see bottom of sheet | D101: C | F101: 0 | G101: 11511.3636 | K101: Mataikona-Whakataki | L101: C | M101: Mataikona-WhakatakiC
D102: S | F102: 0 | G102: 12.2 | K102: Mataikona-Whakataki | L102: =D102 -> S | M102: Mataikona-WhakatakiS
A103: Maungaraki | B103: 6835 | D103: A | F103: - | G103: 3305.4718 | H103: =SUM(H155:H158) -> 6835.445963 | I103: =B103-H103 -> -0.445963 | K103: =A103 -> Maungaraki | L103: A | M103: MaungarakiA
D104: B | F104: - | G104: 2971.2169 | H104: see bottom of sheet | K104: =K103 -> Maungaraki | L104: B | M104: MaungarakiB
D105: C | F105: - | K105: =K104 -> Maungaraki | L105: C | M105: MaungarakiC
A106: Upper Kaiwhata | B106: 2444 | D106: A | E106: 9.8 | F106: =E106*G106 -> 319.61818 | G106: 32.6141 | H106: =SUM(F106:F111) -> 2443.925305 | I106: =B106-H106 -> 0.074695 | K106: =A106 -> Upper Kaiwhata | L106: A | M106: Upper KaiwhataA
D107: B | E107: 4.2 | F107: 220.95276 | G107: 52.6078 | K107: =K106 -> Upper Kaiwhata | L107: B | M107: Upper KaiwhataB
D108: C | E108: 0.62 | F108: 594.079412 | G108: 958.1926 | K108: Upper Kaiwhata | L108: C | M108: Upper KaiwhataC
D109: D | E109: 0.39 | F109: 800.544693 | G109: 2052.6787 | K109: Upper Kaiwhata | L109: D | M109: Upper KaiwhataD
D110: E | E110: 0.27 | F110: 443.12994 | G110: 1641.222 | K110: Upper Kaiwhata | L110: E | M110: Upper KaiwhataE
D111: F | E111: 0.145 | F111: 65.60032 | G111: 452.416 | K111: Upper Kaiwhata | L111: F | M111: Upper KaiwhataF
A112: Lower Kaiwhata | B112: 4203 | D112: A | E112: 16.19 | F112: 743.619652 | G112: 45.9308 | H112: =SUM(F112:F117) -> 4202.988572 | I112: =B112-H112 -> 0.011428236 | K112: =A112 -> Lower Kaiwhata | L112: A | M112: Lower KaiwhataA
D113: B | E113: 7.1 | F113: 315.28828 | G113: 44.4068 | K113: =K112 -> Lower Kaiwhata | L113: B | M113: Lower KaiwhataB
D114: C | E114: 1.01901 | F114: 1180.666664 | G114: 1158.6409 | K114: Lower Kaiwhata | L114: C | M114: Lower KaiwhataC
D115: D | E115: 0.638575 | F115: 1889.633592 | G115: 2959.1412 | K115: Lower Kaiwhata | L115: D | M115: Lower KaiwhataD
D116: E | F116: 0 | G116: 0 | K116: Lower Kaiwhata | L116: E | M116: Lower KaiwhataE
D117: F | E117: 0.211825 | F117: 73.78038446 | G117: 348.3082 | K117: Lower Kaiwhata | L117: F | M117: Lower KaiwhataF
A118: Pump Drainage | L118: 0 | M118: 0
A119: Te Hopai | B119: 46304 | D119: A | E119: 37.144 | F119: =E119*G119 -> 46304.35164 | G119: 1246.617264 | H119: =F119 -> 46304.35164 | I119: =B119-H119 -> -0.3516397256 | K119: =A119 -> Te Hopai | L119: A | M119: Te HopaiA
A120: Moonmoot Pump | B120: 20294 | D120: A | E120: 89.115 | F120: =E120*G120 -> 20293.51599 | G120: 227.722785 | H120: =F120 -> 20293.51599 | I120: =B120-H120 -> 0.484014725 | K120: =A120 -> Moonmoot Pump | L120: A | M120: Moonmoot PumpA
A121: Onoke Pump | B121: 42767 | D121: A | E121: 59.946 | F121: =E121*G121 -> 42767.12791 | G121: 713.42755 | H121: =F121 -> 42767.12791 | I121: =B121-H121 -> -0.1279123 | K121: =A121 -> Onoke Pump | L121: A | M121: Onoke PumpA
A122: Pouawha Pump | B122: 85499 | D122: A | E122: 90.427 | F122: =E122*G122 -> 85498.75038 | G122: 945.500242 | H122: =F122 -> 85498.75038 | I122: =B122-H122 -> 0.249616666 | K122: =A122 -> Pouawha Pump | L122: A | M122: Pouawha PumpA
A123: Gravity Drainage | L123: 0 | M123: 0
A124: Okawa | B124: 2016 | D124: A | E124: 7.147242 | F124: =E124*G124 -> 2015.529823 | G124: 282.0010603 | H124: =F124 -> 2015.529823 | I124: =B124-H124 -> 0.4701774404 | K124: =A124 -> Okawa | L124: A | M124: OkawaA
A125: Taumata | B125: 1871 | D125: A | E125: 6.438138 | F125: 1870.68276 | G125: 290.5627 | H125: =F125 -> 1870.68276 | I125: =B125-H125 -> 0.3172397474 | K125: =A125 -> Taumata | L125: A | M125: TaumataA
A126: East Pukio | B126: 3213 | D126: A | E126: 28.295106 | F126: 3212.998136 | G126: 113.5531401 | H126: =F126 -> 3212.998136 | I126: 0.001864442839 | K126: =A126 -> East Pukio | L126: A | M126: East PukioA
A127: Longbush | B127: 4516 | D127: A | E127: 16.06959 | F127: 3505.521944 | G127: 218.1463214 | H127: =SUM(F127:F128) -> 4515.537403 | I127: 0.4625974461 | K127: =A127 -> Longbush | L127: A | M127: LongbushA
D128: B | E128: 8.034846 | F128: 1010.015458 | G128: 125.7043954 | I128: 0 | K128: =K127 -> Longbush | L128: B | M128: LongbushB
A129: Otahoua | B129: 3060 | D129: A | E129: 33.004548 | F129: 3059.997763 | G129: 92.7144272 | H129: =F129 -> 3059.997763 | I129: =B129-H129 -> 0.002237092026 | K129: =A129 -> Otahoua | L129: A | M129: OtahouaA
A130: Te Whiti | B130: 1375 | D130: A | E130: 9.732534 | F130: 1374.954008 | G130: 141.274 | H130: =F130 -> 1374.954008 | I130: 0.045991684 | K130: =A130 -> Te Whiti | L130: A | M130: Te WhitiA
A131: Ahikouka | B131: 3109 | D131: A | E131: 27.709728 | F131: 3109.240274 | G131: 112.207535 | H131: =F131 -> 3109.240274 | I131: -0.2402744005 | K131: =A131 -> Ahikouka | L131: A | M131: AhikoukaA
A132: Battersea | B132: 10539 | D132: A | E132: 15.338046 | F132: =E132*G132 -> 2587.546019 | G132: 168.7011513 | H132: =SUM(F132:F137) -> 10538.6439 | I132: 0.3560992723 | K132: =A132 -> Battersea | L132: A | M132: BatterseaA
D133: B | E133: 12.674316 | F133: 2476.063876 | G133: 195.3607497 | K133: =K132 -> Battersea | L133: B | M133: BatterseaB
D134: C | E134: 9.91899 | F134: 3154.351261 | G134: 318.0113359 | K134: =K133 -> Battersea | L134: =D134 -> C | M134: BatterseaC
D135: D | E135: 5.996784 | F135: =E135*G135 -> 915.9317002 | G135: 152.7371505 | K135: Battersea | L135: D | M135: =K135&L135 -> BatterseaD
D136: E | E136: 5.12856 | F136: 1040.558322 | G136: 202.8948324 | K136: Battersea | L136: E | M136: BatterseaE
D137: F | E137: 5.17038 | F137: 364.1927231 | G137: 70.43828946 | K137: Battersea | L137: F | M137: BatterseaF
A138: Manaia | B138: =4048-0.3 -> 4047.7 | D138: A | E138: 23.207856 | F138: 4048.385013 | G138: 174.4402849 | H138: =F138 -> 4048.385013 | I138: =B138-H138 -> -0.6850129897 | K138: =A138 -> Manaia | L138: A | M138: ManaiaA
A139: Whakawiriwiri | B139: =8438-0.3 -> 8437.7 | D139: A | E139: 11.705928 | F139: 8438.47596 | G139: 720.8720197 | H139: =F139 -> 8438.47596 | I139: =B139-H139 -> -0.7759599001 | K139: =A139 -> Whakawiriwiri | L139: A | M139: WhakawiriwiriA
A140: Total Scheme Rates | B140: =SUM(B9:B139) -> 1465213.4 | F140: =SUM(F8:F139)+H149+H153+H155+H156+H157+H158 -> 1465213.397 | H140: =SUM(H8:H139) -> 1465213.397 | I140: =SUM(I8:I139) -> 0.003478500191
A141: Checks | B141: =IF(ABS(INDEX(ESSbase!$G$8:$G$25,MATCH("Special Rates",ESSbase!$B$8:$B$25,0),)-B140)>tolerance_dollar,1,0) -> 0 | F141: =IF(ABS(INDEX(ESSbase!$G$8:$G$25,MATCH("Special Rates",ESSbase!$B$8:$B$25,0),)-F140)>tolerance_dollar,1,0) -> 0 | H141: =IF(ABS(INDEX(ESSbase!$G$8:$G$25,MATCH("Special Rates",ESSbase!$B$8:$B$25,0),)-H140)>tolerance_dollar,1,0) -> 0
A145: Revised
A146: Catchment Schemes | B146: $GST Excl | E146: Rate Base | K146: 67774000
A147: Awhea-Opouawe Catchment Scheme | B147: =B81 -> 22344 | E147: land value | F147: =DOLLAR(K146,0)&" x "&ROUND(K147,5)&" cents" -> $67,774,000 x 0.01553 cents | H147: =K148 -> 10523 | K147: 0.01552660312
E148: charge per dwelling | F148: $114.54 / $57.27 | H148: 11820.7 | K148: =K146*K147/100 -> 10523
H149: =SUM(H147:H148) -> 22343.7
A151: Mataikona Whakataki Catchment Scheme | B151: =B99 -> 6553 | E151: land value within scheme area | F151: =DOLLAR(K151,0)&" x "&ROUND(K152,9)&" cents" -> $74,213,500 x 0.005234897 cents | H151: =K153 -> 3885 | K151: 74213500
E152: charge per dwelling | F152: 15.3 | H152: 2668.14 | K152: 0.005234896616
H153: =SUM(H151:H152) -> 6553.14 | K153: =K151*K152/100 -> 3885
A155: Maungaraki Catchment Scheme | B155: =B103 -> 6835 | E155: Class A | F155: 0.99 | G155: 3305.4718 | H155: =F155*G155 -> 3272.417082
E156: Class B | F156: 0.49 | G156: 2971.2169 | H156: =F156*G156 -> 1455.896281
E157: Charge per dwelling | F157: 22.18 | G157: 19 | H157: 421.42
E158: River frontage | F158: 0.0354 | G158: 47619 | H158: =F158*G158 -> 1685.7126
A162: Notes
A163: All River Management schemes have hectare adjustments which in turn affect the $/ha and total columns
A164: Upper Mangatarere River scheme on rates holiday
A165: Bovine Tb rate has been deleted

Sheet >>District wide rates
L7: New category to be added in GL
L8: New category to be added in GL, was "River Mgmt Rates"

Sheet Gen
A1: Wellington Regional Council
A2: ="General rate "&year_current -> General rate 2019/20
A3: Printed: | B3: =NOW() -> 2019-05-10T11:15:31.730
A4: =check_total -> 0
B6: CV | C6: ="ECV "&year_current -> ECV 2019/20 | D6: General Rate | E6: Rates sought
B7: $ | C7: $ | D7: $ | E7: Cents per $
A9: By TA
A10: Wellington city | B10: =INDEX(capital_values,MATCH($A10&"district wide",capital_values_rows,0),MATCH(B$6&" "&year_current,capital_values_header,0)) -> 72854550450 | C10: =INDEX(capital_values,MATCH($A10&"district wide",capital_values_rows,0),MATCH(C$6,capital_values_header,0)) -> 75455676789 | D10: =C10/C$19*D$19 -> 25017890.75 | E10: =D10/B10*100 -> 0.0343395033
A11: Hutt city | B11: 21525404000 | C11: 25948841908 | D11: =C11/C$19*D$19 -> 8603531.499 | E11: =D11/B11*100 -> 0.03996919872
A12: Upper Hutt city | B12: 8277686260 | C12: 10227471419 | D12: 3390994.204 | E12: 0.04096548356
A13: Porirua city | B13: 10367312300 | C13: 1.23944135e+10 | D13: 4109459.966 | E13: 0.03963862424
A14: Kāpiti Coast district | B14: 14894058100 | C14: 15832984916 | D14: 5249543.888 | E14: 0.03524589372
A15: Masterton district | B15: 5920510000 | C15: 6364119819 | D15: 2110071.252 | E15: 0.03564002513
A16: Carterton district | B16: 2705131700 | C16: 2918440673 | D16: 967630.7078 | E16: 0.03577018848
A17: South Wairarapa district | B17: 4554810800 | C17: 4847300360 | D17: 1607158.481 | E17: 0.03528485707
A18: Tararua district | B18: 10673500 | C18: 11845350 | D18: 3927.413879 | E18: 0.03679593272
A19: Region wide | B19: =SUM(B10:B18) -> 141110137110 | C19: =SUM(C10:C18) -> 1.540010947e+11 | D19: =INDEX(ess_base_estract,MATCH(D6,ESSbase!$B$8:$B$25,0),MATCH(year_current,ESSbase!$F$6:$G$6,0)) -> 51060208.17 | E19: 0.03618464925
B22: CV | C22: ECV | D22: differetial | E22: ECV multiplied | F22: General rate | G22: Rates sought
A23: Wellington city differentials | B23: $ | C23: $ | E23: $ | F23: $ | G23: Cents/$
A24: Wellington cityRegional CBD | B24: ='Capital values'!F19 -> 9921148650 | C24: =B24/$B$28*$C$10 -> 1.027536346e+10 | D24: 1.7 | E24: =C24*D24 -> 1.746811789e+10 | F24: =E24/$E$28*$D$10 -> 5197017.331 | G24: =F24/B24*100 -> 0.05238322209
A25: Wellington cityBusiness | B25: ='Capital values'!F20 -> 4638515650 | C25: =B25/$B$28*$C$10 -> 4804124595 | D25: 1.3 | E25: =C25*D25 -> 6245361973 | F25: =E25/$E$28*$D$10 -> 1858085.377 | G25: =F25/B25*100 -> 0.04005775807
A26: Wellington cityResidential | B26: ='Capital values'!F21 -> 57499964050 | C26: =B26/$B$28*$C$10 -> 5.955288552e+10 | D26: 1 | E26: 5.955288552e+10 | F26: =E26/$E$28*$D$10 -> 17717843.45 | G26: 0.03081366005
A27: Wellington cityRural | B27: ='Capital values'!F22 -> 794922100 | C27: =B27/$B$28*$C$10 -> 823303207.3 | D27: 1 | E27: 823303207.3 | F27: =E27/$E$28*$D$10 -> 244944.5936 | G27: 0.03081366005
A28: Total Upper Hutt city | B28: =SUM(B24:B27) -> 72854550450 | C28: =SUM(C24:C27) -> 75455676789 | E28: =SUM(E24:E27) -> 8.408966859e+10 | F28: =SUM(F24:F27) -> 25017890.75 | G28: 0.0343395033
A33: Upper Hutt breakdown
A34: Trentham Military Camp | B34: =SUMIFS('UHCC Adjustments'!$D$9:$D$27,'UHCC Adjustments'!$B$9:$B$27,"Total",'UHCC Adjustments'!$C$9:$C$27,A34) -> 87721000 | D34: =+D12*'UHCC Adjustments'!$E$34 -> 28718.22931 | E34: =D34/B34*100 -> 0.03273814629
A35: Rest of Upper Hutt city | B35: =SUMIFS('UHCC Adjustments'!$D$9:$D$27,'UHCC Adjustments'!$B$9:$B$27,"Total",'UHCC Adjustments'!$C$9:$C$27,A35) -> 8189965260 | D35: =+D12-D34 -> 3362275.975 | E35: =D35/B35*100 -> 0.04105360484
A36: Total Upper Hutt city | B36: =+B35+B34 -> 8277686260 | D36: =+D35+D34 -> 3390994.204 | E36: =D36/B36*100 -> 0.04096548356
A39: Check Upper Hutt total | B39: =B36-B12 -> 0 | D39: =D36-D12 -> 0
A40: Check totals | B40: =B19-SUM(B10:B18) -> 0 | C40: =C19-SUM(C10:C18) -> 0 | D40: =D19-SUM(D10:D18) -> 0

Sheet River management
A1: Wellington Regional Council
A2: ="River management rate "&year_current -> River management rate 2019/20
A3: Printed: | B3: =NOW() -> 2019-05-10T11:15:31.730
A4: =check_total -> 0
B6: CV | C6: River management rate | D6: Rates sought
B7: $ | C7: $ | D7: Cents per $
A9: By TA
A10: Wellington city | B10: =INDEX(capital_values,MATCH($A10&"district wide",capital_values_rows,0),MATCH(B$6&" "&year_current,capital_values_header,0)) -> 72854550450 | C10: =INDEX(Control!$C$110:$C$121,MATCH(A10,Control!$A$110:$A$121,0),) -> 63804.11426 | D10: =C10/B10*100 -> 8.757739066e-05
A11: Hutt city | B11: 21525404000 | C11: =INDEX(Control!$C$110:$C$121,MATCH(A11,Control!$A$110:$A$121,0),) -> 4675266.736 | D11: 0.02171976301
A12: Upper Hutt city | B12: 8277686260 | C12: =INDEX(Control!$C$110:$C$121,MATCH(A12,Control!$A$110:$A$121,0),) -> 806234.4441 | D12: 0.009739852645
A13: Porirua city | B13: 10367312300 | C13: =INDEX(Control!$C$110:$C$121,MATCH(A13,Control!$A$110:$A$121,0),) -> 48238.74476 | D13: 0.0004652965336
A14: Kāpiti Coast district | B14: 14894058100 | C14: =INDEX(Control!$C$110:$C$121,MATCH(A14,Control!$A$110:$A$121,0),) -> 1423425.103 | D14: 0.009556999802
A15: Masterton district | B15: 5920510000 | C15: =INDEX(Control!$C$110:$C$121,MATCH(A15,Control!$A$110:$A$121,0),) -> 0 | D15: =C15/B15*100 -> 0
A16: Carterton district | B16: 2705131700 | C16: =INDEX(Control!$C$110:$C$121,MATCH(A16,Control!$A$110:$A$121,0),) -> 24179.1 | D16: 0.000893823395
A17: South Wairarapa district | B17: 4554810800 | C17: =INDEX(Control!$C$110:$C$121,MATCH(A17,Control!$A$110:$A$121,0),) -> 0 | D17: 0
A18: Tararua district | B18: 10673500 | C18: =INDEX(Control!$C$110:$C$121,MATCH(A18,Control!$A$110:$A$121,0),) -> 0 | D18: 0
A19: Region wide | B19: =SUM(B10:B18) -> 141110137110 | C19: =INDEX(ess_base_estract,MATCH(C6,ESSbase!$B$8:$B$25,0),MATCH(year_current,ESSbase!$F$6:$G$6,0)) -> 7041148.242 | D19: 0.004989824535
A22: Upper Hutt breakdown
A23: Trentham Military Camp | B23: =SUMIFS('UHCC Adjustments'!$D$9:$D$27,'UHCC Adjustments'!$B$9:$B$27,"Total",'UHCC Adjustments'!$C$9:$C$27,A23) -> 87721000 | C23: =+C12*'UHCC Adjustments'!$E$34 -> 6827.975588 | D23: =C23/B23*100 -> 0.007783741165
A24: Rest of Upper Hutt city | B24: =SUMIFS('UHCC Adjustments'!$D$9:$D$27,'UHCC Adjustments'!$B$9:$B$27,"Total",'UHCC Adjustments'!$C$9:$C$27,A24) -> 8189965260 | C24: =+C12-C23 -> 799406.4685 | D24: =C24/B24*100 -> 0.009760804145
A25: Total Upper Hutt city | B25: =+B24+B23 -> 8277686260 | C25: =+C24+C23 -> 806234.4441 | D25: =C25/B25*100 -> 0.009739852645
A28: Non district wide
A29: Greytown River Management Rate | B29: =INDEX('Capital values'!$F$48:$F$49,MATCH("Greytown Urban -CV",'Capital values'!$A$48:$A$49,0),) -> 770802000 | C29: =INDEX(Control!$D$125:$D$126,MATCH(A29,Control!$A$125:$A$126,0),) -> 94400 | D29: =C29/B29*100 -> 0.01224698431
A30: Donalds Creek Stopbank River Management Rate | B30: =INDEX('Capital values'!$F$48:$F$49,MATCH("Featherston Urban - LV",'Capital values'!$A$48:$A$49,0),) -> 163379500 | C30: =INDEX(Control!$D$125:$D$126,MATCH(A30,Control!$A$125:$A$126,0),) -> 2667 | D30: =C30/B30*100 -> 0.001632395741
A31: Total non-district wide rates | C31: =INDEX(ess_base_estract,MATCH(C6&" - Non district Wide",ESSbase!$B$8:$B$25,0),MATCH(year_current,ESSbase!$F$6:$G$6,0)) -> 97066.98
A34: Check Upper Hutt total | B34: =B25-B12 -> 0 | C34: =C25-C12 -> 0
A35: Check Non district Wide total | C35: =IF(ABS(C31-SUM(C29:C30))>tolerance_dollar,1,0) -> 0
A36: Check totals | B36: =B19-SUM(B10:B18) -> 0 | C36: =IF(ABS(C19-SUM(C10:C18))>tolerance_dollar,1,0) -> 0

Sheet Stadium
A1: Wellington Regional Council
A2: ="Stadium purposes rate "&year_current -> Stadium purposes rate 2019/20
A3: Printed: | C3: =NOW() -> 2019-05-10T11:15:31.730
A4: =check_total -> 0
A6: =Control!A66 -> TA full name | B6: =Control!B66 -> Rating area | C6: =Control!C66 -> Category group | D6: =Control!D66 -> Concatenated name | E6: ="Allocation "&year_current -> Allocation 2019/20 | F6: CV | G6: Stadium purposes rate | H6: Rates sought
A7: =Control!A52 -> 0 | C7: =Control!B52 -> 0 | D7: =Control!C52 -> 0 | E7: % | F7: $ | G7: $ | H7: Cents per $
A9: By TA
A10: =Control!A42 -> Wellington city | C10: =Control!B42 -> District wide | D10: =Control!C42 -> Wellington cityDistrict wide | E10: =SUMIF($A$23:$A$49,$A10,$E$23:$E$49) -> 0.594 | F10: =INDEX(capital_values,MATCH($D10,capital_values_rows,0),MATCH(F$6&" "&year_current,capital_values_header,0)) -> 72854550450 | G10: =SUMIF($A$23:$A$49,$A10,$G$23:$G$49) -> 0
A11: =Control!A43 -> Hutt city | C11: =Control!B43 -> District wide | D11: =Control!C43 -> Hutt cityDistrict wide | E11: 0.1952 | F11: 21525404000 | G11: =SUMIF($A$23:$A$49,$A11,$G$23:$G$49) -> 0
A12: =Control!A44 -> Upper Hutt city | C12: =Control!B44 -> District wide | D12: =Control!C44 -> Upper Hutt cityDistrict wide | E12: 0.0526 | F12: 8277686260 | G12: 0
A13: =Control!A45 -> Porirua city | C13: =Control!B45 -> District wide | D13: =Control!C45 -> Porirua cityDistrict wide | E13: 0.0718 | F13: 10367312300 | G13: 0
A14: =Control!A46 -> Kāpiti Coast district | C14: =Control!B46 -> District wide | D14: =Control!C46 -> Kāpiti Coast districtDistrict wide | E14: 0.0484 | F14: 14894058100 | G14: 0
A15: =Control!A47 -> Masterton district | C15: =Control!B47 -> District wide | D15: =Control!C47 -> Masterton districtDistrict wide | E15: 0.02 | F15: 5920510000 | G15: 0
A16: =Control!A48 -> Carterton district | C16: =Control!B48 -> District wide | D16: =Control!C48 -> Carterton districtDistrict wide | E16: 0.007 | F16: 2705131700 | G16: 0
A17: =Control!A49 -> South Wairarapa district | C17: =Control!B49 -> District wide | D17: =Control!C49 -> South Wairarapa districtDistrict wide | E17: 0.011 | F17: 4554810800 | G17: 0
A18: =Control!A50 -> Tararua district | C18: =Control!B50 -> District wide | D18: =Control!C50 -> Tararua districtDistrict wide | E18: 0 | F18: 10673500 | G18: =SUMIF($A$23:$A$49,$A18,$G$23:$G$49) -> 0
A19: Region wide | E19: =SUM(E10:E18) -> 1 | F19: =SUM(F10:F18) -> 141110137110 | G19: =SUM(G10:G18) -> 0
A22: By TA & Category
A23: =Control!A67 -> Wellington city | B23: =Control!B67 -> Wellington city | C23: =Control!C67 -> Regional CBD | D23: =Control!D67 -> Wellington cityRegional CBD | E23: =INDEX(stadium_rate_allocation,MATCH(D23,Control!$C$133:$C$159,0),) -> 0.1400304297 | F23: =INDEX(capital_values,MATCH($D23,capital_values_rows,0),MATCH(F$6&" "&year_current,capital_values_header,0)) -> 9921148650 | G23: =$G$50*E23 -> 0 | H23: =G23/F23*100 -> 0
A24: =Control!A68 -> Wellington city | B24: =Control!B68 -> Wellington city | C24: =Control!C68 -> Business | D24: =Control!D68 -> Wellington cityBusiness | E24: =INDEX(stadium_rate_allocation,MATCH(D24,Control!$C$133:$C$159,0),) -> 0.06546957034 | F24: 4638515650 | G24: 0 | H24: 0
A25: =Control!A69 -> Wellington city | B25: =Control!B69 -> Wellington city | C25: =Control!C69 -> Residential | D25: =Control!D69 -> Wellington cityResidential | E25: =INDEX(stadium_rate_allocation,MATCH(D25,Control!$C$133:$C$159,0),) -> 0.3856 | F25: 57499964050 | G25: 0 | H25: 0
A26: =Control!A70 -> Wellington city | B26: =Control!B70 -> Wellington city | C26: =Control!C70 -> Rural | D26: =Control!D70 -> Wellington cityRural | E26: =INDEX(stadium_rate_allocation,MATCH(D26,Control!$C$133:$C$159,0),) -> 0.0029 | F26: 794922100 | G26: 0 | H26: 0
A27: =Control!A71 -> Hutt city | B27: =Control!B71 -> Hutt city | C27: =Control!C71 -> Business | D27: =Control!D71 -> Hutt cityBusiness | E27: =INDEX(stadium_rate_allocation,MATCH(D27,Control!$C$133:$C$159,0),) -> 0.0509 | F27: 3813013500 | G27: 0 | H27: 0
A28: =Control!A72 -> Hutt city | B28: =Control!B72 -> Hutt city | C28: =Control!C72 -> Residential | D28: =Control!D72 -> Hutt cityResidential | E28: =INDEX(stadium_rate_allocation,MATCH(D28,Control!$C$133:$C$159,0),) -> 0.142 | F28: 17395848500 | G28: 0 | H28: 0
A29: =Control!A73 -> Hutt city | B29: =Control!B73 -> Hutt city | C29: =Control!C73 -> Rural | D29: =Control!D73 -> Hutt cityRural | E29: =INDEX(stadium_rate_allocation,MATCH(D29,Control!$C$133:$C$159,0),) -> 0.0023 | F29: 316542000 | G29: 0 | H29: 0
A30: =Control!A74 -> Upper Hutt city | B30: =Control!B74 -> Upper Hutt city | C30: =Control!C74 -> Business | D30: =Control!D74 -> Upper Hutt cityBusiness | E30: =INDEX(stadium_rate_allocation,MATCH(D30,Control!$C$133:$C$159,0),) -> 0.0079 | F30: 1182339500 | G30: 0 | H30: 0
A31: =Control!A75 -> Upper Hutt city | B31: =Control!B75 -> Upper Hutt city | C31: =Control!C75 -> Residential | D31: =Control!D75 -> Upper Hutt cityResidential | E31: =INDEX(stadium_rate_allocation,MATCH(D31,Control!$C$133:$C$159,0),) -> 0.0427 | F31: 6233760420 | G31: 0 | H31: 0
A32: =Control!A76 -> Upper Hutt city | B32: =Control!B76 -> Upper Hutt city | C32: =Control!C76 -> Rural | D32: =Control!D76 -> Upper Hutt cityRural | E32: =INDEX(stadium_rate_allocation,MATCH(D32,Control!$C$133:$C$159,0),) -> 0.002 | F32: 861586340 | G32: 0 | H32: 0
A33: =Control!A77 -> Porirua city | B33: =Control!B77 -> Porirua city | C33: =Control!C77 -> Business | D33: =Control!D77 -> Porirua cityBusiness | E33: =INDEX(stadium_rate_allocation,MATCH(D33,Control!$C$133:$C$159,0),) -> 0.0124 | F33: 1101735500 | G33: 0 | H33: 0
A34: =Control!A78 -> Porirua city | B34: =Control!B78 -> Porirua city | C34: =Control!C78 -> Residential | D34: =Control!D78 -> Porirua cityResidential | E34: =INDEX(stadium_rate_allocation,MATCH(D34,Control!$C$133:$C$159,0),) -> 0.058 | F34: 8642049050 | G34: =$G$50*E34 -> 0 | H34: =G34/F34*100 -> 0
A35: =Control!A79 -> Porirua city | B35: =Control!B79 -> Porirua city | C35: =Control!C79 -> Rural | D35: =Control!D79 -> Porirua cityRural | E35: =INDEX(stadium_rate_allocation,MATCH(D35,Control!$C$133:$C$159,0),) -> 0.0014 | F35: 623527750 | G35: 0 | H35: 0
A36: =Control!A80 -> Kāpiti Coast district | B36: =Control!B80 -> Kāpiti Coast district | C36: =Control!C80 -> Business | D36: =Control!D80 -> Kāpiti Coast districtBusiness | E36: =INDEX(stadium_rate_allocation,MATCH(D36,Control!$C$133:$C$159,0),) -> 0.005043994563 | F36: 1476489000 | G36: 0 | H36: 0
A37: =Control!A81 -> Kāpiti Coast district | B37: =Control!B81 -> Kāpiti Coast district excl Ōtaki | C37: =Control!C81 -> Residential | D37: =Control!D81 -> Kāpiti Coast district excl Ōtaki Residential | E37: =INDEX(stadium_rate_allocation,MATCH(D37,Control!$C$133:$C$159,0),) -> 0.03522468331 | F37: 10311045500 | G37: 0 | H37: 0
A38: =Control!A82 -> Kāpiti Coast district | B38: =Control!B82 -> Ōtaki rating area | C38: =Control!C82 -> Residential | D38: =Control!D82 -> Ōtaki rating areaResidential | E38: =INDEX(stadium_rate_allocation,MATCH(D38,Control!$C$133:$C$159,0),) -> 0.003831322123 | F38: 1121512900 | G38: 0 | H38: 0
A39: =Control!A83 -> Kāpiti Coast district | B39: =Control!B83 -> Kāpiti Coast district | C39: =Control!C83 -> Rural | D39: =Control!D83 -> Kāpiti Coast districtRural | E39: =INDEX(stadium_rate_allocation,MATCH(D39,Control!$C$133:$C$159,0),) -> 0.0043 | F39: 1985010700 | G39: 0 | H39: 0
A40: =Control!A84 -> Masterton district | B40: =Control!B84 -> Masterton district | C40: =Control!C84 -> Business | D40: =Control!D84 -> Masterton districtBusiness | E40: =INDEX(stadium_rate_allocation,MATCH(D40,Control!$C$133:$C$159,0),) -> 0.002046325439 | F40: 433209100 | G40: 0 | H40: 0
A41: =Control!A85 -> Masterton district | B41: =Control!B85 -> Masterton district | C41: =Control!C85 -> Residential | D41: =Control!D85 -> Masterton districtResidential | E41: =INDEX(stadium_rate_allocation,MATCH(D41,Control!$C$133:$C$159,0),) -> 0.01265367456 | F41: 2678795300 | G41: 0 | H41: 0
A42: =Control!A86 -> Masterton district | B42: =Control!B86 -> Masterton district | C42: =Control!C86 -> Rural | D42: =Control!D86 -> Masterton districtRural | E42: =INDEX(stadium_rate_allocation,MATCH(D42,Control!$C$133:$C$159,0),) -> 0.0053 | F42: 2808505600 | G42: 0 | H42: 0
A43: =Control!A87 -> Carterton district | B43: =Control!B87 -> Carterton district | C43: =Control!C87 -> Business | D43: =Control!D87 -> Carterton districtBusiness | E43: =INDEX(stadium_rate_allocation,MATCH(D43,Control!$C$133:$C$159,0),) -> 0.0003962182356 | F43: 97126500 | G43: 0 | H43: 0
A44: =Control!A88 -> Carterton district | B44: =Control!B88 -> Carterton district | C44: =Control!C88 -> Residential | D44: =Control!D88 -> Carterton districtResidential | E44: =INDEX(stadium_rate_allocation,MATCH(D44,Control!$C$133:$C$159,0),) -> 0.003503781764 | F44: 858895500 | G44: 0 | H44: 0
A45: =Control!A89 -> Carterton district | B45: =Control!B89 -> Carterton district | C45: =Control!C89 -> Rural | D45: =Control!D89 -> Carterton districtRural | E45: =INDEX(stadium_rate_allocation,MATCH(D45,Control!$C$133:$C$159,0),) -> 0.0031 | F45: 1749109700 | G45: 0 | H45: 0
A46: =Control!A90 -> South Wairarapa district | B46: =Control!B90 -> South Wairarapa district | C46: =Control!C90 -> Business | D46: =Control!D90 -> South Wairarapa districtBusiness | E46: =INDEX(stadium_rate_allocation,MATCH(D46,Control!$C$133:$C$159,0),) -> 0.0009600301701 | F46: 211288600 | G46: 0 | H46: 0
A47: =Control!A91 -> South Wairarapa district | B47: =Control!B91 -> South Wairarapa district | C47: =Control!C91 -> Residential | D47: =Control!D91 -> South Wairarapa districtResidential | E47: =INDEX(stadium_rate_allocation,MATCH(D47,Control!$C$133:$C$159,0),) -> 0.00623996983 | F47: 1373326100 | G47: 0 | H47: 0
A48: =Control!A92 -> South Wairarapa district | B48: =Control!B92 -> South Wairarapa district | C48: =Control!C92 -> Rural | D48: =Control!D92 -> South Wairarapa districtRural | E48: =INDEX(stadium_rate_allocation,MATCH(D48,Control!$C$133:$C$159,0),) -> 0.0038 | F48: 2970196100 | G48: 0 | H48: 0
A49: =Control!A93 -> Tararua district | B49: =Control!B93 -> Tararua district | C49: =Control!C93 -> Rural | D49: =Control!D93 -> Tararua districtRural | E49: =INDEX(stadium_rate_allocation,MATCH(D49,Control!$C$133:$C$159,0),) -> 0 | F49: 10673500 | G49: 0 | H49: 0
A50: Region wide | E50: =SUM(E23:E49) -> 1 | F50: =SUM(F23:F49) -> 141110137110 | G50: =INDEX(ess_base_estract,MATCH(G6,ESSbase!$B$8:$B$25,0),MATCH(year_current,ESSbase!$F$6:$G$6,0)) -> 0
A53: Upper Hutt breakdown
A54: =$A$12 -> Upper Hutt city | B54: Trentham Military Camp | C54: Business | D54: =B54&C54 -> Trentham Military CampBusiness | E54: =SUMIFS($E$23:$E$49,$A$23:$A$49,A54,$C$23:$C$49,C54) * IF(B54="Trentham Military Camp", INDEX('UHCC Adjustments'!$E$30:$E$32,MATCH(C54,'UHCC Adjustments'!$B$30:$B$32,0),), 1-INDEX('UHCC Adjustments'!$E$30:$E$32,MATCH(C54,'UHCC Adjustments'!$B$30:$B$32,0),)) -> 0.0005181079419 | F54: =SUMIFS('UHCC Adjustments'!$D$9:$D$27,'UHCC Adjustments'!$B$9:$B$27,C54,'UHCC Adjustments'!$C$9:$C$27,B54) -> 56325000 | G54: =$G$50*E54 -> 0 | H54: =G54/F54*100 -> 0
A55: Upper Hutt city | B55: Rest of Upper Hutt City | C55: Business | D55: =B55&C55 -> Rest of Upper Hutt CityBusiness | E55: =SUMIFS($E$23:$E$49,$A$23:$A$49,A55,$C$23:$C$49,C55) * IF(B55="Trentham Military Camp", INDEX('UHCC Adjustments'!$E$30:$E$32,MATCH(C55,'UHCC Adjustments'!$B$30:$B$32,0),), 1-INDEX('UHCC Adjustments'!$E$30:$E$32,MATCH(C55,'UHCC Adjustments'!$B$30:$B$32,0),)) -> 0.007381892058 | F55: =SUMIFS('UHCC Adjustments'!$D$9:$D$27,'UHCC Adjustments'!$B$9:$B$27,C55,'UHCC Adjustments'!$C$9:$C$27,B55) -> 1126014500 | G55: =$G$50*E55 -> 0 | H55: 0
A56: Upper Hutt city | B56: Trentham Military Camp | C56: Residential | D56: Trentham Military CampResidential | E56: =SUMIFS($E$23:$E$49,$A$23:$A$49,A56,$C$23:$C$49,C56) * IF(B56="Trentham Military Camp", INDEX('UHCC Adjustments'!$E$30:$E$32,MATCH(C56,'UHCC Adjustments'!$B$30:$B$32,0),), 1-INDEX('UHCC Adjustments'!$E$30:$E$32,MATCH(C56,'UHCC Adjustments'!$B$30:$B$32,0),)) -> 0.000135476373 | F56: =SUMIFS('UHCC Adjustments'!$D$9:$D$27,'UHCC Adjustments'!$B$9:$B$27,C56,'UHCC Adjustments'!$C$9:$C$27,B56) -> 26720000 | G56: 0 | H56: 0
A57: Upper Hutt city | B57: Rest of Upper Hutt City | C57: Residential | D57: Rest of Upper Hutt CityResidential | E57: =SUMIFS($E$23:$E$49,$A$23:$A$49,A57,$C$23:$C$49,C57) * IF(B57="Trentham Military Camp", INDEX('UHCC Adjustments'!$E$30:$E$32,MATCH(C57,'UHCC Adjustments'!$B$30:$B$32,0),), 1-INDEX('UHCC Adjustments'!$E$30:$E$32,MATCH(C57,'UHCC Adjustments'!$B$30:$B$32,0),)) -> 0.04256452363 | F57: =SUMIFS('UHCC Adjustments'!$D$9:$D$27,'UHCC Adjustments'!$B$9:$B$27,C57,'UHCC Adjustments'!$C$9:$C$27,B57) -> 6207040420 | G57: 0 | H57: 0
A58: Upper Hutt city | B58: Trentham Military Camp | C58: Rural | D58: Trentham Military CampRural | E58: =SUMIFS($E$23:$E$49,$A$23:$A$49,A58,$C$23:$C$49,C58) * IF(B58="Trentham Military Camp", INDEX('UHCC Adjustments'!$E$30:$E$32,MATCH(C58,'UHCC Adjustments'!$B$30:$B$32,0),), 1-INDEX('UHCC Adjustments'!$E$30:$E$32,MATCH(C58,'UHCC Adjustments'!$B$30:$B$32,0),)) -> 1.272298427e-05 | F58: =SUMIFS('UHCC Adjustments'!$D$9:$D$27,'UHCC Adjustments'!$B$9:$B$27,C58,'UHCC Adjustments'!$C$9:$C$27,B58) -> 4676000 | G58: 0 | H58: 0
A59: Upper Hutt city | B59: Rest of Upper Hutt City | C59: Rural | D59: Rest of Upper Hutt CityRural | E59: =SUMIFS($E$23:$E$49,$A$23:$A$49,A59,$C$23:$C$49,C59) * IF(B59="Trentham Military Camp", INDEX('UHCC Adjustments'!$E$30:$E$32,MATCH(C59,'UHCC Adjustments'!$B$30:$B$32,0),), 1-INDEX('UHCC Adjustments'!$E$30:$E$32,MATCH(C59,'UHCC Adjustments'!$B$30:$B$32,0),)) -> 0.001987277016 | F59: =SUMIFS('UHCC Adjustments'!$D$9:$D$27,'UHCC Adjustments'!$B$9:$B$27,C59,'UHCC Adjustments'!$C$9:$C$27,B59) -> 856910340 | G59: 0 | H59: 0
A60: Total | E60: =SUM(E54:E59) -> 0.0526 | F60: =SUM(F54:F59) -> 8277686260 | G60: =SUM(G54:G59) -> 0
A63: Check Upper Hutt total | E63: =E60-E12 -> 0 | F63: =F60-F12 -> 0 | G63: =G60-G12 -> 0
A64: Check TA totals | E64: =E19-SUM(E10:E18) -> 0 | F64: =F19-SUM(F10:F18) -> 0 | G64: =G19-SUM(G10:G18) -> 0
A65: Check category totals | E65: =E50-SUM(E23:E49) -> 0 | F65: =F50-SUM(F23:F49) -> 0 | G65: =G50-SUM(G23:G49) -> 0
A66: Category matches TA | F66: =F50-F19 -> 0 | G66: =G50-G19 -> 0

Sheet WRS
A1: Wellington Regional Council
A2: ="Wellington regional strategy rate "&year_current -> Wellington regional strategy rate 2019/20
A3: Printed: | B3: =NOW() -> 2019-05-10T11:15:31.730
A4: =check_total -> 0
A6: =Control!A66 -> TA full name | B6: =Control!B66 -> Rating area | C6: =Control!C66 -> Category group | D6: =Control!D66 -> Concatenated name | E6: CV assessments | F6: Contiguous assements | G6: Rateable properties | H6: Rating basis | I6: CV | J6: ECV | K6: Wellington regional strategy rate | L6: Rates sought
A7: =Control!A52 -> 0 | C7: =Control!B52 -> 0 | D7: =Control!C52 -> 0 | E7: # | F7: # | G7: # | H7: $ | I7: $ | J7: $ | K7: $ | L7: Cents per $
A9: By TA
A10: =Control!A42 -> Wellington city | C10: =Control!B42 -> District wide | D10: =Control!C42 -> Wellington cityDistrict wide | I10: =INDEX(capital_values,MATCH($D10,capital_values_rows,0),MATCH(I$6&" "&year_current,capital_values_header,0)) -> 72854550450 | J10: 75455676789 | K10: =SUMIF($A$23:$A$49,$A10,$K$23:$K$49) -> 2166329.473
A11: =Control!A43 -> Hutt city | C11: =Control!B43 -> District wide | D11: =Control!C43 -> Hutt cityDistrict wide | I11: 21525404000 | J11: 25948841908 | K11: =SUMIF($A$23:$A$49,$A11,$K$23:$K$49) -> 870713.8734
A12: =Control!A44 -> Upper Hutt city | C12: =Control!B44 -> District wide | D12: =Control!C44 -> Upper Hutt cityDistrict wide | I12: 8277686260 | J12: 10227471419 | K12: 352101.0926
A13: =Control!A45 -> Porirua city | C13: =Control!B45 -> District wide | D13: =Control!C45 -> Porirua cityDistrict wide | I13: 10367312300 | J13: 1.23944135e+10 | K13: 360221.8506
A14: =Control!A46 -> Kāpiti Coast district | C14: =Control!B46 -> District wide | D14: =Control!C46 -> Kāpiti Coast districtDistrict wide | I14: 14894058100 | J14: 15832984916 | K14: 481131.3402
A15: =Control!A47 -> Masterton district | C15: =Control!B47 -> District wide | D15: =Control!C47 -> Masterton districtDistrict wide | I15: 5920510000 | J15: 6364119819 | K15: 244700.4175
A16: =Control!A48 -> Carterton district | C16: =Control!B48 -> District wide | D16: =Control!C48 -> Carterton districtDistrict wide | I16: 2705131700 | J16: 2918440673 | K16: 89350.28862
A17: =Control!A49 -> South Wairarapa district | C17: =Control!B49 -> District wide | D17: =Control!C49 -> South Wairarapa districtDistrict wide | I17: 4554810800 | J17: 4847300360 | K17: 141004.823
A18: =Control!A50 -> Tararua district | C18: =Control!B50 -> District wide | D18: =Control!C50 -> Tararua districtDistrict wide | I18: 10673500 | J18: 11845350 | K18: 252
A19: Region wide | I19: =SUM(I10:I18) -> 141110137110 | J19: =SUM(J10:J18) -> 1.540010947e+11 | K19: =SUM(K10:K18) -> 4705805.159
A22: By TA & Category | P22: =SUMIF($H$23:$H$49,"remainder",J23:J49) -> 2.481893971e+10 | Q22: all busi ECV
A23: =Control!A67 -> Wellington city | B23: =Control!B67 -> Wellington city | C23: =Control!C67 -> Regional CBD | D23: =Control!D67 -> Wellington cityRegional CBD | E23: =INDEX(assessments,MATCH($D23,assessments_rows,0),MATCH(E$6&" "&year_current,assessments_header,0)) -> 3340 | F23: =INDEX(assessments_contiguous,MATCH($D23,assessments_contiguous_rows,0),MATCH(F$6&" "&year_current,assessments_contiguous_header,0)) -> 0 | G23: =E23-F23 -> 3340 | H23: =INDEX(WRS_value,MATCH($C23,WRS_categories,0),) -> Remainder | I23: =INDEX(capital_values,MATCH($D23,capital_values_rows,0),MATCH(I$6&" "&year_current,capital_values_header,0)) -> 9921148650 | J23: =INDEX($J$10:$J$18,MATCH(A23,$A$10:$A$18,0),)/INDEX($I$10:$I$18,MATCH(A23,$A$10:$A$18,0),)*I23 -> 1.027536346e+10 | K23: =IF(H23="Remainder", J23/(SUMIF($C$23:$C$49,"Business",$J$23:$J$49) +SUMIF($C$23:$C$49,"Regional CBD",$J$23:$J$49)) *($K$50-SUMPRODUCT($H$23:$H$49,$G$23:$G$49)), H23*G23) -> 775888.1501 | L23: =K23/I23*100 -> 0.007820547574 | Q23: =(J24+J23)/P22 -> 0.6075798659 | R23: =Q23*O51 -> 1138645.473 | S23: remianing busi portion
A24: =Control!A68 -> Wellington city | B24: =Control!B68 -> Wellington city | C24: =Control!C68 -> Business | D24: =Control!D68 -> Wellington cityBusiness | E24: 1897 | F24: 0 | G24: =E24-F24 -> 1897 | H24: Remainder | I24: 4638515650 | J24: =INDEX($J$10:$J$18,MATCH(A24,$A$10:$A$18,0),)/INDEX($I$10:$I$18,MATCH(A24,$A$10:$A$18,0),)*I24 -> 4804124595 | K24: =IF(H24="Remainder", J24/(SUMIF($C$23:$C$49,"Business",$J$23:$J$49) +SUMIF($C$23:$C$49,"Regional CBD",$J$23:$J$49)) *($K$50-SUMPRODUCT($H$23:$H$49,$G$23:$G$49)), H24*G24) -> 362757.3231 | L24: 0.007820547574 | Q24: =J24/P22 -> 0.1935668748 | R24: =Q24*O51 -> 362757.3231 | S24: busi
A25: =Control!A69 -> Wellington city | B25: =Control!B69 -> Wellington city | C25: =Control!C69 -> Residential | D25: =Control!D69 -> Wellington cityResidential | E25: 71826 | F25: 0 | G25: 71826 | H25: 14 | I25: 57499964050 | J25: 5.955288552e+10 | K25: 1005564 | L25: 0.00174880805 | O25: =H25*G25 -> 1005564 | R25: =R23-R24 -> 775888.1501 | S25: CBD
A26: =Control!A70 -> Wellington city | B26: =Control!B70 -> Wellington city | C26: =Control!C70 -> Rural | D26: =Control!D70 -> Wellington cityRural | E26: 790 | F26: 0 | G26: 790 | H26: 28 | I26: 794922100 | J26: 823303207.3 | K26: 22120 | L26: 0.002782662603 | O26: =H26*G26 -> 22120
A27: =Control!A71 -> Hutt city | B27: =Control!B71 -> Hutt city | C27: =Control!C71 -> Business | D27: =Control!D71 -> Hutt cityBusiness | E27: 2359 | F27: 0 | G27: 2359 | H27: Remainder | I27: 3813013500 | J27: 4596581997 | K27: 347085.8734 | L27: 0.009102665736
A28: =Control!A72 -> Hutt city | B28: =Control!B72 -> Hutt city | C28: =Control!C72 -> Residential | D28: =Control!D72 -> Hutt cityResidential | E28: 36551 | F28: 125 | G28: 36426 | H28: 14 | I28: =INDEX(capital_values,MATCH($D28,capital_values_rows,0),MATCH(I$6&" "&year_current,capital_values_header,0)) -> 17395848500 | J28: 2.097066901e+10 | K28: =IF(H28="Remainder", J28/(SUMIF($C$23:$C$49,"Business",$J$23:$J$49) +SUMIF($C$23:$C$49,"Regional CBD",$J$23:$J$49)) *($K$50-SUMPRODUCT($H$23:$H$49,$G$23:$G$49)), H28*G28) -> 509964 | L28: 0.002931527025 | O28: 509964
A29: =Control!A73 -> Hutt city | B29: =Control!B73 -> Hutt city | C29: =Control!C73 -> Rural | D29: =Control!D73 -> Hutt cityRural | E29: 488 | F29: 0 | G29: 488 | H29: 28 | I29: 316542000 | J29: 381590901.4 | K29: 13664 | L29: 0.004316646764 | O29: 13664
A30: =Control!A74 -> Upper Hutt city | B30: =Control!B74 -> Upper Hutt city | C30: =Control!C74 -> Business | D30: =Control!D74 -> Upper Hutt cityBusiness | E30: 746 | F30: 0 | G30: 746 | H30: Remainder | I30: 1182339500 | J30: 1460836164 | K30: 110307.0926 | L30: 0.009329561651
A31: =Control!A75 -> Upper Hutt city | B31: =Control!B75 -> Upper Hutt city | C31: =Control!C75 -> Residential | D31: =Control!D75 -> Upper Hutt cityResidential | E31: 14902 | F31: 29 | G31: 14873 | H31: 14 | I31: 6233760420 | J31: 7702104734 | K31: 208222 | L31: 0.003340231032 | O31: 208222
A32: =Control!A76 -> Upper Hutt city | B32: =Control!B76 -> Upper Hutt city | C32: =Control!C76 -> Rural | D32: =Control!D76 -> Upper Hutt cityRural | E32: 1266 | F32: 67 | G32: 1199 | H32: 28 | I32: 861586340 | J32: 1064530521 | K32: 33572 | L32: 0.003896533457 | O32: 33572
A33: =Control!A77 -> Porirua city | B33: =Control!B77 -> Porirua city | C33: =Control!C77 -> Business | D33: =Control!D77 -> Porirua cityBusiness | E33: 798 | F33: 0 | G33: 798 | H33: Remainder | I33: 1101735500 | J33: 1317155784 | K33: 99457.85061 | L33: 0.009027380039
A34: =Control!A78 -> Porirua city | B34: =Control!B78 -> Porirua city | C34: =Control!C78 -> Residential | D34: =Control!D78 -> Porirua cityResidential | E34: 17394 | F34: 0 | G34: 17394 | H34: 14 | I34: 8642049050 | J34: 1.033181275e+10 | K34: 243516 | L34: 0.002817803956 | O34: 243516
A35: =Control!A79 -> Porirua city | B35: =Control!B79 -> Porirua city | C35: =Control!C79 -> Rural | D35: =Control!D79 -> Porirua cityRural | E35: 616 | F35: 0 | G35: 616 | H35: 28 | I35: 623527750 | J35: 745444965.9 | K35: 17248 | L35: 0.002766196051 | O35: 17248
A36: =Control!A80 -> Kāpiti Coast district | B36: =Control!B80 -> Kāpiti Coast district | C36: =Control!C80 -> Business | D36: =Control!D80 -> Kāpiti Coast districtBusiness | E36: 1333 | F36: 0 | G36: 1333 | H36: Remainder | I36: 1476489000 | J36: 1569567401 | K36: 118517.3402 | L36: 0.008026970753 | Q36: =J36/P22 -> 0.06324071132 | R36: KCDC busi
A37: =Control!A81 -> Kāpiti Coast district | B37: =Control!B81 -> Kāpiti Coast district excl Ōtaki | C37: =Control!C81 -> Residential | D37: =Control!D81 -> Kāpiti Coast district excl Ōtaki Residential | E37: 17951 | F37: 163 | G37: 17788 | H37: 14 | I37: 10311045500 | J37: 1.096105754e+10 | K37: 249032 | L37: 0.002415196403 | O37: 249032 | Q37: =Q36*O51 -> 118517.3402
A38: =Control!A82 -> Kāpiti Coast district | B38: =Control!B82 -> Ōtaki rating area | C38: =Control!C82 -> Residential | D38: =Control!D82 -> Ōtaki rating areaResidential | E38: 3173 | F38: 44 | G38: =E38-F38 -> 3129 | H38: 14 | I38: 1121512900 | J38: =INDEX($J$10:$J$18,MATCH(A38,$A$10:$A$18,0),)/INDEX($I$10:$I$18,MATCH(A38,$A$10:$A$18,0),)*I38 -> 1192213479 | K38: =IF(H38="Remainder", J38/(SUMIF($C$23:$C$49,"Business",$J$23:$J$49) +SUMIF($C$23:$C$49,"Regional CBD",$J$23:$J$49)) *($K$50-SUMPRODUCT($H$23:$H$49,$G$23:$G$49)), H38*G38) -> 43806 | L38: =K38/I38*100 -> 0.003905973797 | O38: 43806
A39: =Control!A83 -> Kāpiti Coast district | B39: =Control!B83 -> Kāpiti Coast district | C39: =Control!C83 -> Rural | D39: =Control!D83 -> Kāpiti Coast districtRural | E39: 2647 | F39: 155 | G39: 2492 | H39: 28 | I39: 1985010700 | J39: 2110146493 | K39: 69776 | L39: 0.00351514478 | O39: 69776
A40: =Control!A84 -> Masterton district | B40: =Control!B84 -> Masterton district | C40: =Control!C84 -> Business | D40: =Control!D84 -> Masterton districtBusiness | E40: 549 | F40: 0 | G40: 549 | H40: Remainder | I40: 433209100 | J40: 465668433.8 | K40: 35162.41746 | L40: 0.008116731033
A41: =Control!A85 -> Masterton district | B41: =Control!B85 -> Masterton district | C41: =Control!C85 -> Residential | D41: =Control!D85 -> Masterton districtResidential | E41: 8086 | F41: 19 | G41: 8067 | H41: 14 | I41: 2678795300 | J41: 2879511100 | K41: 112938 | L41: 0.004215999632 | O41: 112938
A42: =Control!A86 -> Masterton district | B42: =Control!B86 -> Masterton district | C42: =Control!C86 -> Rural | D42: =Control!D86 -> Masterton districtRural | E42: 3895 | F42: 445 | G42: 3450 | H42: 28 | I42: 2808505600 | J42: 3018940286 | K42: 96600 | L42: 0.003439551625 | O42: 96600
A43: =Control!A87 -> Carterton district | B43: =Control!B87 -> Carterton district | C43: =Control!C87 -> Business | D43: =Control!D87 -> Carterton districtBusiness | E43: 226 | F43: 0 | G43: 226 | H43: Remainder | I43: 97126500 | J43: 104785259.8 | K43: 7912.28862 | L43: 0.008146374697
A44: =Control!A88 -> Carterton district | B44: =Control!B88 -> Carterton district | C44: =Control!C88 -> Residential | D44: =Control!D88 -> Carterton districtResidential | E44: 2397 | F44: 70 | G44: 2327 | H44: 14 | I44: 858895500 | J44: 926622375.3 | K44: 32578 | L44: 0.003793010908 | O44: 32578
A45: =Control!A89 -> Carterton district | B45: =Control!B89 -> Carterton district | C45: =Control!C89 -> Rural | D45: =Control!D89 -> Carterton districtRural | E45: 2048 | F45: 303 | G45: 1745 | H45: 28 | I45: 1749109700 | J45: 1887033038 | K45: 48860 | L45: 0.002793421133 | O45: 48860
A46: =Control!A90 -> South Wairarapa district | B46: =Control!B90 -> South Wairarapa district | C46: =Control!C90 -> Business | D46: =Control!D90 -> South Wairarapa districtBusiness | E46: 312 | F46: 0 | G46: 312 | H46: Remainder | I46: 211288600 | J46: 224856608.1 | K46: 16978.82301 | L46: 0.008035844344
A47: =Control!A91 -> South Wairarapa district | B47: =Control!B91 -> South Wairarapa district | C47: =Control!C91 -> Residential | D47: =Control!D91 -> South Wairarapa districtResidential | E47: 3307 | F47: 102 | G47: 3205 | H47: 14 | I47: 1373326100 | J47: 1461514954 | K47: 44870 | L47: 0.003267250218 | O47: 44870
A48: =Control!A92 -> South Wairarapa district | B48: =Control!B92 -> South Wairarapa district | C48: =Control!C92 -> Rural | D48: =Control!D92 -> South Wairarapa districtRural | E48: 3127 | F48: 300 | G48: 2827 | H48: 28 | I48: 2970196100 | J48: 3160928797 | K48: 79156 | L48: 0.002665009223 | O48: 79156
A49: =Control!A93 -> Tararua district | B49: =Control!B93 -> Tararua district | C49: =Control!C93 -> Rural | D49: =Control!D93 -> Tararua districtRural | E49: 10 | F49: 1 | G49: 9 | H49: 28 | I49: 10673500 | J49: 11845350 | K49: 252 | L49: 0.002360987492 | O49: 252
A50: Region wide | E50: =SUM(E23:E49) -> 202034 | F50: =SUM(F23:F49) -> 1823 | G50: =SUM(G23:G49) -> 200211 | I50: =SUM(I23:I49) -> 141110137110 | J50: =SUM(J23:J49) -> 1.540010947e+11 | K50: =INDEX(ess_base_estract,MATCH(K6,ESSbase!$B$8:$B$25,0),MATCH(year_current,ESSbase!$F$6:$G$6,0)) -> 4705805.159 | O50: =SUM(O22:O49) -> 2831738 | P50: Resi or rural rates
O51: =K19-O50 -> 1874067.159 | P51: remaining busi rates
A52: Check TA totals | I52: =INDEX(capital_values,MATCH("Region wide",capital_values_rows,0),MATCH(I6&" "&year_current,capital_values_header,0))-SUM(I10:I18) -> 0 | J52: =INDEX(capital_values,MATCH("Region wide",capital_values_rows,0),MATCH(J6&" "&year_current,capital_values_header,0))-SUM(J10:J18) -> 0 | K52: =INDEX(ess_base_estract,MATCH(K6,ESSbase!$B$8:$B$25,0),MATCH(year_current,ESSbase!$F$6:$G$6,0))-SUM(K10:K18) -> 0
A53: Check category totals | E53: =INDEX(assessments,MATCH("region wide",assessments_rows,0),MATCH("CV assessments "&year_current,assessments_header,0))-SUM(E23:E49) -> 0 | F53: =INDEX(assessments_contiguous,MATCH("region wide",assessments_contiguous_rows,0),MATCH("Contiguous assements "&year_current,assessments_contiguous_header,0))-SUM(F23:F49) -> 0 | G53: =G50-SUM(G23:G49) -> 0 | I53: =INDEX(capital_values,MATCH("Region wide",capital_values_rows,0),MATCH(I6&" "&year_current,capital_values_header,0))-SUM(I23:I49) -> 0 | J53: =INDEX(capital_values,MATCH("Region wide",capital_values_rows,0),MATCH(J6&" "&year_current,capital_values_header,0))-SUM(J23:J49) -> 0 | K53: =INDEX(ess_base_estract,MATCH(K6,ESSbase!$B$8:$B$25,0),MATCH(year_current,ESSbase!$F$6:$G$6,0))-SUM(K23:K49) -> 0
A54: Category matches TA | I54: =I50-I19 -> 0 | J54: =J50-J19 -> 0 | K54: =K50-K19 -> 0

Sheet Public transport
A1: Wellington Regional Council
A2: ="Public transport rate "&year_current -> Public transport rate 2019/20
A3: Printed: | B3: =NOW() -> 2019-05-10T11:15:31.730
A4: =check_total -> 0
A6: =Control!A41 -> TA full name | C6: =Control!B41 -> Category group | D6: =Control!C41 -> Concatenated row | E6: ="CV" -> CV | F6: ECV | G6: Differential | H6: ECV multiplied | I6: Public transport rate | J6: Rates sought
E7: $ | F7: $ | G7: # | H7: # | I7: $ | J7: Cents/$
A9: By TA
A10: =Control!A42 -> Wellington city | C10: =Control!B42 -> District wide | D10: =Control!C42 -> Wellington cityDistrict wide | E10: =INDEX(capital_values,MATCH($D10,capital_values_rows,0),MATCH(E$6&" "&year_current,capital_values_header,0)) -> 72854550450 | F10: 75455676789 | I10: =SUMIF($A$23:$A$49,$A10,$I$23:$I$49) -> 43157346.42
A11: =Control!A43 -> Hutt city | C11: =Control!B43 -> District wide | D11: =Control!C43 -> Hutt cityDistrict wide | E11: 21525404000 | F11: 25948841908 | I11: 11958634.87
A12: =Control!A44 -> Upper Hutt city | C12: =Control!B44 -> District wide | D12: =Control!C44 -> Upper Hutt cityDistrict wide | E12: 8277686260 | F12: 10227471419 | I12: 4781090.006
A13: =Control!A45 -> Porirua city | C13: =Control!B45 -> District wide | D13: =Control!C45 -> Porirua cityDistrict wide | E13: 10367312300 | F13: 1.23944135e+10 | I13: 6119371.051
A14: =Control!A46 -> Kāpiti Coast district | C14: =Control!B46 -> District wide | D14: =Control!C46 -> Kāpiti Coast districtDistrict wide | E14: 14894058100 | F14: 15832984916 | I14: 4093798.406
A15: =Control!A47 -> Masterton district | C15: =Control!B47 -> District wide | D15: =Control!C47 -> Masterton districtDistrict wide | E15: 5920510000 | F15: 6364119819 | I15: 566676.6482
A16: =Control!A48 -> Carterton district | C16: =Control!B48 -> District wide | D16: =Control!C48 -> Carterton districtDistrict wide | E16: 2705131700 | F16: 2918440673 | I16: 287412.7094
A17: =Control!A49 -> South Wairarapa district | C17: =Control!B49 -> District wide | D17: =Control!C49 -> South Wairarapa districtDistrict wide | E17: 4554810800 | F17: 4847300360 | I17: 560577.6504
A18: =Control!A50 -> Tararua district | C18: =Control!B50 -> District wide | D18: =Control!C50 -> Tararua districtDistrict wide | E18: 10673500 | F18: 11845350 | I18: 0
A19: Region wide | E19: =SUM(E10:E18) -> 141110137110 | F19: =SUM(F10:F18) -> 1.540010947e+11 | I19: =SUM(I10:I18) -> 71524907.76
A22: By TA & Category
A23: =Control!A67 -> Wellington city | B23: =Control!B67 -> Wellington city | C23: =Control!C67 -> Regional CBD | D23: =Control!D67 -> Wellington cityRegional CBD | E23: =INDEX(capital_values,MATCH($D23,capital_values_rows,0),MATCH(E$6&" "&year_current,capital_values_header,0)) -> 9921148650 | F23: 1.027536346e+10 | G23: =INDEX(PT_differentials,MATCH($D23,Concat_rating_category,0),) -> 6.82880342 | H23: =F23*G23 -> 7.016843717e+10 | I23: =I$50*H23/H$50 -> 25071880.57 | J23: =I23/E23*100 -> 0.2527114698
A24: =Control!A68 -> Wellington city | B24: =Control!B68 -> Wellington city | C24: =Control!C68 -> Business | D24: =Control!D68 -> Wellington cityBusiness | E24: 4638515650 | F24: 4804124595 | G24: =INDEX(PT_differentials,MATCH($D24,Concat_rating_category,0),) -> 0.9073481479 | H24: =F24*G24 -> 4359013553 | I24: 1557518.902 | J24: 0.03357795941
A25: =Control!A69 -> Wellington city | B25: =Control!B69 -> Wellington city | C25: =Control!C69 -> Residential | D25: =Control!D69 -> Wellington cityResidential | E25: 57499964050 | F25: 5.955288552e+10 | G25: 0.7740148146 | H25: 4.609481564e+10 | I25: 16470136.14 | J25: 0.02864373293
A26: =Control!A70 -> Wellington city | B26: =Control!B70 -> Wellington city | C26: =Control!C70 -> Rural | D26: =Control!D70 -> Wellington cityRural | E26: 794922100 | F26: 823303207.3 | G26: 0.1965188139 | H26: 161794569.8 | I26: 57810.80916 | J26: 0.007272512509
A27: =Control!A71 -> Hutt city | B27: =Control!B71 -> Hutt city | C27: =Control!C71 -> Business | D27: =Control!D71 -> Hutt cityBusiness | E27: 3813013500 | F27: 4596581997 | G27: 1.413555489 | H27: 6497523714 | I27: 2321629.855 | J27: 0.06088700852
A28: =Control!A72 -> Hutt city | B28: =Control!B72 -> Hutt city | C28: =Control!C72 -> Residential | D28: =Control!D72 -> Hutt cityResidential | E28: 17395848500 | F28: 2.097066901e+10 | G28: 1.280222156 | H28: 2.684711509e+10 | I28: 9592741.274 | J28: 0.05514385386
A29: =Control!A73 -> Hutt city | B29: =Control!B73 -> Hutt city | C29: =Control!C73 -> Rural | D29: =Control!D73 -> Hutt cityRural | E29: 316542000 | F29: 381590901.4 | G29: 0.3246422102 | H29: =F29*G29 -> 123880513.6 | I29: =I$50*H29/H$50 -> 44263.73977 | J29: =I29/E29*100 -> 0.01398352818
A30: =Control!A74 -> Upper Hutt city | B30: =Control!B74 -> Upper Hutt city | C30: =Control!C74 -> Business | D30: =Control!D74 -> Upper Hutt cityBusiness | E30: 1182339500 | F30: 1460836164 | G30: 1.531191092 | H30: 2236819322 | I30: 799237.7935 | J30: 0.06759799478
A31: =Control!A75 -> Upper Hutt city | B31: =Control!B75 -> Upper Hutt city | C31: =Control!C75 -> Residential | D31: =Control!D75 -> Upper Hutt cityResidential | E31: 6233760420 | F31: 7702104734 | G31: 1.397857759 | H31: 1.076644686e+10 | I31: 3846958.559 | J31: 0.06171168443
A32: =Control!A76 -> Upper Hutt city | B32: =Control!B76 -> Upper Hutt city | C32: =Control!C76 -> Rural | D32: =Control!D76 -> Upper Hutt cityRural | E32: 861586340 | F32: 1064530521 | G32: 0.35464047 | H32: 377525604.3 | I32: 134893.6537 | J32: 0.01565642901
A33: =Control!A77 -> Porirua city | B33: =Control!B77 -> Porirua city | C33: =Control!C77 -> Business | D33: =Control!D77 -> Porirua cityBusiness | E33: 1101735500 | F33: 1317155784 | G33: 1.565205544 | H33: 2061619536 | I33: 736637.1671 | J33: 0.06686152594
A34: =Control!A78 -> Porirua city | B34: =Control!B78 -> Porirua city | C34: =Control!C78 -> Residential | D34: =Control!D78 -> Porirua cityResidential | E34: 8642049050 | F34: 1.033181275e+10 | G34: 1.431872211 | H34: 1.479383557e+10 | I34: 5285984.605 | J34: 0.06116587136
A35: =Control!A79 -> Porirua city | B35: =Control!B79 -> Porirua city | C35: =Control!C79 -> Rural | D35: =Control!D79 -> Porirua cityRural | E35: 623527750 | F35: 745444965.9 | G35: 0.3632344603 | H35: 270771299.8 | I35: 96749.27882 | J35: 0.01551643513
A36: =Control!A80 -> Kāpiti Coast district | B36: =Control!B80 -> Kāpiti Coast district | C36: =Control!C80 -> Business | D36: =Control!D80 -> Kāpiti Coast districtBusiness | E36: 1476489000 | F36: 1569567401 | G36: 0.9359843804 | H36: 1469090571 | I36: 524920.6744 | J36: 0.03555195293
A37: =Control!A81 -> Kāpiti Coast district | B37: =Control!B81 -> Kāpiti Coast district excl Ōtaki | C37: =Control!C81 -> Residential | D37: =Control!D81 -> Kāpiti Coast district excl Ōtaki Residential | E37: 10311045500 | F37: 1.096105754e+10 | G37: 0.802651047 | H37: 8797904313 | I37: 3143578.725 | J37: 0.03048748766
A38: =Control!A82 -> Kāpiti Coast district | B38: =Control!B82 -> Ōtaki rating area | C38: =Control!C82 -> Residential | D38: =Control!D82 -> Ōtaki rating areaResidential | E38: 1121512900 | F38: 1192213479 | G38: 0.6359843804 | H38: 758229150.9 | I38: 270922.8178 | J38: 0.02415690607
A39: =Control!A83 -> Kāpiti Coast district | B39: =Control!B83 -> Kāpiti Coast district | C39: =Control!C83 -> Rural | D39: =Control!D83 -> Kāpiti Coast districtRural | E39: 1985010700 | F39: 2110146493 | G39: 0.2047493834 | H39: 432051193.5 | I39: 154376.1891 | J39: 0.007777096067
A40: =Control!A84 -> Masterton district | B40: =Control!B84 -> Masterton district | C40: =Control!C84 -> Business | D40: =Control!D84 -> Masterton districtBusiness | E40: 433209100 | F40: 465668433.8 | G40: 0.4993249485 | H40: 232519866.7 | I40: 83081.66127 | J40: 0.0191781893
A41: =Control!A85 -> Masterton district | B41: =Control!B85 -> Masterton district | C41: =Control!C85 -> Residential | D41: =Control!D85 -> Masterton districtResidential | E41: 2678795300 | F41: 2879511100 | G41: 0.3326582818 | H41: 957893214.8 | I41: 342264.7739 | J41: 0.01277681702
A42: =Control!A86 -> Masterton district | B42: =Control!B86 -> Masterton district | C42: =Control!C86 -> Rural | D42: =Control!D86 -> Masterton districtRural | E42: 2808505600 | F42: 3018940286 | G42: 0.131019333 | H42: 395539542.5 | I42: 141330.213 | J42: 0.005032221157
A43: =Control!A87 -> Carterton district | B43: =Control!B87 -> Carterton district | C43: =Control!C87 -> Business | D43: =Control!D87 -> Carterton districtBusiness | E43: 97126500 | F43: 104785259.8 | G43: 0.6311347496 | H43: 66133618.73 | I43: 23630.19981 | J43: 0.02432930231
A44: =Control!A88 -> Carterton district | B44: =Control!B88 -> Carterton district | C44: =Control!C88 -> Residential | D44: =Control!D88 -> Carterton districtResidential | E44: 858895500 | F44: 926622375.3 | G44: 0.4644680829 | H44: 430386518.3 | I44: 153781.3841 | J44: 0.01790455114
A45: =Control!A89 -> Carterton district | B45: =Control!B89 -> Carterton district | C45: =Control!C89 -> Rural | D45: =Control!D89 -> Carterton districtRural | E45: 1749109700 | F45: 1887033038 | G45: 0.1631445304 | H45: 307859118.9 | I45: 110001.1255 | J45: 0.006288978072
A46: =Control!A90 -> South Wairarapa district | B46: =Control!B90 -> South Wairarapa district | C46: =Control!C90 -> Business | D46: =Control!D90 -> South Wairarapa districtBusiness | E46: 211288600 | F46: 224856608.1 | G46: 0.7268331513 | H46: 163433237 | I46: 58396.32127 | J46: 0.0276381789
A47: =Control!A91 -> South Wairarapa district | B47: =Control!B91 -> South Wairarapa district | C47: =Control!C91 -> Residential | D47: =Control!D91 -> South Wairarapa districtResidential | E47: 1373326100 | F47: 1461514954 | G47: 0.5601664846 | H47: 818691694.3 | I47: 292526.686 | J47: 0.02130059903
A48: =Control!A92 -> South Wairarapa district | B48: =Control!B92 -> South Wairarapa district | C48: =Control!C92 -> Rural | D48: =Control!D92 -> South Wairarapa districtRural | E48: 2970196100 | F48: 3160928797 | G48: 0.1856285043 | H48: 586758484.7 | I48: 209654.6431 | J48: 0.007058612835
A49: =Control!A93 -> Tararua district | B49: =Control!B93 -> Tararua district | C49: =Control!C93 -> Rural | D49: =Control!D93 -> Tararua districtRural | E49: 10673500 | F49: 11845350 | G49: 0 | H49: 0 | I49: 0 | J49: 0
A50: Region wide | E50: =SUM(E23:E49) -> 141110137110 | F50: =SUM(F23:F49) -> 1.540010947e+11 | H50: =SUM(H23:H49) -> 2.00176089e+11 | I50: =INDEX(ess_base_estract,MATCH(I6,ESSbase!$B$8:$B$25,0),MATCH(year_current,ESSbase!$F$6:$G$6,0)) -> 71524907.76
A53: Upper Hutt breakdown
A54: =$A$12 -> Upper Hutt city | B54: Trentham Military Camp | C54: Business | D54: =B54&C54 -> Trentham Military CampBusiness | E54: =SUMIFS('UHCC Adjustments'!$D$9:$D$27,'UHCC Adjustments'!$B$9:$B$27,C54,'UHCC Adjustments'!$C$9:$C$27,B54) -> 56325000 | I54: =SUMIFS($I$23:$I$49,$A$23:$A$49,A54,$C$23:$C$49,C54) * IF(B54="Trentham Military Camp", INDEX('UHCC Adjustments'!$E$30:$E$34,MATCH(C54,'UHCC Adjustments'!$B$30:$B$34,0),), 1-INDEX('UHCC Adjustments'!$E$30:$E$34,MATCH(C54,'UHCC Adjustments'!$B$30:$B$34,0),)) -> 52416.63902 | J54: =I54/E54*100 -> 0.09306105463
A55: Upper Hutt city | B55: Rest of Upper Hutt City | C55: Business | D55: =B55&C55 -> Rest of Upper Hutt CityBusiness | E55: =SUMIFS('UHCC Adjustments'!$D$9:$D$27,'UHCC Adjustments'!$B$9:$B$27,C55,'UHCC Adjustments'!$C$9:$C$27,B55) -> 1126014500 | I55: =SUMIFS($I$23:$I$49,$A$23:$A$49,A55,$C$23:$C$49,C55) * IF(B55="Trentham Military Camp", INDEX('UHCC Adjustments'!$E$30:$E$34,MATCH(C55,'UHCC Adjustments'!$B$30:$B$34,0),), 1-INDEX('UHCC Adjustments'!$E$30:$E$34,MATCH(C55,'UHCC Adjustments'!$B$30:$B$34,0),)) -> 746821.1545 | J55: 0.06632429285
A56: Upper Hutt city | B56: Trentham Military Camp | C56: Residential | D56: Trentham Military CampResidential | E56: =SUMIFS('UHCC Adjustments'!$D$9:$D$27,'UHCC Adjustments'!$B$9:$B$27,C56,'UHCC Adjustments'!$C$9:$C$27,B56) -> 26720000 | I56: =SUMIFS($I$23:$I$49,$A$23:$A$49,A56,$C$23:$C$49,C56) * IF(B56="Trentham Military Camp", INDEX('UHCC Adjustments'!$E$30:$E$34,MATCH(C56,'UHCC Adjustments'!$B$30:$B$34,0),), 1-INDEX('UHCC Adjustments'!$E$30:$E$34,MATCH(C56,'UHCC Adjustments'!$B$30:$B$34,0),)) -> 12205.43309 | J56: 0.04567901604
A57: Upper Hutt city | B57: Rest of Upper Hutt City | C57: Residential | D57: Rest of Upper Hutt CityResidential | E57: =SUMIFS('UHCC Adjustments'!$D$9:$D$27,'UHCC Adjustments'!$B$9:$B$27,C57,'UHCC Adjustments'!$C$9:$C$27,B57) -> 6207040420 | I57: =SUMIFS($I$23:$I$49,$A$23:$A$49,A57,$C$23:$C$49,C57) * IF(B57="Trentham Military Camp", INDEX('UHCC Adjustments'!$E$30:$E$34,MATCH(C57,'UHCC Adjustments'!$B$30:$B$34,0),), 1-INDEX('UHCC Adjustments'!$E$30:$E$34,MATCH(C57,'UHCC Adjustments'!$B$30:$B$34,0),)) -> 3834753.126 | J57: 0.06178070169
A58: Upper Hutt city | B58: Trentham Military Camp | C58: Rural | D58: Trentham Military CampRural | E58: =SUMIFS('UHCC Adjustments'!$D$9:$D$27,'UHCC Adjustments'!$B$9:$B$27,C58,'UHCC Adjustments'!$C$9:$C$27,B58) -> 4676000 | I58: =SUMIFS($I$23:$I$49,$A$23:$A$49,A58,$C$23:$C$49,C58) * IF(B58="Trentham Military Camp", INDEX('UHCC Adjustments'!$E$30:$E$34,MATCH(C58,'UHCC Adjustments'!$B$30:$B$34,0),), 1-INDEX('UHCC Adjustments'!$E$30:$E$34,MATCH(C58,'UHCC Adjustments'!$B$30:$B$34,0),)) -> 858.1249171 | J58: 0.0183516877
A59: Upper Hutt city | B59: Rest of Upper Hutt City | C59: Rural | D59: Rest of Upper Hutt CityRural | E59: =SUMIFS('UHCC Adjustments'!$D$9:$D$27,'UHCC Adjustments'!$B$9:$B$27,C59,'UHCC Adjustments'!$C$9:$C$27,B59) -> 856910340 | I59: =SUMIFS($I$23:$I$49,$A$23:$A$49,A59,$C$23:$C$49,C59) * IF(B59="Trentham Military Camp", INDEX('UHCC Adjustments'!$E$30:$E$34,MATCH(C59,'UHCC Adjustments'!$B$30:$B$34,0),), 1-INDEX('UHCC Adjustments'!$E$30:$E$34,MATCH(C59,'UHCC Adjustments'!$B$30:$B$34,0),)) -> 134035.5288 | J59: 0.01564172149
A60: Total | E60: =SUM(E54:E59) -> 8277686260 | I60: =SUM(I54:I59) -> 4781090.006
A63: Check Upper Hutt total | E63: =E60-E12 -> 0 | I63: =I60-I12 -> 0
A64: Check TA totals | E64: =INDEX(capital_values,MATCH("Region wide",capital_values_rows,0),MATCH(E6&" "&year_current,capital_values_header,0))-SUM(E10:E18) -> 0 | F64: =INDEX(capital_values,MATCH("Region wide",capital_values_rows,0),MATCH(F6&" "&year_current,capital_values_header,0))-SUM(F10:F18) -> 0 | I64: =INDEX(ess_base_estract,MATCH(I6,ESSbase!$B$8:$B$25,0),MATCH(year_current,ESSbase!$F$6:$G$6,0))-SUM(I10:I18) -> 0
A65: Check category totals | E65: =INDEX(capital_values,MATCH("Region wide",capital_values_rows,0),MATCH(E6&" "&year_current,capital_values_header,0))-SUM(E23:E49) -> 0 | F65: =INDEX(capital_values,MATCH("Region wide",capital_values_rows,0),MATCH(F6&" "&year_current,capital_values_header,0))-SUM(F23:F49) -> 0 | H65: =H50-SUM(H23:H49) -> 0 | I65: =INDEX(ess_base_estract,MATCH(I6,ESSbase!$B$8:$B$25,0),MATCH(year_current,ESSbase!$F$6:$G$6,0))-SUM(I23:I49) -> 0
A66: Category matches TA | E66: =E50-E19 -> 0 | F66: =F50-F19 -> 0 | I66: =I50-I19 -> 0

Sheet >>Other rates & levies

Sheet Pest
A1: Wellington Regional Council
A2: ="Pest management rate "&year_current -> Pest management rate 2019/20
A3: Printed: | B3: =NOW() -> 2019-05-10T11:15:31.730
A4: =check_total -> 0
A6: TA full name | B6: Area ha | C6: $ per Hectare | D6: Pest management rate
B7: # | C7: $ | D7: Cents per $
A9: By TA
A10: =Control!A17 -> Wellington city | B10: =INDEX(Control!$D$164:$D$172,MATCH(Pest!A10,Control!$A$164:$A$172,0)) -> 16197.0445 | C10: =$C$19 -> 0.9579755476 | D10: =B10*C10 -> 15516.37257
A11: =Control!A18 -> Hutt city | B11: =INDEX(Control!$D$164:$D$172,MATCH(Pest!A11,Control!$A$164:$A$172,0)) -> 15091.2191 | C11: 0.9579755476 | D11: =B11*C11 -> 14457.01888
A12: =Control!A19 -> Upper Hutt city | B12: =INDEX(Control!$D$164:$D$172,MATCH(Pest!A12,Control!$A$164:$A$172,0)) -> 54346.1582 | C12: =$C$19 -> 0.9579755476 | D12: 52062.29066
A13: =Control!A20 -> Porirua city | B13: =INDEX(Control!$D$164:$D$172,MATCH(Pest!A13,Control!$A$164:$A$172,0)) -> 12639 | C13: 0.9579755476 | D13: 12107.85295
A14: =Control!A21 -> Kāpiti Coast district | B14: =INDEX(Control!$D$164:$D$172,MATCH(Pest!A14,Control!$A$164:$A$172,0)) -> 29020.7598 | C14: 0.9579755476 | D14: 27801.17826
A15: =Control!A22 -> Masterton district | B15: =INDEX(Control!$D$164:$D$172,MATCH(Pest!A15,Control!$A$164:$A$172,0)) -> 206574.3888 | C15: 0.9579755476 | D15: 197893.2132
A16: =Control!A23 -> Carterton district | B16: =INDEX(Control!$D$164:$D$172,MATCH(Pest!A16,Control!$A$164:$A$172,0)) -> 85878.6034 | C16: 0.9579755476 | D16: 82269.60212
A17: =Control!A24 -> South Wairarapa district | B17: =INDEX(Control!$D$164:$D$172,MATCH(Pest!A17,Control!$A$164:$A$172,0)) -> 177467.1272 | C17: 0.9579755476 | D17: 170009.1684
A18: =Control!A25 -> Tararua district | B18: =INDEX(Control!$D$164:$D$172,MATCH(Pest!A18,Control!$A$164:$A$172,0)) -> 5306.2972 | C18: 0.9579755476 | D18: 5083.302966
A19: Region wide | B19: =SUM(B10:B18) -> 602520.5982 | C19: =D19/B19 -> 0.9579755476 | D19: =INDEX(ess_base_estract,MATCH(D6,ESSbase!$B$8:$B$25,0),MATCH(year_current,ESSbase!$F$6:$G$6,0)) -> 577200
A21: Check | B21: =Control!D173-Pest!B19 -> 0 | D21: =D19-SUM(D10:D18) -> 0

Sheet Water levy
A1: Wellington Regional Council
A2: ="Water supply levy "&year_current -> Water supply levy 2019/20
A3: Printed : | B3: =NOW() -> 2019-05-10T11:15:31.730
A4: =check_total -> 0
B6: Share | C6: Bulk Water Levies
B7: % | C7: $
A9: By TA
A10: Wellington city | B10: =INDEX(Control!$B$179:$B$187,MATCH(A10,Control!$A$179:$A$187,0),) -> 0.5203310026 | C10: =B10*$C$19 -> 18253886.46
A11: Hutt city | B11: =INDEX(Control!$B$179:$B$187,MATCH(A11,Control!$A$179:$A$187,0),) -> 0.264235653 | C11: 9269729.429
A12: Upper Hutt city | B12: =INDEX(Control!$B$179:$B$187,MATCH(A12,Control!$A$179:$A$187,0),) -> 0.09772016604 | C12: 3428150.171
A13: Porirua city | B13: =INDEX(Control!$B$179:$B$187,MATCH(A13,Control!$A$179:$A$187,0),) -> 0.1177131783 | C13: =B13*$C$19 -> 4129530.973
A14: Kāpiti Coast district | B14: =INDEX(Control!$B$179:$B$187,MATCH(A14,Control!$A$179:$A$187,0),) -> 0 | C14: 0
A15: Masterton district | B15: =INDEX(Control!$B$179:$B$187,MATCH(A15,Control!$A$179:$A$187,0),) -> 0 | C15: 0
A16: Carterton district | B16: =INDEX(Control!$B$179:$B$187,MATCH(A16,Control!$A$179:$A$187,0),) -> 0 | C16: 0
A17: South Wairarapa district | B17: =INDEX(Control!$B$179:$B$187,MATCH(A17,Control!$A$179:$A$187,0),) -> 0 | C17: 0
A18: Tararua district | B18: =INDEX(Control!$B$179:$B$187,MATCH(A18,Control!$A$179:$A$187,0),) -> 0 | C18: =B18*$C$19 -> 0
A19: Region wide | B19: =SUM(B10:B18) -> 1 | C19: =INDEX(ess_base_estract,MATCH(C6,ESSbase!$B$8:$B$25,0),MATCH(year_current,ESSbase!$F$6:$G$6,0)) -> 35081297.03
A21: Checks | B21: =1-B19 -> 0 | C21: =C19-SUM(C10:C18) -> 0

Sheet >>Output tabs

Sheet Comparison - TA
A1: Comparison of proposed vs current
A2: =check_total -> 0
A4: =year_previous&" rates" -> 2018/19 rates
B5: TA
B6: Wellington city | C6: Hutt city | D6: Upper Hutt city | E6: Porirua city | F6: Kāpiti Coast district | G6: Masterton District | H6: Carterton District | I6: South Wairarapa District | J6: Tararua District | K6: Other | L6: Region wide
A7: General rate | B7: 23048092.38 | C7: 8059093.387 | D7: 3064993.246 | E7: 3819282.588 | F7: 4904933.192 | G7: 1968728.242 | H7: 907437.03 | I7: 1508400.821 | J7: 2353.024643 | K7: 0 | L7: =INDEX(ess_base_estract,MATCH(A7,ESSbase!$B$8:$B$25,0),MATCH(year_previous,ESSbase!$F$6:$G$6,0)) -> 47283313.91 | M7: =ROUND(L7-SUM(B7:K7),-1) -> 0
A8: Remission of rates | B8: 0 | C8: 0 | D8: 0 | E8: 0 | F8: 0 | G8: 0 | H8: 0 | I8: 0 | J8: 0 | K8: 0 | L8: =INDEX(ess_base_estract,MATCH(A8,ESSbase!$B$8:$B$25,0),MATCH(year_previous,ESSbase!$F$6:$G$6,0)) -> 0 | M8: =ROUND(L8-SUM(B8:K8),-1) -> 0
A9: Public transport rate | B9: 40924832.41 | C9: 11715213.08 | D9: 4597306.191 | E9: 6086081.306 | F9: 3594210.545 | G9: 437393.5929 | H9: 249139.4231 | I9: 505501.2503 | J9: 0 | K9: 0 | L9: =INDEX(ess_base_estract,MATCH(A9,ESSbase!$B$8:$B$25,0),MATCH(year_previous,ESSbase!$F$6:$G$6,0)) -> 68109677.79 | M9: 0
A10: River management rate | B10: 42679 | C10: 4356562 | D10: 667062 | E10: 33588 | F10: 1335375 | G10: 0 | H10: 23705 | I10: 0 | J10: 0 | K10: 0 | L10: =INDEX(ess_base_estract,MATCH(A10,ESSbase!$B$8:$B$25,0),MATCH(year_previous,ESSbase!$F$6:$G$6,0)) -> 6458970.807 | M10: =ROUND(L10-SUM(B10:K10),-1) -> 0
A11: Stadium purposes rate | B11: 0 | C11: 0 | D11: 0 | E11: 0 | F11: 0 | G11: 0 | H11: 0 | I11: 0 | J11: 0 | K11: 0 | L11: =INDEX(ess_base_estract,MATCH(A11,ESSbase!$B$8:$B$25,0),MATCH(year_previous,ESSbase!$F$6:$G$6,0)) -> 0 | M11: 0
A12: Wellington regional strategy rate | B12: 2351472.423 | C12: 883091.458 | D12: 351106.9446 | E12: 362532.2064 | F12: 485529.9273 | G12: 243887.5806 | H12: 90214.33542 | I12: 139773.9458 | J12: 252 | K12: 0 | L12: =INDEX(ess_base_estract,MATCH(A12,ESSbase!$B$8:$B$25,0),MATCH(year_previous,ESSbase!$F$6:$G$6,0)) -> 4907860.821 | M12: 0
A13: District-Wide Rates | B13: =SUM(B7:B12) -> 66367076.21 | C13: 25013959.92 | D13: 8680468.382 | E13: 10301484.1 | F13: 10320048.66 | G13: 2650009.416 | H13: 1270495.788 | I13: 2153676.017 | J13: 2605.024643 | K13: 0 | L13: =INDEX(ess_base_estract,MATCH(A13,ESSbase!$B$8:$B$25,0),MATCH(year_previous,ESSbase!$F$6:$G$6,0)) -> 126759823.3 | M13: =ROUND(L13-SUM(B13:K13),-1) -> 0
A14: Rates Penalties | B14: 0 | C14: 0 | D14: 0 | E14: 0 | F14: 0 | G14: 0 | H14: 0 | I14: 0 | J14: 0 | K14: 0 | L14: =INDEX(ess_base_estract,MATCH(A14,ESSbase!$B$8:$B$25,0),MATCH(year_previous,ESSbase!$F$6:$G$6,0)) -> 0 | M14: 0
A15: Remission of Rates Penalties | B15: 0 | C15: 0 | D15: 0 | E15: 0 | F15: 0 | G15: 0 | H15: 0 | I15: 0 | J15: 0 | K15: 0 | L15: =INDEX(ess_base_estract,MATCH(A15,ESSbase!$B$8:$B$25,0),MATCH(year_previous,ESSbase!$F$6:$G$6,0)) -> 0 | M15: 0
A16: Pest management rate | B16: 29519.67997 | C16: 13503.37908 | D16: 47091.2462 | E16: 10278.79504 | F16: 25316.45071 | G16: 179612.5682 | H16: 67704.18913 | I16: 154372.7457 | J16: 4600.945989 | K16: 0 | L16: =INDEX(ess_base_estract,MATCH(A16,ESSbase!$B$8:$B$25,0),MATCH(year_previous,ESSbase!$F$6:$G$6,0)) -> 532000 | M16: =ROUND(L16-SUM(B16:K16),-1) -> 0
A17: River management rate - Non district wide | B17: 0 | C17: 0 | D17: 0 | E17: 0 | F17: 0 | G17: 0 | H17: 0 | I17: 95164 | J17: 0 | K17: 0 | L17: =INDEX(ess_base_estract,MATCH(A17,ESSbase!$B$8:$B$25,0),MATCH(year_previous,ESSbase!$F$6:$G$6,0)) -> 95164 | M17: 0
A18: Special rates | B18: 0 | C18: 0 | D18: 0 | E18: 0 | F18: 0 | G18: 0 | H18: 0 | I18: 0 | J18: 0 | K18: 1487363 | L18: =INDEX(ess_base_estract,MATCH(A18,ESSbase!$B$8:$B$25,0),MATCH(year_previous,ESSbase!$F$6:$G$6,0)) -> 1487363 | M18: 0
A19: Total Other Rates | B19: =SUM(B14:B18) -> 29519.67997 | C19: 13503.37908 | D19: 47091.2462 | E19: 10278.79504 | F19: 25316.45071 | G19: 179612.5682 | H19: 67704.18913 | I19: 249536.7457 | J19: 4600.945989 | K19: 1487363 | L19: =INDEX(ess_base_estract,MATCH(A19,ESSbase!$B$8:$B$25,0),MATCH(year_previous,ESSbase!$F$6:$G$6,0)) -> 2114527 | M19: 0
A20: Total Regnl Rates | B20: =SUM(B19,B13) -> 66396595.89 | C20: 25027463.3 | D20: 8727559.628 | E20: 10311762.9 | F20: 10345365.11 | G20: 2829621.984 | H20: 1338199.978 | I20: 2403212.762 | J20: 7205.970632 | K20: 1487363 | L20: =INDEX(ess_base_estract,MATCH(A20,ESSbase!$B$8:$B$25,0),MATCH(year_previous,ESSbase!$F$6:$G$6,0)) -> 128874350.3 | M20: 0
A21: Bulk Water Levies | B21: 17696562.02 | C21: 8206340.01 | D21: 3317567.004 | E21: 3848429.005 | F21: 0 | G21: 0 | H21: 0 | I21: 0 | J21: 0 | K21: 0 | L21: =INDEX(ess_base_estract,MATCH(A21,ESSbase!$B$8:$B$25,0),MATCH(year_previous,ESSbase!$F$6:$G$6,0)) -> 33068898.04 | M21: 0
A22: Total Regnl Rates & levies | B22: =SUM(B20:B21) -> 84093157.91 | C22: =SUM(C20:C21) -> 33233803.31 | D22: 12045126.63 | E22: 14160191.9 | F22: 10345365.11 | G22: 2829621.984 | H22: 1338199.978 | I22: 2403212.762 | J22: 7205.970632 | K22: 1487363 | L22: =INDEX(ess_base_estract,MATCH(A22,ESSbase!$B$8:$B$25,0),MATCH(year_previous,ESSbase!$F$6:$G$6,0)) -> 161943248.4 | M22: 0
A23: Warm Greater Wellington rate | K23: 3237058 | L23: =INDEX(ess_base_estract,MATCH(A23,ESSbase!$B$8:$B$25,0),MATCH(year_previous,ESSbase!$F$6:$G$6,0)) -> 3237058 | M23: 0
A24: Total Rates & Levies | B24: =SUM(B22:B23) -> 84093157.91 | C24: 33233803.31 | D24: 12045126.63 | E24: 14160191.9 | F24: 10345365.11 | G24: 2829621.984 | H24: 1338199.978 | I24: 2403212.762 | J24: 7205.970632 | K24: 4724421 | L24: =INDEX(ess_base_estract,MATCH(A24,ESSbase!$B$8:$B$25,0),MATCH(year_previous,ESSbase!$F$6:$G$6,0)) -> 165180306.4 | M24: 0
A27: =year_current&" rates" -> 2019/20 rates
B28: TA
B29: Wellington city | C29: Hutt city | D29: Upper Hutt city | E29: Porirua city | F29: Kāpiti Coast district | G29: Masterton District | H29: Carterton District | I29: South Wairarapa district | J29: Tararua District | K29: Other | L29: Region wide
A30: General rate | B30: =IFERROR(INDEX(Gen!$D$10:$D$18,MATCH(B$29,Gen!$A$10:$A$18,0),),0) -> 25017890.75 | C30: =IFERROR(INDEX(Gen!$D$10:$D$18,MATCH(C$29,Gen!$A$10:$A$18,0),),0) -> 8603531.499 | D30: =IFERROR(INDEX(Gen!$D$10:$D$18,MATCH(D$29,Gen!$A$10:$A$18,0),),0) -> 3390994.204 | E30: =IFERROR(INDEX(Gen!$D$10:$D$18,MATCH(E$29,Gen!$A$10:$A$18,0),),0) -> 4109459.966 | F30: =IFERROR(INDEX(Gen!$D$10:$D$18,MATCH(F$29,Gen!$A$10:$A$18,0),),0) -> 5249543.888 | G30: =IFERROR(INDEX(Gen!$D$10:$D$18,MATCH(G$29,Gen!$A$10:$A$18,0),),0) -> 2110071.252 | H30: =IFERROR(INDEX(Gen!$D$10:$D$18,MATCH(H$29,Gen!$A$10:$A$18,0),),0) -> 967630.7078 | I30: =IFERROR(INDEX(Gen!$D$10:$D$18,MATCH(I$29,Gen!$A$10:$A$18,0),),0) -> 1607158.481 | J30: =IFERROR(INDEX(Gen!$D$10:$D$18,MATCH(J$29,Gen!$A$10:$A$18,0),),0) -> 3927.413879 | K30: =IFERROR(INDEX(Gen!$D$10:$D$18,MATCH(K$29,Gen!$A$10:$A$18,0),),0) -> 0 | L30: =INDEX(ess_base_estract,MATCH(A30,ESSbase!$B$8:$B$25,0),MATCH(year_current,ESSbase!$F$6:$G$6,0)) -> 51060208.17 | M30: =ROUND(L30-SUM(B30:K30),-1) -> 0
A31: Remission of rates | B31: 0 | C31: 0 | D31: 0 | E31: 0 | F31: 0 | G31: 0 | H31: 0 | I31: 0 | J31: 0 | K31: 0 | L31: =INDEX(ess_base_estract,MATCH(A31,ESSbase!$B$8:$B$25,0),MATCH(year_current,ESSbase!$F$6:$G$6,0)) -> 0 | M31: 0
A32: Public transport rate | B32: =IFERROR(INDEX('Public transport'!$I$10:$I$18,MATCH(B$29,'Public transport'!$A$10:$A$18,0),),0) -> 43157346.42 | C32: =IFERROR(INDEX('Public transport'!$I$10:$I$18,MATCH(C$29,'Public transport'!$A$10:$A$18,0),),0) -> 11958634.87 | D32: =IFERROR(INDEX('Public transport'!$I$10:$I$18,MATCH(D$29,'Public transport'!$A$10:$A$18,0),),0) -> 4781090.006 | E32: =IFERROR(INDEX('Public transport'!$I$10:$I$18,MATCH(E$29,'Public transport'!$A$10:$A$18,0),),0) -> 6119371.051 | F32: =IFERROR(INDEX('Public transport'!$I$10:$I$18,MATCH(F$29,'Public transport'!$A$10:$A$18,0),),0) -> 4093798.406 | G32: =IFERROR(INDEX('Public transport'!$I$10:$I$18,MATCH(G$29,'Public transport'!$A$10:$A$18,0),),0) -> 566676.6482 | H32: =IFERROR(INDEX('Public transport'!$I$10:$I$18,MATCH(H$29,'Public transport'!$A$10:$A$18,0),),0) -> 287412.7094 | I32: =IFERROR(INDEX('Public transport'!$I$10:$I$18,MATCH(I$29,'Public transport'!$A$10:$A$18,0),),0) -> 560577.6504 | J32: =IFERROR(INDEX('Public transport'!$I$10:$I$18,MATCH(J$29,'Public transport'!$A$10:$A$18,0),),0) -> 0 | K32: =IFERROR(INDEX('Public transport'!$I$10:$I$18,MATCH(K$29,'Public transport'!$A$10:$A$18,0),),0) -> 0 | L32: =INDEX(ess_base_estract,MATCH(A32,ESSbase!$B$8:$B$25,0),MATCH(year_current,ESSbase!$F$6:$G$6,0)) -> 71524907.76 | M32: 0
A33: River management rate | B33: =IFERROR(INDEX('River management'!$C$10:$C$18,MATCH(B$29,'River management'!$A$10:$A$18,0),),0) -> 63804.11426 | C33: =IFERROR(INDEX('River management'!$C$10:$C$18,MATCH(C$29,'River management'!$A$10:$A$18,0),),0) -> 4675266.736 | D33: =IFERROR(INDEX('River management'!$C$10:$C$18,MATCH(D$29,'River management'!$A$10:$A$18,0),),0) -> 806234.4441 | E33: =IFERROR(INDEX('River management'!$C$10:$C$18,MATCH(E$29,'River management'!$A$10:$A$18,0),),0) -> 48238.74476 | F33: =IFERROR(INDEX('River management'!$C$10:$C$18,MATCH(F$29,'River management'!$A$10:$A$18,0),),0) -> 1423425.103 | G33: =IFERROR(INDEX('River management'!$C$10:$C$18,MATCH(G$29,'River management'!$A$10:$A$18,0),),0) -> 0 | H33: =IFERROR(INDEX('River management'!$C$10:$C$18,MATCH(H$29,'River management'!$A$10:$A$18,0),),0) -> 24179.1 | I33: =IFERROR(INDEX('River management'!$C$10:$C$18,MATCH(I$29,'River management'!$A$10:$A$18,0),),0) -> 0 | J33: =IFERROR(INDEX('River management'!$C$10:$C$18,MATCH(J$29,'River management'!$A$10:$A$18,0),),0) -> 0 | K33: =IFERROR(INDEX('River management'!$C$10:$C$18,MATCH(K$29,'River management'!$A$10:$A$18,0),),0) -> 0 | L33: =INDEX(ess_base_estract,MATCH(A33,ESSbase!$B$8:$B$25,0),MATCH(year_current,ESSbase!$F$6:$G$6,0)) -> 7041148.242 | M33: 0
A34: Stadium purposes rate | B34: =IFERROR(INDEX(Stadium!$G$10:$G$18,MATCH(B$29,Stadium!$A$10:$A$18,0),),0) -> 0 | C34: =IFERROR(INDEX(Stadium!$G$10:$G$18,MATCH(C$29,Stadium!$A$10:$A$18,0),),0) -> 0 | D34: =IFERROR(INDEX(Stadium!$G$10:$G$18,MATCH(D$29,Stadium!$A$10:$A$18,0),),0) -> 0 | E34: =IFERROR(INDEX(Stadium!$G$10:$G$18,MATCH(E$29,Stadium!$A$10:$A$18,0),),0) -> 0 | F34: =IFERROR(INDEX(Stadium!$G$10:$G$18,MATCH(F$29,Stadium!$A$10:$A$18,0),),0) -> 0 | G34: =IFERROR(INDEX(Stadium!$G$10:$G$18,MATCH(G$29,Stadium!$A$10:$A$18,0),),0) -> 0 | H34: =IFERROR(INDEX(Stadium!$G$10:$G$18,MATCH(H$29,Stadium!$A$10:$A$18,0),),0) -> 0 | I34: =IFERROR(INDEX(Stadium!$G$10:$G$18,MATCH(I$29,Stadium!$A$10:$A$18,0),),0) -> 0 | J34: =IFERROR(INDEX(Stadium!$G$10:$G$18,MATCH(J$29,Stadium!$A$10:$A$18,0),),0) -> 0 | K34: =IFERROR(INDEX(Stadium!$G$10:$G$18,MATCH(K$29,Stadium!$A$10:$A$18,0),),0) -> 0 | L34: =INDEX(ess_base_estract,MATCH(A34,ESSbase!$B$8:$B$25,0),MATCH(year_current,ESSbase!$F$6:$G$6,0)) -> 0 | M34: 0
A35: Wellington regional strategy rate | B35: =IFERROR(INDEX(WRS!$K$10:$K$18,MATCH(B$29,WRS!$A$10:$A$18,0),),0) -> 2166329.473 | C35: =IFERROR(INDEX(WRS!$K$10:$K$18,MATCH(C$29,WRS!$A$10:$A$18,0),),0) -> 870713.8734 | D35: =IFERROR(INDEX(WRS!$K$10:$K$18,MATCH(D$29,WRS!$A$10:$A$18,0),),0) -> 352101.0926 | E35: =IFERROR(INDEX(WRS!$K$10:$K$18,MATCH(E$29,WRS!$A$10:$A$18,0),),0) -> 360221.8506 | F35: =IFERROR(INDEX(WRS!$K$10:$K$18,MATCH(F$29,WRS!$A$10:$A$18,0),),0) -> 481131.3402 | G35: =IFERROR(INDEX(WRS!$K$10:$K$18,MATCH(G$29,WRS!$A$10:$A$18,0),),0) -> 244700.4175 | H35: =IFERROR(INDEX(WRS!$K$10:$K$18,MATCH(H$29,WRS!$A$10:$A$18,0),),0) -> 89350.28862 | I35: =IFERROR(INDEX(WRS!$K$10:$K$18,MATCH(I$29,WRS!$A$10:$A$18,0),),0) -> 141004.823 | J35: =IFERROR(INDEX(WRS!$K$10:$K$18,MATCH(J$29,WRS!$A$10:$A$18,0),),0) -> 252 | K35: =IFERROR(INDEX(WRS!$K$10:$K$18,MATCH(K$29,WRS!$A$10:$A$18,0),),0) -> 0 | L35: =INDEX(ess_base_estract,MATCH(A35,ESSbase!$B$8:$B$25,0),MATCH(year_current,ESSbase!$F$6:$G$6,0)) -> 4705805.159 | M35: 0
A36: District-Wide Rates | B36: =SUM(B30:B35) -> 70405370.76 | C36: 26108146.98 | D36: 9330419.747 | E36: 10637291.61 | F36: 11247898.74 | G36: 2921448.317 | H36: 1368572.806 | I36: =SUM(I30:I35) -> 2308740.954 | J36: 4179.413879 | K36: 0 | L36: =INDEX(ess_base_estract,MATCH(A36,ESSbase!$B$8:$B$25,0),MATCH(year_current,ESSbase!$F$6:$G$6,0)) -> 134332069.3 | M36: 0
A37: Rates Penalties | B37: 0 | C37: 0 | D37: 0 | E37: 0 | F37: 0 | G37: 0 | H37: 0 | I37: 0 | J37: 0 | K37: 0 | L37: =INDEX(ess_base_estract,MATCH(A37,ESSbase!$B$8:$B$25,0),MATCH(year_current,ESSbase!$F$6:$G$6,0)) -> 0 | M37: 0
A38: Remission of Rates Penalties | B38: 0 | C38: 0 | D38: 0 | E38: 0 | F38: 0 | G38: 0 | H38: 0 | I38: 0 | J38: 0 | K38: 0 | L38: =INDEX(ess_base_estract,MATCH(A38,ESSbase!$B$8:$B$25,0),MATCH(year_current,ESSbase!$F$6:$G$6,0)) -> 0 | M38: 0
A39: Pest management rate | B39: =IFERROR(INDEX(Pest!$D$10:$D$18,MATCH(B$29,Pest!$A$10:$A$18,0),),0) -> 15516.37257 | C39: =IFERROR(INDEX(Pest!$D$10:$D$18,MATCH(C$29,Pest!$A$10:$A$18,0),),0) -> 14457.01888 | D39: =IFERROR(INDEX(Pest!$D$10:$D$18,MATCH(D$29,Pest!$A$10:$A$18,0),),0) -> 52062.29066 | E39: =IFERROR(INDEX(Pest!$D$10:$D$18,MATCH(E$29,Pest!$A$10:$A$18,0),),0) -> 12107.85295 | F39: =IFERROR(INDEX(Pest!$D$10:$D$18,MATCH(F$29,Pest!$A$10:$A$18,0),),0) -> 27801.17826 | G39: =IFERROR(INDEX(Pest!$D$10:$D$18,MATCH(G$29,Pest!$A$10:$A$18,0),),0) -> 197893.2132 | H39: =IFERROR(INDEX(Pest!$D$10:$D$18,MATCH(H$29,Pest!$A$10:$A$18,0),),0) -> 82269.60212 | I39: =IFERROR(INDEX(Pest!$D$10:$D$18,MATCH(I$29,Pest!$A$10:$A$18,0),),0) -> 170009.1684 | J39: =IFERROR(INDEX(Pest!$D$10:$D$18,MATCH(J$29,Pest!$A$10:$A$18,0),),0) -> 5083.302966 | K39: =IFERROR(INDEX(Pest!$D$10:$D$18,MATCH(K$29,Pest!$A$10:$A$18,0),),0) -> 0 | L39: =INDEX(ess_base_estract,MATCH(A39,ESSbase!$B$8:$B$25,0),MATCH(year_current,ESSbase!$F$6:$G$6,0)) -> 577200 | M39: 0
A40: River management rate - Non district wide | B40: 0 | C40: 0 | D40: 0 | E40: 0 | F40: 0 | G40: 0 | H40: 0 | I40: ='River management'!C31 -> 97066.98 | J40: 0 | K40: 0 | L40: =INDEX(ess_base_estract,MATCH(A40,ESSbase!$B$8:$B$25,0),MATCH(year_current,ESSbase!$F$6:$G$6,0)) -> 97066.98 | M40: 0
A41: Special Rates | B41: 0 | C41: 0 | D41: 0 | E41: 0 | F41: 0 | G41: 0 | H41: 0 | I41: 0 | J41: 0 | K41: ='Class Rates'!B140 -> 1465213.4 | L41: =INDEX(ess_base_estract,MATCH(A41,ESSbase!$B$8:$B$25,0),MATCH(year_current,ESSbase!$F$6:$G$6,0)) -> 1465214.08 | M41: 0
A42: Total Other Rates | B42: =SUM(B37:B41) -> 15516.37257 | C42: 14457.01888 | D42: 52062.29066 | E42: 12107.85295 | F42: 27801.17826 | G42: 197893.2132 | H42: 82269.60212 | I42: 267076.1484 | J42: 5083.302966 | K42: 1465213.4 | L42: =INDEX(ess_base_estract,MATCH(A42,ESSbase!$B$8:$B$25,0),MATCH(year_current,ESSbase!$F$6:$G$6,0)) -> 2139481.06 | M42: 0
A43: Total Regnl Rates | B43: =SUM(B42,B36) -> 70420887.14 | C43: 26122604 | D43: 9382482.037 | E43: 10649399.47 | F43: 11275699.92 | G43: 3119341.531 | H43: 1450842.408 | I43: =SUM(I42,I36) -> 2575817.102 | J43: 9262.716845 | K43: 1465213.4 | L43: =INDEX(ess_base_estract,MATCH(A43,ESSbase!$B$8:$B$25,0),MATCH(year_current,ESSbase!$F$6:$G$6,0)) -> 136471550.4 | M43: 0
A44: Bulk Water Levies | B44: =IFERROR(INDEX('Water levy'!$C$10:$C$18,MATCH('Comparison - TA'!B29,'Water levy'!$A$10:$A$18,0),),0) -> 18253886.46 | C44: =IFERROR(INDEX('Water levy'!$C$10:$C$18,MATCH('Comparison - TA'!C29,'Water levy'!$A$10:$A$18,0),),0) -> 9269729.429 | D44: =IFERROR(INDEX('Water levy'!$C$10:$C$18,MATCH('Comparison - TA'!D29,'Water levy'!$A$10:$A$18,0),),0) -> 3428150.171 | E44: =IFERROR(INDEX('Water levy'!$C$10:$C$18,MATCH('Comparison - TA'!E29,'Water levy'!$A$10:$A$18,0),),0) -> 4129530.973 | F44: =IFERROR(INDEX('Water levy'!$C$10:$C$18,MATCH('Comparison - TA'!F29,'Water levy'!$A$10:$A$18,0),),0) -> 0 | G44: =IFERROR(INDEX('Water levy'!$C$10:$C$18,MATCH('Comparison - TA'!G29,'Water levy'!$A$10:$A$18,0),),0) -> 0 | H44: =IFERROR(INDEX('Water levy'!$C$10:$C$18,MATCH('Comparison - TA'!H29,'Water levy'!$A$10:$A$18,0),),0) -> 0 | I44: =IFERROR(INDEX('Water levy'!$C$10:$C$18,MATCH('Comparison - TA'!I29,'Water levy'!$A$10:$A$18,0),),0) -> 0 | J44: =IFERROR(INDEX('Water levy'!$C$10:$C$18,MATCH('Comparison - TA'!J29,'Water levy'!$A$10:$A$18,0),),0) -> 0 | K44: =IFERROR(INDEX('Water levy'!$C$10:$C$18,MATCH('Comparison - TA'!K29,'Water levy'!$A$10:$A$18,0),),0) -> 0 | L44: =INDEX(ess_base_estract,MATCH(A44,ESSbase!$B$8:$B$25,0),MATCH(year_current,ESSbase!$F$6:$G$6,0)) -> 35081297.03 | M44: =ROUND(L44-SUM(B44:K44),-1) -> 0
A45: Total Regnl Rates & levies | B45: =SUM(B43:B44) -> 88674773.59 | C45: =SUM(C43:C44) -> 35392333.42 | D45: =SUM(D43:D44) -> 12810632.21 | E45: =SUM(E43:E44) -> 14778930.44 | F45: =SUM(F43:F44) -> 11275699.92 | G45: =SUM(G43:G44) -> 3119341.531 | H45: =SUM(H43:H44) -> 1450842.408 | I45: =SUM(I43:I44) -> 2575817.102 | J45: =SUM(J43:J44) -> 9262.716845 | K45: =SUM(K43:K44) -> 1465213.4 | L45: =INDEX(ess_base_estract,MATCH(A45,ESSbase!$B$8:$B$25,0),MATCH(year_current,ESSbase!$F$6:$G$6,0)) -> 171552847.4 | M45: 0
A46: Warm Greater Wellington rate | K46: =L46 -> 3209151.166 | L46: =INDEX(ess_base_estract,MATCH(A46,ESSbase!$B$8:$B$25,0),MATCH(year_current,ESSbase!$F$6:$G$6,0)) -> 3209151.166 | M46: 0
A47: Total Rates & Levies | B47: =SUM(B45:B46) -> 88674773.59 | C47: =SUM(C45:C46) -> 35392333.42 | D47: 12810632.21 | E47: 14778930.44 | F47: 11275699.92 | G47: 3119341.531 | H47: 1450842.408 | I47: 2575817.102 | J47: 9262.716845 | K47: 4674364.566 | L47: =INDEX(ess_base_estract,MATCH(A47,ESSbase!$B$8:$B$25,0),MATCH(year_current,ESSbase!$F$6:$G$6,0)) -> 174761998.6 | M47: 0
A50: Delta
B51: TA
B52: Wellington city | C52: Hutt city | D52: Upper Hutt city | E52: Porirua city | F52: Kāpiti Coast district | G52: Masterton District | H52: Carterton District | I52: South Wairarapa District | J52: Tararua District | K52: Other | L52: Region wide
A53: General rate | B53: =B30-B7 -> 1969798.378 | C53: 544438.1122 | D53: 326000.9584 | E53: 290177.3775 | F53: 344610.6964 | G53: 141343.0095 | H53: 60193.67785 | I53: 98757.65996 | J53: 1574.389236 | K53: 0 | L53: 3776894.259 | M53: =ROUND(L53-SUM(B53:K53),-1) -> 0
A54: Remission of rates | B54: =B31-B8 -> 0 | C54: 0 | D54: 0 | E54: 0 | F54: 0 | G54: 0 | H54: 0 | I54: 0 | J54: 0 | K54: 0 | L54: 0 | M54: 0
A55: Public transport rate | B55: =B32-B9 -> 2232514.016 | C55: 243421.7904 | D55: 183783.8143 | E55: 33289.74544 | F55: 499587.8611 | G55: 129283.0552 | H55: 38273.28626 | I55: 55076.40004 | J55: 0 | K55: 0 | L55: 3415229.968 | M55: 0
A56: River management rate | B56: =B33-B10 -> 21125.11426 | C56: 318704.7361 | D56: 139172.4441 | E56: 14650.74476 | F56: 88050.10311 | G56: 0 | H56: 474.1 | I56: 0 | J56: 0 | K56: 0 | L56: 582177.4353 | M56: =ROUND(L56-SUM(B56:K56),-1) -> 0
A57: Stadium purposes rate | B57: =B34-B11 -> 0 | C57: 0 | D57: 0 | E57: 0 | F57: 0 | G57: 0 | H57: 0 | I57: 0 | J57: 0 | K57: 0 | L57: 0 | M57: =ROUND(L57-SUM(B57:K57),-1) -> 0
A58: Wellington regional strategy rate | B58: =B35-B12 -> -185142.9495 | C58: -12377.58457 | D58: 994.1479436 | E58: -2310.355816 | F58: -4398.587083 | G58: 812.8368757 | H58: -864.0468027 | I58: 1230.877166 | J58: 0 | K58: 0 | L58: -202055.6618 | M58: =ROUND(L58-SUM(B58:K58),-1) -> 0
A59: District-Wide Rates | B59: =B36-B13 -> 4038294.558 | C59: 1094187.054 | D59: 649951.3648 | E59: 335807.5119 | F59: 927850.0735 | G59: 271438.9016 | H59: 98077.01731 | I59: 155064.9372 | J59: 1574.389236 | K59: 0 | L59: 7572246 | M59: 0
A60: Rates Penalties | B60: =B37-B14 -> 0 | C60: 0 | D60: 0 | E60: 0 | F60: 0 | G60: 0 | H60: 0 | I60: 0 | J60: 0 | K60: 0 | L60: 0 | M60: 0
A61: Remission of Rates Penalties | B61: =B38-B15 -> 0 | C61: 0 | D61: 0 | E61: 0 | F61: 0 | G61: 0 | H61: 0 | I61: 0 | J61: 0 | K61: 0 | L61: 0 | M61: 0
A62: Pest management rate | B62: =B39-B16 -> -14003.3074 | C62: 953.6397998 | D62: 4971.044459 | E62: 1829.057905 | F62: 2484.727549 | G62: 18280.64502 | H62: 14565.41299 | I62: 15636.4227 | J62: 482.3569771 | K62: 0 | L62: 45200 | M62: 0
A63: River management rate - Non district wide | B63: =B40-B17 -> 0 | C63: 0 | D63: 0 | E63: 0 | F63: 0 | G63: 0 | H63: 0 | I63: 1902.98 | J63: 0 | K63: 0 | L63: 1902.98 | M63: =ROUND(L63-SUM(B63:K63),-1) -> 0
A64: Special Rates | B64: =B41-B18 -> 0 | C64: 0 | D64: 0 | E64: 0 | F64: 0 | G64: 0 | H64: 0 | I64: 0 | J64: 0 | K64: -22149.6 | L64: -22148.92 | M64: =ROUND(L64-SUM(B64:K64),-1) -> 0
A65: Total Other Rates | B65: =B42-B19 -> -14003.3074 | C65: 953.6397998 | D65: 4971.044459 | E65: 1829.057905 | F65: 2484.727549 | G65: 18280.64502 | H65: 14565.41299 | I65: 17539.4027 | J65: 482.3569771 | K65: -22149.6 | L65: 24954.06 | M65: 0
A66: Total Regnl Rates | B66: =B43-B20 -> 4024291.25 | C66: 1095140.694 | D66: 654922.4092 | E66: 337636.5698 | F66: 930334.801 | G66: 289719.5467 | H66: 112642.4303 | I66: 172604.3399 | J66: 2056.746213 | K66: -22149.6 | L66: 7597200.06 | M66: =ROUND(L66-SUM(B66:K66),-1) -> 0
A67: Bulk Water Levies | B67: =B44-B21 -> 557324.4358 | C67: 1063389.419 | D67: 110583.1667 | E67: 281101.9683 | F67: 0 | G67: 0 | H67: 0 | I67: 0 | J67: 0 | K67: 0 | L67: 2012398.99 | M67: 0
A68: Total Regnl Rates & levies | B68: =B45-B22 -> 4581615.686 | C68: 2158530.113 | D68: 765505.576 | E68: 618738.5381 | F68: 930334.801 | G68: 289719.5467 | H68: 112642.4303 | I68: 172604.3399 | J68: 2056.746213 | K68: -22149.6 | L68: 9609599.05 | M68: =ROUND(L68-SUM(B68:K68),-1) -> 0
A69: Warm Greater Wellington rate | B69: =B46-B23 -> 0 | C69: 0 | D69: 0 | E69: 0 | F69: 0 | G69: 0 | H69: 0 | I69: 0 | J69: 0 | K69: -27906.83364 | L69: -27906.83364 | M69: 0
A70: Total Rates & Levies | B70: =B47-B24 -> 4581615.686 | C70: 2158530.113 | D70: 765505.576 | E70: 618738.5381 | F70: 930334.801 | G70: 289719.5467 | H70: 112642.4303 | I70: 172604.3399 | J70: 2056.746213 | K70: -50056.43364 | L70: 9581692.217 | M70: 0

Sheet Comparison - Category
A1: Comparison of proposed vs current
A2: =check_total -> 0
A5: =year_previous&" rates" -> 2018/19 rates
J6: Rates | Q6: Rates for average property | X6: Cents/$ OR Regional Strategy Rate $/property
A7: =Control!A$66 -> TA full name | B7: =Control!B$66 -> Rating area | C7: =Control!C$66 -> Category group | D7: =Control!D$66 -> Concatenated name | F7: CV | G7: CV Assessments | H7: Average CV | J7: General rate | K7: River management rate | L7: Public transport rate | M7: Stadium purposes rate | N7: Wellington regional strategy rate | O7: District-Wide rates | Q7: General rate | R7: River management rate | S7: Public transport rate | T7: Stadium purposes rate | U7: Wellington regional strategy rate | V7: District-Wide rates | X7: General rate | Y7: River management rate | Z7: Public transport rate | AA7: Stadium purposes rate | AB7: Wellington regional strategy rate | AC7: District-Wide rates
A9: By TA
A10: =Control!A42 -> Wellington city | C10: =Control!B42 -> District wide | D10: =Control!C42 -> Wellington cityDistrict wide | F10: 51992837451 | G10: 77369 | H10: 672011.2377 | J10: 23048092.38 | K10: 42679 | L10: 40924832.41 | M10: 0 | N10: 2351472.423 | O10: 66367076.21 | Q10: =J10/$F10*$H10 -> 297.8982845 | R10: =K10/$F10*$H10 -> 0.5516292055 | S10: =L10/$F10*$H10 -> 528.9564607 | T10: =M10/$F10*$H10 -> 0 | U10: =N10/$F10*$H10 -> 30.39295354 | V10: =IF('Comparison - Category'!C10="Residential",SUM(Q10:T10,Control!$B$103),IF('Comparison - Category'!C10="Rural",SUM(Q10:T10,Control!$B$104),O10/$F10*$H10)) -> 857.799328
A11: =Control!A43 -> Hutt city | C11: =Control!B43 -> District wide | D11: =Control!C43 -> Hutt cityDistrict wide | F11: 21402530500 | G11: 39287 | H11: 544773.8565 | J11: 8059093.387 | K11: 4356562 | L11: 11715213.08 | M11: 0 | N11: 883091.458 | O11: 25013959.92 | Q11: 205.1338455 | R11: 110.8906763 | S11: 298.1956647 | T11: 0 | U11: 22.47795601 | V11: =IF('Comparison - Category'!C11="Residential",SUM(Q11:T11,Control!$B$103),IF('Comparison - Category'!C11="Rural",SUM(Q11:T11,Control!$B$104),O11/$F11*$H11)) -> 636.6981425
A12: =Control!A44 -> Upper Hutt city | C12: =Control!B44 -> District wide | D12: =Control!C44 -> Upper Hutt cityDistrict wide | F12: 8186377260 | G12: 16792 | H12: 487516.5114 | J12: 3064993.246 | K12: 667062 | L12: 4597306.191 | M12: 0 | N12: 351106.9446 | O12: 8680468.382 | Q12: 182.5269918 | R12: 39.72498809 | S12: 273.7795493 | T12: 0 | U12: 20.90917965 | V12: =IF('Comparison - Category'!C12="Residential",SUM(Q12:T12,Control!$B$103),IF('Comparison - Category'!C12="Rural",SUM(Q12:T12,Control!$B$104),O12/$F12*$H12)) -> 516.9407088
A13: =Control!A45 -> Porirua city | C13: =Control!B45 -> District wide | D13: =Control!C45 -> Porirua cityDistrict wide | F13: 10277129250 | G13: 18675 | H13: 550314.8193 | J13: 3819282.588 | K13: 33588 | L13: 6086081.306 | M13: 0 | N13: 362532.2064 | O13: 10301484.1 | Q13: 204.5131239 | R13: 1.798554217 | S13: 325.8945813 | T13: 0 | U13: 19.41270182 | V13: =IF('Comparison - Category'!C13="Residential",SUM(Q13:T13,Control!$B$103),IF('Comparison - Category'!C13="Rural",SUM(Q13:T13,Control!$B$104),O13/$F13*$H13)) -> 551.6189612
A14: =Control!A46 -> Kāpiti Coast district | C14: =Control!B46 -> District wide | D14: =Control!C46 -> Kāpiti Coast districtDistrict wide | F14: 14770315600 | G14: 25013 | H14: 590505.5611 | J14: 4904933.192 | K14: 1335375 | L14: 3594210.545 | M14: 0 | N14: 485529.9273 | O14: 10320048.66 | Q14: 196.0953581 | R14: 53.38723864 | S14: 143.6937011 | T14: 0 | U14: 19.41110332 | V14: =IF('Comparison - Category'!C14="Residential",SUM(Q14:T14,Control!$B$103),IF('Comparison - Category'!C14="Rural",SUM(Q14:T14,Control!$B$104),O14/$F14*$H14)) -> 412.5874011
A15: =Control!A47 -> Masterton district | C15: =Control!B47 -> District wide | D15: =Control!C47 -> Masterton districtDistrict wide | F15: 5846514500 | G15: 12342 | H15: 473708.8397 | J15: 1968728.242 | K15: 0 | L15: 437393.5929 | M15: 0 | N15: 243887.5806 | O15: 2650009.416 | Q15: 159.514523 | R15: 0 | S15: 35.43944198 | T15: 0 | U15: 19.76078274 | V15: =IF('Comparison - Category'!C15="Residential",SUM(Q15:T15,Control!$B$103),IF('Comparison - Category'!C15="Rural",SUM(Q15:T15,Control!$B$104),O15/$F15*$H15)) -> 214.7147477
A16: =Control!A48 -> Carterton district | C16: =Control!B48 -> District wide | D16: =Control!C48 -> Carterton districtDistrict wide | F16: 2684833200 | G16: 4662 | H16: 575897.2973 | J16: 907437.03 | K16: 23705 | L16: 249139.4231 | M16: 0 | N16: 90214.33542 | O16: 1270495.788 | Q16: 194.6454376 | R16: 5.084727585 | S16: 53.4404597 | T16: 0 | U16: 19.3509943 | V16: =IF('Comparison - Category'!C16="Residential",SUM(Q16:T16,Control!$B$103),IF('Comparison - Category'!C16="Rural",SUM(Q16:T16,Control!$B$104),O16/$F16*$H16)) -> 272.5216192
A17: =Control!A49 -> South Wairarapa district | C17: =Control!B49 -> District wide | D17: =Control!C49 -> South Wairarapa districtDistrict wide | F17: 4507670300 | G17: 6657 | H17: 677132.387 | J17: 1508400.821 | K17: 0 | L17: 505501.2503 | M17: 0 | N17: 139773.9458 | O17: 2153676.017 | Q17: 226.5886767 | R17: 0 | S17: 75.93529372 | T17: 0 | U17: 20.99653686 | V17: =IF('Comparison - Category'!C17="Residential",SUM(Q17:T17,Control!$B$103),IF('Comparison - Category'!C17="Rural",SUM(Q17:T17,Control!$B$104),O17/$F17*$H17)) -> 323.5205073
A18: =Control!A50 -> Tararua district | C18: =Control!B50 -> District wide | D18: =Control!C50 -> Tararua districtDistrict wide | F18: 10760500 | G18: 10 | H18: 1076050 | J18: 2353.024643 | K18: 0 | L18: 0 | M18: 0 | N18: 252 | O18: 2605.024643 | Q18: 235.3024643 | R18: 0 | S18: 0 | T18: 0 | U18: 25.2 | V18: =IF('Comparison - Category'!C18="Residential",SUM(Q18:T18,Control!$B$103),IF('Comparison - Category'!C18="Rural",SUM(Q18:T18,Control!$B$104),O18/$F18*$H18)) -> 260.5024643
A19: =Control!A51 -> Region wide | C19: =Control!B51 -> 0 | D19: =Control!C51 -> Region wide | F19: 119678968561 | G19: 200807 | H19: 595990.0231 | J19: 47283313.91 | K19: 6458970.807 | L19: 68109677.79 | M19: 0 | N19: 4907860.821 | O19: 126759823.3 | Q19: 235.4664624 | R19: 32.16506799 | S19: 339.1797985 | T19: 0 | U19: 24.44068594 | V19: =IF('Comparison - Category'!C19="Residential",SUM(Q19:T19,Control!$B$103),IF('Comparison - Category'!C19="Rural",SUM(Q19:T19,Control!$B$104),O19/$F19*$H19)) -> 631.2520148
A21: By TA & Category
A22: =Control!A67 -> Wellington city | B22: =Control!B67 -> Wellington city | C22: =Control!C67 -> Regional CBD | D22: =Control!D67 -> Wellington cityRegional CBD | F22: 7963363000 | G22: 3381 | H22: 2355327.714 | J22: 3530107.897 | K22: 6536.830574 | L22: 25844164.27 | M22: 0 | N22: 893930.665 | O22: 30274739.66 | Q22: =J22/$F22*$H22 -> 1044.101714 | R22: =K22/$F22*$H22 -> 1.93340153 | S22: =L22/$F22*$H22 -> 7643.940926 | T22: =M22/$F22*$H22 -> 0 | U22: =IF('Comparison - Category'!C22="Residential",Control!$B$103,IF('Comparison - Category'!C22="Rural",Control!$B$104,N22/$F22*$H22)) -> 264.3983037 | V22: =IF('Comparison - Category'!C22="Residential",SUM(Q22:T22,Control!$B$103),IF('Comparison - Category'!C22="Rural",SUM(Q22:T22,Control!$B$104),O22/$F22*$H22)) -> 8954.374345 | X22: =J22/$F22*100 -> 0.04432936056 | Y22: =K22/$F22*100 -> 8.208630668e-05 | Z22: =L22/$F22*100 -> 0.3245383172 | AA22: =M22/$F22*100 -> 0 | AB22: =IF(OR('Comparison - Category'!C22="Residential",'Comparison - Category'!C22="Rural"),U22,N22/$F22*100) -> 0.01122554209 | AC22: =O22/$F22*100 -> 0.3801753061
A23: =Control!A68 -> Wellington city | B23: =Control!B68 -> Wellington city | C23: =Control!C68 -> Business | D23: =Control!D68 -> Wellington cityBusiness | F23: 3896130400 | G23: 1899 | H23: 2051674.776 | J23: 1727129.693 | K23: 3198.189549 | L23: 1461180.837 | M23: 0 | N23: 437361.7578 | O23: 3628870.477 | Q23: 909.494309 | R23: 1.684144049 | S23: 769.4475183 | T23: 0 | U23: =IF('Comparison - Category'!C23="Residential",Control!$B$103,IF('Comparison - Category'!C23="Rural",Control!$B$104,N23/$F23*$H23)) -> 230.3116155 | V23: =IF('Comparison - Category'!C23="Residential",SUM(Q23:T23,Control!$B$103),IF('Comparison - Category'!C23="Rural",SUM(Q23:T23,Control!$B$104),O23/$F23*$H23)) -> 1910.937587 | X23: 0.04432936056 | Y23: 8.208630668e-05 | Z23: 0.03750338637 | AA23: 0 | AB23: =IF(OR('Comparison - Category'!C23="Residential",'Comparison - Category'!C23="Rural"),U23,N23/$F23*100) -> 0.01122554209 | AC23: 0.09314037531
A24: =Control!A69 -> Wellington city | B24: =Control!B69 -> Wellington city | C24: =Control!C69 -> Residential | D24: =Control!D69 -> Wellington cityResidential | F24: 39537398501 | G24: 71308 | H24: 554459.5067 | J24: 17526675.94 | K24: 32454.79019 | L24: 13567288.34 | M24: 0 | N24: 998312 | O24: 32124731.07 | Q24: 245.7883538 | R24: 0.455135331 | S24: 190.2632011 | T24: 0 | U24: =IF('Comparison - Category'!C24="Residential",Control!$B$103,IF('Comparison - Category'!C24="Rural",Control!$B$104,N24/$F24*$H24)) -> 14 | V24: =IF('Comparison - Category'!C24="Residential",SUM(Q24:T24,Control!$B$103),IF('Comparison - Category'!C24="Rural",SUM(Q24:T24,Control!$B$104),O24/$F24*$H24)) -> 450.5066902 | X24: 0.04432936056 | Y24: 8.208630668e-05 | Z24: 0.034315076 | AA24: 0 | AB24: =IF(OR('Comparison - Category'!C24="Residential",'Comparison - Category'!C24="Rural"),U24,N24/$F24*100) -> 14 | AC24: 0.08125150436
A25: =Control!A70 -> Wellington city | B25: =Control!B70 -> Wellington city | C25: =Control!C70 -> Rural | D25: =Control!D70 -> Wellington cityRural | F25: 595945550 | G25: 781 | H25: 763054.4814 | J25: 264178.8516 | K25: 489.1896918 | L25: 52198.95869 | M25: 0 | N25: 21868 | O25: 338735 | Q25: 338.2571723 | R25: 0.6263632417 | S25: 66.83605466 | T25: 0 | U25: =IF('Comparison - Category'!C25="Residential",Control!$B$103,IF('Comparison - Category'!C25="Rural",Control!$B$104,N25/$F25*$H25)) -> 28 | V25: =IF('Comparison - Category'!C25="Residential",SUM(Q25:T25,Control!$B$103),IF('Comparison - Category'!C25="Rural",SUM(Q25:T25,Control!$B$104),O25/$F25*$H25)) -> 433.7195902 | X25: 0.04432936056 | Y25: 8.208630668e-05 | Z25: 0.00875901476 | AA25: 0 | AB25: =IF(OR('Comparison - Category'!C25="Residential",'Comparison - Category'!C25="Rural"),U25,N25/$F25*100) -> 28 | AC25: 0.05683992438
A26: =Control!A71 -> Hutt city | B26: =Control!B71 -> Hutt city | C26: =Control!C71 -> Business | D26: =Control!D71 -> Hutt cityBusiness | F26: 3789029500 | G26: 2371 | H26: 1598072.332 | J26: 1426753.84 | K26: 771270.5718 | L26: 2181032.976 | M26: 0 | N26: 361297.458 | O26: 4740354.846 | Q26: 601.7519361 | R26: 325.2933664 | S26: 919.8789438 | T26: 0 | U26: =IF('Comparison - Category'!C26="Residential",Control!$B$103,IF('Comparison - Category'!C26="Rural",Control!$B$104,N26/$F26*$H26)) -> 152.3818886 | V26: =IF('Comparison - Category'!C26="Residential",SUM(Q26:T26,Control!$B$103),IF('Comparison - Category'!C26="Rural",SUM(Q26:T26,Control!$B$104),O26/$F26*$H26)) -> 1999.306135 | X26: 0.03765486229 | Y26: 0.02035535938 | Z26: 0.05756178398 | AA26: 0 | AB26: =IF(OR('Comparison - Category'!C26="Residential",'Comparison - Category'!C26="Rural"),U26,N26/$F26*100) -> 0.009535356163 | AC26: 0.1251073618
A27: =Control!A72 -> Hutt city | B27: =Control!B72 -> Hutt city | C27: =Control!C72 -> Residential | D27: =Control!D72 -> Hutt cityResidential | F27: 17301952000 | G27: 36436 | H27: 474858.7112 | J27: 6515026.2 | K27: 3521874.51 | L27: 9490730.569 | M27: 0 | N27: 508354 | O27: 20035985.28 | Q27: 178.8073938 | R27: 96.65919721 | S27: 260.4767419 | T27: 0 | U27: =IF('Comparison - Category'!C27="Residential",Control!$B$103,IF('Comparison - Category'!C27="Rural",Control!$B$104,N27/$F27*$H27)) -> 14 | V27: =IF('Comparison - Category'!C27="Residential",SUM(Q27:T27,Control!$B$103),IF('Comparison - Category'!C27="Rural",SUM(Q27:T27,Control!$B$104),O27/$F27*$H27)) -> 549.9433329 | X27: 0.03765486229 | Y27: 0.02035535938 | Z27: 0.05485352502 | AA27: 0 | AB27: =IF(OR('Comparison - Category'!C27="Residential",'Comparison - Category'!C27="Rural"),U27,N27/$F27*100) -> 14 | AC27: 0.1158018776
A28: =Control!A73 -> Hutt city | B28: =Control!B73 -> Hutt city | C28: =Control!C73 -> Rural | D28: =Control!D73 -> Hutt cityRural | F28: 311549000 | G28: 480 | H28: 649060.4167 | J28: 117313.3469 | K28: 63416.9186 | L28: 43449.53251 | M28: 0 | N28: 13440 | O28: 237619.798 | Q28: 244.4028061 | R28: 132.1185804 | S28: 90.51985939 | T28: 0 | U28: =IF('Comparison - Category'!C28="Residential",Control!$B$103,IF('Comparison - Category'!C28="Rural",Control!$B$104,N28/$F28*$H28)) -> 28 | V28: =IF('Comparison - Category'!C28="Residential",SUM(Q28:T28,Control!$B$103),IF('Comparison - Category'!C28="Rural",SUM(Q28:T28,Control!$B$104),O28/$F28*$H28)) -> 495.0412459 | X28: 0.03765486229 | Y28: 0.02035535938 | Z28: 0.01394629176 | AA28: 0 | AB28: =IF(OR('Comparison - Category'!C28="Residential",'Comparison - Category'!C28="Rural"),U28,N28/$F28*100) -> 28 | AC28: 0.07627044158
A29: =Control!A74 -> Upper Hutt city | B29: =Control!B74 -> Upper Hutt city | C29: =Control!C74 -> Business | D29: =Control!D74 -> Upper Hutt cityBusiness | F29: 1174676500 | G29: 716 | H29: 1640609.637 | J29: 439800.833 | K29: 95717.80417 | L29: 742078.9093 | M29: 0 | N29: 111370.9446 | O29: 1388968.491 | Q29: 614.2469735 | R29: 133.684084 | S29: 1036.423058 | T29: 0 | U29: =IF('Comparison - Category'!C29="Residential",Control!$B$103,IF('Comparison - Category'!C29="Rural",Control!$B$104,N29/$F29*$H29)) -> 155.5460121 | V29: =IF('Comparison - Category'!C29="Residential",SUM(Q29:T29,Control!$B$103),IF('Comparison - Category'!C29="Rural",SUM(Q29:T29,Control!$B$104),O29/$F29*$H29)) -> 1939.900127 | X29: 0.03744016612 | Y29: 0.008148439521 | Z29: 0.0631730446 | AA29: 0 | AB29: =IF(OR('Comparison - Category'!C29="Residential",'Comparison - Category'!C29="Rural"),U29,N29/$F29*100) -> 0.009480988565 | AC29: 0.1182426388
A30: =Control!A75 -> Upper Hutt city | B30: =Control!B75 -> Upper Hutt city | C30: =Control!C75 -> Residential | D30: =Control!D75 -> Upper Hutt cityResidential | F30: 6156988420 | G30: 14823 | H30: 415367.228 | J30: 2305186.693 | K30: 501698.4777 | L30: 3723760.59 | M30: 0 | N30: 206920 | O30: 6737565.761 | Q30: 155.5141802 | R30: 33.84594736 | S30: 251.2150435 | T30: 0 | U30: =IF('Comparison - Category'!C30="Residential",Control!$B$103,IF('Comparison - Category'!C30="Rural",Control!$B$104,N30/$F30*$H30)) -> 14 | V30: =IF('Comparison - Category'!C30="Residential",SUM(Q30:T30,Control!$B$103),IF('Comparison - Category'!C30="Rural",SUM(Q30:T30,Control!$B$104),O30/$F30*$H30)) -> 454.5751711 | X30: 0.03744016612 | Y30: 0.008148439521 | Z30: 0.06048022728 | AA30: 0 | AB30: =IF(OR('Comparison - Category'!C30="Residential",'Comparison - Category'!C30="Rural"),U30,N30/$F30*100) -> 14 | AC30: 0.1094295669
A31: =Control!A76 -> Upper Hutt city | B31: =Control!B76 -> Upper Hutt city | C31: =Control!C76 -> Rural | D31: =Control!D76 -> Upper Hutt cityRural | F31: 854712340 | G31: 1253 | H31: 682132.7534 | J31: 320005.72 | K31: 69645.7181 | L31: 131466.692 | M31: 0 | N31: 32816 | O31: 553934.1301 | Q31: 255.3916361 | R31: 55.58317486 | S31: 104.9215419 | T31: 0 | U31: =IF('Comparison - Category'!C31="Residential",Control!$B$103,IF('Comparison - Category'!C31="Rural",Control!$B$104,N31/$F31*$H31)) -> 28 | V31: =IF('Comparison - Category'!C31="Residential",SUM(Q31:T31,Control!$B$103),IF('Comparison - Category'!C31="Rural",SUM(Q31:T31,Control!$B$104),O31/$F31*$H31)) -> 443.8963528 | X31: 0.03744016612 | Y31: 0.008148439521 | Z31: 0.01538139627 | AA31: 0 | AB31: =IF(OR('Comparison - Category'!C31="Residential",'Comparison - Category'!C31="Rural"),U31,N31/$F31*100) -> 28 | AC31: 0.06480942232
A32: =Control!A77 -> Porirua city | B32: =Control!B77 -> Porirua city | C32: =Control!C77 -> Business | D32: =Control!D77 -> Porirua cityBusiness | F32: 1099995500 | G32: 797 | H32: 1380170.013 | J32: 408790.5833 | K32: 3595.035924 | L32: 708506.5518 | M32: 0 | N32: 103518.2064 | O32: 1224410.377 | Q32: 512.9116478 | R32: 4.510710068 | S32: 888.9668154 | T32: 0 | U32: =IF('Comparison - Category'!C32="Residential",Control!$B$103,IF('Comparison - Category'!C32="Rural",Control!$B$104,N32/$F32*$H32)) -> 129.8848261 | V32: =IF('Comparison - Category'!C32="Residential",SUM(Q32:T32,Control!$B$103),IF('Comparison - Category'!C32="Rural",SUM(Q32:T32,Control!$B$104),O32/$F32*$H32)) -> 1536.273999 | X32: 0.03716293233 | Y32: 0.0003268227847 | Z32: 0.06440995003 | AA32: 0 | AB32: =IF(OR('Comparison - Category'!C32="Residential",'Comparison - Category'!C32="Rural"),U32,N32/$F32*100) -> 0.009410784537 | AC32: 0.1113104897
A33: =Control!A78 -> Porirua city | B33: =Control!B78 -> Porirua city | C33: =Control!C78 -> Residential | D33: =Control!D78 -> Porirua cityResidential | F33: 8551317050 | G33: 17255 | H33: 495584.8768 | J33: 3177920.168 | K33: 27947.65251 | L33: 5279332.786 | M33: 0 | N33: 241570 | O33: 8726770.607 | Q33: 184.1738724 | R33: 1.619684295 | S33: 305.9595935 | T33: 0 | U33: =IF('Comparison - Category'!C33="Residential",Control!$B$103,IF('Comparison - Category'!C33="Rural",Control!$B$104,N33/$F33*$H33)) -> 14 | V33: =IF('Comparison - Category'!C33="Residential",SUM(Q33:T33,Control!$B$103),IF('Comparison - Category'!C33="Rural",SUM(Q33:T33,Control!$B$104),O33/$F33*$H33)) -> 505.7531502 | X33: 0.03716293233 | Y33: 0.0003268227847 | Z33: 0.06173707225 | AA33: 0 | AB33: =IF(OR('Comparison - Category'!C33="Residential",'Comparison - Category'!C33="Rural"),U33,N33/$F33*100) -> 14 | AC33: 0.1020517723
A34: =Control!A79 -> Porirua city | B34: =Control!B79 -> Porirua city | C34: =Control!C79 -> Rural | D34: =Control!D79 -> Porirua cityRural | F34: 625816700 | G34: 623 | H34: 1004521.188 | J34: 232571.8367 | K34: 2045.311566 | L34: 98241.96818 | M34: 0 | N34: 17444 | O34: 350303.1165 | Q34: 373.3095292 | R34: 3.283004119 | S34: 157.6917627 | T34: 0 | U34: =IF('Comparison - Category'!C34="Residential",Control!$B$103,IF('Comparison - Category'!C34="Rural",Control!$B$104,N34/$F34*$H34)) -> 28 | V34: =IF('Comparison - Category'!C34="Residential",SUM(Q34:T34,Control!$B$103),IF('Comparison - Category'!C34="Rural",SUM(Q34:T34,Control!$B$104),O34/$F34*$H34)) -> 562.2842961 | X34: 0.03716293233 | Y34: 0.0003268227847 | Z34: 0.01569820175 | AA34: 0 | AB34: =IF(OR('Comparison - Category'!C34="Residential",'Comparison - Category'!C34="Rural"),U34,N34/$F34*100) -> 28 | AC34: 0.05597535452
A35: =Control!A80 -> Kāpiti Coast district | B35: =Control!B80 -> Kāpiti Coast district | C35: =Control!C80 -> Business | D35: =Control!D80 -> Kāpiti Coast districtBusiness | F35: 1479149500 | G35: 1334 | H35: 1108807.721 | J35: 491196.6457 | K35: 133728.9816 | L35: 434529.5224 | M35: 0 | N35: 124385.9273 | O35: 1183841.077 | Q35: 368.2133776 | R35: 100.2466129 | S35: 325.7342746 | T35: 0 | U35: =IF('Comparison - Category'!C35="Residential",Control!$B$103,IF('Comparison - Category'!C35="Rural",Control!$B$104,N35/$F35*$H35)) -> 93.24282405 | V35: =IF('Comparison - Category'!C35="Residential",SUM(Q35:T35,Control!$B$103),IF('Comparison - Category'!C35="Rural",SUM(Q35:T35,Control!$B$104),O35/$F35*$H35)) -> 887.4370892 | X35: 0.03320804595 | Y35: 0.009040937487 | Z35: 0.0293769847 | AA35: 0 | AB35: =IF(OR('Comparison - Category'!C35="Residential",'Comparison - Category'!C35="Rural"),U35,N35/$F35*100) -> 0.008409287045 | AC35: 0.08003525519
A36: =Control!A81 -> Kāpiti Coast district | B36: =Control!B81 -> Kāpiti Coast district excl Ōtaki | C36: =Control!C81 -> Residential | D36: =Control!D81 -> Kāpiti Coast district excl Ōtaki Residential | F36: 10219999500 | G36: 17885 | H36: 571428.5435 | J36: 3393862.131 | K36: 923983.7659 | L36: 2758230.196 | M36: 0 | N36: 248066 | O36: 7324142.092 | Q36: 189.7602533 | R36: 51.6624974 | S36: 154.2203073 | T36: 0 | U36: =IF('Comparison - Category'!C36="Residential",Control!$B$103,IF('Comparison - Category'!C36="Rural",Control!$B$104,N36/$F36*$H36)) -> 14 | V36: =IF('Comparison - Category'!C36="Residential",SUM(Q36:T36,Control!$B$103),IF('Comparison - Category'!C36="Rural",SUM(Q36:T36,Control!$B$104),O36/$F36*$H36)) -> 409.643058 | X36: 0.03320804595 | Y36: 0.009040937487 | Z36: 0.02698855509 | AA36: 0 | AB36: =IF(OR('Comparison - Category'!C36="Residential",'Comparison - Category'!C36="Rural"),U36,N36/$F36*100) -> 14 | AC36: 0.07166479893
A37: =Control!A82 -> Kāpiti Coast district | B37: =Control!B82 -> Ōtaki rating area | C37: =Control!C82 -> Residential | D37: =Control!D82 -> Ōtaki rating areaResidential | F37: 1104760900 | G37: 3151 | H37: 350606.4424 | J37: 366869.5074 | K37: 99880.74235 | L37: 265175.9586 | M37: 0 | N37: 43470 | O37: 775396.2083 | Q37: =J37/$F37*$H37 -> 116.4295485 | R37: =K37/$F37*$H37 -> 31.69810928 | S37: =L37/$F37*$H37 -> 84.15612776 | T37: =M37/$F37*$H37 -> 0 | U37: =IF('Comparison - Category'!C37="Residential",Control!$B$103,IF('Comparison - Category'!C37="Rural",Control!$B$104,N37/$F37*$H37)) -> 14 | V37: =IF('Comparison - Category'!C37="Residential",SUM(Q37:T37,Control!$B$103),IF('Comparison - Category'!C37="Rural",SUM(Q37:T37,Control!$B$104),O37/$F37*$H37)) -> 246.2837856 | X37: =J37/$F37*100 -> 0.03320804595 | Y37: =K37/$F37*100 -> 0.009040937487 | Z37: =L37/$F37*100 -> 0.02400301808 | AA37: =M37/$F37*100 -> 0 | AB37: =IF(OR('Comparison - Category'!C37="Residential",'Comparison - Category'!C37="Rural"),U37,N37/$F37*100) -> 14 | AC37: =O37/$F37*100 -> 0.07018678958
A38: =Control!A83 -> Kāpiti Coast district | B38: =Control!B83 -> Kāpiti Coast district | C38: =Control!C83 -> Rural | D38: =Control!D83 -> Kāpiti Coast districtRural | F38: 1966405700 | G38: 2643 | H38: 744005.1835 | J38: 653004.9085 | K38: 177781.5101 | L38: 136274.8681 | M38: 0 | N38: 69608 | O38: 1036669.287 | Q38: 247.0695832 | R38: 67.26504354 | S38: 51.56067654 | T38: 0 | U38: =IF('Comparison - Category'!C38="Residential",Control!$B$103,IF('Comparison - Category'!C38="Rural",Control!$B$104,N38/$F38*$H38)) -> 28 | V38: =IF('Comparison - Category'!C38="Residential",SUM(Q38:T38,Control!$B$103),IF('Comparison - Category'!C38="Rural",SUM(Q38:T38,Control!$B$104),O38/$F38*$H38)) -> 393.8953033 | X38: 0.03320804595 | Y38: 0.009040937487 | Z38: 0.006930150177 | AA38: 0 | AB38: =IF(OR('Comparison - Category'!C38="Residential",'Comparison - Category'!C38="Rural"),U38,N38/$F38*100) -> 28 | AC38: 0.05271899317
A39: =Control!A84 -> Masterton district | B39: =Control!B84 -> Masterton district | C39: =Control!C84 -> Business | D39: =Control!D84 -> Masterton districtBusiness | F39: 433363100 | G39: 550 | H39: 787932.9091 | J39: 145928.6852 | K39: 0 | L39: 58905.24725 | M39: 0 | N39: 36953.58058 | O39: 241787.5131 | Q39: 265.3248822 | R39: 0 | S39: 107.1004495 | T39: 0 | U39: =IF('Comparison - Category'!C39="Residential",Control!$B$103,IF('Comparison - Category'!C39="Rural",Control!$B$104,N39/$F39*$H39)) -> 67.18832833 | V39: =IF('Comparison - Category'!C39="Residential",SUM(Q39:T39,Control!$B$103),IF('Comparison - Category'!C39="Rural",SUM(Q39:T39,Control!$B$104),O39/$F39*$H39)) -> 439.6136601 | X39: 0.03367353732 | Y39: 0 | Z39: 0.01359258489 | AA39: 0 | AB39: =IF(OR('Comparison - Category'!C39="Residential",'Comparison - Category'!C39="Rural"),U39,N39/$F39*100) -> 0.008527163615 | AC39: 0.05579328583
A40: =Control!A85 -> Masterton district | B40: =Control!B85 -> Masterton district | C40: =Control!C85 -> Residential | D40: =Control!D85 -> Masterton districtResidential | F40: 2604255800 | G40: 7912 | H40: 329152.6542 | J40: 876945.0488 | K40: 0 | L40: 275144.7903 | M40: 0 | N40: 110558 | O40: 1262647.839 | Q40: 110.8373419 | R40: 0 | S40: 34.77563073 | T40: 0 | U40: =IF('Comparison - Category'!C40="Residential",Control!$B$103,IF('Comparison - Category'!C40="Rural",Control!$B$104,N40/$F40*$H40)) -> 14 | V40: =IF('Comparison - Category'!C40="Residential",SUM(Q40:T40,Control!$B$103),IF('Comparison - Category'!C40="Rural",SUM(Q40:T40,Control!$B$104),O40/$F40*$H40)) -> 159.6129726 | X40: 0.03367353732 | Y40: 0 | Z40: 0.01056519833 | AA40: 0 | AB40: =IF(OR('Comparison - Category'!C40="Residential",'Comparison - Category'!C40="Rural"),U40,N40/$F40*100) -> 14 | AC40: 0.04848401755
A41: =Control!A86 -> Masterton district | B41: =Control!B86 -> Masterton district | C41: =Control!C86 -> Rural | D41: =Control!D86 -> Masterton districtRural | F41: 2808895600 | G41: 3880 | H41: 723942.1649 | J41: 945854.5082 | K41: 0 | L41: 103343.5554 | M41: 0 | N41: 96376 | O41: 1145574.064 | Q41: 243.7769351 | R41: 0 | S41: 26.63493695 | T41: 0 | U41: =IF('Comparison - Category'!C41="Residential",Control!$B$103,IF('Comparison - Category'!C41="Rural",Control!$B$104,N41/$F41*$H41)) -> 28 | V41: =IF('Comparison - Category'!C41="Residential",SUM(Q41:T41,Control!$B$103),IF('Comparison - Category'!C41="Rural",SUM(Q41:T41,Control!$B$104),O41/$F41*$H41)) -> 298.4118721 | X41: 0.03367353732 | Y41: 0 | Z41: 0.003679152596 | AA41: 0 | AB41: =IF(OR('Comparison - Category'!C41="Residential",'Comparison - Category'!C41="Rural"),U41,N41/$F41*100) -> 28 | AC41: 0.04078378932
A42: =Control!A87 -> Carterton district | B42: =Control!B87 -> Carterton district | C42: =Control!C87 -> Business | D42: =Control!D87 -> Carterton districtBusiness | F42: 96652500 | G42: 227 | H42: 425781.9383 | J42: 32667.22772 | K42: 853.3667985 | L42: 18993.09348 | M42: 0 | N42: 8272.335423 | O42: 60786.02342 | Q42: 143.9084922 | R42: 3.759325104 | S42: 83.67001533 | T42: 0 | U42: =IF('Comparison - Category'!C42="Residential",Control!$B$103,IF('Comparison - Category'!C42="Rural",Control!$B$104,N42/$F42*$H42)) -> 36.44200627 | V42: =IF('Comparison - Category'!C42="Residential",SUM(Q42:T42,Control!$B$103),IF('Comparison - Category'!C42="Rural",SUM(Q42:T42,Control!$B$104),O42/$F42*$H42)) -> 267.7798389 | X42: 0.0337986371 | Y42: 0.0008829226337 | Z42: 0.01965090761 | AA42: 0 | AB42: =IF(OR('Comparison - Category'!C42="Residential",'Comparison - Category'!C42="Rural"),U42,N42/$F42*100) -> 0.008558842682 | AC42: 0.06289131003
A43: =Control!A88 -> Carterton district | B43: =Control!B88 -> Carterton district | C43: =Control!C88 -> Residential | D43: =Control!D88 -> Carterton districtResidential | F43: 843913500 | G43: 2392 | H43: 352806.6472 | J43: 285231.2613 | K43: 7451.1033 | L43: 140193.2236 | M43: 0 | N43: 32970 | O43: 465845.5882 | Q43: 119.2438383 | R43: 3.115009741 | S43: 58.60920719 | T43: 0 | U43: =IF('Comparison - Category'!C43="Residential",Control!$B$103,IF('Comparison - Category'!C43="Rural",Control!$B$104,N43/$F43*$H43)) -> 14 | V43: =IF('Comparison - Category'!C43="Residential",SUM(Q43:T43,Control!$B$103),IF('Comparison - Category'!C43="Rural",SUM(Q43:T43,Control!$B$104),O43/$F43*$H43)) -> 194.9680553 | X43: 0.0337986371 | Y43: 0.0008829226337 | Z43: 0.01661227408 | AA43: 0 | AB43: =IF(OR('Comparison - Category'!C43="Residential",'Comparison - Category'!C43="Rural"),U43,N43/$F43*100) -> 14 | AC43: 0.05520063232
A44: =Control!A89 -> Carterton district | B44: =Control!B89 -> Carterton district | C44: =Control!C89 -> Rural | D44: =Control!D89 -> Carterton districtRural | F44: 1744267200 | G44: 2043 | H44: 853777.3862 | J44: 589538.5409 | K44: 15400.5299 | L44: 89953.10601 | M44: 0 | N44: 48972 | O44: 743864.1769 | Q44: 288.5651204 | R44: 7.538193784 | S44: 44.02990994 | T44: 0 | U44: =IF('Comparison - Category'!C44="Residential",Control!$B$103,IF('Comparison - Category'!C44="Rural",Control!$B$104,N44/$F44*$H44)) -> 28 | V44: =IF('Comparison - Category'!C44="Residential",SUM(Q44:T44,Control!$B$103),IF('Comparison - Category'!C44="Rural",SUM(Q44:T44,Control!$B$104),O44/$F44*$H44)) -> 368.1332241 | X44: 0.0337986371 | Y44: 0.0008829226337 | Z44: 0.005157071463 | AA44: 0 | AB44: =IF(OR('Comparison - Category'!C44="Residential",'Comparison - Category'!C44="Rural"),U44,N44/$F44*100) -> 28 | AC44: 0.04264622856
A45: =Control!A90 -> South Wairarapa district | B45: =Control!B90 -> South Wairarapa district | C45: =Control!C90 -> Business | D45: =Control!D90 -> South Wairarapa districtBusiness | F45: 206493600 | G45: 304 | H45: 679255.2632 | J45: 69098.91251 | K45: 0 | L45: 49092.44984 | M45: 0 | N45: 17497.94585 | O45: 135689.3082 | Q45: 227.2990543 | R45: 0 | S45: 161.4883218 | T45: 0 | U45: =IF('Comparison - Category'!C45="Residential",Control!$B$103,IF('Comparison - Category'!C45="Rural",Control!$B$104,N45/$F45*$H45)) -> 57.55903239 | V45: =IF('Comparison - Category'!C45="Residential",SUM(Q45:T45,Control!$B$103),IF('Comparison - Category'!C45="Rural",SUM(Q45:T45,Control!$B$104),O45/$F45*$H45)) -> 446.3464085 | X45: 0.03346298021 | Y45: 0 | Z45: 0.02377432029 | AA45: 0 | AB45: =IF(OR('Comparison - Category'!C45="Residential",'Comparison - Category'!C45="Rural"),U45,N45/$F45*100) -> 0.008473844152 | AC45: 0.06571114465
A46: =Control!A91 -> South Wairarapa district | B46: =Control!B91 -> South Wairarapa district | C46: =Control!C91 -> Residential | D46: =Control!D91 -> South Wairarapa districtResidential | F46: 1318886100 | G46: 3229 | H46: 408450.3252 | J46: 441338.5947 | K46: 0 | L46: 273878.0894 | M46: 0 | N46: 44240 | O46: 759456.6841 | Q46: 136.6796515 | R46: 0 | S46: 84.81823765 | T46: 0 | U46: =IF('Comparison - Category'!C46="Residential",Control!$B$103,IF('Comparison - Category'!C46="Rural",Control!$B$104,N46/$F46*$H46)) -> 14 | V46: =IF('Comparison - Category'!C46="Residential",SUM(Q46:T46,Control!$B$103),IF('Comparison - Category'!C46="Rural",SUM(Q46:T46,Control!$B$104),O46/$F46*$H46)) -> 235.4978891 | X46: 0.03346298021 | Y46: 0 | Z46: 0.02076586366 | AA46: 0 | AB46: =IF(OR('Comparison - Category'!C46="Residential",'Comparison - Category'!C46="Rural"),U46,N46/$F46*100) -> 14 | AC46: 0.05758318964
A47: =Control!A92 -> South Wairarapa district | B47: =Control!B92 -> South Wairarapa district | C47: =Control!C92 -> Rural | D47: =Control!D92 -> South Wairarapa districtRural | F47: 2982290600 | G47: 3124 | H47: 954638.4763 | J47: 997963.3134 | K47: 0 | L47: 182530.7111 | M47: 0 | N47: 78036 | O47: 1258530.025 | Q47: 319.4504844 | R47: 0 | S47: 58.42852469 | T47: 0 | U47: =IF('Comparison - Category'!C47="Residential",Control!$B$103,IF('Comparison - Category'!C47="Rural",Control!$B$104,N47/$F47*$H47)) -> 28 | V47: =IF('Comparison - Category'!C47="Residential",SUM(Q47:T47,Control!$B$103),IF('Comparison - Category'!C47="Rural",SUM(Q47:T47,Control!$B$104),O47/$F47*$H47)) -> 405.8790091 | X47: 0.03346298021 | Y47: 0 | Z47: 0.006120487089 | AA47: 0 | AB47: =IF(OR('Comparison - Category'!C47="Residential",'Comparison - Category'!C47="Rural"),U47,N47/$F47*100) -> 28 | AC47: 0.04220011372
A48: =Control!A93 -> Tararua district | B48: =Control!B93 -> Tararua district | C48: =Control!C93 -> Rural | D48: =Control!D93 -> Tararua districtRural | F48: 10760500 | G48: 10 | H48: 1076050 | J48: 2353.024643 | K48: 0 | L48: 0 | M48: 0 | N48: 252 | O48: 2605.024643 | Q48: 235.3024643 | R48: 0 | S48: 0 | T48: 0 | U48: =IF('Comparison - Category'!C48="Residential",Control!$B$103,IF('Comparison - Category'!C48="Rural",Control!$B$104,N48/$F48*$H48)) -> 28 | V48: =IF('Comparison - Category'!C48="Residential",SUM(Q48:T48,Control!$B$103),IF('Comparison - Category'!C48="Rural",SUM(Q48:T48,Control!$B$104),O48/$F48*$H48)) -> 263.3024643 | X48: 0.02186724263 | Y48: 0 | Z48: 0 | AA48: 0 | AB48: =IF(OR('Comparison - Category'!C48="Residential",'Comparison - Category'!C48="Rural"),U48,N48/$F48*100) -> 28 | AC48: 0.02420914124
A49: =Control!A94 -> Region wide | C49: =Control!C94 -> 0 | D49: =Control!D94 -> Region wide | F49: 119678968561 | G49: 200807 | H49: 595990.0231 | J49: 47283313.91 | K49: 6458971 | L49: 68109677.79 | M49: 0 | N49: 4907860.821 | O49: 126759823.5 | Q49: 235.4664624 | R49: 32.16506895 | S49: 339.1797985 | T49: 0 | U49: =N49/$F49*$H49 -> 24.44068594 | V49: =IF('Comparison - Category'!C49="Residential",SUM(Q49:T49,Control!$B$103),IF('Comparison - Category'!C49="Rural",SUM(Q49:T49,Control!$B$104),O49/$F49*$H49)) -> 631.2520157 | X49: 0.03950845706 | Y49: 0.005396913992 | Z49: 0.05691031483 | AA49: 0 | AB49: =IF(OR(C49="Residential",C49="Rural"),"n/a",N49/$F49*100) -> 0.004100854879 | AC49: 0.1059165408
A51: By category
A52: Region Wide | C52: =C22 -> Regional CBD | D52: =A52&C52 -> Region WideRegional CBD | F52: =SUMIF($C$22:$C$48,$C52,F$22:F$48) -> 7963363000 | G52: 3381 | H52: =F52/G52 -> 2355327.714 | J52: =SUMIF($C$22:$C$48,$C52,J$22:J$48) -> 3530107.897 | K52: 6536.830574 | L52: 25844164.27 | M52: 0 | N52: 893930.665 | O52: 30274739.66 | Q52: =J52/$F52*$H52 -> 1044.101714 | R52: 1.93340153 | S52: 7643.940926 | T52: 0 | U52: 264.3983037 | V52: =IF('Comparison - Category'!C52="Residential",SUM(Q52:T52,Control!$B$103),IF('Comparison - Category'!C52="Rural",SUM(Q52:T52,Control!$B$104),O52/$F52*$H52)) -> 8954.374345
A53: Region Wide | C53: =C23 -> Business | D53: =A53&C53 -> Region WideBusiness | F53: 12175490600 | G53: 8198 | H53: 1485178.165 | J53: 4741366.421 | K53: 1008363.95 | L53: 5654319.587 | M53: 0 | N53: 1200658.156 | O53: 12604708.11 | Q53: 578.3564797 | R53: 123.0012137 | S53: 689.7193934 | T53: 0 | U53: 146.4574477 | V53: =IF('Comparison - Category'!C53="Residential",SUM(Q53:T53,Control!$B$103),IF('Comparison - Category'!C53="Rural",SUM(Q53:T53,Control!$B$104),O53/$F53*$H53)) -> 1537.534534
A54: Region Wide | C54: =C24 -> Residential | D54: =A54&C54 -> Region WideResidential | F54: 87639471771 | G54: 174391 | H54: 502545.8411 | J54: 34889055.54 | K54: 5115291.042 | L54: 35773734.55 | M54: 0 | N54: 2434460 | O54: 78212541.13 | Q54: 200.0622483 | R54: 29.33231097 | S54: 205.1352108 | T54: 0 | U54: 13.95978003 | V54: =IF('Comparison - Category'!C54="Residential",SUM(Q54:T54,Control!$B$103),IF('Comparison - Category'!C54="Rural",SUM(Q54:T54,Control!$B$104),O54/$F54*$H54)) -> 448.52977
A55: Region Wide | C55: =C25 -> Rural | D55: =A55&C55 -> Region WideRural | F55: 11900643190 | G55: 14837 | H55: 802092.2821 | J55: 4122784.051 | K55: 328779.1779 | L55: 837459.392 | M55: 0 | N55: 378812 | O55: 5667834.621 | Q55: 277.8718104 | R55: 22.15941079 | S55: 56.44398409 | T55: 0 | U55: 25.53157646 | V55: =IF('Comparison - Category'!C55="Residential",SUM(Q55:T55,Control!$B$103),IF('Comparison - Category'!C55="Rural",SUM(Q55:T55,Control!$B$104),O55/$F55*$H55)) -> 384.4752053
A56: Region Wide | C56: Total | D56: =A56&C56 -> Region WideTotal | F56: =SUM(F52:F55) -> 119678968561 | G56: =SUM(G52:G55) -> 200807 | H56: 595990.0231 | J56: =SUM(J52:J55) -> 47283313.91 | K56: 6458971 | L56: 68109677.79 | M56: 0 | N56: 4907860.821 | O56: 126759823.5 | Q56: 235.4664624 | R56: 32.16506895 | S56: 339.1797985 | T56: 0 | U56: 24.44068594 | V56: =IF('Comparison - Category'!C56="Residential",SUM(Q56:T56,Control!$B$103),IF('Comparison - Category'!C56="Rural",SUM(Q56:T56,Control!$B$104),O56/$F56*$H56)) -> 631.2520157
J59: =IF(ABS(J19-SUM(J10:J18))>tolerance_dollar,1,0) -> 0 | K59: 0 | L59: 0 | M59: 0 | N59: 0 | O59: 0
J60: =J49-SUM(J22:J48) -> 0 | K60: =K49-SUM(K22:K48) -> 0 | L60: =L49-SUM(L22:L48) -> 0 | M60: =M49-SUM(M22:M48) -> 0 | N60: 0 | O60: 0
F61: =F49-F19 -> 0 | G61: =G49-G19 -> 0 | J61: =IF(ABS(J49-J19)>tolerance_dollar,1,0) -> 0 | K61: 0 | L61: 0 | M61: 0 | N61: 0 | O61: 0 | Q61: =IF(ABS(Q49-Q19)>tolerance_dollar,1,0) -> 0 | R61: 0 | S61: 0 | T61: 0 | U61: 0 | V61: 0
A64: =year_current&" rates" -> 2019/20 rates
J65: Rates | Q65: Rates / average CV | X65: Cents/$ OR Regional Strategy Rate $/property
A66: =Control!A$66 -> TA full name | B66: =Control!B$66 -> Rating area | C66: =Control!C$66 -> Category group | D66: =Control!D$66 -> Concatenated name | F66: CV | G66: CV Assessments | H66: Average CV | J66: General rate | K66: River management rate | L66: Public transport rate | M66: Stadium purposes rate | N66: Wellington regional strategy rate | O66: District-Wide rates | Q66: General rate | R66: River management rate | S66: Public transport rate | T66: Stadium purposes rate | U66: Wellington regional strategy rate | V66: District-Wide rates | X66: General rate | Y66: River management rate | Z66: Public transport rate | AA66: Stadium purposes rate | AB66: Wellington regional strategy rate | AC66: District-Wide rates
A68: By TA
A69: =Control!A42 -> Wellington city | C69: =Control!B42 -> District wide | D69: =Control!C42 -> Wellington cityDistrict wide | F69: =INDEX(capital_values,MATCH($D69,capital_values_rows,0),MATCH(F$66&" "&year_current,capital_values_header,0)) -> 72854550450 | G69: =INDEX(assessments,MATCH($D69,assessments_rows,0),MATCH(G$66&" "&year_current,assessments_header,0)) -> 77853 | H69: =F69/G69 -> 935796.3142 | J69: =INDEX(Gen!$D$10:$D$18,MATCH($A69,Gen!$A$10:$A$18,0),) -> 25017890.75 | K69: =INDEX('River management'!$C$10:$C$18,MATCH($A69,'River management'!$A$10:$A$18,0),) -> 63804.11426 | L69: =INDEX('Public transport'!$I$10:$I$18,MATCH($A69,'Public transport'!$A$10:$A$18,0),) -> 43157346.42 | M69: =INDEX(Stadium!$G$10:$G$18,MATCH($A69,Stadium!$A$10:$A$18,0),) -> 0 | N69: =INDEX(WRS!$K$10:$K$18,MATCH($A69,WRS!$A$10:$A$18,0),) -> 2166329.473 | O69: =SUM(J69:N69) -> 70405370.76 | Q69: =J69/$F69*$H69 -> 321.3478062 | R69: =K69/$F69*$H69 -> 0.8195459939 | S69: =L69/$F69*$H69 -> 554.3440384 | T69: =M69/$F69*$H69 -> 0 | U69: =N69/$F69*$H69 -> 27.8258959 | V69: =IF('Comparison - Category'!C69="Residential",SUM(Q69:T69,Control!$B$103),IF('Comparison - Category'!C69="Rural",SUM(Q69:T69,Control!$B$104),O69/$F69*$H69)) -> 904.3372865
A70: =Control!A43 -> Hutt city | C70: =Control!B43 -> District wide | D70: =Control!C43 -> Hutt cityDistrict wide | F70: 21525404000 | G70: 39398 | H70: =F70/G70 -> 546357.7847 | J70: =INDEX(Gen!$D$10:$D$18,MATCH($A70,Gen!$A$10:$A$18,0),) -> 8603531.499 | K70: =INDEX('River management'!$C$10:$C$18,MATCH($A70,'River management'!$A$10:$A$18,0),) -> 4675266.736 | L70: =INDEX('Public transport'!$I$10:$I$18,MATCH($A70,'Public transport'!$A$10:$A$18,0),) -> 11958634.87 | M70: =INDEX(Stadium!$G$10:$G$18,MATCH($A70,Stadium!$A$10:$A$18,0),) -> 0 | N70: =INDEX(WRS!$K$10:$K$18,MATCH($A70,WRS!$A$10:$A$18,0),) -> 870713.8734 | O70: 26108146.98 | Q70: 218.3748287 | R70: 118.667616 | S70: 303.5340593 | T70: 0 | U70: 22.10045874 | V70: =IF('Comparison - Category'!C70="Residential",SUM(Q70:T70,Control!$B$103),IF('Comparison - Category'!C70="Rural",SUM(Q70:T70,Control!$B$104),O70/$F70*$H70)) -> 662.6769627
A71: =Control!A44 -> Upper Hutt city | C71: =Control!B44 -> District wide | D71: =Control!C44 -> Upper Hutt cityDistrict wide | F71: 8277686260 | G71: 16914 | H71: 489398.5018 | J71: =INDEX(Gen!$D$10:$D$18,MATCH($A71,Gen!$A$10:$A$18,0),) -> 3390994.204 | K71: =INDEX('River management'!$C$10:$C$18,MATCH($A71,'River management'!$A$10:$A$18,0),) -> 806234.4441 | L71: =INDEX('Public transport'!$I$10:$I$18,MATCH($A71,'Public transport'!$A$10:$A$18,0),) -> 4781090.006 | M71: =INDEX(Stadium!$G$10:$G$18,MATCH($A71,Stadium!$A$10:$A$18,0),) -> 0 | N71: =INDEX(WRS!$K$10:$K$18,MATCH($A71,WRS!$A$10:$A$18,0),) -> 352101.0926 | O71: 9330419.747 | Q71: 200.4844628 | R71: 47.66669292 | S71: 282.6705691 | T71: 0 | U71: 20.81713921 | V71: =IF('Comparison - Category'!C71="Residential",SUM(Q71:T71,Control!$B$103),IF('Comparison - Category'!C71="Rural",SUM(Q71:T71,Control!$B$104),O71/$F71*$H71)) -> 551.638864
A72: =Control!A45 -> Porirua city | C72: =Control!B45 -> District wide | D72: =Control!C45 -> Porirua cityDistrict wide | F72: 10367312300 | G72: 18808 | H72: 551218.221 | J72: =INDEX(Gen!$D$10:$D$18,MATCH($A72,Gen!$A$10:$A$18,0),) -> 4109459.966 | K72: =INDEX('River management'!$C$10:$C$18,MATCH($A72,'River management'!$A$10:$A$18,0),) -> 48238.74476 | L72: =INDEX('Public transport'!$I$10:$I$18,MATCH($A72,'Public transport'!$A$10:$A$18,0),) -> 6119371.051 | M72: =INDEX(Stadium!$G$10:$G$18,MATCH($A72,Stadium!$A$10:$A$18,0),) -> 0 | N72: =INDEX(WRS!$K$10:$K$18,MATCH($A72,WRS!$A$10:$A$18,0),) -> 360221.8506 | O72: 10637291.61 | Q72: 218.4953193 | R72: 2.564799275 | S72: 325.3600091 | T72: 0 | U72: 19.1525867 | V72: =IF('Comparison - Category'!C72="Residential",SUM(Q72:T72,Control!$B$103),IF('Comparison - Category'!C72="Rural",SUM(Q72:T72,Control!$B$104),O72/$F72*$H72)) -> 565.5727144
A73: =Control!A46 -> Kāpiti Coast district | C73: =Control!B46 -> District wide | D73: =Control!C46 -> Kāpiti Coast districtDistrict wide | F73: 14894058100 | G73: 25104 | H73: 593294.22 | J73: =INDEX(Gen!$D$10:$D$18,MATCH($A73,Gen!$A$10:$A$18,0),) -> 5249543.888 | K73: =INDEX('River management'!$C$10:$C$18,MATCH($A73,'River management'!$A$10:$A$18,0),) -> 1423425.103 | L73: =INDEX('Public transport'!$I$10:$I$18,MATCH($A73,'Public transport'!$A$10:$A$18,0),) -> 4093798.406 | M73: =INDEX(Stadium!$G$10:$G$18,MATCH($A73,Stadium!$A$10:$A$18,0),) -> 0 | N73: =INDEX(WRS!$K$10:$K$18,MATCH($A73,WRS!$A$10:$A$18,0),) -> 481131.3402 | O73: 11247898.74 | Q73: 209.1118502 | R73: 56.70112743 | S73: 163.0735503 | T73: 0 | U73: 19.16552502 | V73: =IF('Comparison - Category'!C73="Residential",SUM(Q73:T73,Control!$B$103),IF('Comparison - Category'!C73="Rural",SUM(Q73:T73,Control!$B$104),O73/$F73*$H73)) -> 448.052053
A74: =Control!A47 -> Masterton district | C74: =Control!B47 -> District wide | D74: =Control!C47 -> Masterton districtDistrict wide | F74: 5920510000 | G74: 12530 | H74: 472506.7837 | J74: =INDEX(Gen!$D$10:$D$18,MATCH($A74,Gen!$A$10:$A$18,0),) -> 2110071.252 | K74: =INDEX('River management'!$C$10:$C$18,MATCH($A74,'River management'!$A$10:$A$18,0),) -> 0 | L74: =INDEX('Public transport'!$I$10:$I$18,MATCH($A74,'Public transport'!$A$10:$A$18,0),) -> 566676.6482 | M74: =INDEX(Stadium!$G$10:$G$18,MATCH($A74,Stadium!$A$10:$A$18,0),) -> 0 | N74: =INDEX(WRS!$K$10:$K$18,MATCH($A74,WRS!$A$10:$A$18,0),) -> 244700.4175 | O74: 2921448.317 | Q74: 168.4015365 | R74: 0 | S74: 45.22559044 | T74: 0 | U74: 19.5291634 | V74: =IF('Comparison - Category'!C74="Residential",SUM(Q74:T74,Control!$B$103),IF('Comparison - Category'!C74="Rural",SUM(Q74:T74,Control!$B$104),O74/$F74*$H74)) -> 233.1562903
A75: =Control!A48 -> Carterton district | C75: =Control!B48 -> District wide | D75: =Control!C48 -> Carterton districtDistrict wide | F75: 2705131700 | G75: 4671 | H75: 579133.3119 | J75: =INDEX(Gen!$D$10:$D$18,MATCH($A75,Gen!$A$10:$A$18,0),) -> 967630.7078 | K75: =INDEX('River management'!$C$10:$C$18,MATCH($A75,'River management'!$A$10:$A$18,0),) -> 24179.1 | L75: =INDEX('Public transport'!$I$10:$I$18,MATCH($A75,'Public transport'!$A$10:$A$18,0),) -> 287412.7094 | M75: =INDEX(Stadium!$G$10:$G$18,MATCH($A75,Stadium!$A$10:$A$18,0),) -> 0 | N75: =INDEX(WRS!$K$10:$K$18,MATCH($A75,WRS!$A$10:$A$18,0),) -> 89350.28862 | O75: 1368572.806 | Q75: 207.1570772 | R75: 5.17642903 | S75: 61.53130151 | T75: 0 | U75: 19.12872803 | V75: =IF('Comparison - Category'!C75="Residential",SUM(Q75:T75,Control!$B$103),IF('Comparison - Category'!C75="Rural",SUM(Q75:T75,Control!$B$104),O75/$F75*$H75)) -> 292.9935358
A76: =Control!A49 -> South Wairarapa district | C76: =Control!B49 -> District wide | D76: =Control!C49 -> South Wairarapa districtDistrict wide | F76: 4554810800 | G76: 6746 | H76: 675186.8959 | J76: =INDEX(Gen!$D$10:$D$18,MATCH($A76,Gen!$A$10:$A$18,0),) -> 1607158.481 | K76: =INDEX('River management'!$C$10:$C$18,MATCH($A76,'River management'!$A$10:$A$18,0),) -> 0 | L76: =INDEX('Public transport'!$I$10:$I$18,MATCH($A76,'Public transport'!$A$10:$A$18,0),) -> 560577.6504 | M76: =INDEX(Stadium!$G$10:$G$18,MATCH($A76,Stadium!$A$10:$A$18,0),) -> 0 | N76: =INDEX(WRS!$K$10:$K$18,MATCH($A76,WRS!$A$10:$A$18,0),) -> 141004.823 | O76: 2308740.954 | Q76: 238.2387312 | R76: 0 | S76: 83.09778392 | T76: 0 | U76: 20.90198977 | V76: =IF('Comparison - Category'!C76="Residential",SUM(Q76:T76,Control!$B$103),IF('Comparison - Category'!C76="Rural",SUM(Q76:T76,Control!$B$104),O76/$F76*$H76)) -> 342.2385049
A77: =Control!A50 -> Tararua district | C77: =Control!B50 -> District wide | D77: =Control!C50 -> Tararua districtDistrict wide | F77: 10673500 | G77: 10 | H77: 1067350 | J77: =INDEX(Gen!$D$10:$D$18,MATCH($A77,Gen!$A$10:$A$18,0),) -> 3927.413879 | K77: =INDEX('River management'!$C$10:$C$18,MATCH($A77,'River management'!$A$10:$A$18,0),) -> 0 | L77: =INDEX('Public transport'!$I$10:$I$18,MATCH($A77,'Public transport'!$A$10:$A$18,0),) -> 0 | M77: =INDEX(Stadium!$G$10:$G$18,MATCH($A77,Stadium!$A$10:$A$18,0),) -> 0 | N77: =INDEX(WRS!$K$10:$K$18,MATCH($A77,WRS!$A$10:$A$18,0),) -> 252 | O77: 4179.413879 | Q77: 392.7413879 | R77: 0 | S77: 0 | T77: 0 | U77: 25.2 | V77: =IF('Comparison - Category'!C77="Residential",SUM(Q77:T77,Control!$B$103),IF('Comparison - Category'!C77="Rural",SUM(Q77:T77,Control!$B$104),O77/$F77*$H77)) -> 417.9413879
A78: Region wide | D78: =Control!C51 -> Region wide | F78: =SUM(F69:F77) -> 141110137110 | G78: =SUM(G69:G77) -> 202034 | H78: =F78/G78 -> 698447.4747 | J78: =INDEX(ess_base_estract,MATCH(J66,ESSbase!$B$8:$B$25,0),MATCH(year_current,ESSbase!$F$6:$G$6,0)) -> 51060208.17 | K78: =INDEX(ess_base_estract,MATCH(K66,ESSbase!$B$8:$B$25,0),MATCH(year_current,ESSbase!$F$6:$G$6,0)) -> 7041148.242 | L78: =INDEX(ess_base_estract,MATCH(L66,ESSbase!$B$8:$B$25,0),MATCH(year_current,ESSbase!$F$6:$G$6,0)) -> 71524907.76 | M78: =INDEX(ess_base_estract,MATCH(M66,ESSbase!$B$8:$B$25,0),MATCH(year_current,ESSbase!$F$6:$G$6,0)) -> 0 | N78: =INDEX(ess_base_estract,MATCH(N66,ESSbase!$B$8:$B$25,0),MATCH(year_current,ESSbase!$F$6:$G$6,0)) -> 4705805.159 | O78: =INDEX(ess_base_estract,MATCH(O66,ESSbase!$B$8:$B$25,0),MATCH(year_current,ESSbase!$F$6:$G$6,0)) -> 134332069.3 | Q78: 252.7307689 | R78: 34.85130346 | S78: 354.0241136 | T78: 0 | U78: 23.29214468 | V78: =IF('Comparison - Category'!C78="Residential",SUM(Q78:T78,Control!$B$103),IF('Comparison - Category'!C78="Rural",SUM(Q78:T78,Control!$B$104),O78/$F78*$H78)) -> 664.8983306
A80: By TA & Category
A81: =Control!A67 -> Wellington city | B81: =Control!B67 -> Wellington city | C81: =Control!C67 -> Regional CBD | D81: =Control!D67 -> Wellington cityRegional CBD | F81: =INDEX(capital_values,MATCH($D81,capital_values_rows,0),MATCH(F$66&" "&year_current,capital_values_header,0)) -> 9921148650 | G81: =INDEX(assessments,MATCH($D81,assessments_rows,0),MATCH(G$66&" "&year_current,assessments_header,0)) -> 3340 | H81: =F81/G81 -> 2970403.787 | J81: =Gen!F24 -> 5197017.331 | K81: =($F81/INDEX($F$69:$F$77,MATCH($A81,$A$69:$A$77,0),)) * INDEX(K$69:K$77,MATCH($A81,$A$69:$A$77,0),) -> 8688.683111 | L81: =INDEX('Public transport'!$I$23:$I$49,MATCH($D81,'Public transport'!$D$23:$D$49,0),) -> 25071880.57 | M81: =INDEX(Stadium!$G$23:$G$49,MATCH($D81,Stadium!$D$23:$D$49,0),) -> 0 | N81: =INDEX(WRS!$K$23:$K$49,MATCH($D81,WRS!$D$23:$D$49,0),) -> 775888.1501 | O81: =SUM(J81:N81) -> 31053474.74 | Q81: =J81/$F81*$H81 -> 1555.993213 | R81: =K81/$F81*$H81 -> 2.601402129 | S81: =L81/$F81*$H81 -> 7506.55107 | T81: =M81/$F81*$H81 -> 0 | U81: =IF('Comparison - Category'!C81="Residential",Control!$B$103,IF('Comparison - Category'!C81="Rural",Control!$B$104,N81/$F81*$H81)) -> 232.3018413 | V81: =IF('Comparison - Category'!C81="Residential",SUM(Q81:T81,Control!$B$103),IF('Comparison - Category'!C81="Rural",SUM(Q81:T81,Control!$B$104),O81/$F81*$H81)) -> 9297.447526 | X81: =J81/$F81*100 -> 0.05238322209 | Y81: =K81/$F81*100 -> 8.757739066e-05 | Z81: =L81/$F81*100 -> 0.2527114698 | AA81: =M81/$F81*100 -> 0 | AB81: =IF(OR('Comparison - Category'!C81="Residential",'Comparison - Category'!C81="Rural"),U81,N81/$F81*100) -> 0.007820547574 | AC81: =O81/$F81*100 -> 0.3130028168
A82: =Control!A68 -> Wellington city | B82: =Control!B68 -> Wellington city | C82: =Control!C68 -> Business | D82: =Control!D68 -> Wellington cityBusiness | F82: 4638515650 | G82: 1897 | H82: 2445184.844 | J82: =Gen!F25 -> 1858085.377 | K82: =($F82/INDEX($F$69:$F$77,MATCH($A82,$A$69:$A$77,0),)) * INDEX(K$69:K$77,MATCH($A82,$A$69:$A$77,0),) -> 4062.290972 | L82: =INDEX('Public transport'!$I$23:$I$49,MATCH($D82,'Public transport'!$D$23:$D$49,0),) -> 1557518.902 | M82: =INDEX(Stadium!$G$23:$G$49,MATCH($D82,Stadium!$D$23:$D$49,0),) -> 0 | N82: =INDEX(WRS!$K$23:$K$49,MATCH($D82,WRS!$D$23:$D$49,0),) -> 362757.3231 | O82: =SUM(J82:N82) -> 3782423.893 | Q82: =J82/$F82*$H82 -> 979.4862293 | R82: 2.141429084 | S82: 821.0431746 | T82: 0 | U82: =IF('Comparison - Category'!C82="Residential",Control!$B$103,IF('Comparison - Category'!C82="Rural",Control!$B$104,N82/$F82*$H82)) -> 191.226844 | V82: =IF('Comparison - Category'!C82="Residential",SUM(Q82:T82,Control!$B$103),IF('Comparison - Category'!C82="Rural",SUM(Q82:T82,Control!$B$104),O82/$F82*$H82)) -> 1993.897677 | X82: 0.04005775807 | Y82: 8.757739066e-05 | Z82: 0.03357795941 | AA82: 0 | AB82: =IF(OR('Comparison - Category'!C82="Residential",'Comparison - Category'!C82="Rural"),U82,N82/$F82*100) -> 0.007820547574 | AC82: 0.08154384244
A83: =Control!A69 -> Wellington city | B83: =Control!B69 -> Wellington city | C83: =Control!C69 -> Residential | D83: =Control!D69 -> Wellington cityResidential | F83: 57499964050 | G83: 71826 | H83: 800545.2629 | J83: =Gen!F26 -> 17717843.45 | K83: 50356.96814 | L83: =INDEX('Public transport'!$I$23:$I$49,MATCH($D83,'Public transport'!$D$23:$D$49,0),) -> 16470136.14 | M83: =INDEX(Stadium!$G$23:$G$49,MATCH($D83,Stadium!$D$23:$D$49,0),) -> 0 | N83: =INDEX(WRS!$K$23:$K$49,MATCH($D83,WRS!$D$23:$D$49,0),) -> 1005564 | O83: 35243900.56 | Q83: 246.6772959 | R83: 0.7010966522 | S83: 229.3060471 | T83: 0 | U83: =IF('Comparison - Category'!C83="Residential",Control!$B$103,IF('Comparison - Category'!C83="Rural",Control!$B$104,N83/$F83*$H83)) -> 14 | V83: =IF('Comparison - Category'!C83="Residential",SUM(Q83:T83,Control!$B$103),IF('Comparison - Category'!C83="Rural",SUM(Q83:T83,Control!$B$104),O83/$F83*$H83)) -> 490.6844396 | X83: 0.03081366005 | Y83: 8.757739066e-05 | Z83: 0.02864373293 | AA83: 0 | AB83: =IF(OR('Comparison - Category'!C83="Residential",'Comparison - Category'!C83="Rural"),U83,N83/$F83*100) -> 14 | AC83: 0.06129377843
A84: =Control!A70 -> Wellington city | B84: =Control!B70 -> Wellington city | C84: =Control!C70 -> Rural | D84: =Control!D70 -> Wellington cityRural | F84: 794922100 | G84: 790 | H84: 1006230.506 | J84: =Gen!F27 -> 244944.5936 | K84: 696.1720329 | L84: =INDEX('Public transport'!$I$23:$I$49,MATCH($D84,'Public transport'!$D$23:$D$49,0),) -> 57810.80916 | M84: =INDEX(Stadium!$G$23:$G$49,MATCH($D84,Stadium!$D$23:$D$49,0),) -> 0 | N84: =INDEX(WRS!$K$23:$K$49,MATCH($D84,WRS!$D$23:$D$49,0),) -> 22120 | O84: 325571.5748 | Q84: 310.0564476 | R84: 0.8812304215 | S84: 73.17823944 | T84: 0 | U84: =IF('Comparison - Category'!C84="Residential",Control!$B$103,IF('Comparison - Category'!C84="Rural",Control!$B$104,N84/$F84*$H84)) -> 28 | V84: =IF('Comparison - Category'!C84="Residential",SUM(Q84:T84,Control!$B$103),IF('Comparison - Category'!C84="Rural",SUM(Q84:T84,Control!$B$104),O84/$F84*$H84)) -> 412.1159174 | X84: 0.03081366005 | Y84: 8.757739066e-05 | Z84: 0.007272512509 | AA84: 0 | AB84: =IF(OR('Comparison - Category'!C84="Residential",'Comparison - Category'!C84="Rural"),U84,N84/$F84*100) -> 28 | AC84: 0.04095641255
A85: =Control!A71 -> Hutt city | B85: =Control!B71 -> Hutt city | C85: =Control!C71 -> Business | D85: =Control!D71 -> Hutt cityBusiness | F85: 3813013500 | G85: 2359 | H85: 1616368.588 | J85: =($F85/INDEX($F$69:$F$77,MATCH($A85,$A$69:$A$77,0),)) * INDEX(J$69:J$77,MATCH($A85,$A$69:$A$77,0),) -> 1524030.943 | K85: 828177.4958 | L85: =INDEX('Public transport'!$I$23:$I$49,MATCH($D85,'Public transport'!$D$23:$D$49,0),) -> 2321629.855 | M85: =INDEX(Stadium!$G$23:$G$49,MATCH($D85,Stadium!$D$23:$D$49,0),) -> 0 | N85: =INDEX(WRS!$K$23:$K$49,MATCH($D85,WRS!$D$23:$D$49,0),) -> 347085.8734 | O85: 5020924.167 | Q85: 646.0495731 | R85: 351.0714268 | S85: 984.1584801 | T85: 0 | U85: =IF('Comparison - Category'!C85="Residential",Control!$B$103,IF('Comparison - Category'!C85="Rural",Control!$B$104,N85/$F85*$H85)) -> 147.1326297 | V85: =IF('Comparison - Category'!C85="Residential",SUM(Q85:T85,Control!$B$103),IF('Comparison - Category'!C85="Rural",SUM(Q85:T85,Control!$B$104),O85/$F85*$H85)) -> 2128.41211 | X85: 0.03996919872 | Y85: 0.02171976301 | Z85: 0.06088700852 | AA85: 0 | AB85: =IF(OR('Comparison - Category'!C85="Residential",'Comparison - Category'!C85="Rural"),U85,N85/$F85*100) -> 0.009102665736 | AC85: 0.131678636
A86: =Control!A72 -> Hutt city | B86: =Control!B72 -> Hutt city | C86: =Control!C72 -> Residential | D86: =Control!D72 -> Hutt cityResidential | F86: 17395848500 | G86: 36551 | H86: 475933.5859 | J86: 6952981.255 | K86: 3778337.068 | L86: =INDEX('Public transport'!$I$23:$I$49,MATCH($D86,'Public transport'!$D$23:$D$49,0),) -> 9592741.274 | M86: =INDEX(Stadium!$G$23:$G$49,MATCH($D86,Stadium!$D$23:$D$49,0),) -> 0 | N86: =INDEX(WRS!$K$23:$K$49,MATCH($D86,WRS!$D$23:$D$49,0),) -> 509964 | O86: 20834023.6 | Q86: 190.2268407 | R86: 103.371647 | S86: 262.4481211 | T86: 0 | U86: =IF('Comparison - Category'!C86="Residential",Control!$B$103,IF('Comparison - Category'!C86="Rural",Control!$B$104,N86/$F86*$H86)) -> 14 | V86: =IF('Comparison - Category'!C86="Residential",SUM(Q86:T86,Control!$B$103),IF('Comparison - Category'!C86="Rural",SUM(Q86:T86,Control!$B$104),O86/$F86*$H86)) -> 570.0466088 | X86: 0.03996919872 | Y86: 0.02171976301 | Z86: 0.05514385386 | AA86: 0 | AB86: =IF(OR('Comparison - Category'!C86="Residential",'Comparison - Category'!C86="Rural"),U86,N86/$F86*100) -> 14 | AC86: 0.1197643426
A87: =Control!A73 -> Hutt city | B87: =Control!B73 -> Hutt city | C87: =Control!C73 -> Rural | D87: =Control!D73 -> Hutt cityRural | F87: 316542000 | G87: 488 | H87: 648651.6393 | J87: 126519.301 | K87: 68752.17223 | L87: =INDEX('Public transport'!$I$23:$I$49,MATCH($D87,'Public transport'!$D$23:$D$49,0),) -> 44263.73977 | M87: =INDEX(Stadium!$G$23:$G$49,MATCH($D87,Stadium!$D$23:$D$49,0),) -> 0 | N87: =INDEX(WRS!$K$23:$K$49,MATCH($D87,WRS!$D$23:$D$49,0),) -> 13664 | O87: 253199.213 | Q87: 259.2608627 | R87: 140.8855988 | S87: 90.70438478 | T87: 0 | U87: =IF('Comparison - Category'!C87="Residential",Control!$B$103,IF('Comparison - Category'!C87="Rural",Control!$B$104,N87/$F87*$H87)) -> 28 | V87: =IF('Comparison - Category'!C87="Residential",SUM(Q87:T87,Control!$B$103),IF('Comparison - Category'!C87="Rural",SUM(Q87:T87,Control!$B$104),O87/$F87*$H87)) -> 518.8508463 | X87: 0.03996919872 | Y87: 0.02171976301 | Z87: 0.01398352818 | AA87: 0 | AB87: =IF(OR('Comparison - Category'!C87="Residential",'Comparison - Category'!C87="Rural"),U87,N87/$F87*100) -> 28 | AC87: 0.07998913667
A88: =Control!A74 -> Upper Hutt city | B88: =Control!B74 -> Upper Hutt city | C88: =Control!C74 -> Business | D88: =Control!D74 -> Upper Hutt cityBusiness | F88: 1182339500 | G88: 746 | H88: 1584905.496 | J88: 484351.0935 | K88: 115158.1251 | L88: =INDEX('Public transport'!$I$23:$I$49,MATCH($D88,'Public transport'!$D$23:$D$49,0),) -> 799237.7935 | M88: =INDEX(Stadium!$G$23:$G$49,MATCH($D88,Stadium!$D$23:$D$49,0),) -> 0 | N88: =INDEX(WRS!$K$23:$K$49,MATCH($D88,WRS!$D$23:$D$49,0),) -> 110307.0926 | O88: 1509054.105 | Q88: 649.2642004 | R88: 154.3674599 | S88: 1071.364334 | T88: 0 | U88: =IF('Comparison - Category'!C88="Residential",Control!$B$103,IF('Comparison - Category'!C88="Rural",Control!$B$104,N88/$F88*$H88)) -> 147.8647354 | V88: =IF('Comparison - Category'!C88="Residential",SUM(Q88:T88,Control!$B$103),IF('Comparison - Category'!C88="Rural",SUM(Q88:T88,Control!$B$104),O88/$F88*$H88)) -> 2022.86073 | X88: 0.04096548356 | Y88: 0.009739852645 | Z88: 0.06759799478 | AA88: 0 | AB88: =IF(OR('Comparison - Category'!C88="Residential",'Comparison - Category'!C88="Rural"),U88,N88/$F88*100) -> 0.009329561651 | AC88: 0.1276328926
A89: =Control!A75 -> Upper Hutt city | B89: =Control!B75 -> Upper Hutt city | C89: =Control!C75 -> Residential | D89: =Control!D75 -> Upper Hutt cityResidential | F89: 6233760420 | G89: 14902 | H89: 418317.0326 | J89: 2553690.1 | K89: 607159.0791 | L89: =INDEX('Public transport'!$I$23:$I$49,MATCH($D89,'Public transport'!$D$23:$D$49,0),) -> 3846958.559 | M89: =INDEX(Stadium!$G$23:$G$49,MATCH($D89,Stadium!$D$23:$D$49,0),) -> 0 | N89: =INDEX(WRS!$K$23:$K$49,MATCH($D89,WRS!$D$23:$D$49,0),) -> 208222 | O89: 7216029.738 | Q89: 171.3655952 | R89: 40.74346256 | S89: 258.1504871 | T89: 0 | U89: =IF('Comparison - Category'!C89="Residential",Control!$B$103,IF('Comparison - Category'!C89="Rural",Control!$B$104,N89/$F89*$H89)) -> 14 | V89: =IF('Comparison - Category'!C89="Residential",SUM(Q89:T89,Control!$B$103),IF('Comparison - Category'!C89="Rural",SUM(Q89:T89,Control!$B$104),O89/$F89*$H89)) -> 484.2595449 | X89: 0.04096548356 | Y89: 0.009739852645 | Z89: 0.06171168443 | AA89: 0 | AB89: =IF(OR('Comparison - Category'!C89="Residential",'Comparison - Category'!C89="Rural"),U89,N89/$F89*100) -> 14 | AC89: 0.1157572517
A90: =Control!A76 -> Upper Hutt city | B90: =Control!B76 -> Upper Hutt city | C90: =Control!C76 -> Rural | D90: =Control!D76 -> Upper Hutt cityRural | F90: 861586340 | G90: 1266 | H90: 680557.9305 | J90: 352953.0105 | K90: 83917.23992 | L90: =INDEX('Public transport'!$I$23:$I$49,MATCH($D90,'Public transport'!$D$23:$D$49,0),) -> 134893.6537 | M90: =INDEX(Stadium!$G$23:$G$49,MATCH($D90,Stadium!$D$23:$D$49,0),) -> 0 | N90: =INDEX(WRS!$K$23:$K$49,MATCH($D90,WRS!$D$23:$D$49,0),) -> 33572 | O90: 605335.9041 | Q90: 278.7938471 | R90: 66.28533959 | S90: 106.5510693 | T90: 0 | U90: =IF('Comparison - Category'!C90="Residential",Control!$B$103,IF('Comparison - Category'!C90="Rural",Control!$B$104,N90/$F90*$H90)) -> 28 | V90: =IF('Comparison - Category'!C90="Residential",SUM(Q90:T90,Control!$B$103),IF('Comparison - Category'!C90="Rural",SUM(Q90:T90,Control!$B$104),O90/$F90*$H90)) -> 479.630256 | X90: 0.04096548356 | Y90: 0.009739852645 | Z90: 0.01565642901 | AA90: 0 | AB90: =IF(OR('Comparison - Category'!C90="Residential",'Comparison - Category'!C90="Rural"),U90,N90/$F90*100) -> 28 | AC90: 0.07025829867
A91: =Control!A77 -> Porirua city | B91: =Control!B77 -> Porirua city | C91: =Control!C77 -> Business | D91: =Control!D77 -> Porirua cityBusiness | F91: 1101735500 | G91: 798 | H91: 1380620.927 | J91: 436712.7949 | K91: 5126.337091 | L91: =INDEX('Public transport'!$I$23:$I$49,MATCH($D91,'Public transport'!$D$23:$D$49,0),) -> 736637.1671 | M91: =INDEX(Stadium!$G$23:$G$49,MATCH($D91,Stadium!$D$23:$D$49,0),) -> 0 | N91: =INDEX(WRS!$K$23:$K$49,MATCH($D91,WRS!$D$23:$D$49,0),) -> 99457.85061 | O91: 1277934.15 | Q91: 547.2591415 | R91: 6.423981317 | S91: 923.1042195 | T91: 0 | U91: =IF('Comparison - Category'!C91="Residential",Control!$B$103,IF('Comparison - Category'!C91="Rural",Control!$B$104,N91/$F91*$H91)) -> 124.633898 | V91: =IF('Comparison - Category'!C91="Residential",SUM(Q91:T91,Control!$B$103),IF('Comparison - Category'!C91="Rural",SUM(Q91:T91,Control!$B$104),O91/$F91*$H91)) -> 1601.42124 | X91: 0.03963862424 | Y91: 0.0004652965336 | Z91: 0.06686152594 | AA91: 0 | AB91: =IF(OR('Comparison - Category'!C91="Residential",'Comparison - Category'!C91="Rural"),U91,N91/$F91*100) -> 0.009027380039 | AC91: 0.1159928268
A92: =Control!A78 -> Porirua city | B92: =Control!B78 -> Porirua city | C92: =Control!C78 -> Residential | D92: =Control!D78 -> Porirua cityResidential | F92: 8642049050 | G92: 17394 | H92: 496840.81 | J92: 3425589.349 | K92: 40211.15466 | L92: =INDEX('Public transport'!$I$23:$I$49,MATCH($D92,'Public transport'!$D$23:$D$49,0),) -> 5285984.605 | M92: =INDEX(Stadium!$G$23:$G$49,MATCH($D92,Stadium!$D$23:$D$49,0),) -> 0 | N92: =INDEX(WRS!$K$23:$K$49,MATCH($D92,WRS!$D$23:$D$49,0),) -> 243516 | O92: 8995301.109 | Q92: 196.9408617 | R92: 2.311783067 | S92: 303.8970108 | T92: 0 | U92: =IF('Comparison - Category'!C92="Residential",Control!$B$103,IF('Comparison - Category'!C92="Rural",Control!$B$104,N92/$F92*$H92)) -> 14 | V92: =IF('Comparison - Category'!C92="Residential",SUM(Q92:T92,Control!$B$103),IF('Comparison - Category'!C92="Rural",SUM(Q92:T92,Control!$B$104),O92/$F92*$H92)) -> 517.1496556 | X92: 0.03963862424 | Y92: 0.0004652965336 | Z92: 0.06116587136 | AA92: 0 | AB92: =IF(OR('Comparison - Category'!C92="Residential",'Comparison - Category'!C92="Rural"),U92,N92/$F92*100) -> 14 | AC92: 0.1040875961
A93: =Control!A79 -> Porirua city | B93: =Control!B79 -> Porirua city | C93: =Control!C79 -> Rural | D93: =Control!D79 -> Porirua cityRural | F93: 623527750 | G93: 616 | H93: 1012220.373 | J93: 247157.8218 | K93: 2901.253007 | L93: =INDEX('Public transport'!$I$23:$I$49,MATCH($D93,'Public transport'!$D$23:$D$49,0),) -> 96749.27882 | M93: =INDEX(Stadium!$G$23:$G$49,MATCH($D93,Stadium!$D$23:$D$49,0),) -> 0 | N93: =INDEX(WRS!$K$23:$K$49,MATCH($D93,WRS!$D$23:$D$49,0),) -> 17248 | O93: 364056.3537 | Q93: 401.2302302 | R93: 4.70982631 | S93: 157.0605176 | T93: 0 | U93: =IF('Comparison - Category'!C93="Residential",Control!$B$103,IF('Comparison - Category'!C93="Rural",Control!$B$104,N93/$F93*$H93)) -> 28 | V93: =IF('Comparison - Category'!C93="Residential",SUM(Q93:T93,Control!$B$103),IF('Comparison - Category'!C93="Rural",SUM(Q93:T93,Control!$B$104),O93/$F93*$H93)) -> 591.0005741 | X93: 0.03963862424 | Y93: 0.0004652965336 | Z93: 0.01551643513 | AA93: 0 | AB93: =IF(OR('Comparison - Category'!C93="Residential",'Comparison - Category'!C93="Rural"),U93,N93/$F93*100) -> 28 | AC93: 0.05838655195
A94: =Control!A80 -> Kāpiti Coast district | B94: =Control!B80 -> Kāpiti Coast district | C94: =Control!C80 -> Business | D94: =Control!D80 -> Kāpiti Coast districtBusiness | F94: 1476489000 | G94: 1333 | H94: 1107643.661 | J94: 520401.7437 | K94: 141108.0508 | L94: =INDEX('Public transport'!$I$23:$I$49,MATCH($D94,'Public transport'!$D$23:$D$49,0),) -> 524920.6744 | M94: =INDEX(Stadium!$G$23:$G$49,MATCH($D94,Stadium!$D$23:$D$49,0),) -> 0 | N94: =INDEX(WRS!$K$23:$K$49,MATCH($D94,WRS!$D$23:$D$49,0),) -> 118517.3402 | O94: 1304947.809 | Q94: 390.3989075 | R94: 105.8575025 | S94: 393.788953 | T94: 0 | U94: =IF('Comparison - Category'!C94="Residential",Control!$B$103,IF('Comparison - Category'!C94="Rural",Control!$B$104,N94/$F94*$H94)) -> 88.91023271 | V94: =IF('Comparison - Category'!C94="Residential",SUM(Q94:T94,Control!$B$103),IF('Comparison - Category'!C94="Rural",SUM(Q94:T94,Control!$B$104),O94/$F94*$H94)) -> 978.9555957 | X94: 0.03524589372 | Y94: 0.009556999802 | Z94: 0.03555195293 | AA94: 0 | AB94: =IF(OR('Comparison - Category'!C94="Residential",'Comparison - Category'!C94="Rural"),U94,N94/$F94*100) -> 0.008026970753 | AC94: 0.08838181721
A95: =Control!A81 -> Kāpiti Coast district | B95: =Control!B81 -> Kāpiti Coast district excl Ōtaki | C95: =Control!C81 -> Residential | D95: =Control!D81 -> Kāpiti Coast district excl Ōtaki Residential | F95: 10311045500 | G95: 17951 | H95: 574399.5042 | J95: 3634220.138 | K95: 985426.598 | L95: =INDEX('Public transport'!$I$23:$I$49,MATCH($D95,'Public transport'!$D$23:$D$49,0),) -> 3143578.725 | M95: =INDEX(Stadium!$G$23:$G$49,MATCH($D95,Stadium!$D$23:$D$49,0),) -> 0 | N95: =INDEX(WRS!$K$23:$K$49,MATCH($D95,WRS!$D$23:$D$49,0),) -> 249032 | O95: 8012257.461 | Q95: 202.4522388 | R95: 54.89535948 | S95: 175.119978 | T95: 0 | U95: =IF('Comparison - Category'!C95="Residential",Control!$B$103,IF('Comparison - Category'!C95="Rural",Control!$B$104,N95/$F95*$H95)) -> 14 | V95: =IF('Comparison - Category'!C95="Residential",SUM(Q95:T95,Control!$B$103),IF('Comparison - Category'!C95="Rural",SUM(Q95:T95,Control!$B$104),O95/$F95*$H95)) -> 446.4675762 | X95: 0.03524589372 | Y95: 0.009556999802 | Z95: 0.03048748766 | AA95: 0 | AB95: =IF(OR('Comparison - Category'!C95="Residential",'Comparison - Category'!C95="Rural"),U95,N95/$F95*100) -> 14 | AC95: 0.07770557759
A96: =Control!A82 -> Kāpiti Coast district | B96: =Control!B82 -> Ōtaki rating area | C96: =Control!C82 -> Residential | D96: =Control!D82 -> Ōtaki rating areaResidential | F96: 1121512900 | G96: 3173 | H96: =F96/G96 -> 353455.0583 | J96: 395287.2448 | K96: 107182.9856 | L96: =INDEX('Public transport'!$I$23:$I$49,MATCH($D96,'Public transport'!$D$23:$D$49,0),) -> 270922.8178 | M96: =INDEX(Stadium!$G$23:$G$49,MATCH($D96,Stadium!$D$23:$D$49,0),) -> 0 | N96: =INDEX(WRS!$K$23:$K$49,MATCH($D96,WRS!$D$23:$D$49,0),) -> 43806 | O96: =SUM(J96:N96) -> 817199.0482 | Q96: =J96/$F96*$H96 -> 124.5783942 | R96: =K96/$F96*$H96 -> 33.77969922 | S96: =L96/$F96*$H96 -> 85.38380643 | T96: =M96/$F96*$H96 -> 0 | U96: =IF('Comparison - Category'!C96="Residential",Control!$B$103,IF('Comparison - Category'!C96="Rural",Control!$B$104,N96/$F96*$H96)) -> 14 | V96: =IF('Comparison - Category'!C96="Residential",SUM(Q96:T96,Control!$B$103),IF('Comparison - Category'!C96="Rural",SUM(Q96:T96,Control!$B$104),O96/$F96*$H96)) -> 257.7418998 | X96: =J96/$F96*100 -> 0.03524589372 | Y96: =K96/$F96*100 -> 0.009556999802 | Z96: =L96/$F96*100 -> 0.02415690607 | AA96: =M96/$F96*100 -> 0 | AB96: =IF(OR('Comparison - Category'!C96="Residential",'Comparison - Category'!C96="Rural"),U96,N96/$F96*100) -> 14 | AC96: =O96/$F96*100 -> 0.07286577339
A97: =Control!A83 -> Kāpiti Coast district | B97: =Control!B83 -> Kāpiti Coast district | C97: =Control!C83 -> Rural | D97: =Control!D83 -> Kāpiti Coast districtRural | F97: 1985010700 | G97: 2647 | H97: 749909.5958 | J97: 699634.7616 | K97: 189707.4687 | L97: =INDEX('Public transport'!$I$23:$I$49,MATCH($D97,'Public transport'!$D$23:$D$49,0),) -> 154376.1891 | M97: =INDEX(Stadium!$G$23:$G$49,MATCH($D97,Stadium!$D$23:$D$49,0),) -> 0 | N97: =INDEX(WRS!$K$23:$K$49,MATCH($D97,WRS!$D$23:$D$49,0),) -> 69776 | O97: 1113494.419 | Q97: 264.3123391 | R97: 71.66885858 | S97: 58.32118968 | T97: 0 | U97: =IF('Comparison - Category'!C97="Residential",Control!$B$103,IF('Comparison - Category'!C97="Rural",Control!$B$104,N97/$F97*$H97)) -> 28 | V97: =IF('Comparison - Category'!C97="Residential",SUM(Q97:T97,Control!$B$103),IF('Comparison - Category'!C97="Rural",SUM(Q97:T97,Control!$B$104),O97/$F97*$H97)) -> 422.3023874 | X97: 0.03524589372 | Y97: 0.009556999802 | Z97: 0.007777096067 | AA97: 0 | AB97: =IF(OR('Comparison - Category'!C97="Residential",'Comparison - Category'!C97="Rural"),U97,N97/$F97*100) -> 28 | AC97: 0.05609513437
A98: =Control!A84 -> Masterton district | B98: =Control!B84 -> Masterton district | C98: =Control!C84 -> Business | D98: =Control!D84 -> Masterton districtBusiness | F98: 433209100 | G98: 549 | H98: 789087.6138 | J98: 154395.8321 | K98: 0 | L98: =INDEX('Public transport'!$I$23:$I$49,MATCH($D98,'Public transport'!$D$23:$D$49,0),) -> 83081.66127 | M98: =INDEX(Stadium!$G$23:$G$49,MATCH($D98,Stadium!$D$23:$D$49,0),) -> 0 | N98: =INDEX(WRS!$K$23:$K$49,MATCH($D98,WRS!$D$23:$D$49,0),) -> 35162.41746 | O98: 272639.9108 | Q98: 281.2310239 | R98: 0 | S98: 151.3327163 | T98: 0 | U98: =IF('Comparison - Category'!C98="Residential",Control!$B$103,IF('Comparison - Category'!C98="Rural",Control!$B$104,N98/$F98*$H98)) -> 64.04811923 | V98: =IF('Comparison - Category'!C98="Residential",SUM(Q98:T98,Control!$B$103),IF('Comparison - Category'!C98="Rural",SUM(Q98:T98,Control!$B$104),O98/$F98*$H98)) -> 496.6118594 | X98: 0.03564002513 | Y98: 0 | Z98: 0.0191781893 | AA98: 0 | AB98: =IF(OR('Comparison - Category'!C98="Residential",'Comparison - Category'!C98="Rural"),U98,N98/$F98*100) -> 0.008116731033 | AC98: 0.06293494547
A99: =Control!A85 -> Masterton district | B99: =Control!B85 -> Masterton district | C99: =Control!C85 -> Residential | D99: =Control!D85 -> Masterton districtResidential | F99: 2678795300 | G99: 8086 | H99: 331288.0658 | J99: 954723.3181 | K99: 0 | L99: =INDEX('Public transport'!$I$23:$I$49,MATCH($D99,'Public transport'!$D$23:$D$49,0),) -> 342264.7739 | M99: =INDEX(Stadium!$G$23:$G$49,MATCH($D99,Stadium!$D$23:$D$49,0),) -> 0 | N99: =INDEX(WRS!$K$23:$K$49,MATCH($D99,WRS!$D$23:$D$49,0),) -> 112938 | O99: 1409926.092 | Q99: 118.0711499 | R99: 0 | S99: 42.32806998 | T99: 0 | U99: =IF('Comparison - Category'!C99="Residential",Control!$B$103,IF('Comparison - Category'!C99="Rural",Control!$B$104,N99/$F99*$H99)) -> 14 | V99: =IF('Comparison - Category'!C99="Residential",SUM(Q99:T99,Control!$B$103),IF('Comparison - Category'!C99="Rural",SUM(Q99:T99,Control!$B$104),O99/$F99*$H99)) -> 174.3992199 | X99: 0.03564002513 | Y99: 0 | Z99: 0.01277681702 | AA99: 0 | AB99: =IF(OR('Comparison - Category'!C99="Residential",'Comparison - Category'!C99="Rural"),U99,N99/$F99*100) -> 14 | AC99: 0.05263284178
A100: =Control!A86 -> Masterton district | B100: =Control!B86 -> Masterton district | C100: =Control!C86 -> Rural | D100: =Control!D86 -> Masterton districtRural | F100: 2808505600 | G100: 3895 | H100: 721054.0693 | J100: 1000952.102 | K100: 0 | L100: =INDEX('Public transport'!$I$23:$I$49,MATCH($D100,'Public transport'!$D$23:$D$49,0),) -> 141330.213 | M100: =INDEX(Stadium!$G$23:$G$49,MATCH($D100,Stadium!$D$23:$D$49,0),) -> 0 | N100: =INDEX(WRS!$K$23:$K$49,MATCH($D100,WRS!$D$23:$D$49,0),) -> 96600 | O100: 1238882.315 | Q100: 256.9838515 | R100: 0 | S100: 36.28503543 | T100: 0 | U100: =IF('Comparison - Category'!C100="Residential",Control!$B$103,IF('Comparison - Category'!C100="Rural",Control!$B$104,N100/$F100*$H100)) -> 28 | V100: =IF('Comparison - Category'!C100="Residential",SUM(Q100:T100,Control!$B$103),IF('Comparison - Category'!C100="Rural",SUM(Q100:T100,Control!$B$104),O100/$F100*$H100)) -> 321.2688869 | X100: 0.03564002513 | Y100: 0 | Z100: 0.005032221157 | AA100: 0 | AB100: =IF(OR('Comparison - Category'!C100="Residential",'Comparison - Category'!C100="Rural"),U100,N100/$F100*100) -> 28 | AC100: 0.04411179791
A101: =Control!A87 -> Carterton district | B101: =Control!B87 -> Carterton district | C101: =Control!C87 -> Business | D101: =Control!D87 -> Carterton districtBusiness | F101: 97126500 | G101: 226 | H101: 429763.2743 | J101: 34742.33212 | K101: 868.1393797 | L101: =INDEX('Public transport'!$I$23:$I$49,MATCH($D101,'Public transport'!$D$23:$D$49,0),) -> 23630.19981 | M101: =INDEX(Stadium!$G$23:$G$49,MATCH($D101,Stadium!$D$23:$D$49,0),) -> 0 | N101: =INDEX(WRS!$K$23:$K$49,MATCH($D101,WRS!$D$23:$D$49,0),) -> 7912.28862 | O101: 67152.95992 | Q101: 153.7271333 | R101: 3.841324689 | S101: 104.5584062 | T101: 0 | U101: =IF('Comparison - Category'!C101="Residential",Control!$B$103,IF('Comparison - Category'!C101="Rural",Control!$B$104,N101/$F101*$H101)) -> 35.01012664 | V101: =IF('Comparison - Category'!C101="Residential",SUM(Q101:T101,Control!$B$103),IF('Comparison - Category'!C101="Rural",SUM(Q101:T101,Control!$B$104),O101/$F101*$H101)) -> 297.1369908 | X101: 0.03577018848 | Y101: 0.000893823395 | Z101: 0.02432930231 | AA101: 0 | AB101: =IF(OR('Comparison - Category'!C101="Residential",'Comparison - Category'!C101="Rural"),U101,N101/$F101*100) -> 0.008146374697 | AC101: 0.06913968888
A102: =Control!A88 -> Carterton district | B102: =Control!B88 -> Carterton district | C102: =Control!C88 -> Residential | D102: =Control!D88 -> Carterton districtResidential | F102: 858895500 | G102: 2397 | H102: 358321.0263 | J102: 307228.5392 | K102: 7677.008918 | L102: =INDEX('Public transport'!$I$23:$I$49,MATCH($D102,'Public transport'!$D$23:$D$49,0),) -> 153781.3841 | M102: =INDEX(Stadium!$G$23:$G$49,MATCH($D102,Stadium!$D$23:$D$49,0),) -> 0 | N102: =INDEX(WRS!$K$23:$K$49,MATCH($D102,WRS!$D$23:$D$49,0),) -> 32578 | O102: 501264.9322 | Q102: 128.1721065 | R102: 3.202757162 | S102: 64.15577141 | T102: 0 | U102: =IF('Comparison - Category'!C102="Residential",Control!$B$103,IF('Comparison - Category'!C102="Rural",Control!$B$104,N102/$F102*$H102)) -> 14 | V102: =IF('Comparison - Category'!C102="Residential",SUM(Q102:T102,Control!$B$103),IF('Comparison - Category'!C102="Rural",SUM(Q102:T102,Control!$B$104),O102/$F102*$H102)) -> 209.530635 | X102: 0.03577018848 | Y102: 0.000893823395 | Z102: 0.01790455114 | AA102: 0 | AB102: =IF(OR('Comparison - Category'!C102="Residential",'Comparison - Category'!C102="Rural"),U102,N102/$F102*100) -> 14 | AC102: 0.05836157393
A103: =Control!A89 -> Carterton district | B103: =Control!B89 -> Carterton district | C103: =Control!C89 -> Rural | D103: =Control!D89 -> Carterton districtRural | F103: 1749109700 | G103: 2048 | H103: 854057.4707 | J103: 625659.8365 | K103: 15633.9517 | L103: =INDEX('Public transport'!$I$23:$I$49,MATCH($D103,'Public transport'!$D$23:$D$49,0),) -> 110001.1255 | M103: =INDEX(Stadium!$G$23:$G$49,MATCH($D103,Stadium!$D$23:$D$49,0),) -> 0 | N103: =INDEX(WRS!$K$23:$K$49,MATCH($D103,WRS!$D$23:$D$49,0),) -> 48860 | O103: 800154.9137 | Q103: 305.497967 | R103: 7.63376548 | S103: 53.71148705 | T103: 0 | U103: =IF('Comparison - Category'!C103="Residential",Control!$B$103,IF('Comparison - Category'!C103="Rural",Control!$B$104,N103/$F103*$H103)) -> 28 | V103: =IF('Comparison - Category'!C103="Residential",SUM(Q103:T103,Control!$B$103),IF('Comparison - Category'!C103="Rural",SUM(Q103:T103,Control!$B$104),O103/$F103*$H103)) -> 394.8432196 | X103: 0.03577018848 | Y103: 0.000893823395 | Z103: 0.006288978072 | AA103: 0 | AB103: =IF(OR('Comparison - Category'!C103="Residential",'Comparison - Category'!C103="Rural"),U103,N103/$F103*100) -> 28 | AC103: 0.04574641108
A104: =Control!A90 -> South Wairarapa district | B104: =Control!B90 -> South Wairarapa district | C104: =Control!C90 -> Business | D104: =Control!D90 -> South Wairarapa districtBusiness | F104: 211288600 | G104: 312 | H104: 677207.0513 | J104: 74552.88051 | K104: 0 | L104: =INDEX('Public transport'!$I$23:$I$49,MATCH($D104,'Public transport'!$D$23:$D$49,0),) -> 58396.32127 | M104: =INDEX(Stadium!$G$23:$G$49,MATCH($D104,Stadium!$D$23:$D$49,0),) -> 0 | N104: =INDEX(WRS!$K$23:$K$49,MATCH($D104,WRS!$D$23:$D$49,0),) -> 16978.82301 | O104: 149928.0248 | Q104: 238.9515401 | R104: 0 | S104: 187.1676964 | T104: 0 | U104: =IF('Comparison - Category'!C104="Residential",Control!$B$103,IF('Comparison - Category'!C104="Rural",Control!$B$104,N104/$F104*$H104)) -> 54.41930453 | V104: =IF('Comparison - Category'!C104="Residential",SUM(Q104:T104,Control!$B$103),IF('Comparison - Category'!C104="Rural",SUM(Q104:T104,Control!$B$104),O104/$F104*$H104)) -> 480.538541 | X104: 0.03528485707 | Y104: 0 | Z104: 0.0276381789 | AA104: 0 | AB104: =IF(OR('Comparison - Category'!C104="Residential",'Comparison - Category'!C104="Rural"),U104,N104/$F104*100) -> 0.008035844344 | AC104: 0.07095888032
A105: =Control!A91 -> South Wairarapa district | B105: =Control!B91 -> South Wairarapa district | C105: =Control!C91 -> Residential | D105: =Control!D91 -> South Wairarapa districtResidential | F105: 1373326100 | G105: 3307 | H105: 415278.5304 | J105: 484576.1515 | K105: 0 | L105: =INDEX('Public transport'!$I$23:$I$49,MATCH($D105,'Public transport'!$D$23:$D$49,0),) -> 292526.686 | M105: =INDEX(Stadium!$G$23:$G$49,MATCH($D105,Stadium!$D$23:$D$49,0),) -> 0 | N105: =INDEX(WRS!$K$23:$K$49,MATCH($D105,WRS!$D$23:$D$49,0),) -> 44870 | O105: 821972.8374 | Q105: 146.5304359 | R105: 0 | S105: 88.45681462 | T105: 0 | U105: =IF('Comparison - Category'!C105="Residential",Control!$B$103,IF('Comparison - Category'!C105="Rural",Control!$B$104,N105/$F105*$H105)) -> 14 | V105: =IF('Comparison - Category'!C105="Residential",SUM(Q105:T105,Control!$B$103),IF('Comparison - Category'!C105="Rural",SUM(Q105:T105,Control!$B$104),O105/$F105*$H105)) -> 248.9872505 | X105: 0.03528485707 | Y105: 0 | Z105: 0.02130059903 | AA105: 0 | AB105: =IF(OR('Comparison - Category'!C105="Residential",'Comparison - Category'!C105="Rural"),U105,N105/$F105*100) -> 14 | AC105: 0.05985270632
A106: =Control!A92 -> South Wairarapa district | B106: =Control!B92 -> South Wairarapa district | C106: =Control!C92 -> Rural | D106: =Control!D92 -> South Wairarapa districtRural | F106: 2970196100 | G106: 3127 | H106: 949854.8449 | J106: 1048029.449 | K106: 0 | L106: =INDEX('Public transport'!$I$23:$I$49,MATCH($D106,'Public transport'!$D$23:$D$49,0),) -> 209654.6431 | M106: =INDEX(Stadium!$G$23:$G$49,MATCH($D106,Stadium!$D$23:$D$49,0),) -> 0 | N106: =INDEX(WRS!$K$23:$K$49,MATCH($D106,WRS!$D$23:$D$49,0),) -> 79156 | O106: 1336840.092 | Q106: 335.1549244 | R106: 0 | S106: 67.04657599 | T106: 0 | U106: =IF('Comparison - Category'!C106="Residential",Control!$B$103,IF('Comparison - Category'!C106="Rural",Control!$B$104,N106/$F106*$H106)) -> 28 | V106: =IF('Comparison - Category'!C106="Residential",SUM(Q106:T106,Control!$B$103),IF('Comparison - Category'!C106="Rural",SUM(Q106:T106,Control!$B$104),O106/$F106*$H106)) -> 430.2015004 | X106: 0.03528485707 | Y106: 0 | Z106: 0.007058612835 | AA106: 0 | AB106: =IF(OR('Comparison - Category'!C106="Residential",'Comparison - Category'!C106="Rural"),U106,N106/$F106*100) -> 28 | AC106: 0.04500847913
A107: =Control!A93 -> Tararua district | B107: =Control!B93 -> Tararua district | C107: =Control!C93 -> Rural | D107: =Control!D93 -> Tararua districtRural | F107: 10673500 | G107: 10 | H107: 1067350 | J107: 3927.413879 | K107: 0 | L107: =INDEX('Public transport'!$I$23:$I$49,MATCH($D107,'Public transport'!$D$23:$D$49,0),) -> 0 | M107: =INDEX(Stadium!$G$23:$G$49,MATCH($D107,Stadium!$D$23:$D$49,0),) -> 0 | N107: =INDEX(WRS!$K$23:$K$49,MATCH($D107,WRS!$D$23:$D$49,0),) -> 252 | O107: 4179.413879 | Q107: 392.7413879 | R107: 0 | S107: 0 | T107: 0 | U107: =IF('Comparison - Category'!C107="Residential",Control!$B$103,IF('Comparison - Category'!C107="Rural",Control!$B$104,N107/$F107*$H107)) -> 28 | V107: =IF('Comparison - Category'!C107="Residential",SUM(Q107:T107,Control!$B$103),IF('Comparison - Category'!C107="Rural",SUM(Q107:T107,Control!$B$104),O107/$F107*$H107)) -> 420.7413879 | X107: 0.03679593272 | Y107: 0 | Z107: 0 | AA107: 0 | AB107: =IF(OR('Comparison - Category'!C107="Residential",'Comparison - Category'!C107="Rural"),U107,N107/$F107*100) -> 28 | AC107: 0.03915692021
A108: Region wide | D108: =Control!D94 -> Region wide | F108: =SUM(F81:F107) -> 141110137110 | G108: =SUM(G81:G107) -> 202034 | H108: 698447.4747 | J108: =SUM(J81:J107) -> 51060208.17 | K108: =SUM(K81:K107) -> 7041148.242 | L108: 71524907.76 | M108: 0 | N108: 4705805.159 | O108: 134332069.3 | Q108: 252.7307689 | R108: 34.85130346 | S108: 354.0241136 | T108: 0 | U108: =N108/$F108*$H108 -> 23.29214468 | V108: =IF('Comparison - Category'!C108="Residential",SUM(Q108:T108,Control!$B$103),IF('Comparison - Category'!C108="Rural",SUM(Q108:T108,Control!$B$104),O108/$F108*$H108)) -> 664.8983306 | X108: 0.03618464925 | Y108: 0.004989824535 | Z108: 0.05068729237 | AA108: 0 | AB108: =IF(OR(C108="Residential",C108="Rural"),U108,N108/$F108*100) -> 0.003334845572 | AC108: 0.09519661172
A110: By category
A111: Region Wide | C111: =C81 -> Regional CBD | D111: =A111&C111 -> Region WideRegional CBD | F111: =SUMIF($C$81:$C$107,$C111,F$81:F$107) -> 9921148650 | G111: 3340 | H111: =F111/G111 -> 2970403.787 | J111: =SUMIF($C$81:$C$107,$C111,J$81:J$107) -> 5197017.331 | K111: 8688.683111 | L111: 25071880.57 | M111: 0 | N111: 775888.1501 | O111: 31053474.74 | Q111: =J111/$F111*$H111 -> 1555.993213 | R111: 2.601402129 | S111: 7506.55107 | T111: 0 | U111: 232.3018413 | V111: =IF('Comparison - Category'!C111="Residential",SUM(Q111:T111,Control!$B$103),IF('Comparison - Category'!C111="Rural",SUM(Q111:T111,Control!$B$104),O111/$F111*$H111)) -> 9297.447526
A112: Region Wide | C112: =C82 -> Business | D112: Region WideBusiness | F112: 12953717350 | G112: 8220 | H112: 1575878.023 | J112: 5087272.997 | K112: 1094500.439 | L112: 6105052.574 | M112: 0 | N112: 1098179.009 | O112: 13385005.02 | Q112: 618.889659 | R112: 133.150905 | S112: 742.7071258 | T112: 0 | U112: 133.5984196 | V112: =IF('Comparison - Category'!C112="Residential",SUM(Q112:T112,Control!$B$103),IF('Comparison - Category'!C112="Rural",SUM(Q112:T112,Control!$B$104),O112/$F112*$H112)) -> 1628.346109
A113: Region Wide | C113: =C83 -> Residential | D113: Region WideResidential | F113: 106115197320 | G113: 175587 | H113: 604345.4089 | J113: 36426139.55 | K113: 5576350.863 | L113: 39398894.96 | M113: 0 | N113: 2450490 | O113: 83851875.37 | Q113: 207.4535105 | R113: 31.75833554 | S113: 224.383895 | T113: 0 | U113: 13.95598763 | V113: =IF('Comparison - Category'!C113="Residential",SUM(Q113:T113,Control!$B$103),IF('Comparison - Category'!C113="Rural",SUM(Q113:T113,Control!$B$104),O113/$F113*$H113)) -> 477.595741
A114: Region Wide | C114: =C84 -> Rural | D114: Region WideRural | F114: 12120073790 | G114: 14887 | H114: 814138.093 | J114: 4349778.289 | K114: 361608.2576 | L114: 949079.6521 | M114: 0 | N114: 381248 | O114: 6041714.199 | Q114: 292.1863565 | R114: 24.29020337 | S114: 63.75224371 | T114: 0 | U114: 25.60945792 | V114: =IF('Comparison - Category'!C114="Residential",SUM(Q114:T114,Control!$B$103),IF('Comparison - Category'!C114="Rural",SUM(Q114:T114,Control!$B$104),O114/$F114*$H114)) -> 408.2288036
A115: Region Wide | C115: Total | D115: Region WideTotal | F115: =SUM(F111:F114) -> 141110137110 | G115: =SUM(G111:G114) -> 202034 | H115: 698447.4747 | J115: =SUM(J111:J114) -> 51060208.17 | K115: =SUM(K111:K114) -> 7041148.242 | L115: 71524907.76 | M115: 0 | N115: 4705805.159 | O115: 134332069.3 | Q115: 252.7307689 | R115: 34.85130346 | S115: 354.0241136 | T115: 0 | U115: 23.29214468 | V115: =IF('Comparison - Category'!C115="Residential",SUM(Q115:T115,Control!$B$103),IF('Comparison - Category'!C115="Rural",SUM(Q115:T115,Control!$B$104),O115/$F115*$H115)) -> 664.8983306
J118: =IF(ABS(J78-SUM(J69:J77))>tolerance_dollar,1,0) -> 0 | K118: =IF(ABS(K78-SUM(K69:K77))>tolerance_dollar,1,0) -> 0 | L118: 0 | M118: 0 | N118: =IF(ABS(N78-SUM(N69:N77))>tolerance_dollar,1,0) -> 0 | O118: 0
J119: =J108-SUM(J81:J107) -> 0 | K119: =K108-SUM(K81:K107) -> 0 | L119: =L108-SUM(L81:L107) -> 0 | M119: =M108-SUM(M81:M107) -> 0 | N119: =N108-SUM(N81:N107) -> 0 | O119: 0
F120: =F108-F78 -> 0 | G120: =G108-G78 -> 0 | J120: =IF(ABS(J108-J78)>tolerance_dollar,1,0) -> 0 | K120: =IF(ABS(K108-K78)>tolerance_dollar,1,0) -> 0 | L120: 0 | M120: 0 | N120: =IF(ABS(N108-N78)>tolerance_dollar,1,0) -> 0 | O120: 0 | Q120: =IF(ABS(Q108-Q78)>tolerance_dollar,1,0) -> 0 | R120: 0 | S120: 0 | T120: 0 | U120: 0 | V120: 0
A123: Delta
J124: Rates | Q124: Rates / average CV | X124: Cents/$ OR Regional Strategy Rate $/property
A125: =Control!A$66 -> TA full name | B125: =Control!B$66 -> Rating area | C125: =Control!C$66 -> Category group | D125: =Control!D$66 -> Concatenated name | F125: CV | G125: CV Assessments | H125: Average CV | J125: General rate | K125: River management rate | L125: Public transport rate | M125: Stadium purposes rate | N125: Wellington regional strategy rate | O125: District-Wide rates | Q125: General rate | R125: River management rate | S125: Public transport rate | T125: Stadium purposes rate | U125: Wellington regional strategy rate | V125: District-Wide rates | X125: General rate | Y125: River management rate | Z125: Public transport rate | AA125: Stadium purposes rate | AB125: Wellington regional strategy rate | AC125: District-Wide rates
A127: By TA
A128: =Control!A42 -> Wellington city | C128: =Control!B42 -> District wide | D128: =Control!C42 -> Wellington cityDistrict wide | F128: =F69-F10 -> 20861712999 | G128: 484 | H128: 263785.0765 | J128: =J69-J10 -> 1969798.378 | K128: =K69-K10 -> 21125.11426 | L128: =L69-L10 -> 2232514.016 | M128: 0 | N128: -185142.9495 | O128: 4038294.558 | Q128: =Q69-Q10 -> 23.44952163 | R128: 0.2679167884 | S128: 25.38757772 | T128: 0 | U128: -2.567057647 | V128: 46.5379585
A129: =Control!A43 -> Hutt city | C129: =Control!B43 -> District wide | D129: =Control!C43 -> Hutt cityDistrict wide | F129: 122873500 | G129: 111 | H129: 1583.928167 | J129: 544438.1122 | K129: =K70-K11 -> 318704.7361 | L129: 243421.7904 | M129: 0 | N129: -12377.58457 | O129: 1094187.054 | Q129: 13.24098318 | R129: 7.776939719 | S129: 5.338394629 | T129: 0 | U129: -0.3774972763 | V129: 25.97882025
A130: =Control!A44 -> Upper Hutt city | C130: =Control!B44 -> District wide | D130: =Control!C44 -> Upper Hutt cityDistrict wide | F130: 91309000 | G130: 122 | H130: 1881.990399 | J130: 326000.9584 | K130: =K71-K12 -> 139172.4441 | L130: 183783.8143 | M130: 0 | N130: 994.1479436 | O130: 649951.3648 | Q130: 17.95747105 | R130: 7.941704835 | S130: 8.891019826 | T130: 0 | U130: -0.0920404383 | V130: 34.69815527
A131: =Control!A45 -> Porirua city | C131: =Control!B45 -> District wide | D131: =Control!C45 -> Porirua cityDistrict wide | F131: 90183050 | G131: 133 | H131: 903.4016927 | J131: 290177.3775 | K131: =K72-K13 -> 14650.74476 | L131: 33289.74544 | M131: 0 | N131: -2310.355816 | O131: 335807.5119 | Q131: 13.98219545 | R131: 0.7662450579 | S131: -0.5345721968 | T131: 0 | U131: -0.260115119 | V131: 13.95375319
A132: =Control!A46 -> Kāpiti Coast district | C132: =Control!B46 -> District wide | D132: =Control!C46 -> Kāpiti Coast districtDistrict wide | F132: 123742500 | G132: 91 | H132: 2788.658936 | J132: 344610.6964 | K132: =K73-K14 -> 88050.10311 | L132: 499587.8611 | M132: 0 | N132: -4398.587083 | O132: 927850.0735 | Q132: 13.01649214 | R132: 3.313888798 | S132: 19.3798492 | T132: 0 | U132: -0.2455782937 | V132: 35.46465185
A133: =Control!A47 -> Masterton district | C133: =Control!B47 -> District wide | D133: =Control!C47 -> Masterton districtDistrict wide | F133: 73995500 | G133: 188 | H133: -1202.056015 | J133: 141343.0095 | K133: =K74-K15 -> 0 | L133: 129283.0552 | M133: 0 | N133: 812.8368757 | O133: 271438.9016 | Q133: 8.887013505 | R133: 0 | S133: 9.786148455 | T133: 0 | U133: -0.231619336 | V133: 18.44154262
A134: =Control!A48 -> Carterton district | C134: =Control!B48 -> District wide | D134: =Control!C48 -> Carterton districtDistrict wide | F134: 20298500 | G134: 9 | H134: 3236.014627 | J134: 60193.67785 | K134: =K75-K16 -> 474.1 | L134: 38273.28626 | M134: 0 | N134: -864.0468027 | O134: 98077.01731 | Q134: 12.51163967 | R134: 0.09170144546 | S134: 8.090841816 | T134: 0 | U134: -0.2222662709 | V134: 20.47191666
A135: =Control!A49 -> South Wairarapa district | C135: =Control!B49 -> District wide | D135: =Control!C49 -> South Wairarapa districtDistrict wide | F135: 47140500 | G135: 89 | H135: -1945.491023 | J135: 98757.65996 | K135: =K76-K17 -> 0 | L135: 55076.40004 | M135: 0 | N135: 1230.877166 | O135: 155064.9372 | Q135: 11.65005451 | R135: 0 | S135: 7.162490201 | T135: 0 | U135: -0.09454708182 | V135: 18.71799763
A136: =Control!A50 -> Tararua district | C136: =Control!B50 -> District wide | D136: =Control!C50 -> Tararua districtDistrict wide | F136: -87000 | G136: 0 | H136: -8700 | J136: 1574.389236 | K136: =K77-K18 -> 0 | L136: 0 | M136: 0 | N136: 0 | O136: 1574.389236 | Q136: 157.4389236 | R136: 0 | S136: 0 | T136: 0 | U136: 0 | V136: 157.4389236
A137: Region wide | D137: =Control!C51 -> Region wide | F137: 21431168549 | G137: 1227 | H137: 102457.4517 | J137: 3776894.259 | K137: =K78-K19 -> 582177.4353 | L137: 3415229.968 | M137: 0 | N137: -202055.6618 | O137: 7572246 | Q137: 17.26430655 | R137: 2.68623547 | S137: 14.84431509 | T137: 0 | U137: -1.148541253 | V137: 33.64631586
A139: By TA & Category
A140: =Control!A67 -> Wellington city | B140: =Control!B67 -> Wellington city | C140: =Control!C67 -> Regional CBD | D140: =Control!D67 -> Wellington cityRegional CBD | F140: =F81-F22 -> 1957785650 | G140: -41 | H140: 615076.0737 | J140: =J81-J22 -> 1666909.434 | K140: =K81-K22 -> 2151.852537 | L140: =L81-L22 -> -772283.6961 | M140: 0 | N140: -118042.5149 | O140: 778735.0761 | Q140: =Q81-Q22 -> 511.8914984 | R140: 0.6680005987 | S140: -137.3898557 | T140: 0 | U140: -32.0964624 | V140: 343.0731809 | X140: =X81-X22 -> 0.008053861533 | Y140: 5.491083982e-06 | Z140: -0.07182684737 | AA140: 0 | AB140: -0.003404994511 | AC140: -0.06717248926
A141: =Control!A68 -> Wellington city | B141: =Control!B68 -> Wellington city | C141: =Control!C68 -> Business | D141: =Control!D68 -> Wellington cityBusiness | F141: 742385250 | G141: -2 | H141: 393510.0683 | J141: 130955.6843 | K141: =K82-K23 -> 864.1014229 | L141: 96338.06485 | M141: 0 | N141: -74604.4346 | O141: 153553.416 | Q141: 69.99192035 | R141: 0.4572850348 | S141: 51.59565624 | T141: 0 | U141: -39.08477141 | V141: 82.96009021 | X141: -0.004271602488 | Y141: 5.491083982e-06 | Z141: -0.003925426958 | AA141: 0 | AB141: -0.003404994511 | AC141: -0.01159653287
A142: =Control!A69 -> Wellington city | B142: =Control!B69 -> Wellington city | C142: =Control!C69 -> Residential | D142: =Control!D69 -> Wellington cityResidential | F142: 17962565549 | G142: 518 | H142: 246085.7562 | J142: 191167.5168 | K142: =K83-K24 -> 17902.17796 | L142: 2902847.796 | M142: 0 | N142: 7252 | O142: 3119169.491 | Q142: 0.8889420194 | R142: 0.2459613212 | S142: 39.04284602 | T142: 0 | U142: 0 | V142: 40.17774936 | X142: -0.0135157005 | Y142: 5.491083982e-06 | Z142: -0.005671343063 | AA142: 0 | AB142: 0 | AC142: -0.01995772594
A143: =Control!A70 -> Wellington city | B143: =Control!B70 -> Wellington city | C143: =Control!C70 -> Rural | D143: =Control!D70 -> Wellington cityRural | F143: 198976550 | G143: 9 | H143: 243176.0249 | J143: -19234.258 | K143: =K84-K25 -> 206.9823411 | L143: 5611.850473 | M143: 0 | N143: 252 | O143: -13163.42519 | Q143: -28.20072475 | R143: 0.2548671797 | S143: 6.342184786 | T143: 0 | U143: 0 | V143: -21.60367278 | X143: -0.0135157005 | Y143: 5.491083982e-06 | Z143: -0.001486502251 | AA143: 0 | AB143: 0 | AC143: -0.01588351182
A144: =Control!A71 -> Hutt city | B144: =Control!B71 -> Hutt city | C144: =Control!C71 -> Business | D144: =Control!D71 -> Hutt cityBusiness | F144: 23984000 | G144: -12 | H144: 18296.25604 | J144: 97277.10242 | K144: =K85-K26 -> 56906.92401 | L144: 140596.8788 | M144: 0 | N144: -14211.58457 | O144: 280569.3207 | Q144: 44.29763699 | R144: 25.77806037 | S144: 64.27953629 | T144: 0 | U144: -5.24925897 | V144: 129.1059747 | X144: 0.002314336423 | Y144: 0.00136440363 | Z144: 0.003325224538 | AA144: 0 | AB144: -0.0004326904271 | AC144: 0.006571274164
A145: =Control!A72 -> Hutt city | B145: =Control!B72 -> Hutt city | C145: =Control!C72 -> Residential | D145: =Control!D72 -> Hutt cityResidential | F145: 93896500 | G145: 115 | H145: 1074.874784 | J145: 437955.0557 | K145: =K86-K27 -> 256462.5585 | L145: 102010.7043 | M145: 0 | N145: 1610 | O145: 798038.3185 | Q145: 11.41944695 | R145: 6.71244975 | S145: 1.971379141 | T145: 0 | U145: 0 | V145: 20.10327584 | X145: 0.002314336423 | Y145: 0.00136440363 | Z145: 0.0002903288344 | AA145: 0 | AB145: 0 | AC145: 0.003962465001
A146: =Control!A73 -> Hutt city | B146: =Control!B73 -> Hutt city | C146: =Control!C73 -> Rural | D146: =Control!D73 -> Hutt cityRural | F146: 4993000 | G146: 8 | H146: -408.7773224 | J146: 9205.954075 | K146: =K87-K28 -> 5335.253633 | L146: 814.2072665 | M146: 0 | N146: 224 | O146: 15579.41497 | Q146: 14.85805661 | R146: 8.767018422 | S146: 0.1845253921 | T146: 0 | U146: 0 | V146: 23.80960042 | X146: 0.002314336423 | Y146: 0.00136440363 | Z146: 3.72364233e-05 | AA146: 0 | AB146: 0 | AC146: 0.003718695095
A147: =Control!A74 -> Upper Hutt city | B147: =Control!B74 -> Upper Hutt city | C147: =Control!C74 -> Business | D147: =Control!D74 -> Upper Hutt cityBusiness | F147: 7663000 | G147: 30 | H147: -55704.14089 | J147: 44550.26048 | K147: =K88-K29 -> 19440.32089 | L147: 57158.88419 | M147: 0 | N147: -1063.852056 | O147: 120085.6135 | Q147: 35.01722692 | R147: 20.68337583 | S147: 34.94127675 | T147: 0 | U147: -7.6812767 | V147: 82.9606028 | X147: 0.003525317437 | Y147: 0.001591413124 | Z147: 0.004424950175 | AA147: 0 | AB147: -0.0001514269133 | AC147: 0.009390253823
A148: =Control!A75 -> Upper Hutt city | B148: =Control!B75 -> Upper Hutt city | C148: =Control!C75 -> Residential | D148: =Control!D75 -> Upper Hutt cityResidential | F148: 76772000 | G148: 79 | H148: 2949.804657 | J148: 248503.4074 | K148: =K89-K30 -> 105460.6014 | L148: 123197.9684 | M148: 0 | N148: 1302 | O148: 478463.9772 | Q148: 15.85141506 | R148: 6.897515204 | S148: 6.935443565 | T148: 0 | U148: 0 | V148: 29.68437382 | X148: 0.003525317437 | Y148: 0.001591413124 | Z148: 0.001231457149 | AA148: 0 | AB148: 0 | AC148: 0.006327684794
A149: =Control!A76 -> Upper Hutt city | B149: =Control!B76 -> Upper Hutt city | C149: =Control!C76 -> Rural | D149: =Control!D76 -> Upper Hutt cityRural | F149: 6874000 | G149: 13 | H149: -1574.822902 | J149: 32947.2905 | K149: =K90-K31 -> 14271.52182 | L149: 3426.961716 | M149: 0 | N149: 756 | O149: 51401.77403 | Q149: 23.40221108 | R149: 10.70216473 | S149: 1.629527387 | T149: 0 | U149: 0 | V149: 35.7339032 | X149: 0.003525317437 | Y149: 0.001591413124 | Z149: 0.0002750327421 | AA149: 0 | AB149: 0 | AC149: 0.005448876353
A150: =Control!A77 -> Porirua city | B150: =Control!B77 -> Porirua city | C150: =Control!C77 -> Business | D150: =Control!D77 -> Porirua cityBusiness | F150: 1740000 | G150: 1 | H150: 450.9147712 | J150: 27922.21164 | K150: =K91-K32 -> 1531.301166 | L150: 28130.61531 | M150: 0 | N150: -4060.355816 | O150: 53523.7723 | Q150: 34.34749372 | R150: 1.913271249 | S150: 34.13740413 | T150: 0 | U150: -5.250928123 | V150: 65.14724098 | X150: 0.002475691908 | Y150: 0.0001384737489 | Z150: 0.002451575917 | AA150: 0 | AB150: -0.0003834044983 | AC150: 0.004682337075
A151: =Control!A78 -> Porirua city | B151: =Control!B78 -> Porirua city | C151: =Control!C78 -> Residential | D151: =Control!D78 -> Porirua cityResidential | F151: 90732000 | G151: 139 | H151: 1255.933202 | J151: 247669.1807 | K151: =K92-K33 -> 12263.50215 | L151: 6651.819481 | M151: 0 | N151: 1946 | O151: 268530.5024 | Q151: 12.76698933 | R151: 0.6920987717 | S151: -2.06258273 | T151: 0 | U151: 0 | V151: 11.39650538 | X151: 0.002475691908 | Y151: 0.0001384737489 | Z151: -0.000571200888 | AA151: 0 | AB151: 0 | AC151: 0.002035823765
A152: =Control!A79 -> Porirua city | B152: =Control!B79 -> Porirua city | C152: =Control!C79 -> Rural | D152: =Control!D79 -> Porirua cityRural | F152: =F93-F34 -> -2288950 | G152: -7 | H152: 7699.185576 | J152: 14585.98511 | K152: =K93-K34 -> 855.9414409 | L152: -1492.689359 | M152: 0 | N152: -196 | O152: 13753.23719 | Q152: 27.920701 | R152: 1.426822191 | S152: -0.6312451626 | T152: 0 | U152: 0 | V152: 28.71627802 | X152: 0.002475691908 | Y152: 0.0001384737489 | Z152: -0.0001817666287 | AA152: 0 | AB152: 0 | AC152: 0.002411197428
A153: =Control!A80 -> Kāpiti Coast district | B153: =Control!B80 -> Kāpiti Coast district | C153: =Control!C80 -> Business | D153: =Control!D80 -> Kāpiti Coast districtBusiness | F153: -2660500 | G153: -1 | H153: -1164.060224 | J153: 29205.09802 | K153: =K94-K35 -> 7379.069173 | L153: 90391.15201 | M153: 0 | N153: -5868.587083 | O153: 121106.7321 | Q153: 22.18552993 | R153: 5.610889562 | S153: 68.05467839 | T153: 0 | U153: -4.332591342 | V153: 91.51850654 | X153: 0.002037847765 | Y153: 0.0005160623151 | Z153: 0.006174968231 | AA153: 0 | AB153: -0.0003823162923 | AC153: 0.008346562019
A154: =Control!A81 -> Kāpiti Coast district | B154: =Control!B81 -> Kāpiti Coast district excl Ōtaki | C154: =Control!C81 -> Residential | D154: =Control!D81 -> Kāpiti Coast district excl Ōtaki Residential | F154: =F95-F36 -> 91046000 | G154: 66 | H154: 2970.960734 | J154: =J95-J36 -> 240358.0078 | K154: 61442.83206 | L154: 385348.5289 | M154: 0 | N154: 966 | O154: 688115.3687 | Q154: =Q95-Q36 -> 12.69198546 | R154: 3.232862082 | S154: 20.89967069 | T154: 0 | U154: 0 | V154: 36.82451824 | X154: =X95-X36 -> 0.002037847765 | Y154: 0.0005160623151 | Z154: 0.003498932567 | AA154: 0 | AB154: 0 | AC154: 0.006040778657
A155: =Control!A82 -> Kāpiti Coast district | B155: =Control!B82 -> Ōtaki rating area | C155: =Control!C82 -> Residential | D155: =Control!D82 -> Ōtaki rating areaResidential | F155: =F96-F37 -> 16752000 | G155: 22 | H155: 2848.615905 | J155: 28417.73743 | K155: 7302.243283 | L155: 5746.859213 | M155: 0 | N155: 336 | O155: 41802.83992 | Q155: =Q96-Q37 -> 8.148845685 | R155: 2.08158994 | S155: 1.227678664 | T155: 0 | U155: 0 | V155: 11.45811429 | X155: =X96-X37 -> 0.002037847765 | Y155: 0.0005160623151 | Z155: 0.0001538879868 | AA155: 0 | AB155: 0 | AC155: 0.002678983802
A156: =Control!A83 -> Kāpiti Coast district | B156: =Control!B83 -> Kāpiti Coast district | C156: =Control!C83 -> Rural | D156: =Control!D83 -> Kāpiti Coast districtRural | F156: =F97-F38 -> 18605000 | G156: 4 | H156: 5904.412265 | J156: 46629.85314 | K156: 11925.95859 | L156: 18101.32097 | M156: 0 | N156: 168 | O156: 76825.1327 | Q156: =Q97-Q38 -> 17.24275588 | R156: 4.403815043 | S156: 6.760513134 | T156: 0 | U156: 0 | V156: 28.40708405 | X156: =X97-X38 -> 0.002037847765 | Y156: 0.0005160623151 | Z156: 0.0008469458895 | AA156: 0 | AB156: 0 | AC156: 0.003376141198
A157: =Control!A84 -> Masterton district | B157: =Control!B84 -> Masterton district | C157: =Control!C84 -> Business | D157: =Control!D84 -> Masterton districtBusiness | F157: =F98-F39 -> -154000 | G157: -1 | H157: 1154.704752 | J157: 8467.14688 | K157: 0 | L157: 24176.41402 | M157: 0 | N157: -1791.163124 | O157: 30852.39778 | Q157: =Q98-Q39 -> 15.90614164 | R157: 0 | S157: 44.2322668 | T157: 0 | U157: -3.1402091 | V157: 56.99819934 | X157: =X98-X39 -> 0.001966487806 | Y157: 0 | Z157: 0.005585604412 | AA157: 0 | AB157: -0.0004104325815 | AC157: 0.007141659637
A158: =Control!A85 -> Masterton district | B158: =Control!B85 -> Masterton district | C158: =Control!C85 -> Residential | D158: =Control!D85 -> Masterton districtResidential | F158: =F99-F40 -> 74539500 | G158: 174 | H158: 2135.411597 | J158: =J99-J40 -> 77778.26928 | K158: =K99-K40 -> 0 | L158: =L99-L40 -> 67119.98359 | M158: 0 | N158: 2380 | O158: 147278.2529 | Q158: =Q99-Q40 -> 7.233808039 | R158: 0 | S158: 7.552439258 | T158: 0 | U158: 0 | V158: 14.7862473 | X158: =X99-X40 -> 0.001966487806 | Y158: 0 | Z158: 0.002211618692 | AA158: 0 | AB158: 0 | AC158: 0.004148824235
A159: =Control!A86 -> Masterton district | B159: =Control!B86 -> Masterton district | C159: =Control!C86 -> Rural | D159: =Control!D86 -> Masterton districtRural | F159: -390000 | G159: 15 | H159: -2888.095629 | J159: 55097.59337 | K159: =K100-K41 -> 0 | L159: 37986.65762 | M159: 0 | N159: 224 | O159: 93308.25099 | Q159: 13.20691639 | R159: 0 | S159: 9.650098477 | T159: 0 | U159: 0 | V159: 22.85701487 | X159: 0.001966487806 | Y159: 0 | Z159: 0.001353068561 | AA159: 0 | AB159: 0 | AC159: 0.003328008595
A160: =Control!A87 -> Carterton district | B160: =Control!B87 -> Carterton district | C160: =Control!C87 -> Business | D160: =Control!D87 -> Carterton districtBusiness | F160: 474000 | G160: -1 | H160: 3981.33601 | J160: 2075.104396 | K160: =K101-K42 -> 14.7725812 | L160: 4637.106328 | M160: 0 | N160: -360.0468027 | O160: 6366.936502 | Q160: 9.818641098 | R160: 0.08199958541 | S160: 20.8883909 | T160: 0 | U160: -1.43187963 | V160: 29.35715195 | X160: 0.001971551385 | Y160: 1.090076129e-05 | Z160: 0.004678394698 | AA160: 0 | AB160: -0.0004124679845 | AC160: 0.006248378859
A161: =Control!A88 -> Carterton district | B161: =Control!B88 -> Carterton district | C161: =Control!C88 -> Residential | D161: =Control!D88 -> Carterton districtResidential | F161: 14982000 | G161: 5 | H161: 5514.379126 | J161: 21997.27794 | K161: =K102-K43 -> 225.9056172 | L161: 13588.16046 | M161: 0 | N161: -392 | O161: 35419.34402 | Q161: 8.928268146 | R161: 0.08774742114 | S161: 5.546564216 | T161: 0 | U161: 0 | V161: 14.56257978 | X161: 0.001971551385 | Y161: 1.090076129e-05 | Z161: 0.001292277065 | AA161: 0 | AB161: 0 | AC161: 0.003160941614
A162: =Control!A89 -> Carterton district | B162: =Control!B89 -> Carterton district | C162: =Control!C89 -> Rural | D162: =Control!D89 -> Carterton districtRural | F162: 4842500 | G162: 5 | H162: 280.0845064 | J162: 36121.29552 | K162: =K103-K44 -> 233.4218016 | L162: 20048.01947 | M162: 0 | N162: -112 | O162: 56290.73679 | Q162: 16.93284664 | R162: 0.09557169566 | S162: 9.68157711 | T162: 0 | U162: 0 | V162: 26.70999544 | X162: 0.001971551385 | Y162: 1.090076129e-05 | Z162: 0.001131906609 | AA162: 0 | AB162: 0 | AC162: 0.00310018252
A163: =Control!A90 -> South Wairarapa district | B163: =Control!B90 -> South Wairarapa district | C163: =Control!C90 -> Business | D163: =Control!D90 -> South Wairarapa districtBusiness | F163: 4795000 | G163: 8 | H163: -2048.211876 | J163: 5453.968003 | K163: =K104-K45 -> 0 | L163: 9303.871434 | M163: 0 | N163: -519.1228338 | O163: 14238.7166 | Q163: 11.6524858 | R163: 0 | S163: 25.67937455 | T163: 0 | U163: -3.139727862 | V163: 34.19213248 | X163: 0.001821876855 | Y163: 0 | Z163: 0.003863858616 | AA163: 0 | AB163: -0.0004379998073 | AC163: 0.005247735664
A164: =Control!A91 -> South Wairarapa district | B164: =Control!B91 -> South Wairarapa district | C164: =Control!C91 -> Residential | D164: =Control!D91 -> South Wairarapa districtResidential | F164: 54440000 | G164: 78 | H164: 6828.205212 | J164: 43237.55679 | K164: =K105-K46 -> 0 | L164: 18648.59659 | M164: 0 | N164: 630 | O164: 62516.15339 | Q164: 9.85078439 | R164: 0 | S164: 3.638576975 | T164: 0 | U164: 0 | V164: 13.48936136 | X164: 0.001821876855 | Y164: 0 | Z164: 0.0005347353711 | AA164: 0 | AB164: 0 | AC164: 0.002269516683
A165: =Control!A92 -> South Wairarapa district | B165: =Control!B92 -> South Wairarapa district | C165: =Control!C92 -> Rural | D165: =Control!D92 -> South Wairarapa districtRural | F165: -12094500 | G165: 3 | H165: -4783.631413 | J165: 50066.13516 | K165: =K106-K47 -> 0 | L165: 27123.93201 | M165: 0 | N165: 1120 | O165: 78310.06717 | Q165: 15.70443995 | R165: 0 | S165: 8.618051306 | T165: 0 | U165: 0 | V165: 24.32249125 | X165: 0.001821876855 | Y165: 0 | Z165: 0.000938125746 | AA165: 0 | AB165: 0 | AC165: 0.002808365411
A166: =Control!A93 -> Tararua district | B166: =Control!B93 -> Tararua district | C166: =Control!C93 -> Rural | D166: =Control!D93 -> Tararua districtRural | F166: -87000 | G166: 0 | H166: -8700 | J166: 1574.389236 | K166: =K107-K48 -> 0 | L166: 0 | M166: 0 | N166: 0 | O166: 1574.389236 | Q166: 157.4389236 | R166: 0 | S166: 0 | T166: 0 | U166: 0 | V166: 157.4389236 | X166: 0.01492869009 | Y166: 0 | Z166: 0 | AA166: 0 | AB166: 0 | AC166: 0.01494777897
A167: Region wide | D167: =Control!D94 -> Region wide | F167: 21431168549 | G167: 1227 | H167: 102457.4517 | J167: 3776894.259 | K167: =K108-K49 -> 582177.2424 | L167: 3415229.968 | M167: 0 | N167: -202055.6618 | O167: 7572245.808 | Q167: 17.26430655 | R167: 2.686234509 | S167: 14.84431509 | T167: 0 | U167: -1.148541253 | V167: 33.6463149 | X167: -0.003323807815 | Y167: -0.0004070894576 | Z167: -0.006223022459 | AA167: 0 | AB167: -0.0007660093066 | AC167: -0.01071992904
A169: By category
A170: Region Wide | C170: =C140 -> Regional CBD | D170: =A170&C170 -> Region WideRegional CBD | F170: =F111-F52 -> 1957785650 | G170: -41 | H170: 615076.0737 | J170: =J111-J52 -> 1666909.434 | K170: =K111-K52 -> 2151.852537 | L170: -772283.6961 | M170: 0 | N170: -118042.5149 | O170: 778735.0761 | Q170: =Q111-Q52 -> 511.8914984 | R170: 0.6680005987 | S170: -137.3898557 | T170: 0 | U170: -32.0964624 | V170: 343.0731809 | X170: driven by % decrease of busi ECV in WCC
A171: Region Wide | C171: =C141 -> Business | D171: Region WideBusiness | F171: =F112-F53 -> 778226750 | G171: 22 | H171: 90699.85771 | J171: =J112-J53 -> 345906.5761 | K171: =K112-K53 -> 86136.48925 | L171: 450732.9869 | M171: 0 | N171: -102479.1469 | O171: 780296.9054 | Q171: =Q112-Q53 -> 40.53317927 | R171: 10.14969131 | S171: 52.98773239 | T171: 0 | U171: -12.85902807 | V171: 90.8115749
A172: Region Wide | C172: =C142 -> Residential | D172: Region WideResidential | F172: =F113-F54 -> 18475725549 | G172: 1196 | H172: 101799.5679 | J172: =J113-J54 -> 1537084.01 | K172: =K113-K54 -> 461059.821 | L172: 3625160.417 | M172: 0 | N172: 16030 | O172: 5639334.248 | Q172: =Q113-Q54 -> 7.391262228 | R172: 2.426024575 | S172: 19.24868416 | T172: 0 | U172: -0.003792404456 | V172: 29.06597096
A173: Region Wide | C173: =C143 -> Rural | D173: Region WideRural | F173: =F114-F55 -> 219430600 | G173: 50 | H173: 12045.81083 | J173: =J114-J55 -> 226994.2381 | K173: =K114-K55 -> 32829.07963 | L173: 111620.2602 | M173: 0 | N173: 2436 | O173: 373879.5779 | Q173: =Q114-Q55 -> 14.31454609 | R173: 2.130792577 | S173: 7.30825962 | T173: 0 | U173: 0.07788145206 | V173: 23.75359828
A174: Region Wide | C174: Total | D174: Region WideTotal | F174: =F115-F56 -> 21431168549 | G174: 1227 | H174: 102457.4517 | J174: =J115-J56 -> 3776894.259 | K174: =K115-K56 -> 582177.2424 | L174: 3415229.968 | M174: 0 | N174: -202055.6618 | O174: 7572245.808 | Q174: =Q115-Q56 -> 17.26430655 | R174: 2.686234509 | S174: 14.84431509 | T174: 0 | U174: -1.148541253 | V174: 33.6463149
J177: =IF(ABS(J137-SUM(J128:J136))>tolerance_dollar,1,0) -> 0 | K177: =IF(ABS(K137-SUM(K128:K136))>tolerance_dollar,1,0) -> 0 | L177: 0 | M177: 0 | N177: 0 | O177: 0
J178: =IF(ABS(J167-SUM(J140:J166))>tolerance_dollar,1,0) -> 0 | K178: =IF(ABS(K167-SUM(K140:K166))>tolerance_dollar,1,0) -> 0 | L178: 0 | M178: 0 | N178: 0 | O178: 0
F179: =F167-F137 -> 0 | G179: =G167-G137 -> 0 | J179: =IF(ABS(J167-J137)>tolerance_dollar,1,0) -> 0 | K179: =IF(ABS(K167-K137)>tolerance_dollar,1,0) -> 0 | L179: 0 | M179: 0 | N179: 0 | O179: 0 | Q179: =IF(ABS(Q167-Q137)>tolerance_dollar,1,0) -> 0 | R179: 0 | S179: 0 | T179: 0 | U179: 0 | V179: 0

Sheet Rates Check - ex-KCDC & UHC
A1: Wellington Regional Council
A2: =B5&" Check "&year_current -> South Wairarapa district Check 2019/20
A3: =check_total -> 0
A4: Printed: | B4: =NOW() -> 2019-05-10T11:15:31.730
A5: TA to view | B5: South Wairarapa district
D7: Excluding GST | H7: Including GST
A9: Total
A10: Rate | B10: Categories | D10: Rateable Capital Value | E10: Cents in Dollar | F10: Rates Set | H10: Cents in Dollar | I10: Rates Set
D11: $ | E11: Cents / $ | F11: $ | H11: Cents / $ | I11: $
A12: General rate | B12: District wide | D12: =INDEX(capital_values,MATCH($B$5&B12,capital_values_rows,0),MATCH("CV "&year_current,capital_values_header,0)) -> 4554810800 | E12: =INDEX(Gen!$E$10:$E$19,MATCH(B5,Gen!$A$10:$A$19,0),) -> 0.03528485707 | F12: =+E12*D12/100 -> 1607158.481 | H12: =+E12*(1+GST) -> 0.04057758563 | I12: =+F12*(1+GST) -> 1848232.253
A13: River management rate | B13: District wide | D13: =INDEX(capital_values,MATCH($B$5&B13,capital_values_rows,0),MATCH("CV "&year_current,capital_values_header,0)) -> 4554810800 | E13: =INDEX('River management'!$D$10:$D$19,MATCH(B5,'River management'!$A$10:$A$19,0),) -> 0 | F13: =+E13*D13/100 -> 0 | H13: 0 | I13: 0
A14: Public transport rate | B14: Regional CBD | D14: =IFERROR(INDEX(capital_values,MATCH($B$5&B14,capital_values_rows,0),MATCH("CV "&year_current,capital_values_header,0)),0) -> 0 | E14: =IFERROR(INDEX('Public transport'!$J$23:$J$50,MATCH($B$5&B14,'Public transport'!$D$23:$D$50,0),),0) -> 0 | F14: 0 | H14: 0 | I14: 0
B15: Business | D15: 211288600 | E15: =IFERROR(INDEX('Public transport'!$J$23:$J$50,MATCH($B$5&B15,'Public transport'!$D$23:$D$50,0),),0) -> 0.0276381789 | F15: 58396.32127 | H15: 0.03178390574 | I15: 67155.76946
B16: Residential | D16: 1373326100 | E16: =IFERROR(INDEX('Public transport'!$J$23:$J$50,MATCH($B$5&B16,'Public transport'!$D$23:$D$50,0),),0) -> 0.02130059903 | F16: 292526.686 | H16: 0.02449568889 | I16: 336405.6888
B17: Rural | D17: 2970196100 | E17: =IFERROR(INDEX('Public transport'!$J$23:$J$50,MATCH($B$5&B17,'Public transport'!$D$23:$D$50,0),),0) -> 0.007058612835 | F17: 209654.6431 | H17: 0.00811740476 | I17: 241102.8396
A18: Stadium purposes rate | B18: Regional CBD | D18: 0 | E18: =IFERROR(INDEX(Stadium!$H$23:$H$49,MATCH($B$5&B18,Stadium!$D$23:$D$49,0),),0) -> 0 | F18: 0 | H18: 0 | I18: 0
B19: Business | D19: 211288600 | E19: =IFERROR(INDEX(Stadium!$H$23:$H$49,MATCH($B$5&B19,Stadium!$D$23:$D$49,0),),0) -> 0 | F19: 0 | H19: 0 | I19: 0
B20: Residential | D20: 1373326100 | E20: =IFERROR(INDEX(Stadium!$H$23:$H$49,MATCH($B$5&B20,Stadium!$D$23:$D$49,0),),0) -> 0 | F20: 0 | H20: 0 | I20: 0
B21: Rural | D21: 2970196100 | E21: =IFERROR(INDEX(Stadium!$H$23:$H$49,MATCH($B$5&B21,Stadium!$D$23:$D$49,0),),0) -> 0 | F21: 0 | H21: 0 | I21: 0
A22: Wellington regional strategy rate | B22: Regional CBD | D22: 0 | E22: =IFERROR(INDEX(WRS!$L$23:$L$49,MATCH($B$5&B22,WRS!$D$23:$D$49,0),),0) -> 0 | F22: 0 | H22: 0 | I22: 0
B23: Business | D23: 211288600 | E23: =IFERROR(INDEX(WRS!$L$23:$L$49,MATCH($B$5&B23,WRS!$D$23:$D$49,0),),0) -> 0.008035844344 | F23: 16978.82301 | H23: 0.009241220996 | I23: 19525.64647
A25: Rate | B25: Categories | D25: Number of assessments | E25: Amount per rating unit | F25: Rates Set | H25: Amount per rating unit | I25: Rates Set
D26: # | E26: $ | F26: $ | H26: $ | I26: $
A27: =+A22 -> Wellington regional strategy rate | B27: Residential | D27: =IFERROR(INDEX(WRS!$G$23:$G$49,MATCH($B$5&B27,WRS!$D$23:$D$49,0),),0) -> 3205 | E27: =INDEX(WRS_value,MATCH(B27,WRS_categories,0),) -> 14 | F27: =D27*E27 -> 44870 | H27: =+E27*(1+GST) -> 16.1 | I27: =+F27*(1+GST) -> 51600.5
B28: Rural | D28: =IFERROR(INDEX(WRS!$G$23:$G$49,MATCH($B$5&B28,WRS!$D$23:$D$49,0),),0) -> 2827 | E28: =INDEX(WRS_value,MATCH(B28,WRS_categories,0),) -> 28 | F28: =D28*E28 -> 79156 | H28: =+E28*(1+GST) -> 32.2 | I28: =+F28*(1+GST) -> 91029.4
A31: District-Wide Rates | F31: =SUM(F12:F29) -> 2308740.954 | I31: =SUM(I12:I29) -> 2655052.097
A34: Rate | B34: Categories | D34: No of Hectares | E34: Cents Per | F34: Rates | H34: Cents Per | I34: Rates
D35: # | E35: $ | F35: $ | H35: $ | I35: $
A36: Pest management rate | D36: =INDEX(Pest!$B$10:$B$18,MATCH(B5,Pest!$A$10:$A$18,0),) -> 177467.1272 | E36: =INDEX(Pest!$C$10:$C$18,MATCH(B5,Pest!$A$10:$A$18,0),) -> 0.9579755476 | F36: =+D36*E36 -> 170009.1684 | H36: =+E36*(1+GST) -> 1.10167188 | I36: =+F36*(1+GST) -> 195510.5436
A39: Rate | B39: Categories | D39: Rateable Capital Value or Land Value | E39: Cents in Dollar | F39: Rates Set | H39: Cents in Dollar | I39: Rates Set
D40: $ | E40: Cents / $ | F40: $ | H40: Cents / $ | I40: $
A41: Greytown river management rate | B41: Greytown Urban -CV | D41: =INDEX('Capital values'!$E$48:$F$49,MATCH(B41,'Capital values'!$A$48:$A$49,0),MATCH("CV "&year_current,capital_values_header,0)) -> 770802000 | E41: =IF($B$5="South Wairarapa District",INDEX('River management'!$D$29:$D$30,MATCH(A41,'River management'!$A$29:$A$30,0),),0) -> 0.01224698431 | F41: =+E41*D41/100 -> 94400 | H41: =+E41*(1+GST) -> 0.01408403196 | I41: =+F41*(1+GST) -> 108560
A42: Donalds Creek stopbank river management rate | B42: Featherston Urban - LV | D42: =INDEX('Capital values'!$E$48:$F$49,MATCH(B42,'Capital values'!$A$48:$A$49,0),MATCH("CV "&year_current,capital_values_header,0)) -> 163379500 | E42: =IF($B$5="South Wairarapa District",INDEX('River management'!$D$29:$D$30,MATCH(A42,'River management'!$A$29:$A$30,0),),0) -> 0.001632395741 | F42: 2667 | H42: =+E42*(1+GST) -> 0.001877255102 | I42: =+F42*(1+GST) -> 3067.05
A45: Total regional rates (excl special rates) | F45: =SUM(F31:F44) -> 2575817.122 | I45: =SUM(I31:I44) -> 2962189.691
A47: Check | F47: =IF(ABS(INDEX('Comparison - TA'!$B$43:$L$43,,MATCH(B5,'Comparison - TA'!$B$29:$L$29,0))-F45)>tolerance_dollar,1,0) -> 0

Sheet Rates Check - UHC
A1: Wellington Regional Council
A2: =B5&" Check "&year_current -> Upper Hutt city Check 2019/20
A3: =check_total -> 0
A4: Printed: | B4: =NOW() -> 2019-05-10T11:15:31.730
A5: TA to view | B5: Upper Hutt city
D7: Excluding GST | H7: Including GST
A10: Rate | B10: Categories | D10: Rateable Capital Value | E10: Cents in Dollar | F10: Rates Set | H10: Cents in Dollar | I10: Rates Set
D11: $ | E11: Cents / $ | F11: $ | H11: Cents / $ | I11: $
A12: General rate | B12: District wide | D12: ='UHCC Adjustments'!$D$20 -> 8189965260 | E12: =Gen!E35 -> 0.04105360484 | F12: =+E12*D12/100 -> 3362275.975 | H12: =+E12*(1+GST) -> 0.04721164557 | I12: 3866617.371
A13: River management rate | B13: District wide | D13: ='UHCC Adjustments'!$D$20 -> 8189965260 | E13: ='River management'!D24 -> 0.009760804145 | F13: =+E13*D13/100 -> 799406.4685 | H13: 0.01122492477 | I13: 919317.4388
A14: Public transport rate | B14: Regional CBD | D14: 0 | E14: 0 | F14: 0 | H14: 0 | I14: 0
B15: Business | D15: ='UHCC Adjustments'!D16 -> 1126014500 | E15: ='Public transport'!J55 -> 0.06632429285 | F15: 746821.1545 | H15: 0.07627293677 | I15: 858844.3276
B16: Residential | D16: ='UHCC Adjustments'!D17 -> 6207040420 | E16: ='Public transport'!J57 -> 0.06178070169 | F16: 3834753.126 | H16: 0.07104780694 | I16: 4409966.094
B17: Rural | D17: ='UHCC Adjustments'!D18 -> 856910340 | E17: ='Public transport'!J59 -> 0.01564172149 | F17: 134035.5288 | H17: 0.01798797971 | I17: 154140.8581
A18: Stadium purposes rate | B18: Regional CBD | D18: 0 | E18: 0 | F18: 0 | H18: 0 | I18: 0
B19: Business | D19: ='UHCC Adjustments'!D16 -> 1126014500 | E19: =Stadium!H55 -> 0 | F19: 0 | H19: 0 | I19: 0
B20: Residential | D20: ='UHCC Adjustments'!D17 -> 6207040420 | E20: =Stadium!H57 -> 0 | F20: 0 | H20: 0 | I20: 0
B21: Rural | D21: ='UHCC Adjustments'!D18 -> 856910340 | E21: =Stadium!H59 -> 0 | F21: 0 | H21: 0 | I21: 0
A22: Wellington regional strategy rate | B22: Regional CBD | D22: 0 | E22: =IFERROR(INDEX(WRS!$L$23:$L$49,MATCH($B$5&B22,WRS!$D$23:$D$49,0),),0) -> 0 | F22: 0 | H22: 0 | I22: 0
B23: Business | D23: ='UHCC Adjustments'!D16 -> 1126014500 | E23: =IFERROR(INDEX(WRS!$L$23:$L$49,MATCH($B$5&B23,WRS!$D$23:$D$49,0),),0) -> 0.009329561651 | F23: 105052.217 | H23: 0.0107289959 | I23: 120810.0495
A25: Rate | B25: Categories | D25: Number of assessments | E25: Amount per rating unit | F25: Rates Set | H25: Amount per rating unit | I25: Rates Set
D26: # | E26: $ | F26: $ | H26: $ | I26: $
A27: =+A22 -> Wellington regional strategy rate | B27: Residential | D27: =IFERROR(INDEX(WRS!$G$23:$G$49,MATCH($B$5&B27,WRS!$D$23:$D$49,0),),0) -> 14873 | E27: =INDEX(WRS_value,MATCH(B27,WRS_categories,0),) -> 14 | F27: =D27*E27 -> 208222 | H27: =+E27*(1+GST) -> 16.1 | I27: =+F27*(1+GST) -> 239455.3
B28: Rural | D28: =IFERROR(INDEX(WRS!$G$23:$G$49,MATCH($B$5&B28,WRS!$D$23:$D$49,0),),0) -> 1199 | E28: =INDEX(WRS_value,MATCH(B28,WRS_categories,0),) -> 28 | F28: =D28*E28 -> 33572 | H28: =+E28*(1+GST) -> 32.2 | I28: =+F28*(1+GST) -> 38607.8
A31: District-Wide Rates | F31: =SUM(F12:F29) -> 9224138.469 | I31: =SUM(I12:I29) -> 10607759.24
A34: Rate | B34: Categories | D34: No of Hectares | E34: Cents Per | F34: Rates | H34: Cents Per | I34: Rates
D35: # | E35: $ | F35: $ | H35: $ | I35: $
A36: Pest management rate | D36: =INDEX(Pest!$B$10:$B$18,MATCH(B5,Pest!$A$10:$A$18,0),) -> 54346.1582 | E36: =INDEX(Pest!$C$10:$C$18,MATCH(B5,Pest!$A$10:$A$18,0),) -> 0.9579755476 | F36: =+D36*E36 -> 52062.29066 | H36: =+E36*(1+GST) -> 1.10167188 | I36: =+F36*(1+GST) -> 59871.63426
A39: Total regional rates (excl special rates) | F39: =SUM(F31:F38) -> 9276200.76 | I39: =SUM(I31:I38) -> 10667630.87
A43: Trentham Military Camp
A44: Rate | B44: Categories | D44: Rateable Capital Value | E44: Cents in Dollar | F44: Rates Set | H44: Cents in Dollar | I44: Rates Set
D45: $ | E45: Cents / $ | F45: $ | H45: Cents / $ | I45: $
A46: General rate | B46: Trentham Military Camp | D46: =Gen!B34 -> 87721000 | E46: =IF(B5="Upper Hutt City",Gen!E34,0) -> 0.03273814629 | F46: =+E46*D46/100 -> 28718.22931 | H46: =+E46*(1+GST) -> 0.03764886823 | I46: 33025.9637
A47: River management rate | B47: Trentham Military Camp | D47: ='River management'!B23 -> 87721000 | E47: =IF(B5="Upper Hutt City",'River management'!D23,0) -> 0.007783741165 | F47: 6827.975588 | H47: 0.00895130234 | I47: 7852.171926
A48: Public transport rate | B48: Business | D48: ='Public transport'!E54 -> 56325000 | E48: =IF(B5="Upper Hutt City",'Public transport'!J54,0) -> 0.09306105463 | F48: 52416.63902 | H48: 0.1070202128 | I48: 60279.13487
B49: Residential | D49: ='Public transport'!E56 -> 26720000 | E49: =IF(B5="Upper Hutt City",'Public transport'!J56,0) -> 0.04567901604 | F49: 12205.43309 | H49: 0.05253086845 | I49: 14036.24805
B50: Rural | D50: ='Public transport'!E58 -> 4676000 | E50: =IF(B5="Upper Hutt City",'Public transport'!J58,0) -> 0.0183516877 | F50: 858.1249171 | H50: 0.02110444086 | I50: 986.8436546
A51: Stadium purposes Rate | B51: Business | D51: =Stadium!F54 -> 56325000 | E51: =IF(B5="Upper Hutt City",Stadium!H54,0) -> 0 | F51: 0 | H51: 0 | I51: 0
B52: Residential | D52: =Stadium!F56 -> 26720000 | E52: =IF(B5="Upper Hutt City",Stadium!H56,0) -> 0 | F52: 0 | H52: 0 | I52: 0
B53: Rural | D53: =Stadium!F58 -> 4676000 | E53: =IF(B5="Upper Hutt City",Stadium!H58,0) -> 0 | F53: 0 | H53: 0 | I53: 0
A54: Wellington regional strategy rate | B54: Business | D54: ='UHCC Adjustments'!D9 -> 56325000 | E54: =IF(B5="Upper Hutt City",WRS!L30,0) -> 0.009329561651 | F54: 5254.8756 | H54: 0.0107289959 | I54: 6043.10694
B55: No change for residential or rural as it is a fixed charge per property
A56: Trentham Military Camp | F56: =SUM(F46:F55) -> 106281.2775 | I56: =SUM(I46:I55) -> 122223.4691
A58: Check | F58: =ROUND(INDEX('Comparison - TA'!$B$43:$L$43,,MATCH(B5,'Comparison - TA'!$B$29:$L$29,0))-F39-F56,0) -> 0

Sheet Rates Check - KCDC
A1: Wellington Regional Council
A2: =B5&" Check "&year_current -> Kāpiti Coast district Check 2019/20
A3: =check_total -> 0
A4: Printed: | B4: =NOW() -> 2019-05-10T11:15:31.730
A5: TA to view | B5: Kāpiti Coast district
D7: Excluding GST | H7: Including GST
A9: Total
A10: Rate | B10: Categories | D10: Rateable Capital Value | E10: Cents in Dollar | F10: Rates Set | H10: Cents in Dollar | I10: Rates Set
D11: $ | E11: Cents / $ | F11: $ | H11: Cents / $ | I11: $
A12: General rate | B12: District wide | D12: =INDEX(capital_values,MATCH($B$5&B12,capital_values_rows,0),MATCH("CV "&year_current,capital_values_header,0)) -> 14894058100 | E12: =INDEX(Gen!$E$10:$E$19,MATCH(B5,Gen!$A$10:$A$19,0),) -> 0.03524589372 | F12: =+E12*D12/100 -> 5249543.888 | H12: =+E12*(1+GST) -> 0.04053277778 | I12: 6036975.472
A13: River management rate | B13: District wide | D13: =INDEX(capital_values,MATCH($B$5&B13,capital_values_rows,0),MATCH("CV "&year_current,capital_values_header,0)) -> 14894058100 | E13: =INDEX('River management'!$D$10:$D$19,MATCH(B5,'River management'!$A$10:$A$19,0),) -> 0.009556999802 | F13: =+E13*D13/100 -> 1423425.103 | H13: 0.01099054977 | I13: 1636938.869
A14: Public transport rate | B14: Regional CBD | D14: =IFERROR(INDEX(capital_values,MATCH($B$5&B14,capital_values_rows,0),MATCH("CV "&year_current,capital_values_header,0)),0) -> 0 | E14: =IFERROR(INDEX('Public transport'!$J$23:$J$52,MATCH($B$5&B14,'Public transport'!$D$23:$D$52,0),),0) -> 0 | F14: 0 | H14: 0 | I14: 0
B15: Business | D15: 1476489000 | E15: =IFERROR(INDEX('Public transport'!$J$23:$J$52,MATCH($B$5&B15,'Public transport'!$D$23:$D$52,0),),0) -> 0.03555195293 | F15: 524920.6744 | H15: 0.04088474587 | I15: 603658.7755
B16: Residential - excl-Otaki | D16: =IFERROR(INDEX(capital_values,MATCH("Kāpiti Coast district excl Ōtaki Residential",capital_values_rows,0),MATCH("CV "&year_current,capital_values_header,0)),0) -> 10311045500 | E16: =IFERROR(INDEX('Public transport'!$J$23:$J$52,MATCH("Kāpiti Coast district excl Ōtaki Residential",'Public transport'!$D$23:$D$52,0),),0) -> 0.03048748766 | F16: 3143578.725 | H16: 0.03506061081 | I16: 3615115.533
B17: Residential - Otaki | D17: =IFERROR(INDEX(capital_values,MATCH("Ōtaki rating areaResidential",capital_values_rows,0),MATCH("CV "&year_current,capital_values_header,0)),0) -> 1121512900 | E17: =IFERROR(INDEX('Public transport'!$J$23:$J$52,MATCH("Ōtaki rating areaResidential",'Public transport'!$D$23:$D$52,0),),0) -> 0.02415690607 | F17: 270922.8178 | H17: =+E17*(1+GST) -> 0.02778044198 | I17: =+F17*(1+GST) -> 311561.2405
B18: Rural | D18: 1985010700 | E18: =IFERROR(INDEX('Public transport'!$J$23:$J$52,MATCH($B$5&B18,'Public transport'!$D$23:$D$52,0),),0) -> 0.007777096067 | F18: 154376.1891 | H18: =+E18*(1+GST) -> 0.008943660477 | I18: =+F18*(1+GST) -> 177532.6174
A19: Stadium purposes rate | B19: Regional CBD | D19: 0 | E19: =IFERROR(INDEX(Stadium!$H$23:$H$49,MATCH($B$5&B19,Stadium!$D$23:$D$49,0),),0) -> 0 | F19: 0 | H19: 0 | I19: 0
B20: Business | D20: 1476489000 | E20: =IFERROR(INDEX(Stadium!$H$23:$H$49,MATCH($B$5&B20,Stadium!$D$23:$D$49,0),),0) -> 0 | F20: 0 | H20: 0 | I20: 0
B21: Residential - excl-Otaki | D21: =IFERROR(INDEX(capital_values,MATCH("Kāpiti Coast district excl Ōtaki Residential",capital_values_rows,0),MATCH("CV "&year_current,capital_values_header,0)),0) -> 10311045500 | E21: =IFERROR(INDEX(Stadium!$H$23:$H$49,MATCH("Kāpiti Coast district excl Ōtaki Residential",Stadium!$D$23:$D$49,0),),0) -> 0 | F21: 0 | H21: 0 | I21: 0
B22: Residential - Otaki | D22: =IFERROR(INDEX(capital_values,MATCH("Ōtaki rating areaResidential",capital_values_rows,0),MATCH("CV "&year_current,capital_values_header,0)),0) -> 1121512900 | E22: =IFERROR(INDEX(Stadium!$H$23:$H$49,MATCH("Ōtaki rating areaResidential",Stadium!$D$23:$D$49,0),),0) -> 0 | F22: =+E22*D22/100 -> 0 | H22: =+E22*(1+GST) -> 0 | I22: =+F22*(1+GST) -> 0
B23: Rural | D23: 1985010700 | E23: =IFERROR(INDEX(Stadium!$H$23:$H$49,MATCH($B$5&B23,Stadium!$D$23:$D$49,0),),0) -> 0 | F23: 0 | H23: 0 | I23: 0
A24: Wellington regional strategy rate | B24: Regional CBD | D24: 0 | E24: =IFERROR(INDEX(WRS!$L$23:$L$49,MATCH($B$5&B24,WRS!$D$23:$D$49,0),),0) -> 0 | F24: 0 | H24: 0 | I24: 0
B25: Business | D25: 1476489000 | E25: =IFERROR(INDEX(WRS!$L$23:$L$49,MATCH($B$5&B25,WRS!$D$23:$D$49,0),),0) -> 0.008026970753 | F25: 118517.3402 | H25: 0.009231016366 | I25: 136294.9412
A27: Rate | B27: Categories | D27: Number of assessments | E27: Amount per rating unit | F27: Rates Set | H27: Amount per rating unit | I27: Rates Set
D28: # | E28: $ | F28: $ | H28: $ | I28: $
A29: =+A24 -> Wellington regional strategy rate | B29: Residential | D29: =SUMIFS(WRS!$G$23:$G$49,WRS!$A$23:$A$49,$B$5,WRS!$C$23:$C$49,$B29) -> 20917 | E29: =F29/D29 -> 14 | F29: =SUMIFS(WRS!$K$23:$K$49,WRS!$A$23:$A$49,$B$5,WRS!$C$23:$C$49,$B29) -> 292838 | H29: =+E29*(1+GST) -> 16.1 | I29: 336763.7
B30: Rural | D30: =SUMIFS(WRS!$G$23:$G$49,WRS!$A$23:$A$49,$B$5,WRS!$C$23:$C$49,$B30) -> 2492 | E30: =F30/D30 -> 28 | F30: =SUMIFS(WRS!$K$23:$K$49,WRS!$A$23:$A$49,$B$5,WRS!$C$23:$C$49,$B30) -> 69776 | H30: 32.2 | I30: 80242.4
A33: District-Wide Rates | F33: =SUM(F12:F31) -> 11247898.74 | I33: =SUM(I12:I31) -> 12935083.55
A36: Rate | B36: Categories | D36: No of Hectares | E36: Cents Per | F36: Rates | H36: Cents Per | I36: Rates
D37: # | E37: $ | F37: $ | H37: $ | I37: $
A38: Pest management rate | D38: =INDEX(Pest!$B$10:$B$18,MATCH(B5,Pest!$A$10:$A$18,0),) -> 29020.7598 | E38: =INDEX(Pest!$C$10:$C$18,MATCH(B5,Pest!$A$10:$A$18,0),) -> 0.9579755476 | F38: =+D38*E38 -> 27801.17826 | H38: =+E38*(1+GST) -> 1.10167188 | I38: =+F38*(1+GST) -> 31971.355
A41: Total regional rates (excl special rates) | F41: =SUM(F33:F40) -> 11275699.92 | I41: =SUM(I33:I40) -> 12967054.9
A43: Check | F43: =INDEX('Comparison - TA'!$B$43:$L$43,,MATCH(B5,'Comparison - TA'!$B$29:$L$29,0))-F41 -> 0

Sheet Checks
A1: Wellington Regional Council
A2: Value checks
A3: =check_total -> 0
A5: Tab/component | B5: Check | D5: Check notes
A7: OVERALL | B7: =SUM(B9:B47) -> 0
A10: Capital values tab
A11: Populated | B11: =SUM('Capital values'!J8:K140) -> 0
A12: TA total matches category
A13: Capital values | B13: =SUM('Capital values'!E51:F51) -> 0
A14: No. of Assessments (#) | B14: =SUM('Capital values'!E97:F97) -> 0
A15: Number of Assessments Contiguous for WRS | B15: =SUM('Capital values'!E143:F143) -> 0
A17: Rate model checks
A18: General rate | B18: =SUM(Gen!B39:D40) -> 0
A19: River management rate | B19: =SUM('River management'!B34:C36) -> 0
A20: Stadium rate | B20: =SUM(Stadium!E63:G66) -> 0
A21: Wellington regional strategy rate | B21: =SUM(WRS!E52:K54) -> 0
A22: Public transport rate | B22: =SUM('Public transport'!E63:I66) -> 0
A23: Pest management rate | B23: =SUM(Pest!B21:D21) -> 0
A24: Water Levy | B24: =SUM('Water levy'!B21:C21) -> 0
A25: Class rates - schemes | B25: =SUM('Class Rates'!B141:H141) -> 0
A27: Comparison - TA | B27: =SUM('Comparison - TA'!M7:M68) -> 0
A29: Comparison - category
A30: Previous year | B30: =SUM('Comparison - Category'!F59:V61) -> 0
A31: Current year | B31: =SUM('Comparison - Category'!F118:V120) -> 0
A32: Delta | B32: =SUM('Comparison - Category'!F177:V179) -> 0
A34: Rates check
A35: ex-KCDC & UHC | B35: ='Rates Check - ex-KCDC & UHC'!F47 -> 0
A36: UHC | B36: ='Rates Check - UHC'!F58 -> 0
A37: KCDC | B37: ='Rates Check - KCDC'!F43 -> 0
A39: Rates
A40: 1 | B40: =SUM('1'!J19:K42) -> 0
A41: 2 | B41: =SUM('2'!J21:K40) -> 0
A42: 3 - changes | B42: =SUM('3'!V14:Y39) -> 0
A43: 3 - inputs | B43: =SUM('3'!V64:V124) -> 0
A44: 4 | B44: =SUM('4'!T16:U24) -> 0
A45: 5 | B45: =SUM('5'!P20:Q42) -> 0
A46: Impact for annual plan | B46: =Impact!L261+Impact!L265 -> 0

Sheet >>Rates

Sheet 1
A1: Summary of Rates and Water Levies
A3: Rates for Greater Wellington are mostly allocated to ratepayers on the basis of their capital values. Within the region, different territorial authorities undertake general revaluations at different times. To equalise the values, each year Council gets Quotable Value or another registered valuer to estimate the projected valuations of all the rateable land in the districts within the region. This means that rates are assessed on a consistent valuation basis, regardless of the timing of individual territorial authority revaluations.
A4: The summary information in this section should be read in conjunction with the Funding Impact Statement and the Revenue and Financing policy.
A5: All figures on this page exclude GST.
A6: ="This table shows the rates and levies for GWRC in "&year_current&", with the changes from last year "&year_previous&". Rates comprise the general rate and various targeted rates. GWRC also charges a water supply levy directly to the four city councils in the region, and they set their own rates to cover the cost of this levy." -> This table shows the rates and levies for GWRC in 2019/20, with the changes from last year 2018/19. Rates comprise the general rate and various targeted rates. GWRC also charges a water supply levy directly to the four city councils in the region, and they set their own rates to cover the cost of this levy.
A8: ="The total rate increase in regional rates for "&year_current&" is "&ROUND(E34*100,1)&"%. The water supply levy, which is charged to the four metropolitan city councils is proposed to increase by "&ROUND(E36*100,1)&"% compared to 2017/18. When the water supply levy is included, Greater Wellington Regional Council's overall increase is "&ROUND(E38*100,1)&"%" -> The total rate increase in regional rates for 2019/20 is 5.9%. The water supply levy, which is charged to the four metropolitan city councils is proposed to increase by 6.1% compared to 2017/18. When the water supply levy is included, Greater Wellington Regional Council's overall increase is 5.9%
A10: Summary of rates and levies
B11: =year_previous -> 2018/19 | C11: =year_current -> 2019/20
B12: Plan | C12: Plan | D12: Change | E12: Change
B13: $000s | C13: $000s | D13: $000s | E13: % | G13: Row lookup | H13: Column lookup
A14: General rates
A15: =ESSbase!C38 -> Catchment Management (excluding forests) | B15: =ESSbase!F38/1000 -> 22664.84533 | C15: =ESSbase!G38/1000 -> 24013.09823 | D15: =C15-B15 -> 1348.252893 | E15: =ROUND(D15/B15,4) -> 0.0595
A16: Other | B16: =ESSbase!F43/1000-SUM(B15,B17:B18) -> 27399.39315 | C16: =ESSbase!G43/1000-SUM(C15,C17:C18) -> 29155.75617 | D16: 1756.363024 | E16: =ROUND(D16/B16,4) -> 0.0641
A17: =ESSbase!C39 -> Strategy Group | B17: =ESSbase!F39/1000 -> 6358.568064 | C17: =ESSbase!G39/1000 -> 6929.809608 | D17: 571.241544 | E17: =ROUND(D17/B17,4) -> 0.0898
A18: =ESSbase!C41 -> Investment Management. | B18: =ESSbase!F41/1000 -> -9139.492638 | C18: =ESSbase!G41/1000 -> -9038.455841 | D18: 101.0367969 | E18: =-ROUND(D18/B18,4) -> 0.0111
A19: General rate | B19: =INDEX('Comparison - TA'!$B$7:$L$24,MATCH(G19,'Comparison - TA'!$A$7:$A$24,0),MATCH(H19,'Comparison - TA'!$B$6:$L$6,0))/1000 -> 47283.31391 | C19: =INDEX('Comparison - TA'!$B$30:$L$47,MATCH(G19,'Comparison - TA'!$A$30:$A$47,0),MATCH(H19,'Comparison - TA'!$B$29:$L$29,0))/1000 -> 51060.20817 | D19: 3776.894259 | E19: =ROUND(D19/B19,4) -> 0.0799 | G19: General rate | H19: Region wide | J19: =INDEX(ess_base_estract,MATCH($A19,ESSbase!$B$8:$B$25,0),MATCH(B$11,ESSbase!$F$6:$G$6,0))/1000-B19 -> 0 | K19: =INDEX(ess_base_estract,MATCH($A19,ESSbase!$B$8:$B$25,0),MATCH(C$11,ESSbase!$F$6:$G$6,0))/1000-C19 -> 0
A21: Targeted rates
A22: Region wide targeted rates1
A23: River management rate | B23: =INDEX('Comparison - TA'!$B$7:$L$24,MATCH(G23,'Comparison - TA'!$A$7:$A$24,0),MATCH(H23,'Comparison - TA'!$B$6:$L$6,0))/1000 -> 6458.970807 | C23: =INDEX('Comparison - TA'!$B$30:$L$47,MATCH(G23,'Comparison - TA'!$A$30:$A$47,0),MATCH(H23,'Comparison - TA'!$B$29:$L$29,0))/1000 -> 7041.148242 | D23: =C23-B23 -> 582.1774353 | E23: =ROUND(D23/B23,4) -> 0.0901 | G23: River management rate | H23: Region wide | J23: =INDEX(ess_base_estract,MATCH($A23,ESSbase!$B$8:$B$25,0),MATCH(B$11,ESSbase!$F$6:$G$6,0))/1000-B23 -> 0 | K23: =INDEX(ess_base_estract,MATCH($A23,ESSbase!$B$8:$B$25,0),MATCH(C$11,ESSbase!$F$6:$G$6,0))/1000-C23 -> 0
A24: Public transport rate | B24: =INDEX('Comparison - TA'!$B$7:$L$24,MATCH(G24,'Comparison - TA'!$A$7:$A$24,0),MATCH(H24,'Comparison - TA'!$B$6:$L$6,0))/1000 -> 68109.67779 | C24: =INDEX('Comparison - TA'!$B$30:$L$47,MATCH(G24,'Comparison - TA'!$A$30:$A$47,0),MATCH(H24,'Comparison - TA'!$B$29:$L$29,0))/1000 -> 71524.90776 | D24: 3415.229968 | E24: =ROUND(D24/B24,4) -> 0.0501 | G24: Public transport rate | H24: Region wide | J24: =INDEX(ess_base_estract,MATCH($A24,ESSbase!$B$8:$B$25,0),MATCH(B$11,ESSbase!$F$6:$G$6,0))/1000-B24 -> 0 | K24: =INDEX(ess_base_estract,MATCH($A24,ESSbase!$B$8:$B$25,0),MATCH(C$11,ESSbase!$F$6:$G$6,0))/1000-C24 -> 0
A25: Stadium purposes rate | B25: =INDEX('Comparison - TA'!$B$7:$L$24,MATCH(G25,'Comparison - TA'!$A$7:$A$24,0),MATCH(H25,'Comparison - TA'!$B$6:$L$6,0))/1000 -> 0 | C25: =INDEX('Comparison - TA'!$B$30:$L$47,MATCH(G25,'Comparison - TA'!$A$30:$A$47,0),MATCH(H25,'Comparison - TA'!$B$29:$L$29,0))/1000 -> 0 | D25: 0 | G25: Stadium purposes rate | H25: Region wide | J25: =INDEX(ess_base_estract,MATCH($A25,ESSbase!$B$8:$B$25,0),MATCH(B$11,ESSbase!$F$6:$G$6,0))/1000-B25 -> 0 | K25: =INDEX(ess_base_estract,MATCH($A25,ESSbase!$B$8:$B$25,0),MATCH(C$11,ESSbase!$F$6:$G$6,0))/1000-C25 -> 0
A26: Wellington regional strategy rate | B26: =INDEX('Comparison - TA'!$B$7:$L$24,MATCH(G26,'Comparison - TA'!$A$7:$A$24,0),MATCH(H26,'Comparison - TA'!$B$6:$L$6,0))/1000 -> 4907.860821 | C26: =INDEX('Comparison - TA'!$B$30:$L$47,MATCH(G26,'Comparison - TA'!$A$30:$A$47,0),MATCH(H26,'Comparison - TA'!$B$29:$L$29,0))/1000 -> 4705.805159 | D26: -202.0556618 | E26: -0.0412 | G26: Wellington regional strategy rate | H26: Region wide | J26: =INDEX(ess_base_estract,MATCH($A26,ESSbase!$B$8:$B$25,0),MATCH(B$11,ESSbase!$F$6:$G$6,0))/1000-B26 -> 0 | K26: =INDEX(ess_base_estract,MATCH($A26,ESSbase!$B$8:$B$25,0),MATCH(C$11,ESSbase!$F$6:$G$6,0))/1000-C26 -> 0
A28: Specific area targeted rates:
A29: Pest management rate | B29: =INDEX('Comparison - TA'!$B$7:$L$24,MATCH(G29,'Comparison - TA'!$A$7:$A$24,0),MATCH(H29,'Comparison - TA'!$B$6:$L$6,0))/1000 -> 532 | C29: =INDEX('Comparison - TA'!$B$30:$L$47,MATCH(G29,'Comparison - TA'!$A$30:$A$47,0),MATCH(H29,'Comparison - TA'!$B$29:$L$29,0))/1000 -> 577.2 | D29: =C29-B29 -> 45.2 | E29: =ROUND(D29/B29,4) -> 0.085 | G29: Pest management rate | H29: Region wide | J29: =INDEX(ess_base_estract,MATCH($A29,ESSbase!$B$8:$B$25,0),MATCH(B$11,ESSbase!$F$6:$G$6,0))/1000-B29 -> 0 | K29: =INDEX(ess_base_estract,MATCH($A29,ESSbase!$B$8:$B$25,0),MATCH(C$11,ESSbase!$F$6:$G$6,0))/1000-C29 -> 0
A30: South Wairarapa district – river rates | B30: =INDEX('Comparison - TA'!$B$7:$L$24,MATCH(G30,'Comparison - TA'!$A$7:$A$24,0),MATCH(H30,'Comparison - TA'!$B$6:$L$6,0))/1000 -> 95.164 | C30: =INDEX('Comparison - TA'!$B$30:$L$47,MATCH(G30,'Comparison - TA'!$A$30:$A$47,0),MATCH(H30,'Comparison - TA'!$B$29:$L$29,0))/1000 -> 97.06698 | D30: =C30-B30 -> 1.90298 | E30: =ROUND(D30/B30,4) -> 0.02 | G30: River management rate - Non district wide | H30: Region wide | J30: =INDEX(ess_base_estract,MATCH($G30,ESSbase!$B$8:$B$25,0),MATCH(B$11,ESSbase!$F$6:$G$6,0))/1000-B30 -> 0 | K30: =INDEX(ess_base_estract,MATCH($G30,ESSbase!$B$8:$B$25,0),MATCH(C$11,ESSbase!$F$6:$G$6,0))/1000-C30 -> 0
A31: Wairarapa scheme and stopbank rates | B31: =INDEX('Comparison - TA'!$B$7:$L$24,MATCH(G31,'Comparison - TA'!$A$7:$A$24,0),MATCH(H31,'Comparison - TA'!$B$6:$L$6,0))/1000 -> 1487.363 | C31: =INDEX('Comparison - TA'!$B$30:$L$47,MATCH(G31,'Comparison - TA'!$A$30:$A$47,0),MATCH(H31,'Comparison - TA'!$B$29:$L$29,0))/1000 -> 1465.21408 | D31: -22.14892 | E31: -0.0149 | G31: Special Rates | H31: Region wide | J31: =INDEX(ess_base_estract,MATCH($G31,ESSbase!$B$8:$B$25,0),MATCH(B$11,ESSbase!$F$6:$G$6,0))/1000-B31 -> 0 | K31: =INDEX(ess_base_estract,MATCH($G31,ESSbase!$B$8:$B$25,0),MATCH(C$11,ESSbase!$F$6:$G$6,0))/1000-C31 -> 0
A32: Total targeted rates 2 | B32: =SUM(B23:B31) -> 81591.03642 | C32: =SUM(C23:C31) -> 85411.34222 | D32: =SUM(D23:D31) -> 3820.305802 | E32: =ROUND(D32/B32,4) -> 0.0468
A34: Total regional rates | B34: =INDEX('Comparison - TA'!$B$7:$L$24,MATCH(G34,'Comparison - TA'!$A$7:$A$24,0),MATCH(H34,'Comparison - TA'!$B$6:$L$6,0))/1000 -> 128874.3503 | C34: =INDEX('Comparison - TA'!$B$30:$L$47,MATCH(G34,'Comparison - TA'!$A$30:$A$47,0),MATCH(H34,'Comparison - TA'!$B$29:$L$29,0))/1000 -> 136471.5504 | D34: =C34-B34 -> 7597.20006 | E34: =ROUND(D34/B34,6) -> 0.05895 | G34: Total Regnl Rates | H34: Region wide | J34: =INDEX(ess_base_estract,MATCH($G34,ESSbase!$B$8:$B$25,0),MATCH(B$11,ESSbase!$F$6:$G$6,0))/1000-B34 -> 0 | K34: =INDEX(ess_base_estract,MATCH($G34,ESSbase!$B$8:$B$25,0),MATCH(C$11,ESSbase!$F$6:$G$6,0))/1000-C34 -> 0
